Workbook

Sheet Főmenü
AJ4: FALSE
B18: Verziószám: 2014/5 (2014.12.31-ig)
B19: A Kalkulátorban közölt valamennyi adat tájékoztató jellegű, kötelezettségvállalást nem jelent! Az alkalmazott hozamprognózisok csupán várható értékek, melyek nem tükrözik az egyes eszközalapok kockázatosságának eltérő mértékét. Különösen a részvényes eszközalapokra igaz, hogy a prognosztizált hozamokhoz képest jelentősen eltérhet a valós hozam, pozitív és negatív irányban egyaránt. A negatív teljesítménytől a HozamMonitor Szolgáltatások sem jelentenek minden esetben védelmet, illetve nem igaz minden körülmények között, hogy HozamMonitor Szolgáltatásokkal jobb teljesítmény érhető el, mint nélkülük! A Kalkulátor nem ellenőriz minden szabályt és megkötést a szerződés paramétereinek megadásánál, illetve nem vesz figyelembe minden szabályt a várható öregségi nyugdíj és béradatok meghatározásánál!

Sheet Folyamatos modell (hidden)
B1: Folyamatos díjak kalkulátora | J1: Aktuális | K1: AMÖ | L1: Vv összeg | M1: Befizetett megtak | N1: Befizetett admin
G2: GÉP = 1, NYÉP = 2 | H2: =IF(Főmenü!AJ4=TRUE,1,2) -> 2 | J2: 1 | K2: =INDEX($AC$50:$AE$589,J2*12,1) -> 0 | L2: =INDEX($AC$50:$AE$589,J2*12,2) -> 0 | M2: =INDEX($AC$50:$AE$589,J2*12,3) -> 0 | N2: =INDEX($AC$50:$AF$589,J2*12,4) -> 0
B3: Üzemmód választás | J3: 2 | K3: 0 | L3: 0 | M3: 0 | N3: 0
E4: TRUE | J4: 3 | K4: 0 | L4: 0 | M4: 0 | N4: 0
J5: 4 | K5: 0 | L5: 0 | M5: 0 | N5: 0
B6: Általános paraméterek | J6: 5 | K6: 0 | L6: 0 | M6: 0 | N6: 0
J7: 6 | K7: 0 | L7: 0 | M7: 0 | N7: 0
C8: Díjfizetés gyakoriság | D8: =IF(H2=1,'Folyamatos Életív'!Q7,'Folyamatos Nyugdíjcélú Életív'!M7) -> 3 | F8: Eszközalap-kezelési költség | G8: =IF(ISERROR(VLOOKUP(D24,'Hozamsorok-eszközalapok'!M1:P14,2,FALSE))=TRUE,0,VLOOKUP(D24,'Hozamsorok-eszközalapok'!M1:P14,IF(H2=1,3,4),FALSE)) -> 0 | J8: 7 | K8: 0 | L8: 0 | M8: 0 | N8: 0
C9: Tartam | D9: =IF(H2=1,'Folyamatos Életív'!AA7,'Folyamatos Nyugdíjcélú Életív'!AD7) -> 20 | J9: 8 | K9: 0 | L9: 0 | M9: 0 | N9: 0
C10: =IF(D8=1,"---","Megtakarítási időszak") -> Megtakarítási időszak | D10: =IF(H2=1,'Folyamatos Életív'!AA8,'Folyamatos Nyugdíjcélú Életív'!AD8) -> 20 | F10: =IF(E4=TRUE,"Stop-loss költség","---") -> Stop-loss költség | G10: =IF(E4=TRUE,IF(D22=1,0.02%,0),"---") -> 0 | J10: 9 | K10: 0 | L10: 0 | M10: 0 | N10: 0
F11: =IF(E4=TRUE,"Profitvédelem költség","---") -> Profitvédelem költség | G11: =IF(E4=TRUE,IF(D23=1,0.02%,0),"---") -> 0 | J11: 10 | K11: 0 | L11: 0 | M11: 0 | N11: 0
C12: Befektetendő összeg | D12: =+G19 -> 0 | J12: 11 | K12: 0 | L12: 0 | M12: 0 | N12: 0
C13: Allokációs költség | D13: =IF(H2=1,3%,0%) -> 0 | F13: Kockázati biztosítási összeg | G13: =IF(H2=1,300000,'Folyamatos Nyugdíjcélú Életív'!T8)*D26 -> 0 | J13: 12 | K13: 0 | L13: 0 | M13: 0 | N13: 0
C14: Kezdeti költség | D14: 0.005 | F14: Kezdeti egység vv tényező | G14: 0.995 | J14: 13 | K14: 0 | L14: 0 | M14: 0 | N14: 0
C15: Kockázati költség | D15: =IF(H2=1,0.11%,0.167%) -> 0.00167 | F15: Felhalm. egység vv tényező | G15: 1 | J15: 14 | K15: 0 | L15: 0 | M15: 0 | N15: 0
J16: 15 | K16: 0 | L16: 0 | M16: 0 | N16: 0
B17: T érték specifikus adatok | J17: 16 | K17: 0 | L17: 0 | M17: 0 | N17: 0
J18: 17 | K18: 0 | L18: 0 | M18: 0 | N18: 0
C19: Eszközalap-kategória | D19: =IF(ISERROR(VLOOKUP(D24,'Hozamsorok-eszközalapok'!M1:N14,2,FALSE))=TRUE,4,VLOOKUP(D24,'Hozamsorok-eszközalapok'!M1:N14,2,FALSE)) -> 4 | F19: Egyszeri/megtak díj | G19: =IF(H2=1,'Folyamatos Életív'!K8,'Folyamatos Nyugdíjcélú Életív'!I8)*D26 -> 0 | J19: 18 | K19: 0 | L19: 0 | M19: 0 | N19: 0
C20: Hozamsor | D20: 2 | J20: 19 | K20: 0 | L20: 0 | M20: 0 | N20: 0
J21: 20 | K21: 0 | L21: 0 | M21: 0 | N21: 0
C22: Stop-loss | D22: =+IF('Folyamatos Életív'!R29="Igen",1,0) -> 0 | E22: HV | F22: =IF('Folyamatos Életív'!R30="Igen",1,0) -> 0 | J22: 21 | K22: 0 | L22: 0 | M22: 0 | N22: 0
C23: Profitvédelem | D23: 0 | E23: Extra hozam | F23: =IF(D22=0,0,INDEX('Hozamsorok-eszközalapok'!N19:O22,D19-3,IF(F22=0,1,2))) -> 0 | J23: 22 | K23: 0 | L23: 0 | M23: 0 | N23: 0
C24: Alap | D24: =IF(H2=1,'Folyamatos Életív'!D22,'Folyamatos Nyugdíjcélú Életív'!D22) -> 0 | J24: 23 | K24: 0 | L24: 0 | M24: 0 | N24: 0
C25: Index | D25: =IF(H2=1,'Folyamatos Életív'!AA9,'Folyamatos Nyugdíjcélú Életív'!AD9) -> 0.05 | J25: 24 | K25: 0 | L25: 0 | M25: 0 | N25: 0
C26: Alaparány | D26: =IF(H2=1,'Folyamatos Életív'!Q22,'Folyamatos Nyugdíjcélú Életív'!Q22) -> 0 | J26: 25 | K26: =INDEX($AC$50:$AE$589,J26*12,1) -> 0 | L26: =INDEX($AC$50:$AE$589,J26*12,2) -> 0 | M26: =INDEX($AC$50:$AE$589,J26*12,3) -> 0 | N26: =INDEX($AC$50:$AF$589,J26*12,4) -> 0
J27: 26 | K27: 0 | L27: 0 | M27: 0 | N27: 0
J28: 27 | K28: 0 | L28: 0 | M28: 0 | N28: 0
J29: 28 | K29: 0 | L29: 0 | M29: 0 | N29: 0
J30: 29 | K30: 0 | L30: 0 | M30: 0 | N30: 0
J31: 30 | K31: 0 | L31: 0 | M31: 0 | N31: 0
J32: 31 | K32: 0 | L32: 0 | M32: 0 | N32: 0
J33: 32 | K33: 0 | L33: 0 | M33: 0 | N33: 0
J34: 33 | K34: 0 | L34: 0 | M34: 0 | N34: 0
J35: 34 | K35: 0 | L35: 0 | M35: 0 | N35: 0
J36: 35 | K36: 0 | L36: 0 | M36: 0 | N36: 0
J37: 36 | K37: 0 | L37: 0 | M37: 0 | N37: 0
J38: 37 | K38: 0 | L38: 0 | M38: 0 | N38: 0
J39: 38 | K39: 0 | L39: 0 | M39: 0 | N39: 0
J40: 39 | K40: 0 | L40: 0 | M40: 0 | N40: 0
J41: 40 | K41: 0 | L41: 0 | M41: 0 | N41: 0
J42: 41 | K42: 0 | L42: 0 | M42: 0 | N42: 0
J43: 42 | K43: 0 | L43: 0 | M43: 0 | N43: 0
J44: 43 | K44: 0 | L44: 0 | M44: 0 | N44: 0
J45: 44 | K45: 0 | L45: =INDEX($AC$50:$AE$589,J45*12,2) -> 0 | M45: =INDEX($AC$50:$AE$589,J45*12,3) -> 0 | N45: =INDEX($AC$50:$AF$589,J45*12,4) -> 0
J46: 45 | K46: =INDEX($AC$50:$AE$589,J46*12,1) -> 0 | L46: =INDEX($AC$50:$AE$589,J46*12,2) -> 0 | M46: =INDEX($AC$50:$AE$589,J46*12,3) -> 0 | N46: =INDEX($AC$50:$AF$589,J46*12,4) -> 0
E48: Eszközalapot érintő tranzakciók | V48: Elhatárolások folyamatos díjas esetben | AC48: Hónap végén
A49: Év | B49: Hónap | D49: Admin. díjrész | E49: Befektetett díj | F49: Allokációs ktg. | G49: Nyitó árfolyam | H49: Záró árfolyam | I49: Vásárolt kezdeti egységek | J49: Vásárolt felhalm. egységek | K49: Kezdeti egységek nyitó | L49: Felhalm. egységek nyitó | M49: K. egységek e.alap-kezelési ktg. után | N49: F. egységek e.alap-kezelési ktg. után | O49: Számított Hozam-Monitor ktg. | P49: K. egységek HM ktg. után | Q49: F. egységek HM ktg. után | R49: Számított kockázati ktg. | S49: K. egységek kockázati ktg. után | T49: F. egységek kockázati ktg. után (záró) | U49: K. egységek kezdeti ktg. után (záró) | V49: Összes esedékes költség: aktuális HM ktg. előtt | W49: Összes f. egység fedezet HM ktg. előtt | X49: Érvényesíthető ktg. HM ktg. előtt | Y49: Összes esedékes költség: aktuális kock. ktg. előtt | Z49: Összes f. egység fedezet kock. ktg. előtt | AA49: Érvényesíthető ktg. kock. ktg. előtt | AB49: Megmaradó elhatárolt ktg. | AC49: Egyéni számlaérték | AD49: VV összeg | AE49: Kumulált megtak díj | AF49: Kumulált admin
A50: 1 | B50: 1 | D50: =IF(H2=1,'Folyamatos Életív'!N35+'Folyamatos Életív'!N36,'Folyamatos Nyugdíjcélú Életív'!N35+'Folyamatos Nyugdíjcélú Életív'!N36)*D26 -> 0 | E50: =IF(AND($D$8=1,SUM(A50:B50)=2),$D$12,IF(A50>$D$10,0,IF(OR(AND($D$8=2,B50=1),AND($D$8=4,OR(B50=1,B50=7)),AND($D$8=5,OR(B50=1,B50=4,B50=7,B50=10)),AND($D$8=3,B50>=1)),$D$12*(1+$D$25)^(A50-1),0))) -> 0 | F50: =E50*$D$13 -> 0 | G50: 1 | H50: =IF(A50<>"",G50*(1+INDEX('Hozamsorok-eszközalapok'!$B$11:$F$55,A50,IF($D$20=1,1,$D$19-2))+$F$23)^(1/12),0) -> 1.001815103 | I50: =IF(E50<>"",IF(A50<=2,(E50-F50)/G50,0),0) -> 0 | J50: =IF(A50<>"",IF(A50>2,(E50-F50)/G50,0),0) -> 0 | K50: =I50 -> 0 | L50: =J50 -> 0 | M50: =K50*(1-$G$8) -> 0 | N50: =L50*(1-$G$8) -> 0 | O50: =IF($E$4=TRUE,IF($D$19=4,0,(M50+N50)*($G$10+$G$11)*G50),0) -> 0 | P50: =IF($D$8<>1,M50,IF(A50<>"",M50-O50/G50,0)) -> 0 | Q50: =IF(A50<>"",N50-X50/G50,0) -> 0 | R50: =IF(OR(AND($D$8=1,A50<=$D$9),AND($D$8<>1,A50<=$D$10)),$D$15*($G$13+G50*((P50+Q50)-P50*$G$14^(IF($D$8=1,$D$9,$D$10)*12-((A50-1)*12+B50-1))-Q50*$G$15)),0) -> 0 | S50: =IF($D$8<>1,P50,IF(A50<>"",P50-R50/G50,0)) -> 0 | T50: =IF(A50<>"",Q50-AA50/G50,0) -> 0 | U50: =IF(AND($D$8<>1,A50>$D$10),S50,S50*(1-$D$14)) -> 0 | V50: =IF(AND(A50<>"",$D$8<>1),O50,0) -> 0 | W50: =N50*G50 -> 0 | X50: =MIN(V50,W50) -> 0 | Y50: =IF(AND(A50<>"",$D$8<>1),V50-X50+R50,0) -> 0 | Z50: =Q50*G50 -> 0 | AA50: =MIN(Y50,Z50) -> 0 | AB50: =IF(A50<>"",Y50-AA50,0) -> 0 | AC50: =H50*(T50+U50) -> 0 | AD50: =MAX(0,IF(A50<>"",IF(AND($D$8<>1,A50<=2,(A50+B50)<>14),0,H50*(U50*$G$14^(IF(AND($D$8<>1,A50>$D$10),0,IF($D$8=1,$D$9,$D$10)*12-((A50-1)*12+B50)))+T50*$G$15)-AB50),0)) -> 0 | AE50: =IF(A50<>"",SUM($E$50:E50),0) -> 0 | AF50: =IF(A50<>"",SUM($D$50:D50),0) -> 0
A51: =IF(B50<12,A50,IF(A50<$D$9,A50+1,"")) -> 1 | B51: =IF(A51="","",IF(B50=12,1,B50+1)) -> 2 | D51: =IF(E51=0,0,MAX($D$50:D50))*IF(B51=1,IF($H$2=1,105%,102%),1) -> 0 | E51: =IF(AND($D$8=1,SUM(A51:B51)=2),$D$12,IF(A51>$D$10,0,IF(OR(AND($D$8=2,B51=1),AND($D$8=4,OR(B51=1,B51=7)),AND($D$8=5,OR(B51=1,B51=4,B51=7,B51=10)),AND($D$8=3,B51>=1)),$D$12*(1+$D$25)^(A51-1),0))) -> 0 | F51: 0 | G51: =IF(A51<>"",H50,0) -> 1.001815103 | H51: =IF(A51<>"",G51*(1+INDEX('Hozamsorok-eszközalapok'!$B$11:$F$55,A51,IF($D$20=1,1,$D$19-2))+$F$23)^(1/12),0) -> 1.003633501 | I51: =IF(E51<>"",IF(A51<=2,(E51-F51)/G51,0),0) -> 0 | J51: =IF(A51<>"",IF(A51>2,(E51-F51)/G51,0),0) -> 0 | K51: =IF(A51<>"",U50+I51,0) -> 0 | L51: =IF(A51<>"",T50+J51,0) -> 0 | M51: 0 | N51: 0 | O51: =IF($E$4=TRUE,IF($D$19=4,0,(M51+N51)*($G$10+$G$11)*G51),0) -> 0 | P51: =IF($D$8<>1,M51,IF(A51<>"",M51-O51/G51,0)) -> 0 | Q51: =IF(A51<>"",N51-X51/G51,0) -> 0 | R51: =IF(OR(AND($D$8=1,A51<=$D$9),AND($D$8<>1,A51<=$D$10)),$D$15*($G$13+G51*((P51+Q51)-P51*$G$14^(IF($D$8=1,$D$9,$D$10)*12-((A51-1)*12+B51-1))-Q51*$G$15)),0) -> 0 | S51: =IF($D$8<>1,P51,IF(A51<>"",P51-R51/G51,0)) -> 0 | T51: =IF(A51<>"",Q51-AA51/G51,0) -> 0 | U51: =IF(AND($D$8<>1,A51>$D$10),S51,S51*(1-$D$14)) -> 0 | V51: =IF(AND(A51<>"",$D$8<>1),O51+AB50,0) -> 0 | W51: =N51*G51 -> 0 | X51: =MIN(V51,W51) -> 0 | Y51: =IF(AND(A51<>"",$D$8<>1),V51-X51+R51,0) -> 0 | Z51: =Q51*G51 -> 0 | AA51: =MIN(Y51,Z51) -> 0 | AB51: =IF(A51<>"",Y51-AA51,0) -> 0 | AC51: 0 | AD51: =MAX(0,IF(A51<>"",IF(AND($D$8<>1,A51<=2,(A51+B51)<>14),0,H51*(U51*$G$14^(IF(AND($D$8<>1,A51>$D$10),0,IF($D$8=1,$D$9,$D$10)*12-((A51-1)*12+B51)))+T51*$G$15)-AB51),0)) -> 0 | AE51: =IF(A51<>"",SUM($E$50:E51),0) -> 0 | AF51: =IF(A51<>"",SUM($D$50:D51),0) -> 0
A52: 1 | B52: =IF(A52="","",IF(B51=12,1,B51+1)) -> 3 | D52: =IF(E52=0,0,MAX($D$50:D51))*IF(B52=1,IF($H$2=1,105%,102%),1) -> 0 | E52: 0 | F52: 0 | G52: =IF(A52<>"",H51,0) -> 1.003633501 | H52: =IF(A52<>"",G52*(1+INDEX('Hozamsorok-eszközalapok'!$B$11:$F$55,A52,IF($D$20=1,1,$D$19-2))+$F$23)^(1/12),0) -> 1.005455199 | I52: 0 | J52: 0 | K52: 0 | L52: 0 | M52: 0 | N52: 0 | O52: 0 | P52: 0 | Q52: 0 | R52: 0 | S52: 0 | T52: 0 | U52: 0 | V52: =IF(AND(A52<>"",$D$8<>1),O52+AB51,0) -> 0 | W52: =N52*G52 -> 0 | X52: =MIN(V52,W52) -> 0 | Y52: =IF(AND(A52<>"",$D$8<>1),V52-X52+R52,0) -> 0 | Z52: =Q52*G52 -> 0 | AA52: =MIN(Y52,Z52) -> 0 | AB52: =IF(A52<>"",Y52-AA52,0) -> 0 | AC52: 0 | AD52: 0 | AE52: =IF(A52<>"",SUM($E$50:E52),0) -> 0 | AF52: =IF(A52<>"",SUM($D$50:D52),0) -> 0
A53: 1 | B53: 4 | D53: =IF(E53=0,0,MAX($D$50:D52))*IF(B53=1,IF($H$2=1,105%,102%),1) -> 0 | E53: 0 | F53: 0 | G53: 1.005455199 | H53: =IF(A53<>"",G53*(1+INDEX('Hozamsorok-eszközalapok'!$B$11:$F$55,A53,IF($D$20=1,1,$D$19-2))+$F$23)^(1/12),0) -> 1.007280203 | I53: 0 | J53: 0 | K53: 0 | L53: 0 | M53: 0 | N53: 0 | O53: 0 | P53: 0 | Q53: 0 | R53: 0 | S53: 0 | T53: 0 | U53: 0 | V53: 0 | W53: 0 | X53: 0 | Y53: 0 | Z53: 0 | AA53: 0 | AB53: 0 | AC53: 0 | AD53: 0 | AE53: =IF(A53<>"",SUM($E$50:E53),0) -> 0 | AF53: =IF(A53<>"",SUM($D$50:D53),0) -> 0
A54: 1 | B54: 5 | D54: =IF(E54=0,0,MAX($D$50:D53))*IF(B54=1,IF($H$2=1,105%,102%),1) -> 0 | E54: 0 | F54: 0 | G54: 1.007280203 | H54: =IF(A54<>"",G54*(1+INDEX('Hozamsorok-eszközalapok'!$B$11:$F$55,A54,IF($D$20=1,1,$D$19-2))+$F$23)^(1/12),0) -> 1.009108521 | I54: 0 | J54: 0 | K54: 0 | L54: 0 | M54: 0 | N54: 0 | O54: 0 | P54: 0 | Q54: 0 | R54: 0 | S54: 0 | T54: 0 | U54: 0 | V54: 0 | W54: 0 | X54: 0 | Y54: 0 | Z54: 0 | AA54: 0 | AB54: 0 | AC54: 0 | AD54: 0 | AE54: =IF(A54<>"",SUM($E$50:E54),0) -> 0 | AF54: =IF(A54<>"",SUM($D$50:D54),0) -> 0
A55: 1 | B55: 6 | D55: =IF(E55=0,0,MAX($D$50:D54))*IF(B55=1,IF($H$2=1,105%,102%),1) -> 0 | E55: 0 | F55: 0 | G55: 1.009108521 | H55: =IF(A55<>"",G55*(1+INDEX('Hozamsorok-eszközalapok'!$B$11:$F$55,A55,IF($D$20=1,1,$D$19-2))+$F$23)^(1/12),0) -> 1.010940156 | I55: 0 | J55: 0 | K55: 0 | L55: 0 | M55: 0 | N55: 0 | O55: 0 | P55: 0 | Q55: 0 | R55: 0 | S55: 0 | T55: 0 | U55: 0 | V55: 0 | W55: 0 | X55: 0 | Y55: 0 | Z55: 0 | AA55: 0 | AB55: 0 | AC55: 0 | AD55: 0 | AE55: =IF(A55<>"",SUM($E$50:E55),0) -> 0 | AF55: =IF(A55<>"",SUM($D$50:D55),0) -> 0
A56: 1 | B56: 7 | D56: =IF(E56=0,0,MAX($D$50:D55))*IF(B56=1,IF($H$2=1,105%,102%),1) -> 0 | E56: 0 | F56: 0 | G56: 1.010940156 | H56: =IF(A56<>"",G56*(1+INDEX('Hozamsorok-eszközalapok'!$B$11:$F$55,A56,IF($D$20=1,1,$D$19-2))+$F$23)^(1/12),0) -> 1.012775117 | I56: 0 | J56: 0 | K56: 0 | L56: 0 | M56: 0 | N56: 0 | O56: 0 | P56: 0 | Q56: 0 | R56: 0 | S56: 0 | T56: 0 | U56: 0 | V56: 0 | W56: 0 | X56: 0 | Y56: 0 | Z56: 0 | AA56: 0 | AB56: 0 | AC56: 0 | AD56: 0 | AE56: =IF(A56<>"",SUM($E$50:E56),0) -> 0 | AF56: =IF(A56<>"",SUM($D$50:D56),0) -> 0
A57: 1 | B57: 8 | D57: =IF(E57=0,0,MAX($D$50:D56))*IF(B57=1,IF($H$2=1,105%,102%),1) -> 0 | E57: 0 | F57: 0 | G57: 1.012775117 | H57: =IF(A57<>"",G57*(1+INDEX('Hozamsorok-eszközalapok'!$B$11:$F$55,A57,IF($D$20=1,1,$D$19-2))+$F$23)^(1/12),0) -> 1.014613408 | I57: 0 | J57: 0 | K57: 0 | L57: 0 | M57: 0 | N57: 0 | O57: 0 | P57: 0 | Q57: 0 | R57: 0 | S57: 0 | T57: 0 | U57: 0 | V57: 0 | W57: 0 | X57: 0 | Y57: 0 | Z57: 0 | AA57: 0 | AB57: 0 | AC57: 0 | AD57: 0 | AE57: =IF(A57<>"",SUM($E$50:E57),0) -> 0 | AF57: =IF(A57<>"",SUM($D$50:D57),0) -> 0
A58: 1 | B58: 9 | D58: =IF(E58=0,0,MAX($D$50:D57))*IF(B58=1,IF($H$2=1,105%,102%),1) -> 0 | E58: 0 | F58: 0 | G58: 1.014613408 | H58: =IF(A58<>"",G58*(1+INDEX('Hozamsorok-eszközalapok'!$B$11:$F$55,A58,IF($D$20=1,1,$D$19-2))+$F$23)^(1/12),0) -> 1.016455036 | I58: 0 | J58: 0 | K58: 0 | L58: 0 | M58: 0 | N58: 0 | O58: 0 | P58: 0 | Q58: 0 | R58: 0 | S58: 0 | T58: 0 | U58: 0 | V58: 0 | W58: 0 | X58: 0 | Y58: 0 | Z58: 0 | AA58: 0 | AB58: 0 | AC58: 0 | AD58: 0 | AE58: =IF(A58<>"",SUM($E$50:E58),0) -> 0 | AF58: =IF(A58<>"",SUM($D$50:D58),0) -> 0
A59: 1 | B59: 10 | D59: =IF(E59=0,0,MAX($D$50:D58))*IF(B59=1,IF($H$2=1,105%,102%),1) -> 0 | E59: 0 | F59: 0 | G59: 1.016455036 | H59: =IF(A59<>"",G59*(1+INDEX('Hozamsorok-eszközalapok'!$B$11:$F$55,A59,IF($D$20=1,1,$D$19-2))+$F$23)^(1/12),0) -> 1.018300006 | I59: 0 | J59: 0 | K59: 0 | L59: 0 | M59: 0 | N59: 0 | O59: 0 | P59: 0 | Q59: 0 | R59: 0 | S59: 0 | T59: 0 | U59: 0 | V59: 0 | W59: 0 | X59: 0 | Y59: 0 | Z59: 0 | AA59: 0 | AB59: 0 | AC59: 0 | AD59: 0 | AE59: =IF(A59<>"",SUM($E$50:E59),0) -> 0 | AF59: =IF(A59<>"",SUM($D$50:D59),0) -> 0
A60: 1 | B60: 11 | D60: =IF(E60=0,0,MAX($D$50:D59))*IF(B60=1,IF($H$2=1,105%,102%),1) -> 0 | E60: 0 | F60: 0 | G60: 1.018300006 | H60: =IF(A60<>"",G60*(1+INDEX('Hozamsorok-eszközalapok'!$B$11:$F$55,A60,IF($D$20=1,1,$D$19-2))+$F$23)^(1/12),0) -> 1.020148326 | I60: 0 | J60: 0 | K60: 0 | L60: 0 | M60: 0 | N60: 0 | O60: 0 | P60: 0 | Q60: 0 | R60: 0 | S60: 0 | T60: 0 | U60: 0 | V60: 0 | W60: 0 | X60: 0 | Y60: 0 | Z60: 0 | AA60: 0 | AB60: 0 | AC60: 0 | AD60: 0 | AE60: =IF(A60<>"",SUM($E$50:E60),0) -> 0 | AF60: =IF(A60<>"",SUM($D$50:D60),0) -> 0
A61: 1 | B61: 12 | D61: =IF(E61=0,0,MAX($D$50:D60))*IF(B61=1,IF($H$2=1,105%,102%),1) -> 0 | E61: 0 | F61: 0 | G61: 1.020148326 | H61: =IF(A61<>"",G61*(1+INDEX('Hozamsorok-eszközalapok'!$B$11:$F$55,A61,IF($D$20=1,1,$D$19-2))+$F$23)^(1/12),0) -> 1.022 | I61: 0 | J61: 0 | K61: 0 | L61: 0 | M61: 0 | N61: 0 | O61: 0 | P61: 0 | Q61: 0 | R61: 0 | S61: 0 | T61: 0 | U61: 0 | V61: 0 | W61: 0 | X61: 0 | Y61: 0 | Z61: 0 | AA61: 0 | AB61: 0 | AC61: 0 | AD61: 0 | AE61: =IF(A61<>"",SUM($E$50:E61),0) -> 0 | AF61: =IF(A61<>"",SUM($D$50:D61),0) -> 0
A62: 2 | B62: 1 | D62: =IF(E62=0,0,MAX($D$50:D61))*IF(B62=1,IF($H$2=1,105%,102%),1) -> 0 | E62: 0 | F62: 0 | G62: 1.022 | H62: =IF(A62<>"",G62*(1+INDEX('Hozamsorok-eszközalapok'!$B$11:$F$55,A62,IF($D$20=1,1,$D$19-2))+$F$23)^(1/12),0) -> 1.024021855 | I62: 0 | J62: 0 | K62: 0 | L62: 0 | M62: 0 | N62: 0 | O62: 0 | P62: 0 | Q62: 0 | R62: 0 | S62: 0 | T62: 0 | U62: 0 | V62: 0 | W62: 0 | X62: 0 | Y62: 0 | Z62: 0 | AA62: 0 | AB62: 0 | AC62: 0 | AD62: 0 | AE62: =IF(A62<>"",SUM($E$50:E62),0) -> 0 | AF62: =IF(A62<>"",SUM($D$50:D62),0) -> 0
A63: 2 | B63: 2 | D63: =IF(E63=0,0,MAX($D$50:D62))*IF(B63=1,IF($H$2=1,105%,102%),1) -> 0 | E63: 0 | F63: 0 | G63: 1.024021855 | H63: =IF(A63<>"",G63*(1+INDEX('Hozamsorok-eszközalapok'!$B$11:$F$55,A63,IF($D$20=1,1,$D$19-2))+$F$23)^(1/12),0) -> 1.02604771 | I63: 0 | J63: 0 | K63: 0 | L63: 0 | M63: 0 | N63: 0 | O63: 0 | P63: 0 | Q63: 0 | R63: 0 | S63: 0 | T63: 0 | U63: 0 | V63: 0 | W63: 0 | X63: 0 | Y63: 0 | Z63: 0 | AA63: 0 | AB63: 0 | AC63: 0 | AD63: 0 | AE63: =IF(A63<>"",SUM($E$50:E63),0) -> 0 | AF63: =IF(A63<>"",SUM($D$50:D63),0) -> 0
A64: 2 | B64: 3 | D64: =IF(E64=0,0,MAX($D$50:D63))*IF(B64=1,IF($H$2=1,105%,102%),1) -> 0 | E64: 0 | F64: 0 | G64: 1.02604771 | H64: =IF(A64<>"",G64*(1+INDEX('Hozamsorok-eszközalapok'!$B$11:$F$55,A64,IF($D$20=1,1,$D$19-2))+$F$23)^(1/12),0) -> 1.028077572 | I64: 0 | J64: 0 | K64: 0 | L64: 0 | M64: 0 | N64: 0 | O64: 0 | P64: 0 | Q64: 0 | R64: 0 | S64: 0 | T64: 0 | U64: 0 | V64: 0 | W64: 0 | X64: 0 | Y64: 0 | Z64: 0 | AA64: 0 | AB64: 0 | AC64: 0 | AD64: 0 | AE64: =IF(A64<>"",SUM($E$50:E64),0) -> 0 | AF64: =IF(A64<>"",SUM($D$50:D64),0) -> 0
A65: 2 | B65: 4 | D65: =IF(E65=0,0,MAX($D$50:D64))*IF(B65=1,IF($H$2=1,105%,102%),1) -> 0 | E65: 0 | F65: 0 | G65: 1.028077572 | H65: =IF(A65<>"",G65*(1+INDEX('Hozamsorok-eszközalapok'!$B$11:$F$55,A65,IF($D$20=1,1,$D$19-2))+$F$23)^(1/12),0) -> 1.03011145 | I65: 0 | J65: 0 | K65: 0 | L65: 0 | M65: 0 | N65: 0 | O65: 0 | P65: 0 | Q65: 0 | R65: 0 | S65: 0 | T65: 0 | U65: 0 | V65: 0 | W65: 0 | X65: 0 | Y65: 0 | Z65: 0 | AA65: 0 | AB65: 0 | AC65: 0 | AD65: 0 | AE65: =IF(A65<>"",SUM($E$50:E65),0) -> 0 | AF65: =IF(A65<>"",SUM($D$50:D65),0) -> 0
A66: 2 | B66: 5 | D66: =IF(E66=0,0,MAX($D$50:D65))*IF(B66=1,IF($H$2=1,105%,102%),1) -> 0 | E66: 0 | F66: 0 | G66: 1.03011145 | H66: =IF(A66<>"",G66*(1+INDEX('Hozamsorok-eszközalapok'!$B$11:$F$55,A66,IF($D$20=1,1,$D$19-2))+$F$23)^(1/12),0) -> 1.032149352 | I66: 0 | J66: 0 | K66: 0 | L66: 0 | M66: 0 | N66: 0 | O66: 0 | P66: 0 | Q66: 0 | R66: 0 | S66: 0 | T66: 0 | U66: 0 | V66: 0 | W66: 0 | X66: 0 | Y66: 0 | Z66: 0 | AA66: 0 | AB66: 0 | AC66: 0 | AD66: 0 | AE66: =IF(A66<>"",SUM($E$50:E66),0) -> 0 | AF66: =IF(A66<>"",SUM($D$50:D66),0) -> 0
A67: 2 | B67: 6 | D67: =IF(E67=0,0,MAX($D$50:D66))*IF(B67=1,IF($H$2=1,105%,102%),1) -> 0 | E67: 0 | F67: 0 | G67: 1.032149352 | H67: =IF(A67<>"",G67*(1+INDEX('Hozamsorok-eszközalapok'!$B$11:$F$55,A67,IF($D$20=1,1,$D$19-2))+$F$23)^(1/12),0) -> 1.034191286 | I67: 0 | J67: 0 | K67: 0 | L67: 0 | M67: 0 | N67: 0 | O67: 0 | P67: 0 | Q67: 0 | R67: 0 | S67: 0 | T67: 0 | U67: 0 | V67: 0 | W67: 0 | X67: 0 | Y67: 0 | Z67: 0 | AA67: 0 | AB67: 0 | AC67: 0 | AD67: 0 | AE67: =IF(A67<>"",SUM($E$50:E67),0) -> 0 | AF67: =IF(A67<>"",SUM($D$50:D67),0) -> 0
A68: 2 | B68: 7 | D68: =IF(E68=0,0,MAX($D$50:D67))*IF(B68=1,IF($H$2=1,105%,102%),1) -> 0 | E68: 0 | F68: 0 | G68: 1.034191286 | H68: =IF(A68<>"",G68*(1+INDEX('Hozamsorok-eszközalapok'!$B$11:$F$55,A68,IF($D$20=1,1,$D$19-2))+$F$23)^(1/12),0) -> 1.036237259 | I68: 0 | J68: 0 | K68: 0 | L68: 0 | M68: 0 | N68: 0 | O68: 0 | P68: 0 | Q68: 0 | R68: 0 | S68: 0 | T68: 0 | U68: 0 | V68: 0 | W68: 0 | X68: 0 | Y68: 0 | Z68: 0 | AA68: 0 | AB68: 0 | AC68: 0 | AD68: 0 | AE68: =IF(A68<>"",SUM($E$50:E68),0) -> 0 | AF68: =IF(A68<>"",SUM($D$50:D68),0) -> 0
A69: 2 | B69: 8 | D69: =IF(E69=0,0,MAX($D$50:D68))*IF(B69=1,IF($H$2=1,105%,102%),1) -> 0 | E69: 0 | F69: 0 | G69: 1.036237259 | H69: =IF(A69<>"",G69*(1+INDEX('Hozamsorok-eszközalapok'!$B$11:$F$55,A69,IF($D$20=1,1,$D$19-2))+$F$23)^(1/12),0) -> 1.03828728 | I69: 0 | J69: 0 | K69: 0 | L69: 0 | M69: 0 | N69: 0 | O69: 0 | P69: 0 | Q69: 0 | R69: 0 | S69: 0 | T69: 0 | U69: 0 | V69: 0 | W69: 0 | X69: 0 | Y69: 0 | Z69: 0 | AA69: 0 | AB69: 0 | AC69: 0 | AD69: 0 | AE69: =IF(A69<>"",SUM($E$50:E69),0) -> 0 | AF69: =IF(A69<>"",SUM($D$50:D69),0) -> 0
A70: 2 | B70: 9 | D70: =IF(E70=0,0,MAX($D$50:D69))*IF(B70=1,IF($H$2=1,105%,102%),1) -> 0 | E70: 0 | F70: 0 | G70: 1.03828728 | H70: =IF(A70<>"",G70*(1+INDEX('Hozamsorok-eszközalapok'!$B$11:$F$55,A70,IF($D$20=1,1,$D$19-2))+$F$23)^(1/12),0) -> 1.040341357 | I70: 0 | J70: 0 | K70: 0 | L70: 0 | M70: 0 | N70: 0 | O70: 0 | P70: 0 | Q70: 0 | R70: 0 | S70: 0 | T70: 0 | U70: 0 | V70: 0 | W70: 0 | X70: 0 | Y70: 0 | Z70: 0 | AA70: 0 | AB70: 0 | AC70: 0 | AD70: 0 | AE70: =IF(A70<>"",SUM($E$50:E70),0) -> 0 | AF70: =IF(A70<>"",SUM($D$50:D70),0) -> 0
A71: 2 | B71: 10 | D71: =IF(E71=0,0,MAX($D$50:D70))*IF(B71=1,IF($H$2=1,105%,102%),1) -> 0 | E71: 0 | F71: 0 | G71: 1.040341357 | H71: =IF(A71<>"",G71*(1+INDEX('Hozamsorok-eszközalapok'!$B$11:$F$55,A71,IF($D$20=1,1,$D$19-2))+$F$23)^(1/12),0) -> 1.042399497 | I71: 0 | J71: 0 | K71: 0 | L71: 0 | M71: 0 | N71: 0 | O71: 0 | P71: 0 | Q71: 0 | R71: 0 | S71: 0 | T71: 0 | U71: 0 | V71: 0 | W71: 0 | X71: 0 | Y71: 0 | Z71: 0 | AA71: 0 | AB71: 0 | AC71: 0 | AD71: 0 | AE71: =IF(A71<>"",SUM($E$50:E71),0) -> 0 | AF71: =IF(A71<>"",SUM($D$50:D71),0) -> 0
A72: 2 | B72: 11 | D72: =IF(E72=0,0,MAX($D$50:D71))*IF(B72=1,IF($H$2=1,105%,102%),1) -> 0 | E72: 0 | F72: 0 | G72: 1.042399497 | H72: =IF(A72<>"",G72*(1+INDEX('Hozamsorok-eszközalapok'!$B$11:$F$55,A72,IF($D$20=1,1,$D$19-2))+$F$23)^(1/12),0) -> 1.044461708 | I72: 0 | J72: 0 | K72: 0 | L72: 0 | M72: 0 | N72: 0 | O72: 0 | P72: 0 | Q72: 0 | R72: 0 | S72: 0 | T72: 0 | U72: 0 | V72: 0 | W72: 0 | X72: 0 | Y72: 0 | Z72: 0 | AA72: 0 | AB72: 0 | AC72: 0 | AD72: 0 | AE72: =IF(A72<>"",SUM($E$50:E72),0) -> 0 | AF72: =IF(A72<>"",SUM($D$50:D72),0) -> 0
A73: 2 | B73: 12 | D73: =IF(E73=0,0,MAX($D$50:D72))*IF(B73=1,IF($H$2=1,105%,102%),1) -> 0 | E73: 0 | F73: 0 | G73: 1.044461708 | H73: =IF(A73<>"",G73*(1+INDEX('Hozamsorok-eszközalapok'!$B$11:$F$55,A73,IF($D$20=1,1,$D$19-2))+$F$23)^(1/12),0) -> 1.046528 | I73: 0 | J73: 0 | K73: 0 | L73: 0 | M73: 0 | N73: 0 | O73: 0 | P73: 0 | Q73: 0 | R73: 0 | S73: 0 | T73: 0 | U73: 0 | V73: 0 | W73: 0 | X73: 0 | Y73: 0 | Z73: 0 | AA73: 0 | AB73: 0 | AC73: 0 | AD73: 0 | AE73: =IF(A73<>"",SUM($E$50:E73),0) -> 0 | AF73: =IF(A73<>"",SUM($D$50:D73),0) -> 0
A74: 3 | B74: 1 | D74: =IF(E74=0,0,MAX($D$50:D73))*IF(B74=1,IF($H$2=1,105%,102%),1) -> 0 | E74: 0 | F74: 0 | G74: 1.046528 | H74: =IF(A74<>"",G74*(1+INDEX('Hozamsorok-eszközalapok'!$B$11:$F$55,A74,IF($D$20=1,1,$D$19-2))+$F$23)^(1/12),0) -> 1.048854042 | I74: 0 | J74: 0 | K74: 0 | L74: 0 | M74: 0 | N74: 0 | O74: 0 | P74: 0 | Q74: 0 | R74: 0 | S74: 0 | T74: 0 | U74: 0 | V74: 0 | W74: 0 | X74: 0 | Y74: 0 | Z74: 0 | AA74: 0 | AB74: 0 | AC74: 0 | AD74: 0 | AE74: =IF(A74<>"",SUM($E$50:E74),0) -> 0 | AF74: =IF(A74<>"",SUM($D$50:D74),0) -> 0
A75: 3 | B75: 2 | D75: =IF(E75=0,0,MAX($D$50:D74))*IF(B75=1,IF($H$2=1,105%,102%),1) -> 0 | E75: 0 | F75: 0 | G75: 1.048854042 | H75: =IF(A75<>"",G75*(1+INDEX('Hozamsorok-eszközalapok'!$B$11:$F$55,A75,IF($D$20=1,1,$D$19-2))+$F$23)^(1/12),0) -> 1.051185253 | I75: 0 | J75: 0 | K75: 0 | L75: 0 | M75: 0 | N75: 0 | O75: 0 | P75: 0 | Q75: 0 | R75: 0 | S75: 0 | T75: 0 | U75: 0 | V75: 0 | W75: 0 | X75: 0 | Y75: 0 | Z75: 0 | AA75: 0 | AB75: 0 | AC75: 0 | AD75: 0 | AE75: =IF(A75<>"",SUM($E$50:E75),0) -> 0 | AF75: =IF(A75<>"",SUM($D$50:D75),0) -> 0
A76: 3 | B76: 3 | D76: =IF(E76=0,0,MAX($D$50:D75))*IF(B76=1,IF($H$2=1,105%,102%),1) -> 0 | E76: 0 | F76: 0 | G76: 1.051185253 | H76: =IF(A76<>"",G76*(1+INDEX('Hozamsorok-eszközalapok'!$B$11:$F$55,A76,IF($D$20=1,1,$D$19-2))+$F$23)^(1/12),0) -> 1.053521646 | I76: 0 | J76: 0 | K76: 0 | L76: 0 | M76: 0 | N76: 0 | O76: 0 | P76: 0 | Q76: 0 | R76: 0 | S76: 0 | T76: 0 | U76: 0 | V76: 0 | W76: 0 | X76: 0 | Y76: 0 | Z76: 0 | AA76: 0 | AB76: 0 | AC76: 0 | AD76: 0 | AE76: =IF(A76<>"",SUM($E$50:E76),0) -> 0 | AF76: =IF(A76<>"",SUM($D$50:D76),0) -> 0
A77: 3 | B77: 4 | D77: =IF(E77=0,0,MAX($D$50:D76))*IF(B77=1,IF($H$2=1,105%,102%),1) -> 0 | E77: 0 | F77: 0 | G77: 1.053521646 | H77: =IF(A77<>"",G77*(1+INDEX('Hozamsorok-eszközalapok'!$B$11:$F$55,A77,IF($D$20=1,1,$D$19-2))+$F$23)^(1/12),0) -> 1.055863232 | I77: 0 | J77: 0 | K77: 0 | L77: 0 | M77: 0 | N77: 0 | O77: 0 | P77: 0 | Q77: 0 | R77: 0 | S77: 0 | T77: 0 | U77: 0 | V77: 0 | W77: 0 | X77: 0 | Y77: 0 | Z77: 0 | AA77: 0 | AB77: 0 | AC77: 0 | AD77: 0 | AE77: =IF(A77<>"",SUM($E$50:E77),0) -> 0 | AF77: =IF(A77<>"",SUM($D$50:D77),0) -> 0
A78: 3 | B78: 5 | D78: =IF(E78=0,0,MAX($D$50:D77))*IF(B78=1,IF($H$2=1,105%,102%),1) -> 0 | E78: 0 | F78: 0 | G78: 1.055863232 | H78: =IF(A78<>"",G78*(1+INDEX('Hozamsorok-eszközalapok'!$B$11:$F$55,A78,IF($D$20=1,1,$D$19-2))+$F$23)^(1/12),0) -> 1.058210023 | I78: 0 | J78: 0 | K78: 0 | L78: 0 | M78: 0 | N78: 0 | O78: 0 | P78: 0 | Q78: 0 | R78: 0 | S78: 0 | T78: 0 | U78: 0 | V78: 0 | W78: 0 | X78: 0 | Y78: 0 | Z78: 0 | AA78: 0 | AB78: 0 | AC78: 0 | AD78: 0 | AE78: =IF(A78<>"",SUM($E$50:E78),0) -> 0 | AF78: =IF(A78<>"",SUM($D$50:D78),0) -> 0
A79: 3 | B79: 6 | D79: =IF(E79=0,0,MAX($D$50:D78))*IF(B79=1,IF($H$2=1,105%,102%),1) -> 0 | E79: 0 | F79: 0 | G79: 1.058210023 | H79: =IF(A79<>"",G79*(1+INDEX('Hozamsorok-eszközalapok'!$B$11:$F$55,A79,IF($D$20=1,1,$D$19-2))+$F$23)^(1/12),0) -> 1.060562029 | I79: 0 | J79: 0 | K79: 0 | L79: 0 | M79: 0 | N79: 0 | O79: 0 | P79: 0 | Q79: 0 | R79: 0 | S79: 0 | T79: 0 | U79: 0 | V79: 0 | W79: 0 | X79: 0 | Y79: 0 | Z79: 0 | AA79: 0 | AB79: 0 | AC79: 0 | AD79: 0 | AE79: =IF(A79<>"",SUM($E$50:E79),0) -> 0 | AF79: =IF(A79<>"",SUM($D$50:D79),0) -> 0
A80: 3 | B80: 7 | D80: =IF(E80=0,0,MAX($D$50:D79))*IF(B80=1,IF($H$2=1,105%,102%),1) -> 0 | E80: 0 | F80: 0 | G80: 1.060562029 | H80: =IF(A80<>"",G80*(1+INDEX('Hozamsorok-eszközalapok'!$B$11:$F$55,A80,IF($D$20=1,1,$D$19-2))+$F$23)^(1/12),0) -> 1.062919263 | I80: 0 | J80: 0 | K80: 0 | L80: 0 | M80: 0 | N80: 0 | O80: 0 | P80: 0 | Q80: 0 | R80: 0 | S80: 0 | T80: 0 | U80: 0 | V80: 0 | W80: 0 | X80: 0 | Y80: 0 | Z80: 0 | AA80: 0 | AB80: 0 | AC80: 0 | AD80: 0 | AE80: =IF(A80<>"",SUM($E$50:E80),0) -> 0 | AF80: =IF(A80<>"",SUM($D$50:D80),0) -> 0
A81: 3 | B81: 8 | D81: =IF(E81=0,0,MAX($D$50:D80))*IF(B81=1,IF($H$2=1,105%,102%),1) -> 0 | E81: 0 | F81: 0 | G81: 1.062919263 | H81: =IF(A81<>"",G81*(1+INDEX('Hozamsorok-eszközalapok'!$B$11:$F$55,A81,IF($D$20=1,1,$D$19-2))+$F$23)^(1/12),0) -> 1.065281737 | I81: 0 | J81: 0 | K81: 0 | L81: 0 | M81: 0 | N81: 0 | O81: 0 | P81: 0 | Q81: 0 | R81: 0 | S81: 0 | T81: 0 | U81: 0 | V81: 0 | W81: 0 | X81: 0 | Y81: 0 | Z81: 0 | AA81: 0 | AB81: 0 | AC81: 0 | AD81: 0 | AE81: =IF(A81<>"",SUM($E$50:E81),0) -> 0 | AF81: =IF(A81<>"",SUM($D$50:D81),0) -> 0
A82: 3 | B82: 9 | D82: =IF(E82=0,0,MAX($D$50:D81))*IF(B82=1,IF($H$2=1,105%,102%),1) -> 0 | E82: 0 | F82: 0 | G82: 1.065281737 | H82: =IF(A82<>"",G82*(1+INDEX('Hozamsorok-eszközalapok'!$B$11:$F$55,A82,IF($D$20=1,1,$D$19-2))+$F$23)^(1/12),0) -> 1.067649461 | I82: 0 | J82: 0 | K82: 0 | L82: 0 | M82: 0 | N82: 0 | O82: 0 | P82: 0 | Q82: 0 | R82: 0 | S82: 0 | T82: 0 | U82: 0 | V82: 0 | W82: 0 | X82: 0 | Y82: 0 | Z82: 0 | AA82: 0 | AB82: 0 | AC82: 0 | AD82: 0 | AE82: =IF(A82<>"",SUM($E$50:E82),0) -> 0 | AF82: =IF(A82<>"",SUM($D$50:D82),0) -> 0
A83: 3 | B83: 10 | D83: =IF(E83=0,0,MAX($D$50:D82))*IF(B83=1,IF($H$2=1,105%,102%),1) -> 0 | E83: 0 | F83: 0 | G83: 1.067649461 | H83: =IF(A83<>"",G83*(1+INDEX('Hozamsorok-eszközalapok'!$B$11:$F$55,A83,IF($D$20=1,1,$D$19-2))+$F$23)^(1/12),0) -> 1.070022448 | I83: 0 | J83: 0 | K83: 0 | L83: 0 | M83: 0 | N83: 0 | O83: 0 | P83: 0 | Q83: 0 | R83: 0 | S83: 0 | T83: 0 | U83: 0 | V83: 0 | W83: 0 | X83: 0 | Y83: 0 | Z83: 0 | AA83: 0 | AB83: 0 | AC83: 0 | AD83: 0 | AE83: =IF(A83<>"",SUM($E$50:E83),0) -> 0 | AF83: =IF(A83<>"",SUM($D$50:D83),0) -> 0
A84: 3 | B84: 11 | D84: =IF(E84=0,0,MAX($D$50:D83))*IF(B84=1,IF($H$2=1,105%,102%),1) -> 0 | E84: 0 | F84: 0 | G84: 1.070022448 | H84: =IF(A84<>"",G84*(1+INDEX('Hozamsorok-eszközalapok'!$B$11:$F$55,A84,IF($D$20=1,1,$D$19-2))+$F$23)^(1/12),0) -> 1.072400709 | I84: 0 | J84: 0 | K84: 0 | L84: 0 | M84: 0 | N84: 0 | O84: 0 | P84: 0 | Q84: 0 | R84: 0 | S84: 0 | T84: 0 | U84: 0 | V84: 0 | W84: 0 | X84: 0 | Y84: 0 | Z84: 0 | AA84: 0 | AB84: 0 | AC84: 0 | AD84: 0 | AE84: =IF(A84<>"",SUM($E$50:E84),0) -> 0 | AF84: =IF(A84<>"",SUM($D$50:D84),0) -> 0
A85: 3 | B85: 12 | D85: =IF(E85=0,0,MAX($D$50:D84))*IF(B85=1,IF($H$2=1,105%,102%),1) -> 0 | E85: 0 | F85: 0 | G85: 1.072400709 | H85: =IF(A85<>"",G85*(1+INDEX('Hozamsorok-eszközalapok'!$B$11:$F$55,A85,IF($D$20=1,1,$D$19-2))+$F$23)^(1/12),0) -> 1.074784256 | I85: 0 | J85: 0 | K85: 0 | L85: 0 | M85: 0 | N85: 0 | O85: 0 | P85: 0 | Q85: 0 | R85: 0 | S85: 0 | T85: 0 | U85: 0 | V85: 0 | W85: 0 | X85: 0 | Y85: 0 | Z85: 0 | AA85: 0 | AB85: 0 | AC85: 0 | AD85: 0 | AE85: =IF(A85<>"",SUM($E$50:E85),0) -> 0 | AF85: =IF(A85<>"",SUM($D$50:D85),0) -> 0
A86: 4 | B86: 1 | D86: =IF(E86=0,0,MAX($D$50:D85))*IF(B86=1,IF($H$2=1,105%,102%),1) -> 0 | E86: 0 | F86: 0 | G86: 1.074784256 | H86: =IF(A86<>"",G86*(1+INDEX('Hozamsorok-eszközalapok'!$B$11:$F$55,A86,IF($D$20=1,1,$D$19-2))+$F$23)^(1/12),0) -> 1.077347754 | I86: 0 | J86: 0 | K86: 0 | L86: 0 | M86: 0 | N86: 0 | O86: 0 | P86: 0 | Q86: 0 | R86: 0 | S86: 0 | T86: 0 | U86: 0 | V86: 0 | W86: 0 | X86: 0 | Y86: 0 | Z86: 0 | AA86: 0 | AB86: 0 | AC86: 0 | AD86: 0 | AE86: =IF(A86<>"",SUM($E$50:E86),0) -> 0 | AF86: =IF(A86<>"",SUM($D$50:D86),0) -> 0
A87: 4 | B87: 2 | D87: =IF(E87=0,0,MAX($D$50:D86))*IF(B87=1,IF($H$2=1,105%,102%),1) -> 0 | E87: 0 | F87: 0 | G87: 1.077347754 | H87: =IF(A87<>"",G87*(1+INDEX('Hozamsorok-eszközalapok'!$B$11:$F$55,A87,IF($D$20=1,1,$D$19-2))+$F$23)^(1/12),0) -> 1.079917366 | I87: 0 | J87: 0 | K87: 0 | L87: 0 | M87: 0 | N87: 0 | O87: 0 | P87: 0 | Q87: 0 | R87: 0 | S87: 0 | T87: 0 | U87: 0 | V87: 0 | W87: 0 | X87: 0 | Y87: 0 | Z87: 0 | AA87: 0 | AB87: 0 | AC87: 0 | AD87: 0 | AE87: =IF(A87<>"",SUM($E$50:E87),0) -> 0 | AF87: =IF(A87<>"",SUM($D$50:D87),0) -> 0
A88: 4 | B88: 3 | D88: =IF(E88=0,0,MAX($D$50:D87))*IF(B88=1,IF($H$2=1,105%,102%),1) -> 0 | E88: 0 | F88: 0 | G88: 1.079917366 | H88: =IF(A88<>"",G88*(1+INDEX('Hozamsorok-eszközalapok'!$B$11:$F$55,A88,IF($D$20=1,1,$D$19-2))+$F$23)^(1/12),0) -> 1.082493107 | I88: 0 | J88: 0 | K88: 0 | L88: 0 | M88: 0 | N88: 0 | O88: 0 | P88: 0 | Q88: 0 | R88: 0 | S88: 0 | T88: 0 | U88: 0 | V88: 0 | W88: 0 | X88: 0 | Y88: 0 | Z88: 0 | AA88: 0 | AB88: 0 | AC88: 0 | AD88: 0 | AE88: =IF(A88<>"",SUM($E$50:E88),0) -> 0 | AF88: =IF(A88<>"",SUM($D$50:D88),0) -> 0
A89: 4 | B89: 4 | D89: =IF(E89=0,0,MAX($D$50:D88))*IF(B89=1,IF($H$2=1,105%,102%),1) -> 0 | E89: 0 | F89: 0 | G89: 1.082493107 | H89: =IF(A89<>"",G89*(1+INDEX('Hozamsorok-eszközalapok'!$B$11:$F$55,A89,IF($D$20=1,1,$D$19-2))+$F$23)^(1/12),0) -> 1.085074992 | I89: 0 | J89: 0 | K89: 0 | L89: 0 | M89: 0 | N89: 0 | O89: 0 | P89: 0 | Q89: 0 | R89: 0 | S89: 0 | T89: 0 | U89: 0 | V89: 0 | W89: 0 | X89: 0 | Y89: 0 | Z89: 0 | AA89: 0 | AB89: 0 | AC89: 0 | AD89: 0 | AE89: =IF(A89<>"",SUM($E$50:E89),0) -> 0 | AF89: =IF(A89<>"",SUM($D$50:D89),0) -> 0
A90: 4 | B90: 5 | D90: =IF(E90=0,0,MAX($D$50:D89))*IF(B90=1,IF($H$2=1,105%,102%),1) -> 0 | E90: 0 | F90: 0 | G90: 1.085074992 | H90: =IF(A90<>"",G90*(1+INDEX('Hozamsorok-eszközalapok'!$B$11:$F$55,A90,IF($D$20=1,1,$D$19-2))+$F$23)^(1/12),0) -> 1.087663035 | I90: 0 | J90: 0 | K90: 0 | L90: 0 | M90: 0 | N90: 0 | O90: 0 | P90: 0 | Q90: 0 | R90: 0 | S90: 0 | T90: 0 | U90: 0 | V90: 0 | W90: 0 | X90: 0 | Y90: 0 | Z90: 0 | AA90: 0 | AB90: 0 | AC90: 0 | AD90: 0 | AE90: =IF(A90<>"",SUM($E$50:E90),0) -> 0 | AF90: =IF(A90<>"",SUM($D$50:D90),0) -> 0
A91: 4 | B91: 6 | D91: =IF(E91=0,0,MAX($D$50:D90))*IF(B91=1,IF($H$2=1,105%,102%),1) -> 0 | E91: 0 | F91: 0 | G91: 1.087663035 | H91: =IF(A91<>"",G91*(1+INDEX('Hozamsorok-eszközalapok'!$B$11:$F$55,A91,IF($D$20=1,1,$D$19-2))+$F$23)^(1/12),0) -> 1.09025725 | I91: 0 | J91: 0 | K91: 0 | L91: 0 | M91: 0 | N91: 0 | O91: 0 | P91: 0 | Q91: 0 | R91: 0 | S91: 0 | T91: 0 | U91: 0 | V91: 0 | W91: 0 | X91: 0 | Y91: 0 | Z91: 0 | AA91: 0 | AB91: 0 | AC91: 0 | AD91: 0 | AE91: =IF(A91<>"",SUM($E$50:E91),0) -> 0 | AF91: =IF(A91<>"",SUM($D$50:D91),0) -> 0
A92: 4 | B92: 7 | D92: =IF(E92=0,0,MAX($D$50:D91))*IF(B92=1,IF($H$2=1,105%,102%),1) -> 0 | E92: 0 | F92: 0 | G92: 1.09025725 | H92: =IF(A92<>"",G92*(1+INDEX('Hozamsorok-eszközalapok'!$B$11:$F$55,A92,IF($D$20=1,1,$D$19-2))+$F$23)^(1/12),0) -> 1.092857653 | I92: 0 | J92: 0 | K92: 0 | L92: 0 | M92: 0 | N92: 0 | O92: 0 | P92: 0 | Q92: 0 | R92: 0 | S92: 0 | T92: 0 | U92: 0 | V92: 0 | W92: 0 | X92: 0 | Y92: 0 | Z92: 0 | AA92: 0 | AB92: 0 | AC92: 0 | AD92: 0 | AE92: =IF(A92<>"",SUM($E$50:E92),0) -> 0 | AF92: =IF(A92<>"",SUM($D$50:D92),0) -> 0
A93: 4 | B93: 8 | D93: =IF(E93=0,0,MAX($D$50:D92))*IF(B93=1,IF($H$2=1,105%,102%),1) -> 0 | E93: 0 | F93: 0 | G93: 1.092857653 | H93: =IF(A93<>"",G93*(1+INDEX('Hozamsorok-eszközalapok'!$B$11:$F$55,A93,IF($D$20=1,1,$D$19-2))+$F$23)^(1/12),0) -> 1.095464259 | I93: 0 | J93: 0 | K93: 0 | L93: 0 | M93: 0 | N93: 0 | O93: 0 | P93: 0 | Q93: 0 | R93: 0 | S93: 0 | T93: 0 | U93: 0 | V93: 0 | W93: 0 | X93: 0 | Y93: 0 | Z93: 0 | AA93: 0 | AB93: 0 | AC93: 0 | AD93: 0 | AE93: =IF(A93<>"",SUM($E$50:E93),0) -> 0 | AF93: =IF(A93<>"",SUM($D$50:D93),0) -> 0
A94: 4 | B94: 9 | D94: =IF(E94=0,0,MAX($D$50:D93))*IF(B94=1,IF($H$2=1,105%,102%),1) -> 0 | E94: 0 | F94: 0 | G94: 1.095464259 | H94: =IF(A94<>"",G94*(1+INDEX('Hozamsorok-eszközalapok'!$B$11:$F$55,A94,IF($D$20=1,1,$D$19-2))+$F$23)^(1/12),0) -> 1.098077081 | I94: 0 | J94: 0 | K94: 0 | L94: 0 | M94: 0 | N94: 0 | O94: 0 | P94: 0 | Q94: 0 | R94: 0 | S94: 0 | T94: 0 | U94: 0 | V94: 0 | W94: 0 | X94: 0 | Y94: 0 | Z94: 0 | AA94: 0 | AB94: 0 | AC94: 0 | AD94: 0 | AE94: =IF(A94<>"",SUM($E$50:E94),0) -> 0 | AF94: =IF(A94<>"",SUM($D$50:D94),0) -> 0
A95: 4 | B95: 10 | D95: =IF(E95=0,0,MAX($D$50:D94))*IF(B95=1,IF($H$2=1,105%,102%),1) -> 0 | E95: 0 | F95: 0 | G95: 1.098077081 | H95: =IF(A95<>"",G95*(1+INDEX('Hozamsorok-eszközalapok'!$B$11:$F$55,A95,IF($D$20=1,1,$D$19-2))+$F$23)^(1/12),0) -> 1.100696135 | I95: 0 | J95: 0 | K95: 0 | L95: 0 | M95: 0 | N95: 0 | O95: 0 | P95: 0 | Q95: 0 | R95: 0 | S95: 0 | T95: 0 | U95: 0 | V95: 0 | W95: 0 | X95: 0 | Y95: 0 | Z95: 0 | AA95: 0 | AB95: 0 | AC95: 0 | AD95: 0 | AE95: =IF(A95<>"",SUM($E$50:E95),0) -> 0 | AF95: =IF(A95<>"",SUM($D$50:D95),0) -> 0
A96: 4 | B96: 11 | D96: =IF(E96=0,0,MAX($D$50:D95))*IF(B96=1,IF($H$2=1,105%,102%),1) -> 0 | E96: 0 | F96: 0 | G96: 1.100696135 | H96: =IF(A96<>"",G96*(1+INDEX('Hozamsorok-eszközalapok'!$B$11:$F$55,A96,IF($D$20=1,1,$D$19-2))+$F$23)^(1/12),0) -> 1.103321437 | I96: 0 | J96: 0 | K96: 0 | L96: 0 | M96: 0 | N96: 0 | O96: 0 | P96: 0 | Q96: 0 | R96: 0 | S96: 0 | T96: 0 | U96: 0 | V96: 0 | W96: 0 | X96: 0 | Y96: 0 | Z96: 0 | AA96: 0 | AB96: 0 | AC96: 0 | AD96: 0 | AE96: =IF(A96<>"",SUM($E$50:E96),0) -> 0 | AF96: =IF(A96<>"",SUM($D$50:D96),0) -> 0
A97: 4 | B97: 12 | D97: =IF(E97=0,0,MAX($D$50:D96))*IF(B97=1,IF($H$2=1,105%,102%),1) -> 0 | E97: 0 | F97: 0 | G97: 1.103321437 | H97: =IF(A97<>"",G97*(1+INDEX('Hozamsorok-eszközalapok'!$B$11:$F$55,A97,IF($D$20=1,1,$D$19-2))+$F$23)^(1/12),0) -> 1.105952999 | I97: 0 | J97: 0 | K97: 0 | L97: 0 | M97: 0 | N97: 0 | O97: 0 | P97: 0 | Q97: 0 | R97: 0 | S97: 0 | T97: 0 | U97: 0 | V97: 0 | W97: 0 | X97: 0 | Y97: 0 | Z97: 0 | AA97: 0 | AB97: 0 | AC97: 0 | AD97: 0 | AE97: =IF(A97<>"",SUM($E$50:E97),0) -> 0 | AF97: =IF(A97<>"",SUM($D$50:D97),0) -> 0
A98: 5 | B98: 1 | D98: =IF(E98=0,0,MAX($D$50:D97))*IF(B98=1,IF($H$2=1,105%,102%),1) -> 0 | E98: 0 | F98: 0 | G98: 1.105952999 | H98: =IF(A98<>"",G98*(1+INDEX('Hozamsorok-eszközalapok'!$B$11:$F$55,A98,IF($D$20=1,1,$D$19-2))+$F$23)^(1/12),0) -> 1.108680578 | I98: 0 | J98: 0 | K98: 0 | L98: 0 | M98: 0 | N98: 0 | O98: 0 | P98: 0 | Q98: 0 | R98: 0 | S98: 0 | T98: 0 | U98: 0 | V98: 0 | W98: 0 | X98: 0 | Y98: 0 | Z98: 0 | AA98: 0 | AB98: 0 | AC98: 0 | AD98: 0 | AE98: =IF(A98<>"",SUM($E$50:E98),0) -> 0 | AF98: =IF(A98<>"",SUM($D$50:D98),0) -> 0
A99: 5 | B99: 2 | D99: =IF(E99=0,0,MAX($D$50:D98))*IF(B99=1,IF($H$2=1,105%,102%),1) -> 0 | E99: 0 | F99: 0 | G99: 1.108680578 | H99: =IF(A99<>"",G99*(1+INDEX('Hozamsorok-eszközalapok'!$B$11:$F$55,A99,IF($D$20=1,1,$D$19-2))+$F$23)^(1/12),0) -> 1.111414883 | I99: 0 | J99: 0 | K99: 0 | L99: 0 | M99: 0 | N99: 0 | O99: 0 | P99: 0 | Q99: 0 | R99: 0 | S99: 0 | T99: 0 | U99: 0 | V99: 0 | W99: 0 | X99: 0 | Y99: 0 | Z99: 0 | AA99: 0 | AB99: 0 | AC99: 0 | AD99: 0 | AE99: =IF(A99<>"",SUM($E$50:E99),0) -> 0 | AF99: =IF(A99<>"",SUM($D$50:D99),0) -> 0
A100: 5 | B100: 3 | D100: =IF(E100=0,0,MAX($D$50:D99))*IF(B100=1,IF($H$2=1,105%,102%),1) -> 0 | E100: 0 | F100: 0 | G100: 1.111414883 | H100: =IF(A100<>"",G100*(1+INDEX('Hozamsorok-eszközalapok'!$B$11:$F$55,A100,IF($D$20=1,1,$D$19-2))+$F$23)^(1/12),0) -> 1.114155932 | I100: 0 | J100: 0 | K100: 0 | L100: 0 | M100: 0 | N100: 0 | O100: 0 | P100: 0 | Q100: 0 | R100: 0 | S100: 0 | T100: 0 | U100: 0 | V100: 0 | W100: 0 | X100: 0 | Y100: 0 | Z100: 0 | AA100: 0 | AB100: 0 | AC100: 0 | AD100: 0 | AE100: =IF(A100<>"",SUM($E$50:E100),0) -> 0 | AF100: =IF(A100<>"",SUM($D$50:D100),0) -> 0
A101: 5 | B101: 4 | D101: =IF(E101=0,0,MAX($D$50:D100))*IF(B101=1,IF($H$2=1,105%,102%),1) -> 0 | E101: 0 | F101: 0 | G101: 1.114155932 | H101: =IF(A101<>"",G101*(1+INDEX('Hozamsorok-eszközalapok'!$B$11:$F$55,A101,IF($D$20=1,1,$D$19-2))+$F$23)^(1/12),0) -> 1.116903741 | I101: 0 | J101: 0 | K101: 0 | L101: 0 | M101: 0 | N101: 0 | O101: 0 | P101: 0 | Q101: 0 | R101: 0 | S101: 0 | T101: 0 | U101: 0 | V101: 0 | W101: 0 | X101: 0 | Y101: 0 | Z101: 0 | AA101: 0 | AB101: 0 | AC101: 0 | AD101: 0 | AE101: =IF(A101<>"",SUM($E$50:E101),0) -> 0 | AF101: =IF(A101<>"",SUM($D$50:D101),0) -> 0
A102: 5 | B102: 5 | D102: =IF(E102=0,0,MAX($D$50:D101))*IF(B102=1,IF($H$2=1,105%,102%),1) -> 0 | E102: 0 | F102: 0 | G102: 1.116903741 | H102: =IF(A102<>"",G102*(1+INDEX('Hozamsorok-eszközalapok'!$B$11:$F$55,A102,IF($D$20=1,1,$D$19-2))+$F$23)^(1/12),0) -> 1.119658327 | I102: 0 | J102: 0 | K102: 0 | L102: 0 | M102: 0 | N102: 0 | O102: 0 | P102: 0 | Q102: 0 | R102: 0 | S102: 0 | T102: 0 | U102: 0 | V102: 0 | W102: 0 | X102: 0 | Y102: 0 | Z102: 0 | AA102: 0 | AB102: 0 | AC102: 0 | AD102: 0 | AE102: =IF(A102<>"",SUM($E$50:E102),0) -> 0 | AF102: =IF(A102<>"",SUM($D$50:D102),0) -> 0
A103: 5 | B103: 6 | D103: =IF(E103=0,0,MAX($D$50:D102))*IF(B103=1,IF($H$2=1,105%,102%),1) -> 0 | E103: 0 | F103: 0 | G103: 1.119658327 | H103: =IF(A103<>"",G103*(1+INDEX('Hozamsorok-eszközalapok'!$B$11:$F$55,A103,IF($D$20=1,1,$D$19-2))+$F$23)^(1/12),0) -> 1.122419707 | I103: 0 | J103: 0 | K103: 0 | L103: 0 | M103: 0 | N103: 0 | O103: 0 | P103: 0 | Q103: 0 | R103: 0 | S103: 0 | T103: 0 | U103: 0 | V103: 0 | W103: 0 | X103: 0 | Y103: 0 | Z103: 0 | AA103: 0 | AB103: 0 | AC103: 0 | AD103: 0 | AE103: =IF(A103<>"",SUM($E$50:E103),0) -> 0 | AF103: =IF(A103<>"",SUM($D$50:D103),0) -> 0
A104: 5 | B104: 7 | D104: =IF(E104=0,0,MAX($D$50:D103))*IF(B104=1,IF($H$2=1,105%,102%),1) -> 0 | E104: 0 | F104: 0 | G104: 1.122419707 | H104: =IF(A104<>"",G104*(1+INDEX('Hozamsorok-eszközalapok'!$B$11:$F$55,A104,IF($D$20=1,1,$D$19-2))+$F$23)^(1/12),0) -> 1.125187897 | I104: 0 | J104: 0 | K104: 0 | L104: 0 | M104: 0 | N104: 0 | O104: 0 | P104: 0 | Q104: 0 | R104: 0 | S104: 0 | T104: 0 | U104: 0 | V104: 0 | W104: 0 | X104: 0 | Y104: 0 | Z104: 0 | AA104: 0 | AB104: 0 | AC104: 0 | AD104: 0 | AE104: =IF(A104<>"",SUM($E$50:E104),0) -> 0 | AF104: =IF(A104<>"",SUM($D$50:D104),0) -> 0
A105: 5 | B105: 8 | D105: =IF(E105=0,0,MAX($D$50:D104))*IF(B105=1,IF($H$2=1,105%,102%),1) -> 0 | E105: 0 | F105: 0 | G105: 1.125187897 | H105: =IF(A105<>"",G105*(1+INDEX('Hozamsorok-eszközalapok'!$B$11:$F$55,A105,IF($D$20=1,1,$D$19-2))+$F$23)^(1/12),0) -> 1.127962913 | I105: 0 | J105: 0 | K105: 0 | L105: 0 | M105: 0 | N105: 0 | O105: 0 | P105: 0 | Q105: 0 | R105: 0 | S105: 0 | T105: 0 | U105: 0 | V105: 0 | W105: 0 | X105: 0 | Y105: 0 | Z105: 0 | AA105: 0 | AB105: 0 | AC105: 0 | AD105: 0 | AE105: =IF(A105<>"",SUM($E$50:E105),0) -> 0 | AF105: =IF(A105<>"",SUM($D$50:D105),0) -> 0
A106: 5 | B106: 9 | D106: =IF(E106=0,0,MAX($D$50:D105))*IF(B106=1,IF($H$2=1,105%,102%),1) -> 0 | E106: 0 | F106: 0 | G106: 1.127962913 | H106: =IF(A106<>"",G106*(1+INDEX('Hozamsorok-eszközalapok'!$B$11:$F$55,A106,IF($D$20=1,1,$D$19-2))+$F$23)^(1/12),0) -> 1.130744774 | I106: 0 | J106: 0 | K106: 0 | L106: 0 | M106: 0 | N106: 0 | O106: 0 | P106: 0 | Q106: 0 | R106: 0 | S106: 0 | T106: 0 | U106: 0 | V106: 0 | W106: 0 | X106: 0 | Y106: 0 | Z106: 0 | AA106: 0 | AB106: 0 | AC106: 0 | AD106: 0 | AE106: =IF(A106<>"",SUM($E$50:E106),0) -> 0 | AF106: =IF(A106<>"",SUM($D$50:D106),0) -> 0
A107: 5 | B107: 10 | D107: =IF(E107=0,0,MAX($D$50:D106))*IF(B107=1,IF($H$2=1,105%,102%),1) -> 0 | E107: 0 | F107: 0 | G107: 1.130744774 | H107: =IF(A107<>"",G107*(1+INDEX('Hozamsorok-eszközalapok'!$B$11:$F$55,A107,IF($D$20=1,1,$D$19-2))+$F$23)^(1/12),0) -> 1.133533496 | I107: 0 | J107: 0 | K107: 0 | L107: 0 | M107: 0 | N107: 0 | O107: 0 | P107: 0 | Q107: 0 | R107: 0 | S107: 0 | T107: 0 | U107: 0 | V107: 0 | W107: 0 | X107: 0 | Y107: 0 | Z107: 0 | AA107: 0 | AB107: 0 | AC107: 0 | AD107: 0 | AE107: =IF(A107<>"",SUM($E$50:E107),0) -> 0 | AF107: =IF(A107<>"",SUM($D$50:D107),0) -> 0
A108: 5 | B108: 11 | D108: =IF(E108=0,0,MAX($D$50:D107))*IF(B108=1,IF($H$2=1,105%,102%),1) -> 0 | E108: 0 | F108: 0 | G108: 1.133533496 | H108: =IF(A108<>"",G108*(1+INDEX('Hozamsorok-eszközalapok'!$B$11:$F$55,A108,IF($D$20=1,1,$D$19-2))+$F$23)^(1/12),0) -> 1.136329095 | I108: 0 | J108: 0 | K108: 0 | L108: 0 | M108: 0 | N108: 0 | O108: 0 | P108: 0 | Q108: 0 | R108: 0 | S108: 0 | T108: 0 | U108: 0 | V108: 0 | W108: 0 | X108: 0 | Y108: 0 | Z108: 0 | AA108: 0 | AB108: 0 | AC108: 0 | AD108: 0 | AE108: =IF(A108<>"",SUM($E$50:E108),0) -> 0 | AF108: =IF(A108<>"",SUM($D$50:D108),0) -> 0
A109: 5 | B109: 12 | D109: =IF(E109=0,0,MAX($D$50:D108))*IF(B109=1,IF($H$2=1,105%,102%),1) -> 0 | E109: 0 | F109: 0 | G109: 1.136329095 | H109: =IF(A109<>"",G109*(1+INDEX('Hozamsorok-eszközalapok'!$B$11:$F$55,A109,IF($D$20=1,1,$D$19-2))+$F$23)^(1/12),0) -> 1.139131589 | I109: 0 | J109: 0 | K109: 0 | L109: 0 | M109: 0 | N109: 0 | O109: 0 | P109: 0 | Q109: 0 | R109: 0 | S109: 0 | T109: 0 | U109: 0 | V109: 0 | W109: 0 | X109: 0 | Y109: 0 | Z109: 0 | AA109: 0 | AB109: 0 | AC109: 0 | AD109: 0 | AE109: =IF(A109<>"",SUM($E$50:E109),0) -> 0 | AF109: =IF(A109<>"",SUM($D$50:D109),0) -> 0
A110: 6 | B110: 1 | D110: =IF(E110=0,0,MAX($D$50:D109))*IF(B110=1,IF($H$2=1,105%,102%),1) -> 0 | E110: 0 | F110: 0 | G110: 1.139131589 | H110: =IF(A110<>"",G110*(1+INDEX('Hozamsorok-eszközalapok'!$B$11:$F$55,A110,IF($D$20=1,1,$D$19-2))+$F$23)^(1/12),0) -> 1.142125611 | I110: 0 | J110: 0 | K110: 0 | L110: 0 | M110: 0 | N110: 0 | O110: 0 | P110: 0 | Q110: 0 | R110: 0 | S110: 0 | T110: 0 | U110: 0 | V110: 0 | W110: 0 | X110: 0 | Y110: 0 | Z110: 0 | AA110: 0 | AB110: 0 | AC110: 0 | AD110: 0 | AE110: =IF(A110<>"",SUM($E$50:E110),0) -> 0 | AF110: =IF(A110<>"",SUM($D$50:D110),0) -> 0
A111: 6 | B111: 2 | D111: =IF(E111=0,0,MAX($D$50:D110))*IF(B111=1,IF($H$2=1,105%,102%),1) -> 0 | E111: 0 | F111: 0 | G111: 1.142125611 | H111: =IF(A111<>"",G111*(1+INDEX('Hozamsorok-eszközalapok'!$B$11:$F$55,A111,IF($D$20=1,1,$D$19-2))+$F$23)^(1/12),0) -> 1.145127502 | I111: 0 | J111: 0 | K111: 0 | L111: 0 | M111: 0 | N111: 0 | O111: 0 | P111: 0 | Q111: 0 | R111: 0 | S111: 0 | T111: 0 | U111: 0 | V111: 0 | W111: 0 | X111: 0 | Y111: 0 | Z111: 0 | AA111: 0 | AB111: 0 | AC111: 0 | AD111: 0 | AE111: =IF(A111<>"",SUM($E$50:E111),0) -> 0 | AF111: =IF(A111<>"",SUM($D$50:D111),0) -> 0
A112: 6 | B112: 3 | D112: =IF(E112=0,0,MAX($D$50:D111))*IF(B112=1,IF($H$2=1,105%,102%),1) -> 0 | E112: 0 | F112: 0 | G112: 1.145127502 | H112: =IF(A112<>"",G112*(1+INDEX('Hozamsorok-eszközalapok'!$B$11:$F$55,A112,IF($D$20=1,1,$D$19-2))+$F$23)^(1/12),0) -> 1.148137283 | I112: 0 | J112: 0 | K112: 0 | L112: 0 | M112: 0 | N112: 0 | O112: 0 | P112: 0 | Q112: 0 | R112: 0 | S112: 0 | T112: 0 | U112: 0 | V112: 0 | W112: 0 | X112: 0 | Y112: 0 | Z112: 0 | AA112: 0 | AB112: 0 | AC112: 0 | AD112: 0 | AE112: =IF(A112<>"",SUM($E$50:E112),0) -> 0 | AF112: =IF(A112<>"",SUM($D$50:D112),0) -> 0
A113: 6 | B113: 4 | D113: =IF(E113=0,0,MAX($D$50:D112))*IF(B113=1,IF($H$2=1,105%,102%),1) -> 0 | E113: 0 | F113: 0 | G113: 1.148137283 | H113: =IF(A113<>"",G113*(1+INDEX('Hozamsorok-eszközalapok'!$B$11:$F$55,A113,IF($D$20=1,1,$D$19-2))+$F$23)^(1/12),0) -> 1.151154975 | I113: 0 | J113: 0 | K113: 0 | L113: 0 | M113: 0 | N113: 0 | O113: 0 | P113: 0 | Q113: 0 | R113: 0 | S113: 0 | T113: 0 | U113: 0 | V113: 0 | W113: 0 | X113: 0 | Y113: 0 | Z113: 0 | AA113: 0 | AB113: 0 | AC113: 0 | AD113: 0 | AE113: =IF(A113<>"",SUM($E$50:E113),0) -> 0 | AF113: =IF(A113<>"",SUM($D$50:D113),0) -> 0
A114: 6 | B114: 5 | D114: =IF(E114=0,0,MAX($D$50:D113))*IF(B114=1,IF($H$2=1,105%,102%),1) -> 0 | E114: 0 | F114: =E114*$D$13 -> 0 | G114: 1.151154975 | H114: =IF(A114<>"",G114*(1+INDEX('Hozamsorok-eszközalapok'!$B$11:$F$55,A114,IF($D$20=1,1,$D$19-2))+$F$23)^(1/12),0) -> 1.154180598 | I114: 0 | J114: 0 | K114: 0 | L114: 0 | M114: =K114*(1-$G$8) -> 0 | N114: =L114*(1-$G$8) -> 0 | O114: 0 | P114: 0 | Q114: 0 | R114: 0 | S114: 0 | T114: 0 | U114: 0 | V114: 0 | W114: 0 | X114: 0 | Y114: 0 | Z114: 0 | AA114: 0 | AB114: 0 | AC114: =H114*(T114+U114) -> 0 | AD114: 0 | AE114: =IF(A114<>"",SUM($E$50:E114),0) -> 0 | AF114: =IF(A114<>"",SUM($D$50:D114),0) -> 0
A115: =IF(B114<12,A114,IF(A114<$D$9,A114+1,"")) -> 6 | B115: 6 | D115: =IF(E115=0,0,MAX($D$50:D114))*IF(B115=1,IF($H$2=1,105%,102%),1) -> 0 | E115: =IF(AND($D$8=1,SUM(A115:B115)=2),$D$12,IF(A115>$D$10,0,IF(OR(AND($D$8=2,B115=1),AND($D$8=4,OR(B115=1,B115=7)),AND($D$8=5,OR(B115=1,B115=4,B115=7,B115=10)),AND($D$8=3,B115>=1)),$D$12*(1+$D$25)^(A115-1),0))) -> 0 | F115: 0 | G115: 1.154180598 | H115: =IF(A115<>"",G115*(1+INDEX('Hozamsorok-eszközalapok'!$B$11:$F$55,A115,IF($D$20=1,1,$D$19-2))+$F$23)^(1/12),0) -> 1.157214173 | I115: =IF(E115<>"",IF(A115<=2,(E115-F115)/G115,0),0) -> 0 | J115: =IF(A115<>"",IF(A115>2,(E115-F115)/G115,0),0) -> 0 | K115: =IF(A115<>"",U114+I115,0) -> 0 | L115: =IF(A115<>"",T114+J115,0) -> 0 | M115: 0 | N115: 0 | O115: =IF($E$4=TRUE,IF($D$19=4,0,(M115+N115)*($G$10+$G$11)*G115),0) -> 0 | P115: =IF($D$8<>1,M115,IF(A115<>"",M115-O115/G115,0)) -> 0 | Q115: =IF(A115<>"",N115-X115/G115,0) -> 0 | R115: =IF(OR(AND($D$8=1,A115<=$D$9),AND($D$8<>1,A115<=$D$10)),$D$15*($G$13+G115*((P115+Q115)-P115*$G$14^(IF($D$8=1,$D$9,$D$10)*12-((A115-1)*12+B115-1))-Q115*$G$15)),0) -> 0 | S115: =IF($D$8<>1,P115,IF(A115<>"",P115-R115/G115,0)) -> 0 | T115: =IF(A115<>"",Q115-AA115/G115,0) -> 0 | U115: =IF(AND($D$8<>1,A115>$D$10),S115,S115*(1-$D$14)) -> 0 | V115: 0 | W115: 0 | X115: 0 | Y115: 0 | Z115: 0 | AA115: 0 | AB115: 0 | AC115: 0 | AD115: =MAX(0,IF(A115<>"",IF(AND($D$8<>1,A115<=2,(A115+B115)<>14),0,H115*(U115*$G$14^(IF(AND($D$8<>1,A115>$D$10),0,IF($D$8=1,$D$9,$D$10)*12-((A115-1)*12+B115)))+T115*$G$15)-AB115),0)) -> 0 | AE115: =IF(A115<>"",SUM($E$50:E115),0) -> 0 | AF115: =IF(A115<>"",SUM($D$50:D115),0) -> 0
A116: 6 | B116: =IF(A116="","",IF(B115=12,1,B115+1)) -> 7 | D116: =IF(E116=0,0,MAX($D$50:D115))*IF(B116=1,IF($H$2=1,105%,102%),1) -> 0 | E116: 0 | F116: 0 | G116: =IF(A116<>"",H115,0) -> 1.157214173 | H116: =IF(A116<>"",G116*(1+INDEX('Hozamsorok-eszközalapok'!$B$11:$F$55,A116,IF($D$20=1,1,$D$19-2))+$F$23)^(1/12),0) -> 1.160255722 | I116: 0 | J116: 0 | K116: 0 | L116: 0 | M116: 0 | N116: 0 | O116: 0 | P116: 0 | Q116: 0 | R116: 0 | S116: 0 | T116: 0 | U116: 0 | V116: =IF(AND(A116<>"",$D$8<>1),O116+AB115,0) -> 0 | W116: =N116*G116 -> 0 | X116: =MIN(V116,W116) -> 0 | Y116: =IF(AND(A116<>"",$D$8<>1),V116-X116+R116,0) -> 0 | Z116: =Q116*G116 -> 0 | AA116: =MIN(Y116,Z116) -> 0 | AB116: =IF(A116<>"",Y116-AA116,0) -> 0 | AC116: 0 | AD116: 0 | AE116: =IF(A116<>"",SUM($E$50:E116),0) -> 0 | AF116: =IF(A116<>"",SUM($D$50:D116),0) -> 0
A117: 6 | B117: 8 | D117: =IF(E117=0,0,MAX($D$50:D116))*IF(B117=1,IF($H$2=1,105%,102%),1) -> 0 | E117: 0 | F117: 0 | G117: 1.160255722 | H117: =IF(A117<>"",G117*(1+INDEX('Hozamsorok-eszközalapok'!$B$11:$F$55,A117,IF($D$20=1,1,$D$19-2))+$F$23)^(1/12),0) -> 1.163305265 | I117: 0 | J117: 0 | K117: 0 | L117: 0 | M117: 0 | N117: 0 | O117: 0 | P117: 0 | Q117: 0 | R117: 0 | S117: 0 | T117: 0 | U117: 0 | V117: 0 | W117: 0 | X117: 0 | Y117: 0 | Z117: 0 | AA117: 0 | AB117: 0 | AC117: 0 | AD117: 0 | AE117: =IF(A117<>"",SUM($E$50:E117),0) -> 0 | AF117: =IF(A117<>"",SUM($D$50:D117),0) -> 0
A118: 6 | B118: 9 | D118: =IF(E118=0,0,MAX($D$50:D117))*IF(B118=1,IF($H$2=1,105%,102%),1) -> 0 | E118: 0 | F118: 0 | G118: 1.163305265 | H118: =IF(A118<>"",G118*(1+INDEX('Hozamsorok-eszközalapok'!$B$11:$F$55,A118,IF($D$20=1,1,$D$19-2))+$F$23)^(1/12),0) -> 1.166362823 | I118: 0 | J118: 0 | K118: 0 | L118: 0 | M118: 0 | N118: 0 | O118: 0 | P118: 0 | Q118: 0 | R118: 0 | S118: 0 | T118: 0 | U118: 0 | V118: 0 | W118: 0 | X118: 0 | Y118: 0 | Z118: 0 | AA118: 0 | AB118: 0 | AC118: 0 | AD118: 0 | AE118: =IF(A118<>"",SUM($E$50:E118),0) -> 0 | AF118: =IF(A118<>"",SUM($D$50:D118),0) -> 0
A119: 6 | B119: 10 | D119: =IF(E119=0,0,MAX($D$50:D118))*IF(B119=1,IF($H$2=1,105%,102%),1) -> 0 | E119: 0 | F119: 0 | G119: 1.166362823 | H119: =IF(A119<>"",G119*(1+INDEX('Hozamsorok-eszközalapok'!$B$11:$F$55,A119,IF($D$20=1,1,$D$19-2))+$F$23)^(1/12),0) -> 1.169428418 | I119: 0 | J119: 0 | K119: 0 | L119: 0 | M119: 0 | N119: 0 | O119: 0 | P119: 0 | Q119: 0 | R119: 0 | S119: 0 | T119: 0 | U119: 0 | V119: 0 | W119: 0 | X119: 0 | Y119: 0 | Z119: 0 | AA119: 0 | AB119: 0 | AC119: 0 | AD119: 0 | AE119: =IF(A119<>"",SUM($E$50:E119),0) -> 0 | AF119: =IF(A119<>"",SUM($D$50:D119),0) -> 0
A120: 6 | B120: 11 | D120: =IF(E120=0,0,MAX($D$50:D119))*IF(B120=1,IF($H$2=1,105%,102%),1) -> 0 | E120: 0 | F120: 0 | G120: 1.169428418 | H120: =IF(A120<>"",G120*(1+INDEX('Hozamsorok-eszközalapok'!$B$11:$F$55,A120,IF($D$20=1,1,$D$19-2))+$F$23)^(1/12),0) -> 1.17250207 | I120: 0 | J120: 0 | K120: 0 | L120: 0 | M120: 0 | N120: 0 | O120: 0 | P120: 0 | Q120: 0 | R120: 0 | S120: 0 | T120: 0 | U120: 0 | V120: 0 | W120: 0 | X120: 0 | Y120: 0 | Z120: 0 | AA120: 0 | AB120: 0 | AC120: 0 | AD120: 0 | AE120: =IF(A120<>"",SUM($E$50:E120),0) -> 0 | AF120: =IF(A120<>"",SUM($D$50:D120),0) -> 0
A121: 6 | B121: 12 | D121: =IF(E121=0,0,MAX($D$50:D120))*IF(B121=1,IF($H$2=1,105%,102%),1) -> 0 | E121: 0 | F121: 0 | G121: 1.17250207 | H121: =IF(A121<>"",G121*(1+INDEX('Hozamsorok-eszközalapok'!$B$11:$F$55,A121,IF($D$20=1,1,$D$19-2))+$F$23)^(1/12),0) -> 1.1755838 | I121: 0 | J121: 0 | K121: 0 | L121: 0 | M121: 0 | N121: 0 | O121: 0 | P121: 0 | Q121: 0 | R121: 0 | S121: 0 | T121: 0 | U121: 0 | V121: 0 | W121: 0 | X121: 0 | Y121: 0 | Z121: 0 | AA121: 0 | AB121: 0 | AC121: 0 | AD121: 0 | AE121: =IF(A121<>"",SUM($E$50:E121),0) -> 0 | AF121: =IF(A121<>"",SUM($D$50:D121),0) -> 0
A122: 7 | B122: 1 | D122: =IF(E122=0,0,MAX($D$50:D121))*IF(B122=1,IF($H$2=1,105%,102%),1) -> 0 | E122: 0 | F122: 0 | G122: 1.1755838 | H122: =IF(A122<>"",G122*(1+INDEX('Hozamsorok-eszközalapok'!$B$11:$F$55,A122,IF($D$20=1,1,$D$19-2))+$F$23)^(1/12),0) -> 1.178768766 | I122: 0 | J122: 0 | K122: 0 | L122: 0 | M122: 0 | N122: 0 | O122: 0 | P122: 0 | Q122: 0 | R122: 0 | S122: 0 | T122: 0 | U122: 0 | V122: 0 | W122: 0 | X122: 0 | Y122: 0 | Z122: 0 | AA122: 0 | AB122: 0 | AC122: 0 | AD122: 0 | AE122: =IF(A122<>"",SUM($E$50:E122),0) -> 0 | AF122: =IF(A122<>"",SUM($D$50:D122),0) -> 0
A123: 7 | B123: 2 | D123: =IF(E123=0,0,MAX($D$50:D122))*IF(B123=1,IF($H$2=1,105%,102%),1) -> 0 | E123: 0 | F123: 0 | G123: 1.178768766 | H123: =IF(A123<>"",G123*(1+INDEX('Hozamsorok-eszközalapok'!$B$11:$F$55,A123,IF($D$20=1,1,$D$19-2))+$F$23)^(1/12),0) -> 1.18196236 | I123: 0 | J123: 0 | K123: 0 | L123: 0 | M123: 0 | N123: 0 | O123: 0 | P123: 0 | Q123: 0 | R123: 0 | S123: 0 | T123: 0 | U123: 0 | V123: 0 | W123: 0 | X123: 0 | Y123: 0 | Z123: 0 | AA123: 0 | AB123: 0 | AC123: 0 | AD123: 0 | AE123: =IF(A123<>"",SUM($E$50:E123),0) -> 0 | AF123: =IF(A123<>"",SUM($D$50:D123),0) -> 0
A124: 7 | B124: 3 | D124: =IF(E124=0,0,MAX($D$50:D123))*IF(B124=1,IF($H$2=1,105%,102%),1) -> 0 | E124: 0 | F124: 0 | G124: 1.18196236 | H124: =IF(A124<>"",G124*(1+INDEX('Hozamsorok-eszközalapok'!$B$11:$F$55,A124,IF($D$20=1,1,$D$19-2))+$F$23)^(1/12),0) -> 1.185164606 | I124: 0 | J124: 0 | K124: 0 | L124: 0 | M124: 0 | N124: 0 | O124: 0 | P124: 0 | Q124: 0 | R124: 0 | S124: 0 | T124: 0 | U124: 0 | V124: 0 | W124: 0 | X124: 0 | Y124: 0 | Z124: 0 | AA124: 0 | AB124: 0 | AC124: 0 | AD124: 0 | AE124: =IF(A124<>"",SUM($E$50:E124),0) -> 0 | AF124: =IF(A124<>"",SUM($D$50:D124),0) -> 0
A125: 7 | B125: 4 | D125: =IF(E125=0,0,MAX($D$50:D124))*IF(B125=1,IF($H$2=1,105%,102%),1) -> 0 | E125: 0 | F125: 0 | G125: 1.185164606 | H125: =IF(A125<>"",G125*(1+INDEX('Hozamsorok-eszközalapok'!$B$11:$F$55,A125,IF($D$20=1,1,$D$19-2))+$F$23)^(1/12),0) -> 1.188375528 | I125: 0 | J125: 0 | K125: 0 | L125: 0 | M125: 0 | N125: 0 | O125: 0 | P125: 0 | Q125: 0 | R125: 0 | S125: 0 | T125: 0 | U125: 0 | V125: 0 | W125: 0 | X125: 0 | Y125: 0 | Z125: 0 | AA125: 0 | AB125: 0 | AC125: 0 | AD125: 0 | AE125: =IF(A125<>"",SUM($E$50:E125),0) -> 0 | AF125: =IF(A125<>"",SUM($D$50:D125),0) -> 0
A126: 7 | B126: 5 | D126: =IF(E126=0,0,MAX($D$50:D125))*IF(B126=1,IF($H$2=1,105%,102%),1) -> 0 | E126: 0 | F126: 0 | G126: 1.188375528 | H126: =IF(A126<>"",G126*(1+INDEX('Hozamsorok-eszközalapok'!$B$11:$F$55,A126,IF($D$20=1,1,$D$19-2))+$F$23)^(1/12),0) -> 1.19159515 | I126: 0 | J126: 0 | K126: 0 | L126: 0 | M126: 0 | N126: 0 | O126: 0 | P126: 0 | Q126: 0 | R126: 0 | S126: 0 | T126: 0 | U126: 0 | V126: 0 | W126: 0 | X126: 0 | Y126: 0 | Z126: 0 | AA126: 0 | AB126: 0 | AC126: 0 | AD126: 0 | AE126: =IF(A126<>"",SUM($E$50:E126),0) -> 0 | AF126: =IF(A126<>"",SUM($D$50:D126),0) -> 0
A127: 7 | B127: 6 | D127: =IF(E127=0,0,MAX($D$50:D126))*IF(B127=1,IF($H$2=1,105%,102%),1) -> 0 | E127: 0 | F127: 0 | G127: 1.19159515 | H127: =IF(A127<>"",G127*(1+INDEX('Hozamsorok-eszközalapok'!$B$11:$F$55,A127,IF($D$20=1,1,$D$19-2))+$F$23)^(1/12),0) -> 1.194823494 | I127: 0 | J127: 0 | K127: 0 | L127: 0 | M127: 0 | N127: 0 | O127: 0 | P127: 0 | Q127: 0 | R127: 0 | S127: 0 | T127: 0 | U127: 0 | V127: 0 | W127: 0 | X127: 0 | Y127: 0 | Z127: 0 | AA127: 0 | AB127: 0 | AC127: 0 | AD127: 0 | AE127: =IF(A127<>"",SUM($E$50:E127),0) -> 0 | AF127: =IF(A127<>"",SUM($D$50:D127),0) -> 0
A128: 7 | B128: 7 | D128: =IF(E128=0,0,MAX($D$50:D127))*IF(B128=1,IF($H$2=1,105%,102%),1) -> 0 | E128: 0 | F128: 0 | G128: 1.194823494 | H128: =IF(A128<>"",G128*(1+INDEX('Hozamsorok-eszközalapok'!$B$11:$F$55,A128,IF($D$20=1,1,$D$19-2))+$F$23)^(1/12),0) -> 1.198060584 | I128: 0 | J128: 0 | K128: 0 | L128: 0 | M128: 0 | N128: 0 | O128: 0 | P128: 0 | Q128: 0 | R128: 0 | S128: 0 | T128: 0 | U128: 0 | V128: 0 | W128: 0 | X128: 0 | Y128: 0 | Z128: 0 | AA128: 0 | AB128: 0 | AC128: 0 | AD128: 0 | AE128: =IF(A128<>"",SUM($E$50:E128),0) -> 0 | AF128: =IF(A128<>"",SUM($D$50:D128),0) -> 0
A129: 7 | B129: 8 | D129: =IF(E129=0,0,MAX($D$50:D128))*IF(B129=1,IF($H$2=1,105%,102%),1) -> 0 | E129: 0 | F129: 0 | G129: 1.198060584 | H129: =IF(A129<>"",G129*(1+INDEX('Hozamsorok-eszközalapok'!$B$11:$F$55,A129,IF($D$20=1,1,$D$19-2))+$F$23)^(1/12),0) -> 1.201306445 | I129: 0 | J129: 0 | K129: 0 | L129: 0 | M129: 0 | N129: 0 | O129: 0 | P129: 0 | Q129: 0 | R129: 0 | S129: 0 | T129: 0 | U129: 0 | V129: 0 | W129: 0 | X129: 0 | Y129: 0 | Z129: 0 | AA129: 0 | AB129: 0 | AC129: 0 | AD129: 0 | AE129: =IF(A129<>"",SUM($E$50:E129),0) -> 0 | AF129: =IF(A129<>"",SUM($D$50:D129),0) -> 0
A130: 7 | B130: 9 | D130: =IF(E130=0,0,MAX($D$50:D129))*IF(B130=1,IF($H$2=1,105%,102%),1) -> 0 | E130: 0 | F130: 0 | G130: 1.201306445 | H130: =IF(A130<>"",G130*(1+INDEX('Hozamsorok-eszközalapok'!$B$11:$F$55,A130,IF($D$20=1,1,$D$19-2))+$F$23)^(1/12),0) -> 1.2045611 | I130: 0 | J130: 0 | K130: 0 | L130: 0 | M130: 0 | N130: 0 | O130: 0 | P130: 0 | Q130: 0 | R130: 0 | S130: 0 | T130: 0 | U130: 0 | V130: 0 | W130: 0 | X130: 0 | Y130: 0 | Z130: 0 | AA130: 0 | AB130: 0 | AC130: 0 | AD130: 0 | AE130: =IF(A130<>"",SUM($E$50:E130),0) -> 0 | AF130: =IF(A130<>"",SUM($D$50:D130),0) -> 0
A131: 7 | B131: 10 | D131: =IF(E131=0,0,MAX($D$50:D130))*IF(B131=1,IF($H$2=1,105%,102%),1) -> 0 | E131: 0 | F131: 0 | G131: 1.2045611 | H131: =IF(A131<>"",G131*(1+INDEX('Hozamsorok-eszközalapok'!$B$11:$F$55,A131,IF($D$20=1,1,$D$19-2))+$F$23)^(1/12),0) -> 1.207824572 | I131: 0 | J131: 0 | K131: 0 | L131: 0 | M131: 0 | N131: 0 | O131: 0 | P131: 0 | Q131: 0 | R131: 0 | S131: 0 | T131: 0 | U131: 0 | V131: 0 | W131: 0 | X131: 0 | Y131: 0 | Z131: 0 | AA131: 0 | AB131: 0 | AC131: 0 | AD131: 0 | AE131: =IF(A131<>"",SUM($E$50:E131),0) -> 0 | AF131: =IF(A131<>"",SUM($D$50:D131),0) -> 0
A132: 7 | B132: 11 | D132: =IF(E132=0,0,MAX($D$50:D131))*IF(B132=1,IF($H$2=1,105%,102%),1) -> 0 | E132: 0 | F132: 0 | G132: 1.207824572 | H132: =IF(A132<>"",G132*(1+INDEX('Hozamsorok-eszközalapok'!$B$11:$F$55,A132,IF($D$20=1,1,$D$19-2))+$F$23)^(1/12),0) -> 1.211096886 | I132: 0 | J132: 0 | K132: 0 | L132: 0 | M132: 0 | N132: 0 | O132: 0 | P132: 0 | Q132: 0 | R132: 0 | S132: 0 | T132: 0 | U132: 0 | V132: 0 | W132: 0 | X132: 0 | Y132: 0 | Z132: 0 | AA132: 0 | AB132: 0 | AC132: 0 | AD132: 0 | AE132: =IF(A132<>"",SUM($E$50:E132),0) -> 0 | AF132: =IF(A132<>"",SUM($D$50:D132),0) -> 0
A133: 7 | B133: 12 | D133: =IF(E133=0,0,MAX($D$50:D132))*IF(B133=1,IF($H$2=1,105%,102%),1) -> 0 | E133: 0 | F133: 0 | G133: 1.211096886 | H133: =IF(A133<>"",G133*(1+INDEX('Hozamsorok-eszközalapok'!$B$11:$F$55,A133,IF($D$20=1,1,$D$19-2))+$F$23)^(1/12),0) -> 1.214378066 | I133: 0 | J133: 0 | K133: 0 | L133: 0 | M133: 0 | N133: 0 | O133: 0 | P133: 0 | Q133: 0 | R133: 0 | S133: 0 | T133: 0 | U133: 0 | V133: 0 | W133: 0 | X133: 0 | Y133: 0 | Z133: 0 | AA133: 0 | AB133: 0 | AC133: 0 | AD133: 0 | AE133: =IF(A133<>"",SUM($E$50:E133),0) -> 0 | AF133: =IF(A133<>"",SUM($D$50:D133),0) -> 0
A134: 8 | B134: 1 | D134: =IF(E134=0,0,MAX($D$50:D133))*IF(B134=1,IF($H$2=1,105%,102%),1) -> 0 | E134: 0 | F134: 0 | G134: 1.214378066 | H134: =IF(A134<>"",G134*(1+INDEX('Hozamsorok-eszközalapok'!$B$11:$F$55,A134,IF($D$20=1,1,$D$19-2))+$F$23)^(1/12),0) -> 1.217766322 | I134: 0 | J134: 0 | K134: 0 | L134: 0 | M134: 0 | N134: 0 | O134: 0 | P134: 0 | Q134: 0 | R134: 0 | S134: 0 | T134: 0 | U134: 0 | V134: 0 | W134: 0 | X134: 0 | Y134: 0 | Z134: 0 | AA134: 0 | AB134: 0 | AC134: 0 | AD134: 0 | AE134: =IF(A134<>"",SUM($E$50:E134),0) -> 0 | AF134: =IF(A134<>"",SUM($D$50:D134),0) -> 0
A135: 8 | B135: 2 | D135: =IF(E135=0,0,MAX($D$50:D134))*IF(B135=1,IF($H$2=1,105%,102%),1) -> 0 | E135: 0 | F135: 0 | G135: 1.217766322 | H135: =IF(A135<>"",G135*(1+INDEX('Hozamsorok-eszközalapok'!$B$11:$F$55,A135,IF($D$20=1,1,$D$19-2))+$F$23)^(1/12),0) -> 1.221164032 | I135: 0 | J135: 0 | K135: 0 | L135: 0 | M135: 0 | N135: 0 | O135: 0 | P135: 0 | Q135: 0 | R135: 0 | S135: 0 | T135: 0 | U135: 0 | V135: 0 | W135: 0 | X135: 0 | Y135: 0 | Z135: 0 | AA135: 0 | AB135: 0 | AC135: 0 | AD135: 0 | AE135: =IF(A135<>"",SUM($E$50:E135),0) -> 0 | AF135: =IF(A135<>"",SUM($D$50:D135),0) -> 0
A136: 8 | B136: 3 | D136: =IF(E136=0,0,MAX($D$50:D135))*IF(B136=1,IF($H$2=1,105%,102%),1) -> 0 | E136: 0 | F136: 0 | G136: 1.221164032 | H136: =IF(A136<>"",G136*(1+INDEX('Hozamsorok-eszközalapok'!$B$11:$F$55,A136,IF($D$20=1,1,$D$19-2))+$F$23)^(1/12),0) -> 1.224571222 | I136: 0 | J136: 0 | K136: 0 | L136: 0 | M136: 0 | N136: 0 | O136: 0 | P136: 0 | Q136: 0 | R136: 0 | S136: 0 | T136: 0 | U136: 0 | V136: 0 | W136: 0 | X136: 0 | Y136: 0 | Z136: 0 | AA136: 0 | AB136: 0 | AC136: 0 | AD136: 0 | AE136: =IF(A136<>"",SUM($E$50:E136),0) -> 0 | AF136: =IF(A136<>"",SUM($D$50:D136),0) -> 0
A137: 8 | B137: 4 | D137: =IF(E137=0,0,MAX($D$50:D136))*IF(B137=1,IF($H$2=1,105%,102%),1) -> 0 | E137: 0 | F137: 0 | G137: 1.224571222 | H137: =IF(A137<>"",G137*(1+INDEX('Hozamsorok-eszközalapok'!$B$11:$F$55,A137,IF($D$20=1,1,$D$19-2))+$F$23)^(1/12),0) -> 1.227987918 | I137: 0 | J137: 0 | K137: 0 | L137: 0 | M137: 0 | N137: 0 | O137: 0 | P137: 0 | Q137: 0 | R137: 0 | S137: 0 | T137: 0 | U137: 0 | V137: 0 | W137: 0 | X137: 0 | Y137: 0 | Z137: 0 | AA137: 0 | AB137: 0 | AC137: 0 | AD137: 0 | AE137: =IF(A137<>"",SUM($E$50:E137),0) -> 0 | AF137: =IF(A137<>"",SUM($D$50:D137),0) -> 0
A138: 8 | B138: 5 | D138: =IF(E138=0,0,MAX($D$50:D137))*IF(B138=1,IF($H$2=1,105%,102%),1) -> 0 | E138: 0 | F138: 0 | G138: 1.227987918 | H138: =IF(A138<>"",G138*(1+INDEX('Hozamsorok-eszközalapok'!$B$11:$F$55,A138,IF($D$20=1,1,$D$19-2))+$F$23)^(1/12),0) -> 1.231414147 | I138: 0 | J138: 0 | K138: 0 | L138: 0 | M138: 0 | N138: 0 | O138: 0 | P138: 0 | Q138: 0 | R138: 0 | S138: 0 | T138: 0 | U138: 0 | V138: 0 | W138: 0 | X138: 0 | Y138: 0 | Z138: 0 | AA138: 0 | AB138: 0 | AC138: 0 | AD138: 0 | AE138: =IF(A138<>"",SUM($E$50:E138),0) -> 0 | AF138: =IF(A138<>"",SUM($D$50:D138),0) -> 0
A139: 8 | B139: 6 | D139: =IF(E139=0,0,MAX($D$50:D138))*IF(B139=1,IF($H$2=1,105%,102%),1) -> 0 | E139: 0 | F139: 0 | G139: 1.231414147 | H139: =IF(A139<>"",G139*(1+INDEX('Hozamsorok-eszközalapok'!$B$11:$F$55,A139,IF($D$20=1,1,$D$19-2))+$F$23)^(1/12),0) -> 1.234849936 | I139: 0 | J139: 0 | K139: 0 | L139: 0 | M139: 0 | N139: 0 | O139: 0 | P139: 0 | Q139: 0 | R139: 0 | S139: 0 | T139: 0 | U139: 0 | V139: 0 | W139: 0 | X139: 0 | Y139: 0 | Z139: 0 | AA139: 0 | AB139: 0 | AC139: 0 | AD139: 0 | AE139: =IF(A139<>"",SUM($E$50:E139),0) -> 0 | AF139: =IF(A139<>"",SUM($D$50:D139),0) -> 0
A140: 8 | B140: 7 | D140: =IF(E140=0,0,MAX($D$50:D139))*IF(B140=1,IF($H$2=1,105%,102%),1) -> 0 | E140: 0 | F140: 0 | G140: 1.234849936 | H140: =IF(A140<>"",G140*(1+INDEX('Hozamsorok-eszközalapok'!$B$11:$F$55,A140,IF($D$20=1,1,$D$19-2))+$F$23)^(1/12),0) -> 1.238295312 | I140: 0 | J140: 0 | K140: 0 | L140: 0 | M140: 0 | N140: 0 | O140: 0 | P140: 0 | Q140: 0 | R140: 0 | S140: 0 | T140: 0 | U140: 0 | V140: 0 | W140: 0 | X140: 0 | Y140: 0 | Z140: 0 | AA140: 0 | AB140: 0 | AC140: 0 | AD140: 0 | AE140: =IF(A140<>"",SUM($E$50:E140),0) -> 0 | AF140: =IF(A140<>"",SUM($D$50:D140),0) -> 0
A141: 8 | B141: 8 | D141: =IF(E141=0,0,MAX($D$50:D140))*IF(B141=1,IF($H$2=1,105%,102%),1) -> 0 | E141: 0 | F141: 0 | G141: 1.238295312 | H141: =IF(A141<>"",G141*(1+INDEX('Hozamsorok-eszközalapok'!$B$11:$F$55,A141,IF($D$20=1,1,$D$19-2))+$F$23)^(1/12),0) -> 1.2417503 | I141: 0 | J141: 0 | K141: 0 | L141: 0 | M141: 0 | N141: 0 | O141: 0 | P141: 0 | Q141: 0 | R141: 0 | S141: 0 | T141: 0 | U141: 0 | V141: 0 | W141: 0 | X141: 0 | Y141: 0 | Z141: 0 | AA141: 0 | AB141: 0 | AC141: 0 | AD141: 0 | AE141: =IF(A141<>"",SUM($E$50:E141),0) -> 0 | AF141: =IF(A141<>"",SUM($D$50:D141),0) -> 0
A142: 8 | B142: 9 | D142: =IF(E142=0,0,MAX($D$50:D141))*IF(B142=1,IF($H$2=1,105%,102%),1) -> 0 | E142: 0 | F142: 0 | G142: 1.2417503 | H142: =IF(A142<>"",G142*(1+INDEX('Hozamsorok-eszközalapok'!$B$11:$F$55,A142,IF($D$20=1,1,$D$19-2))+$F$23)^(1/12),0) -> 1.245214928 | I142: 0 | J142: 0 | K142: 0 | L142: 0 | M142: 0 | N142: 0 | O142: 0 | P142: 0 | Q142: 0 | R142: 0 | S142: 0 | T142: 0 | U142: 0 | V142: 0 | W142: 0 | X142: 0 | Y142: 0 | Z142: 0 | AA142: 0 | AB142: 0 | AC142: 0 | AD142: 0 | AE142: =IF(A142<>"",SUM($E$50:E142),0) -> 0 | AF142: =IF(A142<>"",SUM($D$50:D142),0) -> 0
A143: 8 | B143: 10 | D143: =IF(E143=0,0,MAX($D$50:D142))*IF(B143=1,IF($H$2=1,105%,102%),1) -> 0 | E143: 0 | F143: 0 | G143: 1.245214928 | H143: =IF(A143<>"",G143*(1+INDEX('Hozamsorok-eszközalapok'!$B$11:$F$55,A143,IF($D$20=1,1,$D$19-2))+$F$23)^(1/12),0) -> 1.248689222 | I143: 0 | J143: 0 | K143: 0 | L143: 0 | M143: 0 | N143: 0 | O143: 0 | P143: 0 | Q143: 0 | R143: 0 | S143: 0 | T143: 0 | U143: 0 | V143: 0 | W143: 0 | X143: 0 | Y143: 0 | Z143: 0 | AA143: 0 | AB143: 0 | AC143: 0 | AD143: 0 | AE143: =IF(A143<>"",SUM($E$50:E143),0) -> 0 | AF143: =IF(A143<>"",SUM($D$50:D143),0) -> 0
A144: 8 | B144: 11 | D144: =IF(E144=0,0,MAX($D$50:D143))*IF(B144=1,IF($H$2=1,105%,102%),1) -> 0 | E144: 0 | F144: 0 | G144: 1.248689222 | H144: =IF(A144<>"",G144*(1+INDEX('Hozamsorok-eszközalapok'!$B$11:$F$55,A144,IF($D$20=1,1,$D$19-2))+$F$23)^(1/12),0) -> 1.252173211 | I144: 0 | J144: 0 | K144: 0 | L144: 0 | M144: 0 | N144: 0 | O144: 0 | P144: 0 | Q144: 0 | R144: 0 | S144: 0 | T144: 0 | U144: 0 | V144: 0 | W144: 0 | X144: 0 | Y144: 0 | Z144: 0 | AA144: 0 | AB144: 0 | AC144: 0 | AD144: 0 | AE144: =IF(A144<>"",SUM($E$50:E144),0) -> 0 | AF144: =IF(A144<>"",SUM($D$50:D144),0) -> 0
A145: 8 | B145: 12 | D145: =IF(E145=0,0,MAX($D$50:D144))*IF(B145=1,IF($H$2=1,105%,102%),1) -> 0 | E145: 0 | F145: 0 | G145: 1.252173211 | H145: =IF(A145<>"",G145*(1+INDEX('Hozamsorok-eszközalapok'!$B$11:$F$55,A145,IF($D$20=1,1,$D$19-2))+$F$23)^(1/12),0) -> 1.25566692 | I145: 0 | J145: 0 | K145: 0 | L145: 0 | M145: 0 | N145: 0 | O145: 0 | P145: 0 | Q145: 0 | R145: 0 | S145: 0 | T145: 0 | U145: 0 | V145: 0 | W145: 0 | X145: 0 | Y145: 0 | Z145: 0 | AA145: 0 | AB145: 0 | AC145: 0 | AD145: 0 | AE145: =IF(A145<>"",SUM($E$50:E145),0) -> 0 | AF145: =IF(A145<>"",SUM($D$50:D145),0) -> 0
A146: 9 | B146: 1 | D146: =IF(E146=0,0,MAX($D$50:D145))*IF(B146=1,IF($H$2=1,105%,102%),1) -> 0 | E146: 0 | F146: 0 | G146: 1.25566692 | H146: =IF(A146<>"",G146*(1+INDEX('Hozamsorok-eszközalapok'!$B$11:$F$55,A146,IF($D$20=1,1,$D$19-2))+$F$23)^(1/12),0) -> 1.259271812 | I146: 0 | J146: 0 | K146: 0 | L146: 0 | M146: 0 | N146: 0 | O146: 0 | P146: 0 | Q146: 0 | R146: 0 | S146: 0 | T146: 0 | U146: 0 | V146: 0 | W146: 0 | X146: 0 | Y146: 0 | Z146: 0 | AA146: 0 | AB146: 0 | AC146: 0 | AD146: 0 | AE146: =IF(A146<>"",SUM($E$50:E146),0) -> 0 | AF146: =IF(A146<>"",SUM($D$50:D146),0) -> 0
A147: 9 | B147: 2 | D147: =IF(E147=0,0,MAX($D$50:D146))*IF(B147=1,IF($H$2=1,105%,102%),1) -> 0 | E147: 0 | F147: 0 | G147: 1.259271812 | H147: =IF(A147<>"",G147*(1+INDEX('Hozamsorok-eszközalapok'!$B$11:$F$55,A147,IF($D$20=1,1,$D$19-2))+$F$23)^(1/12),0) -> 1.262887054 | I147: 0 | J147: 0 | K147: 0 | L147: 0 | M147: 0 | N147: 0 | O147: 0 | P147: 0 | Q147: 0 | R147: 0 | S147: 0 | T147: 0 | U147: 0 | V147: 0 | W147: 0 | X147: 0 | Y147: 0 | Z147: 0 | AA147: 0 | AB147: 0 | AC147: 0 | AD147: 0 | AE147: =IF(A147<>"",SUM($E$50:E147),0) -> 0 | AF147: =IF(A147<>"",SUM($D$50:D147),0) -> 0
A148: 9 | B148: 3 | D148: =IF(E148=0,0,MAX($D$50:D147))*IF(B148=1,IF($H$2=1,105%,102%),1) -> 0 | E148: 0 | F148: 0 | G148: 1.262887054 | H148: =IF(A148<>"",G148*(1+INDEX('Hozamsorok-eszközalapok'!$B$11:$F$55,A148,IF($D$20=1,1,$D$19-2))+$F$23)^(1/12),0) -> 1.266512675 | I148: 0 | J148: 0 | K148: 0 | L148: 0 | M148: 0 | N148: 0 | O148: 0 | P148: 0 | Q148: 0 | R148: 0 | S148: 0 | T148: 0 | U148: 0 | V148: 0 | W148: 0 | X148: 0 | Y148: 0 | Z148: 0 | AA148: 0 | AB148: 0 | AC148: 0 | AD148: 0 | AE148: =IF(A148<>"",SUM($E$50:E148),0) -> 0 | AF148: =IF(A148<>"",SUM($D$50:D148),0) -> 0
A149: 9 | B149: 4 | D149: =IF(E149=0,0,MAX($D$50:D148))*IF(B149=1,IF($H$2=1,105%,102%),1) -> 0 | E149: 0 | F149: 0 | G149: 1.266512675 | H149: =IF(A149<>"",G149*(1+INDEX('Hozamsorok-eszközalapok'!$B$11:$F$55,A149,IF($D$20=1,1,$D$19-2))+$F$23)^(1/12),0) -> 1.270148705 | I149: 0 | J149: 0 | K149: 0 | L149: 0 | M149: 0 | N149: 0 | O149: 0 | P149: 0 | Q149: 0 | R149: 0 | S149: 0 | T149: 0 | U149: 0 | V149: 0 | W149: 0 | X149: 0 | Y149: 0 | Z149: 0 | AA149: 0 | AB149: 0 | AC149: 0 | AD149: 0 | AE149: =IF(A149<>"",SUM($E$50:E149),0) -> 0 | AF149: =IF(A149<>"",SUM($D$50:D149),0) -> 0
A150: 9 | B150: 5 | D150: =IF(E150=0,0,MAX($D$50:D149))*IF(B150=1,IF($H$2=1,105%,102%),1) -> 0 | E150: 0 | F150: 0 | G150: 1.270148705 | H150: =IF(A150<>"",G150*(1+INDEX('Hozamsorok-eszközalapok'!$B$11:$F$55,A150,IF($D$20=1,1,$D$19-2))+$F$23)^(1/12),0) -> 1.273795173 | I150: 0 | J150: 0 | K150: 0 | L150: 0 | M150: 0 | N150: 0 | O150: 0 | P150: 0 | Q150: 0 | R150: 0 | S150: 0 | T150: 0 | U150: 0 | V150: 0 | W150: 0 | X150: 0 | Y150: 0 | Z150: 0 | AA150: 0 | AB150: 0 | AC150: 0 | AD150: 0 | AE150: =IF(A150<>"",SUM($E$50:E150),0) -> 0 | AF150: =IF(A150<>"",SUM($D$50:D150),0) -> 0
A151: 9 | B151: 6 | D151: =IF(E151=0,0,MAX($D$50:D150))*IF(B151=1,IF($H$2=1,105%,102%),1) -> 0 | E151: 0 | F151: 0 | G151: 1.273795173 | H151: =IF(A151<>"",G151*(1+INDEX('Hozamsorok-eszközalapok'!$B$11:$F$55,A151,IF($D$20=1,1,$D$19-2))+$F$23)^(1/12),0) -> 1.27745211 | I151: 0 | J151: 0 | K151: 0 | L151: 0 | M151: 0 | N151: 0 | O151: 0 | P151: 0 | Q151: 0 | R151: 0 | S151: 0 | T151: 0 | U151: 0 | V151: 0 | W151: 0 | X151: 0 | Y151: 0 | Z151: 0 | AA151: 0 | AB151: 0 | AC151: 0 | AD151: 0 | AE151: =IF(A151<>"",SUM($E$50:E151),0) -> 0 | AF151: =IF(A151<>"",SUM($D$50:D151),0) -> 0
A152: 9 | B152: 7 | D152: =IF(E152=0,0,MAX($D$50:D151))*IF(B152=1,IF($H$2=1,105%,102%),1) -> 0 | E152: 0 | F152: 0 | G152: 1.27745211 | H152: =IF(A152<>"",G152*(1+INDEX('Hozamsorok-eszközalapok'!$B$11:$F$55,A152,IF($D$20=1,1,$D$19-2))+$F$23)^(1/12),0) -> 1.281119546 | I152: 0 | J152: 0 | K152: 0 | L152: 0 | M152: 0 | N152: 0 | O152: 0 | P152: 0 | Q152: 0 | R152: 0 | S152: 0 | T152: 0 | U152: 0 | V152: 0 | W152: 0 | X152: 0 | Y152: 0 | Z152: 0 | AA152: 0 | AB152: 0 | AC152: 0 | AD152: 0 | AE152: =IF(A152<>"",SUM($E$50:E152),0) -> 0 | AF152: =IF(A152<>"",SUM($D$50:D152),0) -> 0
A153: 9 | B153: 8 | D153: =IF(E153=0,0,MAX($D$50:D152))*IF(B153=1,IF($H$2=1,105%,102%),1) -> 0 | E153: 0 | F153: 0 | G153: 1.281119546 | H153: =IF(A153<>"",G153*(1+INDEX('Hozamsorok-eszközalapok'!$B$11:$F$55,A153,IF($D$20=1,1,$D$19-2))+$F$23)^(1/12),0) -> 1.28479751 | I153: 0 | J153: 0 | K153: 0 | L153: 0 | M153: 0 | N153: 0 | O153: 0 | P153: 0 | Q153: 0 | R153: 0 | S153: 0 | T153: 0 | U153: 0 | V153: 0 | W153: 0 | X153: 0 | Y153: 0 | Z153: 0 | AA153: 0 | AB153: 0 | AC153: 0 | AD153: 0 | AE153: =IF(A153<>"",SUM($E$50:E153),0) -> 0 | AF153: =IF(A153<>"",SUM($D$50:D153),0) -> 0
A154: 9 | B154: 9 | D154: =IF(E154=0,0,MAX($D$50:D153))*IF(B154=1,IF($H$2=1,105%,102%),1) -> 0 | E154: 0 | F154: 0 | G154: 1.28479751 | H154: =IF(A154<>"",G154*(1+INDEX('Hozamsorok-eszközalapok'!$B$11:$F$55,A154,IF($D$20=1,1,$D$19-2))+$F$23)^(1/12),0) -> 1.288486034 | I154: 0 | J154: 0 | K154: 0 | L154: 0 | M154: 0 | N154: 0 | O154: 0 | P154: 0 | Q154: 0 | R154: 0 | S154: 0 | T154: 0 | U154: 0 | V154: 0 | W154: 0 | X154: 0 | Y154: 0 | Z154: 0 | AA154: 0 | AB154: 0 | AC154: 0 | AD154: 0 | AE154: =IF(A154<>"",SUM($E$50:E154),0) -> 0 | AF154: =IF(A154<>"",SUM($D$50:D154),0) -> 0
A155: 9 | B155: 10 | D155: =IF(E155=0,0,MAX($D$50:D154))*IF(B155=1,IF($H$2=1,105%,102%),1) -> 0 | E155: 0 | F155: 0 | G155: 1.288486034 | H155: =IF(A155<>"",G155*(1+INDEX('Hozamsorok-eszközalapok'!$B$11:$F$55,A155,IF($D$20=1,1,$D$19-2))+$F$23)^(1/12),0) -> 1.292185146 | I155: 0 | J155: 0 | K155: 0 | L155: 0 | M155: 0 | N155: 0 | O155: 0 | P155: 0 | Q155: 0 | R155: 0 | S155: 0 | T155: 0 | U155: 0 | V155: 0 | W155: 0 | X155: 0 | Y155: 0 | Z155: 0 | AA155: 0 | AB155: 0 | AC155: 0 | AD155: 0 | AE155: =IF(A155<>"",SUM($E$50:E155),0) -> 0 | AF155: =IF(A155<>"",SUM($D$50:D155),0) -> 0
A156: 9 | B156: 11 | D156: =IF(E156=0,0,MAX($D$50:D155))*IF(B156=1,IF($H$2=1,105%,102%),1) -> 0 | E156: 0 | F156: 0 | G156: 1.292185146 | H156: =IF(A156<>"",G156*(1+INDEX('Hozamsorok-eszközalapok'!$B$11:$F$55,A156,IF($D$20=1,1,$D$19-2))+$F$23)^(1/12),0) -> 1.295894879 | I156: 0 | J156: 0 | K156: 0 | L156: 0 | M156: 0 | N156: 0 | O156: 0 | P156: 0 | Q156: 0 | R156: 0 | S156: 0 | T156: 0 | U156: 0 | V156: 0 | W156: 0 | X156: 0 | Y156: 0 | Z156: 0 | AA156: 0 | AB156: 0 | AC156: 0 | AD156: 0 | AE156: =IF(A156<>"",SUM($E$50:E156),0) -> 0 | AF156: =IF(A156<>"",SUM($D$50:D156),0) -> 0
A157: 9 | B157: 12 | D157: =IF(E157=0,0,MAX($D$50:D156))*IF(B157=1,IF($H$2=1,105%,102%),1) -> 0 | E157: 0 | F157: 0 | G157: 1.295894879 | H157: =IF(A157<>"",G157*(1+INDEX('Hozamsorok-eszközalapok'!$B$11:$F$55,A157,IF($D$20=1,1,$D$19-2))+$F$23)^(1/12),0) -> 1.299615262 | I157: 0 | J157: 0 | K157: 0 | L157: 0 | M157: 0 | N157: 0 | O157: 0 | P157: 0 | Q157: 0 | R157: 0 | S157: 0 | T157: 0 | U157: 0 | V157: 0 | W157: 0 | X157: 0 | Y157: 0 | Z157: 0 | AA157: 0 | AB157: 0 | AC157: 0 | AD157: 0 | AE157: =IF(A157<>"",SUM($E$50:E157),0) -> 0 | AF157: =IF(A157<>"",SUM($D$50:D157),0) -> 0
A158: 10 | B158: 1 | D158: =IF(E158=0,0,MAX($D$50:D157))*IF(B158=1,IF($H$2=1,105%,102%),1) -> 0 | E158: 0 | F158: 0 | G158: 1.299615262 | H158: =IF(A158<>"",G158*(1+INDEX('Hozamsorok-eszközalapok'!$B$11:$F$55,A158,IF($D$20=1,1,$D$19-2))+$F$23)^(1/12),0) -> 1.303451219 | I158: 0 | J158: 0 | K158: 0 | L158: 0 | M158: 0 | N158: 0 | O158: 0 | P158: 0 | Q158: 0 | R158: 0 | S158: 0 | T158: 0 | U158: 0 | V158: 0 | W158: 0 | X158: 0 | Y158: 0 | Z158: 0 | AA158: 0 | AB158: 0 | AC158: 0 | AD158: 0 | AE158: =IF(A158<>"",SUM($E$50:E158),0) -> 0 | AF158: =IF(A158<>"",SUM($D$50:D158),0) -> 0
A159: 10 | B159: 2 | D159: =IF(E159=0,0,MAX($D$50:D158))*IF(B159=1,IF($H$2=1,105%,102%),1) -> 0 | E159: 0 | F159: 0 | G159: 1.303451219 | H159: =IF(A159<>"",G159*(1+INDEX('Hozamsorok-eszközalapok'!$B$11:$F$55,A159,IF($D$20=1,1,$D$19-2))+$F$23)^(1/12),0) -> 1.307298498 | I159: 0 | J159: 0 | K159: 0 | L159: 0 | M159: 0 | N159: 0 | O159: 0 | P159: 0 | Q159: 0 | R159: 0 | S159: 0 | T159: 0 | U159: 0 | V159: 0 | W159: 0 | X159: 0 | Y159: 0 | Z159: 0 | AA159: 0 | AB159: 0 | AC159: 0 | AD159: 0 | AE159: =IF(A159<>"",SUM($E$50:E159),0) -> 0 | AF159: =IF(A159<>"",SUM($D$50:D159),0) -> 0
A160: 10 | B160: 3 | D160: =IF(E160=0,0,MAX($D$50:D159))*IF(B160=1,IF($H$2=1,105%,102%),1) -> 0 | E160: 0 | F160: 0 | G160: 1.307298498 | H160: =IF(A160<>"",G160*(1+INDEX('Hozamsorok-eszközalapok'!$B$11:$F$55,A160,IF($D$20=1,1,$D$19-2))+$F$23)^(1/12),0) -> 1.311157132 | I160: 0 | J160: 0 | K160: 0 | L160: 0 | M160: 0 | N160: 0 | O160: 0 | P160: 0 | Q160: 0 | R160: 0 | S160: 0 | T160: 0 | U160: 0 | V160: 0 | W160: 0 | X160: 0 | Y160: 0 | Z160: 0 | AA160: 0 | AB160: 0 | AC160: 0 | AD160: 0 | AE160: =IF(A160<>"",SUM($E$50:E160),0) -> 0 | AF160: =IF(A160<>"",SUM($D$50:D160),0) -> 0
A161: 10 | B161: 4 | D161: =IF(E161=0,0,MAX($D$50:D160))*IF(B161=1,IF($H$2=1,105%,102%),1) -> 0 | E161: 0 | F161: 0 | G161: 1.311157132 | H161: =IF(A161<>"",G161*(1+INDEX('Hozamsorok-eszközalapok'!$B$11:$F$55,A161,IF($D$20=1,1,$D$19-2))+$F$23)^(1/12),0) -> 1.315027156 | I161: 0 | J161: 0 | K161: 0 | L161: 0 | M161: 0 | N161: 0 | O161: 0 | P161: 0 | Q161: 0 | R161: 0 | S161: 0 | T161: 0 | U161: 0 | V161: 0 | W161: 0 | X161: 0 | Y161: 0 | Z161: 0 | AA161: 0 | AB161: 0 | AC161: 0 | AD161: 0 | AE161: =IF(A161<>"",SUM($E$50:E161),0) -> 0 | AF161: =IF(A161<>"",SUM($D$50:D161),0) -> 0
A162: 10 | B162: 5 | D162: =IF(E162=0,0,MAX($D$50:D161))*IF(B162=1,IF($H$2=1,105%,102%),1) -> 0 | E162: 0 | F162: 0 | G162: 1.315027156 | H162: =IF(A162<>"",G162*(1+INDEX('Hozamsorok-eszközalapok'!$B$11:$F$55,A162,IF($D$20=1,1,$D$19-2))+$F$23)^(1/12),0) -> 1.318908603 | I162: 0 | J162: 0 | K162: 0 | L162: 0 | M162: 0 | N162: 0 | O162: 0 | P162: 0 | Q162: 0 | R162: 0 | S162: 0 | T162: 0 | U162: 0 | V162: 0 | W162: 0 | X162: 0 | Y162: 0 | Z162: 0 | AA162: 0 | AB162: 0 | AC162: 0 | AD162: 0 | AE162: =IF(A162<>"",SUM($E$50:E162),0) -> 0 | AF162: =IF(A162<>"",SUM($D$50:D162),0) -> 0
A163: 10 | B163: 6 | D163: =IF(E163=0,0,MAX($D$50:D162))*IF(B163=1,IF($H$2=1,105%,102%),1) -> 0 | E163: 0 | F163: 0 | G163: 1.318908603 | H163: =IF(A163<>"",G163*(1+INDEX('Hozamsorok-eszközalapok'!$B$11:$F$55,A163,IF($D$20=1,1,$D$19-2))+$F$23)^(1/12),0) -> 1.322801506 | I163: 0 | J163: 0 | K163: 0 | L163: 0 | M163: 0 | N163: 0 | O163: 0 | P163: 0 | Q163: 0 | R163: 0 | S163: 0 | T163: 0 | U163: 0 | V163: 0 | W163: 0 | X163: 0 | Y163: 0 | Z163: 0 | AA163: 0 | AB163: 0 | AC163: 0 | AD163: 0 | AE163: =IF(A163<>"",SUM($E$50:E163),0) -> 0 | AF163: =IF(A163<>"",SUM($D$50:D163),0) -> 0
A164: 10 | B164: 7 | D164: =IF(E164=0,0,MAX($D$50:D163))*IF(B164=1,IF($H$2=1,105%,102%),1) -> 0 | E164: 0 | F164: 0 | G164: 1.322801506 | H164: =IF(A164<>"",G164*(1+INDEX('Hozamsorok-eszközalapok'!$B$11:$F$55,A164,IF($D$20=1,1,$D$19-2))+$F$23)^(1/12),0) -> 1.326705899 | I164: 0 | J164: 0 | K164: 0 | L164: 0 | M164: 0 | N164: 0 | O164: 0 | P164: 0 | Q164: 0 | R164: 0 | S164: 0 | T164: 0 | U164: 0 | V164: 0 | W164: 0 | X164: 0 | Y164: 0 | Z164: 0 | AA164: 0 | AB164: 0 | AC164: 0 | AD164: 0 | AE164: =IF(A164<>"",SUM($E$50:E164),0) -> 0 | AF164: =IF(A164<>"",SUM($D$50:D164),0) -> 0
A165: 10 | B165: 8 | D165: =IF(E165=0,0,MAX($D$50:D164))*IF(B165=1,IF($H$2=1,105%,102%),1) -> 0 | E165: 0 | F165: 0 | G165: 1.326705899 | H165: =IF(A165<>"",G165*(1+INDEX('Hozamsorok-eszközalapok'!$B$11:$F$55,A165,IF($D$20=1,1,$D$19-2))+$F$23)^(1/12),0) -> 1.330621817 | I165: 0 | J165: 0 | K165: 0 | L165: 0 | M165: 0 | N165: 0 | O165: 0 | P165: 0 | Q165: 0 | R165: 0 | S165: 0 | T165: 0 | U165: 0 | V165: 0 | W165: 0 | X165: 0 | Y165: 0 | Z165: 0 | AA165: 0 | AB165: 0 | AC165: 0 | AD165: 0 | AE165: =IF(A165<>"",SUM($E$50:E165),0) -> 0 | AF165: =IF(A165<>"",SUM($D$50:D165),0) -> 0
A166: 10 | B166: 9 | D166: =IF(E166=0,0,MAX($D$50:D165))*IF(B166=1,IF($H$2=1,105%,102%),1) -> 0 | E166: 0 | F166: 0 | G166: 1.330621817 | H166: =IF(A166<>"",G166*(1+INDEX('Hozamsorok-eszközalapok'!$B$11:$F$55,A166,IF($D$20=1,1,$D$19-2))+$F$23)^(1/12),0) -> 1.334549293 | I166: 0 | J166: 0 | K166: 0 | L166: 0 | M166: 0 | N166: 0 | O166: 0 | P166: 0 | Q166: 0 | R166: 0 | S166: 0 | T166: 0 | U166: 0 | V166: 0 | W166: 0 | X166: 0 | Y166: 0 | Z166: 0 | AA166: 0 | AB166: 0 | AC166: 0 | AD166: 0 | AE166: =IF(A166<>"",SUM($E$50:E166),0) -> 0 | AF166: =IF(A166<>"",SUM($D$50:D166),0) -> 0
A167: 10 | B167: 10 | D167: =IF(E167=0,0,MAX($D$50:D166))*IF(B167=1,IF($H$2=1,105%,102%),1) -> 0 | E167: 0 | F167: 0 | G167: 1.334549293 | H167: =IF(A167<>"",G167*(1+INDEX('Hozamsorok-eszközalapok'!$B$11:$F$55,A167,IF($D$20=1,1,$D$19-2))+$F$23)^(1/12),0) -> 1.338488361 | I167: 0 | J167: 0 | K167: 0 | L167: 0 | M167: 0 | N167: 0 | O167: 0 | P167: 0 | Q167: 0 | R167: 0 | S167: 0 | T167: 0 | U167: 0 | V167: 0 | W167: 0 | X167: 0 | Y167: 0 | Z167: 0 | AA167: 0 | AB167: 0 | AC167: 0 | AD167: 0 | AE167: =IF(A167<>"",SUM($E$50:E167),0) -> 0 | AF167: =IF(A167<>"",SUM($D$50:D167),0) -> 0
A168: 10 | B168: 11 | D168: =IF(E168=0,0,MAX($D$50:D167))*IF(B168=1,IF($H$2=1,105%,102%),1) -> 0 | E168: 0 | F168: 0 | G168: 1.338488361 | H168: =IF(A168<>"",G168*(1+INDEX('Hozamsorok-eszközalapok'!$B$11:$F$55,A168,IF($D$20=1,1,$D$19-2))+$F$23)^(1/12),0) -> 1.342439056 | I168: 0 | J168: 0 | K168: 0 | L168: 0 | M168: 0 | N168: 0 | O168: 0 | P168: 0 | Q168: 0 | R168: 0 | S168: 0 | T168: 0 | U168: 0 | V168: 0 | W168: 0 | X168: 0 | Y168: 0 | Z168: 0 | AA168: 0 | AB168: 0 | AC168: 0 | AD168: 0 | AE168: =IF(A168<>"",SUM($E$50:E168),0) -> 0 | AF168: =IF(A168<>"",SUM($D$50:D168),0) -> 0
A169: 10 | B169: 12 | D169: =IF(E169=0,0,MAX($D$50:D168))*IF(B169=1,IF($H$2=1,105%,102%),1) -> 0 | E169: 0 | F169: 0 | G169: 1.342439056 | H169: =IF(A169<>"",G169*(1+INDEX('Hozamsorok-eszközalapok'!$B$11:$F$55,A169,IF($D$20=1,1,$D$19-2))+$F$23)^(1/12),0) -> 1.346401412 | I169: 0 | J169: 0 | K169: 0 | L169: 0 | M169: 0 | N169: 0 | O169: 0 | P169: 0 | Q169: 0 | R169: 0 | S169: 0 | T169: 0 | U169: 0 | V169: 0 | W169: 0 | X169: 0 | Y169: 0 | Z169: 0 | AA169: 0 | AB169: 0 | AC169: 0 | AD169: 0 | AE169: =IF(A169<>"",SUM($E$50:E169),0) -> 0 | AF169: =IF(A169<>"",SUM($D$50:D169),0) -> 0
A170: 11 | B170: =IF(A170="","",IF(B169=12,1,B169+1)) -> 1 | D170: =IF(E170=0,0,MAX($D$50:D169))*IF(B170=1,IF($H$2=1,105%,102%),1) -> 0 | E170: 0 | F170: 0 | G170: 1.346401412 | H170: =IF(A170<>"",G170*(1+INDEX('Hozamsorok-eszközalapok'!$B$11:$F$55,A170,IF($D$20=1,1,$D$19-2))+$F$23)^(1/12),0) -> 1.350375463 | I170: 0 | J170: 0 | K170: 0 | L170: 0 | M170: 0 | N170: 0 | O170: 0 | P170: 0 | Q170: 0 | R170: 0 | S170: 0 | T170: 0 | U170: 0 | V170: 0 | W170: 0 | X170: 0 | Y170: 0 | Z170: 0 | AA170: 0 | AB170: 0 | AC170: 0 | AD170: 0 | AE170: =IF(A170<>"",SUM($E$50:E170),0) -> 0 | AF170: =IF(A170<>"",SUM($D$50:D170),0) -> 0
A171: 11 | B171: 2 | D171: =IF(E171=0,0,MAX($D$50:D170))*IF(B171=1,IF($H$2=1,105%,102%),1) -> 0 | E171: 0 | F171: 0 | G171: 1.350375463 | H171: =IF(A171<>"",G171*(1+INDEX('Hozamsorok-eszközalapok'!$B$11:$F$55,A171,IF($D$20=1,1,$D$19-2))+$F$23)^(1/12),0) -> 1.354361244 | I171: 0 | J171: 0 | K171: 0 | L171: 0 | M171: 0 | N171: 0 | O171: 0 | P171: 0 | Q171: 0 | R171: 0 | S171: 0 | T171: 0 | U171: 0 | V171: 0 | W171: 0 | X171: 0 | Y171: 0 | Z171: 0 | AA171: 0 | AB171: 0 | AC171: 0 | AD171: 0 | AE171: =IF(A171<>"",SUM($E$50:E171),0) -> 0 | AF171: =IF(A171<>"",SUM($D$50:D171),0) -> 0
A172: 11 | B172: 3 | D172: =IF(E172=0,0,MAX($D$50:D171))*IF(B172=1,IF($H$2=1,105%,102%),1) -> 0 | E172: 0 | F172: 0 | G172: 1.354361244 | H172: =IF(A172<>"",G172*(1+INDEX('Hozamsorok-eszközalapok'!$B$11:$F$55,A172,IF($D$20=1,1,$D$19-2))+$F$23)^(1/12),0) -> 1.358358789 | I172: 0 | J172: 0 | K172: 0 | L172: 0 | M172: 0 | N172: 0 | O172: 0 | P172: 0 | Q172: 0 | R172: 0 | S172: 0 | T172: 0 | U172: 0 | V172: 0 | W172: 0 | X172: 0 | Y172: 0 | Z172: 0 | AA172: 0 | AB172: 0 | AC172: 0 | AD172: 0 | AE172: =IF(A172<>"",SUM($E$50:E172),0) -> 0 | AF172: =IF(A172<>"",SUM($D$50:D172),0) -> 0
A173: 11 | B173: 4 | D173: =IF(E173=0,0,MAX($D$50:D172))*IF(B173=1,IF($H$2=1,105%,102%),1) -> 0 | E173: 0 | F173: 0 | G173: 1.358358789 | H173: =IF(A173<>"",G173*(1+INDEX('Hozamsorok-eszközalapok'!$B$11:$F$55,A173,IF($D$20=1,1,$D$19-2))+$F$23)^(1/12),0) -> 1.362368134 | I173: 0 | J173: 0 | K173: 0 | L173: 0 | M173: 0 | N173: 0 | O173: 0 | P173: 0 | Q173: 0 | R173: 0 | S173: 0 | T173: 0 | U173: 0 | V173: 0 | W173: 0 | X173: 0 | Y173: 0 | Z173: 0 | AA173: 0 | AB173: 0 | AC173: 0 | AD173: 0 | AE173: =IF(A173<>"",SUM($E$50:E173),0) -> 0 | AF173: =IF(A173<>"",SUM($D$50:D173),0) -> 0
A174: 11 | B174: 5 | D174: =IF(E174=0,0,MAX($D$50:D173))*IF(B174=1,IF($H$2=1,105%,102%),1) -> 0 | E174: 0 | F174: 0 | G174: 1.362368134 | H174: =IF(A174<>"",G174*(1+INDEX('Hozamsorok-eszközalapok'!$B$11:$F$55,A174,IF($D$20=1,1,$D$19-2))+$F$23)^(1/12),0) -> 1.366389312 | I174: 0 | J174: 0 | K174: 0 | L174: 0 | M174: 0 | N174: 0 | O174: 0 | P174: 0 | Q174: 0 | R174: 0 | S174: 0 | T174: 0 | U174: 0 | V174: 0 | W174: 0 | X174: 0 | Y174: 0 | Z174: 0 | AA174: 0 | AB174: 0 | AC174: 0 | AD174: 0 | AE174: =IF(A174<>"",SUM($E$50:E174),0) -> 0 | AF174: =IF(A174<>"",SUM($D$50:D174),0) -> 0
A175: 11 | B175: 6 | D175: =IF(E175=0,0,MAX($D$50:D174))*IF(B175=1,IF($H$2=1,105%,102%),1) -> 0 | E175: 0 | F175: 0 | G175: 1.366389312 | H175: =IF(A175<>"",G175*(1+INDEX('Hozamsorok-eszközalapok'!$B$11:$F$55,A175,IF($D$20=1,1,$D$19-2))+$F$23)^(1/12),0) -> 1.37042236 | I175: 0 | J175: 0 | K175: 0 | L175: 0 | M175: 0 | N175: 0 | O175: 0 | P175: 0 | Q175: 0 | R175: 0 | S175: 0 | T175: 0 | U175: 0 | V175: 0 | W175: 0 | X175: 0 | Y175: 0 | Z175: 0 | AA175: 0 | AB175: 0 | AC175: 0 | AD175: 0 | AE175: =IF(A175<>"",SUM($E$50:E175),0) -> 0 | AF175: =IF(A175<>"",SUM($D$50:D175),0) -> 0
A176: 11 | B176: 7 | D176: =IF(E176=0,0,MAX($D$50:D175))*IF(B176=1,IF($H$2=1,105%,102%),1) -> 0 | E176: 0 | F176: 0 | G176: 1.37042236 | H176: =IF(A176<>"",G176*(1+INDEX('Hozamsorok-eszközalapok'!$B$11:$F$55,A176,IF($D$20=1,1,$D$19-2))+$F$23)^(1/12),0) -> 1.374467311 | I176: 0 | J176: 0 | K176: 0 | L176: 0 | M176: 0 | N176: 0 | O176: 0 | P176: 0 | Q176: 0 | R176: 0 | S176: 0 | T176: 0 | U176: 0 | V176: 0 | W176: 0 | X176: 0 | Y176: 0 | Z176: 0 | AA176: 0 | AB176: 0 | AC176: 0 | AD176: 0 | AE176: =IF(A176<>"",SUM($E$50:E176),0) -> 0 | AF176: =IF(A176<>"",SUM($D$50:D176),0) -> 0
A177: 11 | B177: 8 | D177: =IF(E177=0,0,MAX($D$50:D176))*IF(B177=1,IF($H$2=1,105%,102%),1) -> 0 | E177: 0 | F177: 0 | G177: 1.374467311 | H177: =IF(A177<>"",G177*(1+INDEX('Hozamsorok-eszközalapok'!$B$11:$F$55,A177,IF($D$20=1,1,$D$19-2))+$F$23)^(1/12),0) -> 1.378524202 | I177: 0 | J177: 0 | K177: 0 | L177: 0 | M177: 0 | N177: 0 | O177: 0 | P177: 0 | Q177: 0 | R177: 0 | S177: 0 | T177: 0 | U177: 0 | V177: 0 | W177: 0 | X177: 0 | Y177: 0 | Z177: 0 | AA177: 0 | AB177: 0 | AC177: 0 | AD177: 0 | AE177: =IF(A177<>"",SUM($E$50:E177),0) -> 0 | AF177: =IF(A177<>"",SUM($D$50:D177),0) -> 0
A178: 11 | B178: 9 | D178: =IF(E178=0,0,MAX($D$50:D177))*IF(B178=1,IF($H$2=1,105%,102%),1) -> 0 | E178: 0 | F178: =E178*$D$13 -> 0 | G178: 1.378524202 | H178: =IF(A178<>"",G178*(1+INDEX('Hozamsorok-eszközalapok'!$B$11:$F$55,A178,IF($D$20=1,1,$D$19-2))+$F$23)^(1/12),0) -> 1.382593067 | I178: 0 | J178: 0 | K178: 0 | L178: 0 | M178: =K178*(1-$G$8) -> 0 | N178: =L178*(1-$G$8) -> 0 | O178: 0 | P178: 0 | Q178: 0 | R178: 0 | S178: 0 | T178: 0 | U178: 0 | V178: 0 | W178: 0 | X178: 0 | Y178: 0 | Z178: 0 | AA178: 0 | AB178: 0 | AC178: =H178*(T178+U178) -> 0 | AD178: 0 | AE178: =IF(A178<>"",SUM($E$50:E178),0) -> 0 | AF178: =IF(A178<>"",SUM($D$50:D178),0) -> 0
A179: =IF(B178<12,A178,IF(A178<$D$9,A178+1,"")) -> 11 | B179: 10 | D179: =IF(E179=0,0,MAX($D$50:D178))*IF(B179=1,IF($H$2=1,105%,102%),1) -> 0 | E179: =IF(AND($D$8=1,SUM(A179:B179)=2),$D$12,IF(A179>$D$10,0,IF(OR(AND($D$8=2,B179=1),AND($D$8=4,OR(B179=1,B179=7)),AND($D$8=5,OR(B179=1,B179=4,B179=7,B179=10)),AND($D$8=3,B179>=1)),$D$12*(1+$D$25)^(A179-1),0))) -> 0 | F179: 0 | G179: 1.382593067 | H179: =IF(A179<>"",G179*(1+INDEX('Hozamsorok-eszközalapok'!$B$11:$F$55,A179,IF($D$20=1,1,$D$19-2))+$F$23)^(1/12),0) -> 1.386673942 | I179: =IF(E179<>"",IF(A179<=2,(E179-F179)/G179,0),0) -> 0 | J179: =IF(A179<>"",IF(A179>2,(E179-F179)/G179,0),0) -> 0 | K179: =IF(A179<>"",U178+I179,0) -> 0 | L179: =IF(A179<>"",T178+J179,0) -> 0 | M179: 0 | N179: 0 | O179: =IF($E$4=TRUE,IF($D$19=4,0,(M179+N179)*($G$10+$G$11)*G179),0) -> 0 | P179: =IF($D$8<>1,M179,IF(A179<>"",M179-O179/G179,0)) -> 0 | Q179: =IF(A179<>"",N179-X179/G179,0) -> 0 | R179: =IF(OR(AND($D$8=1,A179<=$D$9),AND($D$8<>1,A179<=$D$10)),$D$15*($G$13+G179*((P179+Q179)-P179*$G$14^(IF($D$8=1,$D$9,$D$10)*12-((A179-1)*12+B179-1))-Q179*$G$15)),0) -> 0 | S179: =IF($D$8<>1,P179,IF(A179<>"",P179-R179/G179,0)) -> 0 | T179: =IF(A179<>"",Q179-AA179/G179,0) -> 0 | U179: =IF(AND($D$8<>1,A179>$D$10),S179,S179*(1-$D$14)) -> 0 | V179: 0 | W179: 0 | X179: 0 | Y179: 0 | Z179: 0 | AA179: 0 | AB179: 0 | AC179: 0 | AD179: =MAX(0,IF(A179<>"",IF(AND($D$8<>1,A179<=2,(A179+B179)<>14),0,H179*(U179*$G$14^(IF(AND($D$8<>1,A179>$D$10),0,IF($D$8=1,$D$9,$D$10)*12-((A179-1)*12+B179)))+T179*$G$15)-AB179),0)) -> 0 | AE179: =IF(A179<>"",SUM($E$50:E179),0) -> 0 | AF179: =IF(A179<>"",SUM($D$50:D179),0) -> 0
A180: 11 | B180: =IF(A180="","",IF(B179=12,1,B179+1)) -> 11 | D180: =IF(E180=0,0,MAX($D$50:D179))*IF(B180=1,IF($H$2=1,105%,102%),1) -> 0 | E180: 0 | F180: 0 | G180: =IF(A180<>"",H179,0) -> 1.386673942 | H180: =IF(A180<>"",G180*(1+INDEX('Hozamsorok-eszközalapok'!$B$11:$F$55,A180,IF($D$20=1,1,$D$19-2))+$F$23)^(1/12),0) -> 1.390766862 | I180: 0 | J180: 0 | K180: 0 | L180: 0 | M180: 0 | N180: 0 | O180: 0 | P180: 0 | Q180: 0 | R180: 0 | S180: 0 | T180: 0 | U180: 0 | V180: =IF(AND(A180<>"",$D$8<>1),O180+AB179,0) -> 0 | W180: =N180*G180 -> 0 | X180: =MIN(V180,W180) -> 0 | Y180: =IF(AND(A180<>"",$D$8<>1),V180-X180+R180,0) -> 0 | Z180: =Q180*G180 -> 0 | AA180: =MIN(Y180,Z180) -> 0 | AB180: =IF(A180<>"",Y180-AA180,0) -> 0 | AC180: 0 | AD180: 0 | AE180: =IF(A180<>"",SUM($E$50:E180),0) -> 0 | AF180: =IF(A180<>"",SUM($D$50:D180),0) -> 0
A181: 11 | B181: =IF(A181="","",IF(B180=12,1,B180+1)) -> 12 | D181: =IF(E181=0,0,MAX($D$50:D180))*IF(B181=1,IF($H$2=1,105%,102%),1) -> 0 | E181: 0 | F181: 0 | G181: 1.390766862 | H181: =IF(A181<>"",G181*(1+INDEX('Hozamsorok-eszközalapok'!$B$11:$F$55,A181,IF($D$20=1,1,$D$19-2))+$F$23)^(1/12),0) -> 1.394871862 | I181: 0 | J181: 0 | K181: 0 | L181: 0 | M181: 0 | N181: 0 | O181: 0 | P181: 0 | Q181: 0 | R181: 0 | S181: 0 | T181: 0 | U181: 0 | V181: 0 | W181: 0 | X181: 0 | Y181: 0 | Z181: 0 | AA181: 0 | AB181: 0 | AC181: 0 | AD181: 0 | AE181: =IF(A181<>"",SUM($E$50:E181),0) -> 0 | AF181: =IF(A181<>"",SUM($D$50:D181),0) -> 0
A182: 12 | B182: 1 | D182: =IF(E182=0,0,MAX($D$50:D181))*IF(B182=1,IF($H$2=1,105%,102%),1) -> 0 | E182: 0 | F182: 0 | G182: 1.394871862 | H182: =IF(A182<>"",G182*(1+INDEX('Hozamsorok-eszközalapok'!$B$11:$F$55,A182,IF($D$20=1,1,$D$19-2))+$F$23)^(1/12),0) -> 1.398988979 | I182: 0 | J182: 0 | K182: 0 | L182: 0 | M182: 0 | N182: 0 | O182: 0 | P182: 0 | Q182: 0 | R182: 0 | S182: 0 | T182: 0 | U182: 0 | V182: 0 | W182: 0 | X182: 0 | Y182: 0 | Z182: 0 | AA182: 0 | AB182: 0 | AC182: 0 | AD182: 0 | AE182: =IF(A182<>"",SUM($E$50:E182),0) -> 0 | AF182: =IF(A182<>"",SUM($D$50:D182),0) -> 0
A183: 12 | B183: 2 | D183: =IF(E183=0,0,MAX($D$50:D182))*IF(B183=1,IF($H$2=1,105%,102%),1) -> 0 | E183: 0 | F183: 0 | G183: 1.398988979 | H183: =IF(A183<>"",G183*(1+INDEX('Hozamsorok-eszközalapok'!$B$11:$F$55,A183,IF($D$20=1,1,$D$19-2))+$F$23)^(1/12),0) -> 1.403118248 | I183: 0 | J183: 0 | K183: 0 | L183: 0 | M183: 0 | N183: 0 | O183: 0 | P183: 0 | Q183: 0 | R183: 0 | S183: 0 | T183: 0 | U183: 0 | V183: 0 | W183: 0 | X183: 0 | Y183: 0 | Z183: 0 | AA183: 0 | AB183: 0 | AC183: 0 | AD183: 0 | AE183: =IF(A183<>"",SUM($E$50:E183),0) -> 0 | AF183: =IF(A183<>"",SUM($D$50:D183),0) -> 0
A184: 12 | B184: 3 | D184: =IF(E184=0,0,MAX($D$50:D183))*IF(B184=1,IF($H$2=1,105%,102%),1) -> 0 | E184: 0 | F184: 0 | G184: 1.403118248 | H184: =IF(A184<>"",G184*(1+INDEX('Hozamsorok-eszközalapok'!$B$11:$F$55,A184,IF($D$20=1,1,$D$19-2))+$F$23)^(1/12),0) -> 1.407259705 | I184: 0 | J184: 0 | K184: 0 | L184: 0 | M184: 0 | N184: 0 | O184: 0 | P184: 0 | Q184: 0 | R184: 0 | S184: 0 | T184: 0 | U184: 0 | V184: 0 | W184: 0 | X184: 0 | Y184: 0 | Z184: 0 | AA184: 0 | AB184: 0 | AC184: 0 | AD184: 0 | AE184: =IF(A184<>"",SUM($E$50:E184),0) -> 0 | AF184: =IF(A184<>"",SUM($D$50:D184),0) -> 0
A185: 12 | B185: 4 | D185: =IF(E185=0,0,MAX($D$50:D184))*IF(B185=1,IF($H$2=1,105%,102%),1) -> 0 | E185: 0 | F185: 0 | G185: 1.407259705 | H185: =IF(A185<>"",G185*(1+INDEX('Hozamsorok-eszközalapok'!$B$11:$F$55,A185,IF($D$20=1,1,$D$19-2))+$F$23)^(1/12),0) -> 1.411413386 | I185: 0 | J185: 0 | K185: 0 | L185: 0 | M185: 0 | N185: 0 | O185: 0 | P185: 0 | Q185: 0 | R185: 0 | S185: 0 | T185: 0 | U185: 0 | V185: 0 | W185: 0 | X185: 0 | Y185: 0 | Z185: 0 | AA185: 0 | AB185: 0 | AC185: 0 | AD185: 0 | AE185: =IF(A185<>"",SUM($E$50:E185),0) -> 0 | AF185: =IF(A185<>"",SUM($D$50:D185),0) -> 0
A186: 12 | B186: 5 | D186: =IF(E186=0,0,MAX($D$50:D185))*IF(B186=1,IF($H$2=1,105%,102%),1) -> 0 | E186: 0 | F186: 0 | G186: 1.411413386 | H186: =IF(A186<>"",G186*(1+INDEX('Hozamsorok-eszközalapok'!$B$11:$F$55,A186,IF($D$20=1,1,$D$19-2))+$F$23)^(1/12),0) -> 1.415579328 | I186: 0 | J186: 0 | K186: 0 | L186: 0 | M186: 0 | N186: 0 | O186: 0 | P186: 0 | Q186: 0 | R186: 0 | S186: 0 | T186: 0 | U186: 0 | V186: 0 | W186: 0 | X186: 0 | Y186: 0 | Z186: 0 | AA186: 0 | AB186: 0 | AC186: 0 | AD186: 0 | AE186: =IF(A186<>"",SUM($E$50:E186),0) -> 0 | AF186: =IF(A186<>"",SUM($D$50:D186),0) -> 0
A187: 12 | B187: 6 | D187: =IF(E187=0,0,MAX($D$50:D186))*IF(B187=1,IF($H$2=1,105%,102%),1) -> 0 | E187: 0 | F187: 0 | G187: 1.415579328 | H187: =IF(A187<>"",G187*(1+INDEX('Hozamsorok-eszközalapok'!$B$11:$F$55,A187,IF($D$20=1,1,$D$19-2))+$F$23)^(1/12),0) -> 1.419757565 | I187: 0 | J187: 0 | K187: 0 | L187: 0 | M187: 0 | N187: 0 | O187: 0 | P187: 0 | Q187: 0 | R187: 0 | S187: 0 | T187: 0 | U187: 0 | V187: 0 | W187: 0 | X187: 0 | Y187: 0 | Z187: 0 | AA187: 0 | AB187: 0 | AC187: 0 | AD187: 0 | AE187: =IF(A187<>"",SUM($E$50:E187),0) -> 0 | AF187: =IF(A187<>"",SUM($D$50:D187),0) -> 0
A188: 12 | B188: 7 | D188: =IF(E188=0,0,MAX($D$50:D187))*IF(B188=1,IF($H$2=1,105%,102%),1) -> 0 | E188: 0 | F188: 0 | G188: 1.419757565 | H188: =IF(A188<>"",G188*(1+INDEX('Hozamsorok-eszközalapok'!$B$11:$F$55,A188,IF($D$20=1,1,$D$19-2))+$F$23)^(1/12),0) -> 1.423948135 | I188: 0 | J188: 0 | K188: 0 | L188: 0 | M188: 0 | N188: 0 | O188: 0 | P188: 0 | Q188: 0 | R188: 0 | S188: 0 | T188: 0 | U188: 0 | V188: 0 | W188: 0 | X188: 0 | Y188: 0 | Z188: 0 | AA188: 0 | AB188: 0 | AC188: 0 | AD188: 0 | AE188: =IF(A188<>"",SUM($E$50:E188),0) -> 0 | AF188: =IF(A188<>"",SUM($D$50:D188),0) -> 0
A189: 12 | B189: 8 | D189: =IF(E189=0,0,MAX($D$50:D188))*IF(B189=1,IF($H$2=1,105%,102%),1) -> 0 | E189: 0 | F189: 0 | G189: 1.423948135 | H189: =IF(A189<>"",G189*(1+INDEX('Hozamsorok-eszközalapok'!$B$11:$F$55,A189,IF($D$20=1,1,$D$19-2))+$F$23)^(1/12),0) -> 1.428151073 | I189: 0 | J189: 0 | K189: 0 | L189: 0 | M189: 0 | N189: 0 | O189: 0 | P189: 0 | Q189: 0 | R189: 0 | S189: 0 | T189: 0 | U189: 0 | V189: 0 | W189: 0 | X189: 0 | Y189: 0 | Z189: 0 | AA189: 0 | AB189: 0 | AC189: 0 | AD189: 0 | AE189: =IF(A189<>"",SUM($E$50:E189),0) -> 0 | AF189: =IF(A189<>"",SUM($D$50:D189),0) -> 0
A190: 12 | B190: 9 | D190: =IF(E190=0,0,MAX($D$50:D189))*IF(B190=1,IF($H$2=1,105%,102%),1) -> 0 | E190: 0 | F190: 0 | G190: 1.428151073 | H190: =IF(A190<>"",G190*(1+INDEX('Hozamsorok-eszközalapok'!$B$11:$F$55,A190,IF($D$20=1,1,$D$19-2))+$F$23)^(1/12),0) -> 1.432366418 | I190: 0 | J190: 0 | K190: 0 | L190: 0 | M190: 0 | N190: 0 | O190: 0 | P190: 0 | Q190: 0 | R190: 0 | S190: 0 | T190: 0 | U190: 0 | V190: 0 | W190: 0 | X190: 0 | Y190: 0 | Z190: 0 | AA190: 0 | AB190: 0 | AC190: 0 | AD190: 0 | AE190: =IF(A190<>"",SUM($E$50:E190),0) -> 0 | AF190: =IF(A190<>"",SUM($D$50:D190),0) -> 0
A191: 12 | B191: 10 | D191: =IF(E191=0,0,MAX($D$50:D190))*IF(B191=1,IF($H$2=1,105%,102%),1) -> 0 | E191: 0 | F191: 0 | G191: 1.432366418 | H191: =IF(A191<>"",G191*(1+INDEX('Hozamsorok-eszközalapok'!$B$11:$F$55,A191,IF($D$20=1,1,$D$19-2))+$F$23)^(1/12),0) -> 1.436594204 | I191: 0 | J191: 0 | K191: 0 | L191: 0 | M191: 0 | N191: 0 | O191: 0 | P191: 0 | Q191: 0 | R191: 0 | S191: 0 | T191: 0 | U191: 0 | V191: 0 | W191: 0 | X191: 0 | Y191: 0 | Z191: 0 | AA191: 0 | AB191: 0 | AC191: 0 | AD191: 0 | AE191: =IF(A191<>"",SUM($E$50:E191),0) -> 0 | AF191: =IF(A191<>"",SUM($D$50:D191),0) -> 0
A192: 12 | B192: 11 | D192: =IF(E192=0,0,MAX($D$50:D191))*IF(B192=1,IF($H$2=1,105%,102%),1) -> 0 | E192: 0 | F192: 0 | G192: 1.436594204 | H192: =IF(A192<>"",G192*(1+INDEX('Hozamsorok-eszközalapok'!$B$11:$F$55,A192,IF($D$20=1,1,$D$19-2))+$F$23)^(1/12),0) -> 1.440834469 | I192: 0 | J192: 0 | K192: 0 | L192: 0 | M192: 0 | N192: 0 | O192: 0 | P192: 0 | Q192: 0 | R192: 0 | S192: 0 | T192: 0 | U192: 0 | V192: 0 | W192: 0 | X192: 0 | Y192: 0 | Z192: 0 | AA192: 0 | AB192: 0 | AC192: 0 | AD192: 0 | AE192: =IF(A192<>"",SUM($E$50:E192),0) -> 0 | AF192: =IF(A192<>"",SUM($D$50:D192),0) -> 0
A193: 12 | B193: 12 | D193: =IF(E193=0,0,MAX($D$50:D192))*IF(B193=1,IF($H$2=1,105%,102%),1) -> 0 | E193: 0 | F193: 0 | G193: 1.440834469 | H193: =IF(A193<>"",G193*(1+INDEX('Hozamsorok-eszközalapok'!$B$11:$F$55,A193,IF($D$20=1,1,$D$19-2))+$F$23)^(1/12),0) -> 1.445087249 | I193: 0 | J193: 0 | K193: 0 | L193: 0 | M193: 0 | N193: 0 | O193: 0 | P193: 0 | Q193: 0 | R193: 0 | S193: 0 | T193: 0 | U193: 0 | V193: 0 | W193: 0 | X193: 0 | Y193: 0 | Z193: 0 | AA193: 0 | AB193: 0 | AC193: 0 | AD193: 0 | AE193: =IF(A193<>"",SUM($E$50:E193),0) -> 0 | AF193: =IF(A193<>"",SUM($D$50:D193),0) -> 0
A194: 13 | B194: 1 | D194: =IF(E194=0,0,MAX($D$50:D193))*IF(B194=1,IF($H$2=1,105%,102%),1) -> 0 | E194: 0 | F194: 0 | G194: 1.445087249 | H194: =IF(A194<>"",G194*(1+INDEX('Hozamsorok-eszközalapok'!$B$11:$F$55,A194,IF($D$20=1,1,$D$19-2))+$F$23)^(1/12),0) -> 1.449352583 | I194: 0 | J194: 0 | K194: 0 | L194: 0 | M194: 0 | N194: 0 | O194: 0 | P194: 0 | Q194: 0 | R194: 0 | S194: 0 | T194: 0 | U194: 0 | V194: 0 | W194: 0 | X194: 0 | Y194: 0 | Z194: 0 | AA194: 0 | AB194: 0 | AC194: 0 | AD194: 0 | AE194: =IF(A194<>"",SUM($E$50:E194),0) -> 0 | AF194: =IF(A194<>"",SUM($D$50:D194),0) -> 0
A195: 13 | B195: 2 | D195: =IF(E195=0,0,MAX($D$50:D194))*IF(B195=1,IF($H$2=1,105%,102%),1) -> 0 | E195: 0 | F195: 0 | G195: 1.449352583 | H195: =IF(A195<>"",G195*(1+INDEX('Hozamsorok-eszközalapok'!$B$11:$F$55,A195,IF($D$20=1,1,$D$19-2))+$F$23)^(1/12),0) -> 1.453630505 | I195: 0 | J195: 0 | K195: 0 | L195: 0 | M195: 0 | N195: 0 | O195: 0 | P195: 0 | Q195: 0 | R195: 0 | S195: 0 | T195: 0 | U195: 0 | V195: 0 | W195: 0 | X195: 0 | Y195: 0 | Z195: 0 | AA195: 0 | AB195: 0 | AC195: 0 | AD195: 0 | AE195: =IF(A195<>"",SUM($E$50:E195),0) -> 0 | AF195: =IF(A195<>"",SUM($D$50:D195),0) -> 0
A196: 13 | B196: 3 | D196: =IF(E196=0,0,MAX($D$50:D195))*IF(B196=1,IF($H$2=1,105%,102%),1) -> 0 | E196: 0 | F196: 0 | G196: 1.453630505 | H196: =IF(A196<>"",G196*(1+INDEX('Hozamsorok-eszközalapok'!$B$11:$F$55,A196,IF($D$20=1,1,$D$19-2))+$F$23)^(1/12),0) -> 1.457921055 | I196: 0 | J196: 0 | K196: 0 | L196: 0 | M196: 0 | N196: 0 | O196: 0 | P196: 0 | Q196: 0 | R196: 0 | S196: 0 | T196: 0 | U196: 0 | V196: 0 | W196: 0 | X196: 0 | Y196: 0 | Z196: 0 | AA196: 0 | AB196: 0 | AC196: 0 | AD196: 0 | AE196: =IF(A196<>"",SUM($E$50:E196),0) -> 0 | AF196: =IF(A196<>"",SUM($D$50:D196),0) -> 0
A197: 13 | B197: 4 | D197: =IF(E197=0,0,MAX($D$50:D196))*IF(B197=1,IF($H$2=1,105%,102%),1) -> 0 | E197: 0 | F197: 0 | G197: 1.457921055 | H197: =IF(A197<>"",G197*(1+INDEX('Hozamsorok-eszközalapok'!$B$11:$F$55,A197,IF($D$20=1,1,$D$19-2))+$F$23)^(1/12),0) -> 1.462224268 | I197: 0 | J197: 0 | K197: 0 | L197: 0 | M197: 0 | N197: 0 | O197: 0 | P197: 0 | Q197: 0 | R197: 0 | S197: 0 | T197: 0 | U197: 0 | V197: 0 | W197: 0 | X197: 0 | Y197: 0 | Z197: 0 | AA197: 0 | AB197: 0 | AC197: 0 | AD197: 0 | AE197: =IF(A197<>"",SUM($E$50:E197),0) -> 0 | AF197: =IF(A197<>"",SUM($D$50:D197),0) -> 0
A198: 13 | B198: 5 | D198: =IF(E198=0,0,MAX($D$50:D197))*IF(B198=1,IF($H$2=1,105%,102%),1) -> 0 | E198: 0 | F198: 0 | G198: 1.462224268 | H198: =IF(A198<>"",G198*(1+INDEX('Hozamsorok-eszközalapok'!$B$11:$F$55,A198,IF($D$20=1,1,$D$19-2))+$F$23)^(1/12),0) -> 1.466540183 | I198: 0 | J198: 0 | K198: 0 | L198: 0 | M198: 0 | N198: 0 | O198: 0 | P198: 0 | Q198: 0 | R198: 0 | S198: 0 | T198: 0 | U198: 0 | V198: 0 | W198: 0 | X198: 0 | Y198: 0 | Z198: 0 | AA198: 0 | AB198: 0 | AC198: 0 | AD198: 0 | AE198: =IF(A198<>"",SUM($E$50:E198),0) -> 0 | AF198: =IF(A198<>"",SUM($D$50:D198),0) -> 0
A199: 13 | B199: 6 | D199: =IF(E199=0,0,MAX($D$50:D198))*IF(B199=1,IF($H$2=1,105%,102%),1) -> 0 | E199: 0 | F199: 0 | G199: 1.466540183 | H199: =IF(A199<>"",G199*(1+INDEX('Hozamsorok-eszközalapok'!$B$11:$F$55,A199,IF($D$20=1,1,$D$19-2))+$F$23)^(1/12),0) -> 1.470868837 | I199: 0 | J199: 0 | K199: 0 | L199: 0 | M199: 0 | N199: 0 | O199: 0 | P199: 0 | Q199: 0 | R199: 0 | S199: 0 | T199: 0 | U199: 0 | V199: 0 | W199: 0 | X199: 0 | Y199: 0 | Z199: 0 | AA199: 0 | AB199: 0 | AC199: 0 | AD199: 0 | AE199: =IF(A199<>"",SUM($E$50:E199),0) -> 0 | AF199: =IF(A199<>"",SUM($D$50:D199),0) -> 0
A200: 13 | B200: 7 | D200: =IF(E200=0,0,MAX($D$50:D199))*IF(B200=1,IF($H$2=1,105%,102%),1) -> 0 | E200: 0 | F200: 0 | G200: 1.470868837 | H200: =IF(A200<>"",G200*(1+INDEX('Hozamsorok-eszközalapok'!$B$11:$F$55,A200,IF($D$20=1,1,$D$19-2))+$F$23)^(1/12),0) -> 1.475210267 | I200: 0 | J200: 0 | K200: 0 | L200: 0 | M200: 0 | N200: 0 | O200: 0 | P200: 0 | Q200: 0 | R200: 0 | S200: 0 | T200: 0 | U200: 0 | V200: 0 | W200: 0 | X200: 0 | Y200: 0 | Z200: 0 | AA200: 0 | AB200: 0 | AC200: 0 | AD200: 0 | AE200: =IF(A200<>"",SUM($E$50:E200),0) -> 0 | AF200: =IF(A200<>"",SUM($D$50:D200),0) -> 0
A201: 13 | B201: 8 | D201: =IF(E201=0,0,MAX($D$50:D200))*IF(B201=1,IF($H$2=1,105%,102%),1) -> 0 | E201: 0 | F201: 0 | G201: 1.475210267 | H201: =IF(A201<>"",G201*(1+INDEX('Hozamsorok-eszközalapok'!$B$11:$F$55,A201,IF($D$20=1,1,$D$19-2))+$F$23)^(1/12),0) -> 1.479564512 | I201: 0 | J201: 0 | K201: 0 | L201: 0 | M201: 0 | N201: 0 | O201: 0 | P201: 0 | Q201: 0 | R201: 0 | S201: 0 | T201: 0 | U201: 0 | V201: 0 | W201: 0 | X201: 0 | Y201: 0 | Z201: 0 | AA201: 0 | AB201: 0 | AC201: 0 | AD201: 0 | AE201: =IF(A201<>"",SUM($E$50:E201),0) -> 0 | AF201: =IF(A201<>"",SUM($D$50:D201),0) -> 0
... 388 more rows

Sheet Folyamatos modell (2) (hidden)
B1: Folyamatos díjak kalkulátora | J1: Aktuális | K1: AMÖ | L1: Vv összeg | M1: Befizetett megtak | N1: Befizetett admin
G2: GÉP = 1, NYÉP = 2 | H2: =IF(Főmenü!AJ4=TRUE,1,2) -> 2 | J2: 1 | K2: =INDEX($AC$50:$AE$589,J2*12,1) -> 0 | L2: =INDEX($AC$50:$AE$589,J2*12,2) -> 0 | M2: =INDEX($AC$50:$AE$589,J2*12,3) -> 0 | N2: =INDEX($AC$50:$AF$589,J2*12,4) -> 0
B3: Üzemmód választás | J3: 2 | K3: 0 | L3: 0 | M3: 0 | N3: 0
E4: TRUE | J4: 3 | K4: 0 | L4: 0 | M4: 0 | N4: 0
J5: 4 | K5: 0 | L5: 0 | M5: 0 | N5: 0
B6: Általános paraméterek | J6: 5 | K6: 0 | L6: 0 | M6: 0 | N6: 0
J7: 6 | K7: 0 | L7: 0 | M7: 0 | N7: 0
C8: Díjfizetés gyakoriság | D8: =+'Folyamatos modell'!D8 -> 3 | F8: Eszközalap-kezelési költség | G8: =IF(ISERROR(VLOOKUP(D24,'Hozamsorok-eszközalapok'!M1:P14,2,FALSE))=TRUE,0,VLOOKUP(D24,'Hozamsorok-eszközalapok'!M1:P14,IF(H2=1,3,4),FALSE)) -> 0 | J8: 7 | K8: 0 | L8: 0 | M8: 0 | N8: 0
C9: Tartam | D9: =+'Folyamatos modell'!D9 -> 20 | J9: 8 | K9: 0 | L9: 0 | M9: 0 | N9: 0
C10: =IF(D8=1,"---","Megtakarítási időszak") -> Megtakarítási időszak | D10: =+'Folyamatos modell'!D10 -> 20 | F10: =IF(E4=TRUE,"Stop-loss költség","---") -> Stop-loss költség | G10: =IF(E4=TRUE,IF(D22=1,0.02%,0),"---") -> 0 | J10: 9 | K10: 0 | L10: 0 | M10: 0 | N10: 0
F11: =IF(E4=TRUE,"Profitvédelem költség","---") -> Profitvédelem költség | G11: =IF(E4=TRUE,IF(D23=1,0.02%,0),"---") -> 0 | J11: 10 | K11: 0 | L11: 0 | M11: 0 | N11: 0
C12: Befektetendő összeg | D12: =+G19 -> 0 | J12: 11 | K12: 0 | L12: 0 | M12: 0 | N12: 0
C13: Allokációs költség | D13: =+'Folyamatos modell'!D13 -> 0 | F13: Kockázati biztosítási összeg | G13: =IF(H2=1,300000,'Folyamatos Nyugdíjcélú Életív'!T8)*D26 -> 0 | J13: 12 | K13: 0 | L13: 0 | M13: 0 | N13: 0
C14: Kezdeti költség | D14: 0.005 | F14: Kezdeti egység vv tényező | G14: 0.995 | J14: 13 | K14: 0 | L14: 0 | M14: 0 | N14: 0
C15: Kockázati költség | D15: =+'Folyamatos modell'!D15 -> 0.00167 | F15: Felhalm. egység vv tényező | G15: 1 | J15: 14 | K15: 0 | L15: 0 | M15: 0 | N15: 0
J16: 15 | K16: 0 | L16: 0 | M16: 0 | N16: 0
B17: T érték specifikus adatok | J17: 16 | K17: 0 | L17: 0 | M17: 0 | N17: 0
J18: 17 | K18: 0 | L18: 0 | M18: 0 | N18: 0
C19: Eszközalap-kategória | D19: =IF(ISERROR(VLOOKUP(D24,'Hozamsorok-eszközalapok'!M1:N14,2,FALSE))=TRUE,4,VLOOKUP(D24,'Hozamsorok-eszközalapok'!M1:N14,2,FALSE)) -> 4 | F19: Egyszeri/megtak díj | G19: =IF(H2=1,'Folyamatos Életív'!K8,'Folyamatos Nyugdíjcélú Életív'!I8)*D26 -> 0 | J19: 18 | K19: 0 | L19: 0 | M19: 0 | N19: 0
C20: Hozamsor | D20: 2 | J20: 19 | K20: 0 | L20: 0 | M20: 0 | N20: 0
J21: 20 | K21: 0 | L21: 0 | M21: 0 | N21: 0
C22: Stop-loss | D22: =+IF('Folyamatos Életív'!R29="Igen",1,0) -> 0 | E22: HV | F22: =IF('Folyamatos Életív'!R30="Igen",1,0) -> 0 | J22: 21 | K22: 0 | L22: 0 | M22: 0 | N22: 0
C23: Profitvédelem | D23: 0 | E23: Extra hozam | F23: =IF(D22=0,0,INDEX('Hozamsorok-eszközalapok'!N19:O22,D19-3,IF(F22=0,1,2))) -> 0 | J23: 22 | K23: 0 | L23: 0 | M23: 0 | N23: 0
C24: Alap | D24: =IF(H2=1,'Folyamatos Életív'!D23,'Folyamatos Nyugdíjcélú Életív'!D23) -> 0 | J24: 23 | K24: 0 | L24: 0 | M24: 0 | N24: 0
C25: Index | D25: =+'Folyamatos modell'!D25 -> 0.05 | J25: 24 | K25: 0 | L25: 0 | M25: 0 | N25: 0
C26: Alaparány | D26: =IF(H2=1,'Folyamatos Életív'!Q23,'Folyamatos Nyugdíjcélú Életív'!Q23) -> 0 | J26: 25 | K26: 0 | L26: 0 | M26: 0 | N26: =INDEX($AC$50:$AF$589,J26*12,4) -> 0
J27: 26 | K27: 0 | L27: 0 | M27: 0 | N27: 0
J28: 27 | K28: 0 | L28: 0 | M28: 0 | N28: 0
J29: 28 | K29: 0 | L29: 0 | M29: 0 | N29: 0
J30: 29 | K30: 0 | L30: 0 | M30: 0 | N30: 0
J31: 30 | K31: 0 | L31: 0 | M31: 0 | N31: 0
J32: 31 | K32: 0 | L32: 0 | M32: 0 | N32: 0
J33: 32 | K33: 0 | L33: 0 | M33: 0 | N33: 0
J34: 33 | K34: 0 | L34: 0 | M34: 0 | N34: 0
J35: 34 | K35: 0 | L35: 0 | M35: 0 | N35: 0
J36: 35 | K36: 0 | L36: 0 | M36: 0 | N36: 0
J37: 36 | K37: 0 | L37: 0 | M37: 0 | N37: 0
J38: 37 | K38: 0 | L38: 0 | M38: 0 | N38: =INDEX($AC$50:$AF$589,J38*12,4) -> 0
J39: 38 | K39: 0 | L39: 0 | M39: 0 | N39: 0
J40: 39 | K40: 0 | L40: 0 | M40: 0 | N40: 0
J41: 40 | K41: 0 | L41: 0 | M41: 0 | N41: 0
J42: 41 | K42: 0 | L42: 0 | M42: 0 | N42: 0
J43: 42 | K43: 0 | L43: 0 | M43: 0 | N43: 0
J44: 43 | K44: 0 | L44: 0 | M44: 0 | N44: 0
J45: 44 | K45: 0 | L45: 0 | M45: 0 | N45: 0
J46: 45 | K46: 0 | L46: 0 | M46: 0 | N46: 0
E48: Eszközalapot érintő tranzakciók | V48: Elhatárolások folyamatos díjas esetben | AC48: Hónap végén
A49: Év | B49: Hónap | D49: Admin. díjrész | E49: Befektetett díj | F49: Allokációs ktg. | G49: Nyitó árfolyam | H49: Záró árfolyam | I49: Vásárolt kezdeti egységek | J49: Vásárolt felhalm. egységek | K49: Kezdeti egységek nyitó | L49: Felhalm. egységek nyitó | M49: K. egységek e.alap-kezelési ktg. után | N49: F. egységek e.alap-kezelési ktg. után | O49: Számított Hozam-Monitor ktg. | P49: K. egységek HM ktg. után | Q49: F. egységek HM ktg. után | R49: Számított kockázati ktg. | S49: K. egységek kockázati ktg. után | T49: F. egységek kockázati ktg. után (záró) | U49: K. egységek kezdeti ktg. után (záró) | V49: Összes esedékes költség: aktuális HM ktg. előtt | W49: Összes f. egység fedezet HM ktg. előtt | X49: Érvényesíthető ktg. HM ktg. előtt | Y49: Összes esedékes költség: aktuális kock. ktg. előtt | Z49: Összes f. egység fedezet kock. ktg. előtt | AA49: Érvényesíthető ktg. kock. ktg. előtt | AB49: Megmaradó elhatárolt ktg. | AC49: Egyéni számlaérték | AD49: VV összeg | AE49: Kumulált megtak díj | AF49: Kumulált admin
A50: 1 | B50: 1 | D50: =IF(H2=1,'Folyamatos Életív'!N35+'Folyamatos Életív'!N36,'Folyamatos Nyugdíjcélú Életív'!N35+'Folyamatos Nyugdíjcélú Életív'!N36)*D26 -> 0 | E50: =IF(AND($D$8=1,SUM(A50:B50)=2),$D$12,IF(A50>$D$10,0,IF(OR(AND($D$8=2,B50=1),AND($D$8=4,OR(B50=1,B50=7)),AND($D$8=5,OR(B50=1,B50=4,B50=7,B50=10)),AND($D$8=3,B50>=1)),$D$12*(1+$D$25)^(A50-1),0))) -> 0 | F50: =E50*$D$13 -> 0 | G50: 1 | H50: =IF(A50<>"",G50*(1+INDEX('Hozamsorok-eszközalapok'!$B$11:$F$55,A50,IF($D$20=1,1,$D$19-2))+$F$23)^(1/12),0) -> 1.001815103 | I50: =IF(E50<>"",IF(A50<=2,(E50-F50)/G50,0),0) -> 0 | J50: =IF(A50<>"",IF(A50>2,(E50-F50)/G50,0),0) -> 0 | K50: =I50 -> 0 | L50: =J50 -> 0 | M50: =K50*(1-$G$8) -> 0 | N50: 0 | O50: =IF($E$4=TRUE,IF($D$19=4,0,(M50+N50)*($G$10+$G$11)*G50),0) -> 0 | P50: =IF($D$8<>1,M50,IF(A50<>"",M50-O50/G50,0)) -> 0 | Q50: =IF(A50<>"",N50-X50/G50,0) -> 0 | R50: =IF(OR(AND($D$8=1,A50<=$D$9),AND($D$8<>1,A50<=$D$10)),$D$15*($G$13+G50*((P50+Q50)-P50*$G$14^(IF($D$8=1,$D$9,$D$10)*12-((A50-1)*12+B50-1))-Q50*$G$15)),0) -> 0 | S50: =IF($D$8<>1,P50,IF(A50<>"",P50-R50/G50,0)) -> 0 | T50: =IF(A50<>"",Q50-AA50/G50,0) -> 0 | U50: =IF(AND($D$8<>1,A50>$D$10),S50,S50*(1-$D$14)) -> 0 | V50: =IF(AND(A50<>"",$D$8<>1),O50,0) -> 0 | W50: =N50*G50 -> 0 | X50: =MIN(V50,W50) -> 0 | Y50: =IF(AND(A50<>"",$D$8<>1),V50-X50+R50,0) -> 0 | Z50: =Q50*G50 -> 0 | AA50: =MIN(Y50,Z50) -> 0 | AB50: =IF(A50<>"",Y50-AA50,0) -> 0 | AC50: =H50*(T50+U50) -> 0 | AD50: =MAX(0,IF(A50<>"",IF(AND($D$8<>1,A50<=2,(A50+B50)<>14),0,H50*(U50*$G$14^(IF(AND($D$8<>1,A50>$D$10),0,IF($D$8=1,$D$9,$D$10)*12-((A50-1)*12+B50)))+T50*$G$15)-AB50),0)) -> 0 | AE50: =IF(A50<>"",SUM($E$50:E50),0) -> 0 | AF50: =IF(A50<>"",SUM($D$50:D50),0) -> 0
A51: =IF(B50<12,A50,IF(A50<$D$9,A50+1,"")) -> 1 | B51: =IF(A51="","",IF(B50=12,1,B50+1)) -> 2 | D51: =IF(E51=0,0,MAX($D$50:D50))*IF(B51=1,IF($H$2=1,105%,102%),1) -> 0 | E51: =IF(AND($D$8=1,SUM(A51:B51)=2),$D$12,IF(A51>$D$10,0,IF(OR(AND($D$8=2,B51=1),AND($D$8=4,OR(B51=1,B51=7)),AND($D$8=5,OR(B51=1,B51=4,B51=7,B51=10)),AND($D$8=3,B51>=1)),$D$12*(1+$D$25)^(A51-1),0))) -> 0 | F51: 0 | G51: =IF(A51<>"",H50,0) -> 1.001815103 | H51: =IF(A51<>"",G51*(1+INDEX('Hozamsorok-eszközalapok'!$B$11:$F$55,A51,IF($D$20=1,1,$D$19-2))+$F$23)^(1/12),0) -> 1.003633501 | I51: =IF(E51<>"",IF(A51<=2,(E51-F51)/G51,0),0) -> 0 | J51: =IF(A51<>"",IF(A51>2,(E51-F51)/G51,0),0) -> 0 | K51: =IF(A51<>"",U50+I51,0) -> 0 | L51: =IF(A51<>"",T50+J51,0) -> 0 | M51: 0 | N51: 0 | O51: =IF($E$4=TRUE,IF($D$19=4,0,(M51+N51)*($G$10+$G$11)*G51),0) -> 0 | P51: =IF($D$8<>1,M51,IF(A51<>"",M51-O51/G51,0)) -> 0 | Q51: =IF(A51<>"",N51-X51/G51,0) -> 0 | R51: =IF(OR(AND($D$8=1,A51<=$D$9),AND($D$8<>1,A51<=$D$10)),$D$15*($G$13+G51*((P51+Q51)-P51*$G$14^(IF($D$8=1,$D$9,$D$10)*12-((A51-1)*12+B51-1))-Q51*$G$15)),0) -> 0 | S51: =IF($D$8<>1,P51,IF(A51<>"",P51-R51/G51,0)) -> 0 | T51: =IF(A51<>"",Q51-AA51/G51,0) -> 0 | U51: =IF(AND($D$8<>1,A51>$D$10),S51,S51*(1-$D$14)) -> 0 | V51: =IF(AND(A51<>"",$D$8<>1),O51+AB50,0) -> 0 | W51: =N51*G51 -> 0 | X51: =MIN(V51,W51) -> 0 | Y51: =IF(AND(A51<>"",$D$8<>1),V51-X51+R51,0) -> 0 | Z51: =Q51*G51 -> 0 | AA51: =MIN(Y51,Z51) -> 0 | AB51: =IF(A51<>"",Y51-AA51,0) -> 0 | AC51: 0 | AD51: =MAX(0,IF(A51<>"",IF(AND($D$8<>1,A51<=2,(A51+B51)<>14),0,H51*(U51*$G$14^(IF(AND($D$8<>1,A51>$D$10),0,IF($D$8=1,$D$9,$D$10)*12-((A51-1)*12+B51)))+T51*$G$15)-AB51),0)) -> 0 | AE51: =IF(A51<>"",SUM($E$50:E51),0) -> 0 | AF51: =IF(A51<>"",SUM($D$50:D51),0) -> 0
A52: 1 | B52: =IF(A52="","",IF(B51=12,1,B51+1)) -> 3 | D52: =IF(E52=0,0,MAX($D$50:D51))*IF(B52=1,IF($H$2=1,105%,102%),1) -> 0 | E52: 0 | F52: 0 | G52: =IF(A52<>"",H51,0) -> 1.003633501 | H52: =IF(A52<>"",G52*(1+INDEX('Hozamsorok-eszközalapok'!$B$11:$F$55,A52,IF($D$20=1,1,$D$19-2))+$F$23)^(1/12),0) -> 1.005455199 | I52: 0 | J52: 0 | K52: 0 | L52: 0 | M52: 0 | N52: 0 | O52: 0 | P52: 0 | Q52: 0 | R52: 0 | S52: 0 | T52: 0 | U52: 0 | V52: =IF(AND(A52<>"",$D$8<>1),O52+AB51,0) -> 0 | W52: =N52*G52 -> 0 | X52: =MIN(V52,W52) -> 0 | Y52: =IF(AND(A52<>"",$D$8<>1),V52-X52+R52,0) -> 0 | Z52: =Q52*G52 -> 0 | AA52: =MIN(Y52,Z52) -> 0 | AB52: =IF(A52<>"",Y52-AA52,0) -> 0 | AC52: 0 | AD52: 0 | AE52: =IF(A52<>"",SUM($E$50:E52),0) -> 0 | AF52: =IF(A52<>"",SUM($D$50:D52),0) -> 0
A53: 1 | B53: 4 | D53: =IF(E53=0,0,MAX($D$50:D52))*IF(B53=1,IF($H$2=1,105%,102%),1) -> 0 | E53: 0 | F53: 0 | G53: 1.005455199 | H53: =IF(A53<>"",G53*(1+INDEX('Hozamsorok-eszközalapok'!$B$11:$F$55,A53,IF($D$20=1,1,$D$19-2))+$F$23)^(1/12),0) -> 1.007280203 | I53: 0 | J53: 0 | K53: 0 | L53: 0 | M53: 0 | N53: 0 | O53: 0 | P53: 0 | Q53: 0 | R53: 0 | S53: 0 | T53: 0 | U53: 0 | V53: 0 | W53: 0 | X53: 0 | Y53: 0 | Z53: 0 | AA53: 0 | AB53: 0 | AC53: 0 | AD53: 0 | AE53: =IF(A53<>"",SUM($E$50:E53),0) -> 0 | AF53: =IF(A53<>"",SUM($D$50:D53),0) -> 0
A54: 1 | B54: 5 | D54: =IF(E54=0,0,MAX($D$50:D53))*IF(B54=1,IF($H$2=1,105%,102%),1) -> 0 | E54: 0 | F54: 0 | G54: 1.007280203 | H54: =IF(A54<>"",G54*(1+INDEX('Hozamsorok-eszközalapok'!$B$11:$F$55,A54,IF($D$20=1,1,$D$19-2))+$F$23)^(1/12),0) -> 1.009108521 | I54: 0 | J54: 0 | K54: 0 | L54: 0 | M54: 0 | N54: 0 | O54: 0 | P54: 0 | Q54: 0 | R54: 0 | S54: 0 | T54: 0 | U54: 0 | V54: 0 | W54: 0 | X54: 0 | Y54: 0 | Z54: 0 | AA54: 0 | AB54: 0 | AC54: 0 | AD54: 0 | AE54: =IF(A54<>"",SUM($E$50:E54),0) -> 0 | AF54: =IF(A54<>"",SUM($D$50:D54),0) -> 0
A55: 1 | B55: 6 | D55: =IF(E55=0,0,MAX($D$50:D54))*IF(B55=1,IF($H$2=1,105%,102%),1) -> 0 | E55: 0 | F55: 0 | G55: 1.009108521 | H55: =IF(A55<>"",G55*(1+INDEX('Hozamsorok-eszközalapok'!$B$11:$F$55,A55,IF($D$20=1,1,$D$19-2))+$F$23)^(1/12),0) -> 1.010940156 | I55: 0 | J55: 0 | K55: 0 | L55: 0 | M55: 0 | N55: 0 | O55: 0 | P55: 0 | Q55: 0 | R55: 0 | S55: 0 | T55: 0 | U55: 0 | V55: 0 | W55: 0 | X55: 0 | Y55: 0 | Z55: 0 | AA55: 0 | AB55: 0 | AC55: 0 | AD55: 0 | AE55: =IF(A55<>"",SUM($E$50:E55),0) -> 0 | AF55: =IF(A55<>"",SUM($D$50:D55),0) -> 0
A56: 1 | B56: 7 | D56: =IF(E56=0,0,MAX($D$50:D55))*IF(B56=1,IF($H$2=1,105%,102%),1) -> 0 | E56: 0 | F56: 0 | G56: 1.010940156 | H56: =IF(A56<>"",G56*(1+INDEX('Hozamsorok-eszközalapok'!$B$11:$F$55,A56,IF($D$20=1,1,$D$19-2))+$F$23)^(1/12),0) -> 1.012775117 | I56: 0 | J56: 0 | K56: 0 | L56: 0 | M56: 0 | N56: 0 | O56: 0 | P56: 0 | Q56: 0 | R56: 0 | S56: 0 | T56: 0 | U56: 0 | V56: 0 | W56: 0 | X56: 0 | Y56: 0 | Z56: 0 | AA56: 0 | AB56: 0 | AC56: 0 | AD56: 0 | AE56: =IF(A56<>"",SUM($E$50:E56),0) -> 0 | AF56: =IF(A56<>"",SUM($D$50:D56),0) -> 0
A57: 1 | B57: 8 | D57: =IF(E57=0,0,MAX($D$50:D56))*IF(B57=1,IF($H$2=1,105%,102%),1) -> 0 | E57: 0 | F57: 0 | G57: 1.012775117 | H57: =IF(A57<>"",G57*(1+INDEX('Hozamsorok-eszközalapok'!$B$11:$F$55,A57,IF($D$20=1,1,$D$19-2))+$F$23)^(1/12),0) -> 1.014613408 | I57: 0 | J57: 0 | K57: 0 | L57: 0 | M57: 0 | N57: 0 | O57: 0 | P57: 0 | Q57: 0 | R57: 0 | S57: 0 | T57: 0 | U57: 0 | V57: 0 | W57: 0 | X57: 0 | Y57: 0 | Z57: 0 | AA57: 0 | AB57: 0 | AC57: 0 | AD57: 0 | AE57: =IF(A57<>"",SUM($E$50:E57),0) -> 0 | AF57: =IF(A57<>"",SUM($D$50:D57),0) -> 0
A58: 1 | B58: 9 | D58: =IF(E58=0,0,MAX($D$50:D57))*IF(B58=1,IF($H$2=1,105%,102%),1) -> 0 | E58: 0 | F58: 0 | G58: 1.014613408 | H58: =IF(A58<>"",G58*(1+INDEX('Hozamsorok-eszközalapok'!$B$11:$F$55,A58,IF($D$20=1,1,$D$19-2))+$F$23)^(1/12),0) -> 1.016455036 | I58: 0 | J58: 0 | K58: 0 | L58: 0 | M58: 0 | N58: 0 | O58: 0 | P58: 0 | Q58: 0 | R58: 0 | S58: 0 | T58: 0 | U58: 0 | V58: 0 | W58: 0 | X58: 0 | Y58: 0 | Z58: 0 | AA58: 0 | AB58: 0 | AC58: 0 | AD58: 0 | AE58: =IF(A58<>"",SUM($E$50:E58),0) -> 0 | AF58: =IF(A58<>"",SUM($D$50:D58),0) -> 0
A59: 1 | B59: 10 | D59: =IF(E59=0,0,MAX($D$50:D58))*IF(B59=1,IF($H$2=1,105%,102%),1) -> 0 | E59: 0 | F59: 0 | G59: 1.016455036 | H59: =IF(A59<>"",G59*(1+INDEX('Hozamsorok-eszközalapok'!$B$11:$F$55,A59,IF($D$20=1,1,$D$19-2))+$F$23)^(1/12),0) -> 1.018300006 | I59: 0 | J59: 0 | K59: 0 | L59: 0 | M59: 0 | N59: 0 | O59: 0 | P59: 0 | Q59: 0 | R59: 0 | S59: 0 | T59: 0 | U59: 0 | V59: 0 | W59: 0 | X59: 0 | Y59: 0 | Z59: 0 | AA59: 0 | AB59: 0 | AC59: 0 | AD59: 0 | AE59: =IF(A59<>"",SUM($E$50:E59),0) -> 0 | AF59: =IF(A59<>"",SUM($D$50:D59),0) -> 0
A60: 1 | B60: 11 | D60: =IF(E60=0,0,MAX($D$50:D59))*IF(B60=1,IF($H$2=1,105%,102%),1) -> 0 | E60: 0 | F60: 0 | G60: 1.018300006 | H60: =IF(A60<>"",G60*(1+INDEX('Hozamsorok-eszközalapok'!$B$11:$F$55,A60,IF($D$20=1,1,$D$19-2))+$F$23)^(1/12),0) -> 1.020148326 | I60: 0 | J60: 0 | K60: 0 | L60: 0 | M60: 0 | N60: 0 | O60: 0 | P60: 0 | Q60: 0 | R60: 0 | S60: 0 | T60: 0 | U60: 0 | V60: 0 | W60: 0 | X60: 0 | Y60: 0 | Z60: 0 | AA60: 0 | AB60: 0 | AC60: 0 | AD60: 0 | AE60: =IF(A60<>"",SUM($E$50:E60),0) -> 0 | AF60: =IF(A60<>"",SUM($D$50:D60),0) -> 0
A61: 1 | B61: 12 | D61: =IF(E61=0,0,MAX($D$50:D60))*IF(B61=1,IF($H$2=1,105%,102%),1) -> 0 | E61: 0 | F61: 0 | G61: 1.020148326 | H61: =IF(A61<>"",G61*(1+INDEX('Hozamsorok-eszközalapok'!$B$11:$F$55,A61,IF($D$20=1,1,$D$19-2))+$F$23)^(1/12),0) -> 1.022 | I61: 0 | J61: 0 | K61: 0 | L61: 0 | M61: 0 | N61: 0 | O61: 0 | P61: 0 | Q61: 0 | R61: 0 | S61: 0 | T61: 0 | U61: 0 | V61: 0 | W61: 0 | X61: 0 | Y61: 0 | Z61: 0 | AA61: 0 | AB61: 0 | AC61: 0 | AD61: 0 | AE61: =IF(A61<>"",SUM($E$50:E61),0) -> 0 | AF61: =IF(A61<>"",SUM($D$50:D61),0) -> 0
A62: 2 | B62: 1 | D62: =IF(E62=0,0,MAX($D$50:D61))*IF(B62=1,IF($H$2=1,105%,102%),1) -> 0 | E62: 0 | F62: 0 | G62: 1.022 | H62: =IF(A62<>"",G62*(1+INDEX('Hozamsorok-eszközalapok'!$B$11:$F$55,A62,IF($D$20=1,1,$D$19-2))+$F$23)^(1/12),0) -> 1.024021855 | I62: 0 | J62: 0 | K62: 0 | L62: 0 | M62: 0 | N62: 0 | O62: 0 | P62: 0 | Q62: 0 | R62: 0 | S62: 0 | T62: 0 | U62: 0 | V62: 0 | W62: 0 | X62: 0 | Y62: 0 | Z62: 0 | AA62: 0 | AB62: 0 | AC62: 0 | AD62: 0 | AE62: =IF(A62<>"",SUM($E$50:E62),0) -> 0 | AF62: =IF(A62<>"",SUM($D$50:D62),0) -> 0
A63: 2 | B63: 2 | D63: =IF(E63=0,0,MAX($D$50:D62))*IF(B63=1,IF($H$2=1,105%,102%),1) -> 0 | E63: 0 | F63: 0 | G63: 1.024021855 | H63: =IF(A63<>"",G63*(1+INDEX('Hozamsorok-eszközalapok'!$B$11:$F$55,A63,IF($D$20=1,1,$D$19-2))+$F$23)^(1/12),0) -> 1.02604771 | I63: 0 | J63: 0 | K63: 0 | L63: 0 | M63: 0 | N63: 0 | O63: 0 | P63: 0 | Q63: 0 | R63: 0 | S63: 0 | T63: 0 | U63: 0 | V63: 0 | W63: 0 | X63: 0 | Y63: 0 | Z63: 0 | AA63: 0 | AB63: 0 | AC63: 0 | AD63: 0 | AE63: =IF(A63<>"",SUM($E$50:E63),0) -> 0 | AF63: =IF(A63<>"",SUM($D$50:D63),0) -> 0
A64: 2 | B64: 3 | D64: =IF(E64=0,0,MAX($D$50:D63))*IF(B64=1,IF($H$2=1,105%,102%),1) -> 0 | E64: 0 | F64: 0 | G64: 1.02604771 | H64: =IF(A64<>"",G64*(1+INDEX('Hozamsorok-eszközalapok'!$B$11:$F$55,A64,IF($D$20=1,1,$D$19-2))+$F$23)^(1/12),0) -> 1.028077572 | I64: 0 | J64: 0 | K64: 0 | L64: 0 | M64: 0 | N64: 0 | O64: 0 | P64: 0 | Q64: 0 | R64: 0 | S64: 0 | T64: 0 | U64: 0 | V64: 0 | W64: 0 | X64: 0 | Y64: 0 | Z64: 0 | AA64: 0 | AB64: 0 | AC64: 0 | AD64: 0 | AE64: =IF(A64<>"",SUM($E$50:E64),0) -> 0 | AF64: =IF(A64<>"",SUM($D$50:D64),0) -> 0
A65: 2 | B65: 4 | D65: =IF(E65=0,0,MAX($D$50:D64))*IF(B65=1,IF($H$2=1,105%,102%),1) -> 0 | E65: 0 | F65: 0 | G65: 1.028077572 | H65: =IF(A65<>"",G65*(1+INDEX('Hozamsorok-eszközalapok'!$B$11:$F$55,A65,IF($D$20=1,1,$D$19-2))+$F$23)^(1/12),0) -> 1.03011145 | I65: 0 | J65: 0 | K65: 0 | L65: 0 | M65: 0 | N65: 0 | O65: 0 | P65: 0 | Q65: 0 | R65: 0 | S65: 0 | T65: 0 | U65: 0 | V65: 0 | W65: 0 | X65: 0 | Y65: 0 | Z65: 0 | AA65: 0 | AB65: 0 | AC65: 0 | AD65: 0 | AE65: =IF(A65<>"",SUM($E$50:E65),0) -> 0 | AF65: =IF(A65<>"",SUM($D$50:D65),0) -> 0
A66: 2 | B66: 5 | D66: =IF(E66=0,0,MAX($D$50:D65))*IF(B66=1,IF($H$2=1,105%,102%),1) -> 0 | E66: 0 | F66: 0 | G66: 1.03011145 | H66: =IF(A66<>"",G66*(1+INDEX('Hozamsorok-eszközalapok'!$B$11:$F$55,A66,IF($D$20=1,1,$D$19-2))+$F$23)^(1/12),0) -> 1.032149352 | I66: 0 | J66: 0 | K66: 0 | L66: 0 | M66: 0 | N66: 0 | O66: 0 | P66: 0 | Q66: 0 | R66: 0 | S66: 0 | T66: 0 | U66: 0 | V66: 0 | W66: 0 | X66: 0 | Y66: 0 | Z66: 0 | AA66: 0 | AB66: 0 | AC66: 0 | AD66: 0 | AE66: =IF(A66<>"",SUM($E$50:E66),0) -> 0 | AF66: =IF(A66<>"",SUM($D$50:D66),0) -> 0
A67: 2 | B67: 6 | D67: =IF(E67=0,0,MAX($D$50:D66))*IF(B67=1,IF($H$2=1,105%,102%),1) -> 0 | E67: 0 | F67: 0 | G67: 1.032149352 | H67: =IF(A67<>"",G67*(1+INDEX('Hozamsorok-eszközalapok'!$B$11:$F$55,A67,IF($D$20=1,1,$D$19-2))+$F$23)^(1/12),0) -> 1.034191286 | I67: 0 | J67: 0 | K67: 0 | L67: 0 | M67: 0 | N67: 0 | O67: 0 | P67: 0 | Q67: 0 | R67: 0 | S67: 0 | T67: 0 | U67: 0 | V67: 0 | W67: 0 | X67: 0 | Y67: 0 | Z67: 0 | AA67: 0 | AB67: 0 | AC67: 0 | AD67: 0 | AE67: =IF(A67<>"",SUM($E$50:E67),0) -> 0 | AF67: =IF(A67<>"",SUM($D$50:D67),0) -> 0
A68: 2 | B68: 7 | D68: =IF(E68=0,0,MAX($D$50:D67))*IF(B68=1,IF($H$2=1,105%,102%),1) -> 0 | E68: 0 | F68: 0 | G68: 1.034191286 | H68: =IF(A68<>"",G68*(1+INDEX('Hozamsorok-eszközalapok'!$B$11:$F$55,A68,IF($D$20=1,1,$D$19-2))+$F$23)^(1/12),0) -> 1.036237259 | I68: 0 | J68: 0 | K68: 0 | L68: 0 | M68: 0 | N68: 0 | O68: 0 | P68: 0 | Q68: 0 | R68: 0 | S68: 0 | T68: 0 | U68: 0 | V68: 0 | W68: 0 | X68: 0 | Y68: 0 | Z68: 0 | AA68: 0 | AB68: 0 | AC68: 0 | AD68: 0 | AE68: =IF(A68<>"",SUM($E$50:E68),0) -> 0 | AF68: =IF(A68<>"",SUM($D$50:D68),0) -> 0
A69: 2 | B69: 8 | D69: =IF(E69=0,0,MAX($D$50:D68))*IF(B69=1,IF($H$2=1,105%,102%),1) -> 0 | E69: 0 | F69: 0 | G69: 1.036237259 | H69: =IF(A69<>"",G69*(1+INDEX('Hozamsorok-eszközalapok'!$B$11:$F$55,A69,IF($D$20=1,1,$D$19-2))+$F$23)^(1/12),0) -> 1.03828728 | I69: 0 | J69: 0 | K69: 0 | L69: 0 | M69: 0 | N69: 0 | O69: 0 | P69: 0 | Q69: 0 | R69: 0 | S69: 0 | T69: 0 | U69: 0 | V69: 0 | W69: 0 | X69: 0 | Y69: 0 | Z69: 0 | AA69: 0 | AB69: 0 | AC69: 0 | AD69: 0 | AE69: =IF(A69<>"",SUM($E$50:E69),0) -> 0 | AF69: =IF(A69<>"",SUM($D$50:D69),0) -> 0
A70: 2 | B70: 9 | D70: =IF(E70=0,0,MAX($D$50:D69))*IF(B70=1,IF($H$2=1,105%,102%),1) -> 0 | E70: 0 | F70: 0 | G70: 1.03828728 | H70: =IF(A70<>"",G70*(1+INDEX('Hozamsorok-eszközalapok'!$B$11:$F$55,A70,IF($D$20=1,1,$D$19-2))+$F$23)^(1/12),0) -> 1.040341357 | I70: 0 | J70: 0 | K70: 0 | L70: 0 | M70: 0 | N70: 0 | O70: 0 | P70: 0 | Q70: 0 | R70: 0 | S70: 0 | T70: 0 | U70: 0 | V70: 0 | W70: 0 | X70: 0 | Y70: 0 | Z70: 0 | AA70: 0 | AB70: 0 | AC70: 0 | AD70: 0 | AE70: =IF(A70<>"",SUM($E$50:E70),0) -> 0 | AF70: =IF(A70<>"",SUM($D$50:D70),0) -> 0
A71: 2 | B71: 10 | D71: =IF(E71=0,0,MAX($D$50:D70))*IF(B71=1,IF($H$2=1,105%,102%),1) -> 0 | E71: 0 | F71: 0 | G71: 1.040341357 | H71: =IF(A71<>"",G71*(1+INDEX('Hozamsorok-eszközalapok'!$B$11:$F$55,A71,IF($D$20=1,1,$D$19-2))+$F$23)^(1/12),0) -> 1.042399497 | I71: 0 | J71: 0 | K71: 0 | L71: 0 | M71: 0 | N71: 0 | O71: 0 | P71: 0 | Q71: 0 | R71: 0 | S71: 0 | T71: 0 | U71: 0 | V71: 0 | W71: 0 | X71: 0 | Y71: 0 | Z71: 0 | AA71: 0 | AB71: 0 | AC71: 0 | AD71: 0 | AE71: =IF(A71<>"",SUM($E$50:E71),0) -> 0 | AF71: =IF(A71<>"",SUM($D$50:D71),0) -> 0
A72: 2 | B72: 11 | D72: =IF(E72=0,0,MAX($D$50:D71))*IF(B72=1,IF($H$2=1,105%,102%),1) -> 0 | E72: 0 | F72: 0 | G72: 1.042399497 | H72: =IF(A72<>"",G72*(1+INDEX('Hozamsorok-eszközalapok'!$B$11:$F$55,A72,IF($D$20=1,1,$D$19-2))+$F$23)^(1/12),0) -> 1.044461708 | I72: 0 | J72: 0 | K72: 0 | L72: 0 | M72: 0 | N72: 0 | O72: 0 | P72: 0 | Q72: 0 | R72: 0 | S72: 0 | T72: 0 | U72: 0 | V72: 0 | W72: 0 | X72: 0 | Y72: 0 | Z72: 0 | AA72: 0 | AB72: 0 | AC72: 0 | AD72: 0 | AE72: =IF(A72<>"",SUM($E$50:E72),0) -> 0 | AF72: =IF(A72<>"",SUM($D$50:D72),0) -> 0
A73: 2 | B73: 12 | D73: =IF(E73=0,0,MAX($D$50:D72))*IF(B73=1,IF($H$2=1,105%,102%),1) -> 0 | E73: 0 | F73: 0 | G73: 1.044461708 | H73: =IF(A73<>"",G73*(1+INDEX('Hozamsorok-eszközalapok'!$B$11:$F$55,A73,IF($D$20=1,1,$D$19-2))+$F$23)^(1/12),0) -> 1.046528 | I73: 0 | J73: 0 | K73: 0 | L73: 0 | M73: 0 | N73: 0 | O73: 0 | P73: 0 | Q73: 0 | R73: 0 | S73: 0 | T73: 0 | U73: 0 | V73: 0 | W73: 0 | X73: 0 | Y73: 0 | Z73: 0 | AA73: 0 | AB73: 0 | AC73: 0 | AD73: 0 | AE73: =IF(A73<>"",SUM($E$50:E73),0) -> 0 | AF73: =IF(A73<>"",SUM($D$50:D73),0) -> 0
A74: 3 | B74: 1 | D74: =IF(E74=0,0,MAX($D$50:D73))*IF(B74=1,IF($H$2=1,105%,102%),1) -> 0 | E74: 0 | F74: 0 | G74: 1.046528 | H74: =IF(A74<>"",G74*(1+INDEX('Hozamsorok-eszközalapok'!$B$11:$F$55,A74,IF($D$20=1,1,$D$19-2))+$F$23)^(1/12),0) -> 1.048854042 | I74: 0 | J74: 0 | K74: 0 | L74: 0 | M74: 0 | N74: 0 | O74: 0 | P74: 0 | Q74: 0 | R74: 0 | S74: 0 | T74: 0 | U74: 0 | V74: 0 | W74: 0 | X74: 0 | Y74: 0 | Z74: 0 | AA74: 0 | AB74: 0 | AC74: 0 | AD74: 0 | AE74: =IF(A74<>"",SUM($E$50:E74),0) -> 0 | AF74: =IF(A74<>"",SUM($D$50:D74),0) -> 0
A75: 3 | B75: 2 | D75: =IF(E75=0,0,MAX($D$50:D74))*IF(B75=1,IF($H$2=1,105%,102%),1) -> 0 | E75: 0 | F75: 0 | G75: 1.048854042 | H75: =IF(A75<>"",G75*(1+INDEX('Hozamsorok-eszközalapok'!$B$11:$F$55,A75,IF($D$20=1,1,$D$19-2))+$F$23)^(1/12),0) -> 1.051185253 | I75: 0 | J75: 0 | K75: 0 | L75: 0 | M75: 0 | N75: 0 | O75: 0 | P75: 0 | Q75: 0 | R75: 0 | S75: 0 | T75: 0 | U75: 0 | V75: 0 | W75: 0 | X75: 0 | Y75: 0 | Z75: 0 | AA75: 0 | AB75: 0 | AC75: 0 | AD75: 0 | AE75: =IF(A75<>"",SUM($E$50:E75),0) -> 0 | AF75: =IF(A75<>"",SUM($D$50:D75),0) -> 0
A76: 3 | B76: 3 | D76: =IF(E76=0,0,MAX($D$50:D75))*IF(B76=1,IF($H$2=1,105%,102%),1) -> 0 | E76: 0 | F76: 0 | G76: 1.051185253 | H76: =IF(A76<>"",G76*(1+INDEX('Hozamsorok-eszközalapok'!$B$11:$F$55,A76,IF($D$20=1,1,$D$19-2))+$F$23)^(1/12),0) -> 1.053521646 | I76: 0 | J76: 0 | K76: 0 | L76: 0 | M76: 0 | N76: 0 | O76: 0 | P76: 0 | Q76: 0 | R76: 0 | S76: 0 | T76: 0 | U76: 0 | V76: 0 | W76: 0 | X76: 0 | Y76: 0 | Z76: 0 | AA76: 0 | AB76: 0 | AC76: 0 | AD76: 0 | AE76: =IF(A76<>"",SUM($E$50:E76),0) -> 0 | AF76: =IF(A76<>"",SUM($D$50:D76),0) -> 0
A77: 3 | B77: 4 | D77: =IF(E77=0,0,MAX($D$50:D76))*IF(B77=1,IF($H$2=1,105%,102%),1) -> 0 | E77: 0 | F77: 0 | G77: 1.053521646 | H77: =IF(A77<>"",G77*(1+INDEX('Hozamsorok-eszközalapok'!$B$11:$F$55,A77,IF($D$20=1,1,$D$19-2))+$F$23)^(1/12),0) -> 1.055863232 | I77: 0 | J77: 0 | K77: 0 | L77: 0 | M77: 0 | N77: 0 | O77: 0 | P77: 0 | Q77: 0 | R77: 0 | S77: 0 | T77: 0 | U77: 0 | V77: 0 | W77: 0 | X77: 0 | Y77: 0 | Z77: 0 | AA77: 0 | AB77: 0 | AC77: 0 | AD77: 0 | AE77: =IF(A77<>"",SUM($E$50:E77),0) -> 0 | AF77: =IF(A77<>"",SUM($D$50:D77),0) -> 0
A78: 3 | B78: 5 | D78: =IF(E78=0,0,MAX($D$50:D77))*IF(B78=1,IF($H$2=1,105%,102%),1) -> 0 | E78: 0 | F78: 0 | G78: 1.055863232 | H78: =IF(A78<>"",G78*(1+INDEX('Hozamsorok-eszközalapok'!$B$11:$F$55,A78,IF($D$20=1,1,$D$19-2))+$F$23)^(1/12),0) -> 1.058210023 | I78: 0 | J78: 0 | K78: 0 | L78: 0 | M78: 0 | N78: 0 | O78: 0 | P78: 0 | Q78: 0 | R78: 0 | S78: 0 | T78: 0 | U78: 0 | V78: 0 | W78: 0 | X78: 0 | Y78: 0 | Z78: 0 | AA78: 0 | AB78: 0 | AC78: 0 | AD78: 0 | AE78: =IF(A78<>"",SUM($E$50:E78),0) -> 0 | AF78: =IF(A78<>"",SUM($D$50:D78),0) -> 0
A79: 3 | B79: 6 | D79: =IF(E79=0,0,MAX($D$50:D78))*IF(B79=1,IF($H$2=1,105%,102%),1) -> 0 | E79: 0 | F79: 0 | G79: 1.058210023 | H79: =IF(A79<>"",G79*(1+INDEX('Hozamsorok-eszközalapok'!$B$11:$F$55,A79,IF($D$20=1,1,$D$19-2))+$F$23)^(1/12),0) -> 1.060562029 | I79: 0 | J79: 0 | K79: 0 | L79: 0 | M79: 0 | N79: 0 | O79: 0 | P79: 0 | Q79: 0 | R79: 0 | S79: 0 | T79: 0 | U79: 0 | V79: 0 | W79: 0 | X79: 0 | Y79: 0 | Z79: 0 | AA79: 0 | AB79: 0 | AC79: 0 | AD79: 0 | AE79: =IF(A79<>"",SUM($E$50:E79),0) -> 0 | AF79: =IF(A79<>"",SUM($D$50:D79),0) -> 0
A80: 3 | B80: 7 | D80: =IF(E80=0,0,MAX($D$50:D79))*IF(B80=1,IF($H$2=1,105%,102%),1) -> 0 | E80: 0 | F80: 0 | G80: 1.060562029 | H80: =IF(A80<>"",G80*(1+INDEX('Hozamsorok-eszközalapok'!$B$11:$F$55,A80,IF($D$20=1,1,$D$19-2))+$F$23)^(1/12),0) -> 1.062919263 | I80: 0 | J80: 0 | K80: 0 | L80: 0 | M80: 0 | N80: 0 | O80: 0 | P80: 0 | Q80: 0 | R80: 0 | S80: 0 | T80: 0 | U80: 0 | V80: 0 | W80: 0 | X80: 0 | Y80: 0 | Z80: 0 | AA80: 0 | AB80: 0 | AC80: 0 | AD80: 0 | AE80: =IF(A80<>"",SUM($E$50:E80),0) -> 0 | AF80: =IF(A80<>"",SUM($D$50:D80),0) -> 0
A81: 3 | B81: 8 | D81: =IF(E81=0,0,MAX($D$50:D80))*IF(B81=1,IF($H$2=1,105%,102%),1) -> 0 | E81: 0 | F81: 0 | G81: 1.062919263 | H81: =IF(A81<>"",G81*(1+INDEX('Hozamsorok-eszközalapok'!$B$11:$F$55,A81,IF($D$20=1,1,$D$19-2))+$F$23)^(1/12),0) -> 1.065281737 | I81: 0 | J81: 0 | K81: 0 | L81: 0 | M81: 0 | N81: 0 | O81: 0 | P81: 0 | Q81: 0 | R81: 0 | S81: 0 | T81: 0 | U81: 0 | V81: 0 | W81: 0 | X81: 0 | Y81: 0 | Z81: 0 | AA81: 0 | AB81: 0 | AC81: 0 | AD81: 0 | AE81: =IF(A81<>"",SUM($E$50:E81),0) -> 0 | AF81: =IF(A81<>"",SUM($D$50:D81),0) -> 0
A82: 3 | B82: 9 | D82: =IF(E82=0,0,MAX($D$50:D81))*IF(B82=1,IF($H$2=1,105%,102%),1) -> 0 | E82: 0 | F82: 0 | G82: 1.065281737 | H82: =IF(A82<>"",G82*(1+INDEX('Hozamsorok-eszközalapok'!$B$11:$F$55,A82,IF($D$20=1,1,$D$19-2))+$F$23)^(1/12),0) -> 1.067649461 | I82: 0 | J82: 0 | K82: 0 | L82: 0 | M82: 0 | N82: 0 | O82: 0 | P82: 0 | Q82: 0 | R82: 0 | S82: 0 | T82: 0 | U82: 0 | V82: 0 | W82: 0 | X82: 0 | Y82: 0 | Z82: 0 | AA82: 0 | AB82: 0 | AC82: 0 | AD82: 0 | AE82: =IF(A82<>"",SUM($E$50:E82),0) -> 0 | AF82: =IF(A82<>"",SUM($D$50:D82),0) -> 0
A83: 3 | B83: 10 | D83: =IF(E83=0,0,MAX($D$50:D82))*IF(B83=1,IF($H$2=1,105%,102%),1) -> 0 | E83: 0 | F83: 0 | G83: 1.067649461 | H83: =IF(A83<>"",G83*(1+INDEX('Hozamsorok-eszközalapok'!$B$11:$F$55,A83,IF($D$20=1,1,$D$19-2))+$F$23)^(1/12),0) -> 1.070022448 | I83: 0 | J83: 0 | K83: 0 | L83: 0 | M83: 0 | N83: 0 | O83: 0 | P83: 0 | Q83: 0 | R83: 0 | S83: 0 | T83: 0 | U83: 0 | V83: 0 | W83: 0 | X83: 0 | Y83: 0 | Z83: 0 | AA83: 0 | AB83: 0 | AC83: 0 | AD83: 0 | AE83: =IF(A83<>"",SUM($E$50:E83),0) -> 0 | AF83: =IF(A83<>"",SUM($D$50:D83),0) -> 0
A84: 3 | B84: 11 | D84: =IF(E84=0,0,MAX($D$50:D83))*IF(B84=1,IF($H$2=1,105%,102%),1) -> 0 | E84: 0 | F84: 0 | G84: 1.070022448 | H84: =IF(A84<>"",G84*(1+INDEX('Hozamsorok-eszközalapok'!$B$11:$F$55,A84,IF($D$20=1,1,$D$19-2))+$F$23)^(1/12),0) -> 1.072400709 | I84: 0 | J84: 0 | K84: 0 | L84: 0 | M84: 0 | N84: 0 | O84: 0 | P84: 0 | Q84: 0 | R84: 0 | S84: 0 | T84: 0 | U84: 0 | V84: 0 | W84: 0 | X84: 0 | Y84: 0 | Z84: 0 | AA84: 0 | AB84: 0 | AC84: 0 | AD84: 0 | AE84: =IF(A84<>"",SUM($E$50:E84),0) -> 0 | AF84: =IF(A84<>"",SUM($D$50:D84),0) -> 0
A85: 3 | B85: 12 | D85: =IF(E85=0,0,MAX($D$50:D84))*IF(B85=1,IF($H$2=1,105%,102%),1) -> 0 | E85: 0 | F85: 0 | G85: 1.072400709 | H85: =IF(A85<>"",G85*(1+INDEX('Hozamsorok-eszközalapok'!$B$11:$F$55,A85,IF($D$20=1,1,$D$19-2))+$F$23)^(1/12),0) -> 1.074784256 | I85: 0 | J85: 0 | K85: 0 | L85: 0 | M85: 0 | N85: 0 | O85: 0 | P85: 0 | Q85: 0 | R85: 0 | S85: 0 | T85: 0 | U85: 0 | V85: 0 | W85: 0 | X85: 0 | Y85: 0 | Z85: 0 | AA85: 0 | AB85: 0 | AC85: 0 | AD85: 0 | AE85: =IF(A85<>"",SUM($E$50:E85),0) -> 0 | AF85: =IF(A85<>"",SUM($D$50:D85),0) -> 0
A86: 4 | B86: 1 | D86: =IF(E86=0,0,MAX($D$50:D85))*IF(B86=1,IF($H$2=1,105%,102%),1) -> 0 | E86: 0 | F86: 0 | G86: 1.074784256 | H86: =IF(A86<>"",G86*(1+INDEX('Hozamsorok-eszközalapok'!$B$11:$F$55,A86,IF($D$20=1,1,$D$19-2))+$F$23)^(1/12),0) -> 1.077347754 | I86: 0 | J86: 0 | K86: 0 | L86: 0 | M86: 0 | N86: 0 | O86: 0 | P86: 0 | Q86: 0 | R86: 0 | S86: 0 | T86: 0 | U86: 0 | V86: 0 | W86: 0 | X86: 0 | Y86: 0 | Z86: 0 | AA86: 0 | AB86: 0 | AC86: 0 | AD86: 0 | AE86: =IF(A86<>"",SUM($E$50:E86),0) -> 0 | AF86: =IF(A86<>"",SUM($D$50:D86),0) -> 0
A87: 4 | B87: 2 | D87: =IF(E87=0,0,MAX($D$50:D86))*IF(B87=1,IF($H$2=1,105%,102%),1) -> 0 | E87: 0 | F87: 0 | G87: 1.077347754 | H87: =IF(A87<>"",G87*(1+INDEX('Hozamsorok-eszközalapok'!$B$11:$F$55,A87,IF($D$20=1,1,$D$19-2))+$F$23)^(1/12),0) -> 1.079917366 | I87: 0 | J87: 0 | K87: 0 | L87: 0 | M87: 0 | N87: 0 | O87: 0 | P87: 0 | Q87: 0 | R87: 0 | S87: 0 | T87: 0 | U87: 0 | V87: 0 | W87: 0 | X87: 0 | Y87: 0 | Z87: 0 | AA87: 0 | AB87: 0 | AC87: 0 | AD87: 0 | AE87: =IF(A87<>"",SUM($E$50:E87),0) -> 0 | AF87: =IF(A87<>"",SUM($D$50:D87),0) -> 0
A88: 4 | B88: 3 | D88: =IF(E88=0,0,MAX($D$50:D87))*IF(B88=1,IF($H$2=1,105%,102%),1) -> 0 | E88: 0 | F88: 0 | G88: 1.079917366 | H88: =IF(A88<>"",G88*(1+INDEX('Hozamsorok-eszközalapok'!$B$11:$F$55,A88,IF($D$20=1,1,$D$19-2))+$F$23)^(1/12),0) -> 1.082493107 | I88: 0 | J88: 0 | K88: 0 | L88: 0 | M88: 0 | N88: 0 | O88: 0 | P88: 0 | Q88: 0 | R88: 0 | S88: 0 | T88: 0 | U88: 0 | V88: 0 | W88: 0 | X88: 0 | Y88: 0 | Z88: 0 | AA88: 0 | AB88: 0 | AC88: 0 | AD88: 0 | AE88: =IF(A88<>"",SUM($E$50:E88),0) -> 0 | AF88: =IF(A88<>"",SUM($D$50:D88),0) -> 0
A89: 4 | B89: 4 | D89: =IF(E89=0,0,MAX($D$50:D88))*IF(B89=1,IF($H$2=1,105%,102%),1) -> 0 | E89: 0 | F89: 0 | G89: 1.082493107 | H89: =IF(A89<>"",G89*(1+INDEX('Hozamsorok-eszközalapok'!$B$11:$F$55,A89,IF($D$20=1,1,$D$19-2))+$F$23)^(1/12),0) -> 1.085074992 | I89: 0 | J89: 0 | K89: 0 | L89: 0 | M89: 0 | N89: 0 | O89: 0 | P89: 0 | Q89: 0 | R89: 0 | S89: 0 | T89: 0 | U89: 0 | V89: 0 | W89: 0 | X89: 0 | Y89: 0 | Z89: 0 | AA89: 0 | AB89: 0 | AC89: 0 | AD89: 0 | AE89: =IF(A89<>"",SUM($E$50:E89),0) -> 0 | AF89: =IF(A89<>"",SUM($D$50:D89),0) -> 0
A90: 4 | B90: 5 | D90: =IF(E90=0,0,MAX($D$50:D89))*IF(B90=1,IF($H$2=1,105%,102%),1) -> 0 | E90: 0 | F90: 0 | G90: 1.085074992 | H90: =IF(A90<>"",G90*(1+INDEX('Hozamsorok-eszközalapok'!$B$11:$F$55,A90,IF($D$20=1,1,$D$19-2))+$F$23)^(1/12),0) -> 1.087663035 | I90: 0 | J90: 0 | K90: 0 | L90: 0 | M90: 0 | N90: 0 | O90: 0 | P90: 0 | Q90: 0 | R90: 0 | S90: 0 | T90: 0 | U90: 0 | V90: 0 | W90: 0 | X90: 0 | Y90: 0 | Z90: 0 | AA90: 0 | AB90: 0 | AC90: 0 | AD90: 0 | AE90: =IF(A90<>"",SUM($E$50:E90),0) -> 0 | AF90: =IF(A90<>"",SUM($D$50:D90),0) -> 0
A91: 4 | B91: 6 | D91: =IF(E91=0,0,MAX($D$50:D90))*IF(B91=1,IF($H$2=1,105%,102%),1) -> 0 | E91: 0 | F91: 0 | G91: 1.087663035 | H91: =IF(A91<>"",G91*(1+INDEX('Hozamsorok-eszközalapok'!$B$11:$F$55,A91,IF($D$20=1,1,$D$19-2))+$F$23)^(1/12),0) -> 1.09025725 | I91: 0 | J91: 0 | K91: 0 | L91: 0 | M91: 0 | N91: 0 | O91: 0 | P91: 0 | Q91: 0 | R91: 0 | S91: 0 | T91: 0 | U91: 0 | V91: 0 | W91: 0 | X91: 0 | Y91: 0 | Z91: 0 | AA91: 0 | AB91: 0 | AC91: 0 | AD91: 0 | AE91: =IF(A91<>"",SUM($E$50:E91),0) -> 0 | AF91: =IF(A91<>"",SUM($D$50:D91),0) -> 0
A92: 4 | B92: 7 | D92: =IF(E92=0,0,MAX($D$50:D91))*IF(B92=1,IF($H$2=1,105%,102%),1) -> 0 | E92: 0 | F92: 0 | G92: 1.09025725 | H92: =IF(A92<>"",G92*(1+INDEX('Hozamsorok-eszközalapok'!$B$11:$F$55,A92,IF($D$20=1,1,$D$19-2))+$F$23)^(1/12),0) -> 1.092857653 | I92: 0 | J92: 0 | K92: 0 | L92: 0 | M92: 0 | N92: 0 | O92: 0 | P92: 0 | Q92: 0 | R92: 0 | S92: 0 | T92: 0 | U92: 0 | V92: 0 | W92: 0 | X92: 0 | Y92: 0 | Z92: 0 | AA92: 0 | AB92: 0 | AC92: 0 | AD92: 0 | AE92: =IF(A92<>"",SUM($E$50:E92),0) -> 0 | AF92: =IF(A92<>"",SUM($D$50:D92),0) -> 0
A93: 4 | B93: 8 | D93: =IF(E93=0,0,MAX($D$50:D92))*IF(B93=1,IF($H$2=1,105%,102%),1) -> 0 | E93: 0 | F93: 0 | G93: 1.092857653 | H93: =IF(A93<>"",G93*(1+INDEX('Hozamsorok-eszközalapok'!$B$11:$F$55,A93,IF($D$20=1,1,$D$19-2))+$F$23)^(1/12),0) -> 1.095464259 | I93: 0 | J93: 0 | K93: 0 | L93: 0 | M93: 0 | N93: 0 | O93: 0 | P93: 0 | Q93: 0 | R93: 0 | S93: 0 | T93: 0 | U93: 0 | V93: 0 | W93: 0 | X93: 0 | Y93: 0 | Z93: 0 | AA93: 0 | AB93: 0 | AC93: 0 | AD93: 0 | AE93: =IF(A93<>"",SUM($E$50:E93),0) -> 0 | AF93: =IF(A93<>"",SUM($D$50:D93),0) -> 0
A94: 4 | B94: 9 | D94: =IF(E94=0,0,MAX($D$50:D93))*IF(B94=1,IF($H$2=1,105%,102%),1) -> 0 | E94: 0 | F94: 0 | G94: 1.095464259 | H94: =IF(A94<>"",G94*(1+INDEX('Hozamsorok-eszközalapok'!$B$11:$F$55,A94,IF($D$20=1,1,$D$19-2))+$F$23)^(1/12),0) -> 1.098077081 | I94: 0 | J94: 0 | K94: 0 | L94: 0 | M94: 0 | N94: 0 | O94: 0 | P94: 0 | Q94: 0 | R94: 0 | S94: 0 | T94: 0 | U94: 0 | V94: 0 | W94: 0 | X94: 0 | Y94: 0 | Z94: 0 | AA94: 0 | AB94: 0 | AC94: 0 | AD94: 0 | AE94: =IF(A94<>"",SUM($E$50:E94),0) -> 0 | AF94: =IF(A94<>"",SUM($D$50:D94),0) -> 0
A95: 4 | B95: 10 | D95: =IF(E95=0,0,MAX($D$50:D94))*IF(B95=1,IF($H$2=1,105%,102%),1) -> 0 | E95: 0 | F95: 0 | G95: 1.098077081 | H95: =IF(A95<>"",G95*(1+INDEX('Hozamsorok-eszközalapok'!$B$11:$F$55,A95,IF($D$20=1,1,$D$19-2))+$F$23)^(1/12),0) -> 1.100696135 | I95: 0 | J95: 0 | K95: 0 | L95: 0 | M95: 0 | N95: 0 | O95: 0 | P95: 0 | Q95: 0 | R95: 0 | S95: 0 | T95: 0 | U95: 0 | V95: 0 | W95: 0 | X95: 0 | Y95: 0 | Z95: 0 | AA95: 0 | AB95: 0 | AC95: 0 | AD95: 0 | AE95: =IF(A95<>"",SUM($E$50:E95),0) -> 0 | AF95: =IF(A95<>"",SUM($D$50:D95),0) -> 0
A96: 4 | B96: 11 | D96: =IF(E96=0,0,MAX($D$50:D95))*IF(B96=1,IF($H$2=1,105%,102%),1) -> 0 | E96: 0 | F96: 0 | G96: 1.100696135 | H96: =IF(A96<>"",G96*(1+INDEX('Hozamsorok-eszközalapok'!$B$11:$F$55,A96,IF($D$20=1,1,$D$19-2))+$F$23)^(1/12),0) -> 1.103321437 | I96: 0 | J96: 0 | K96: 0 | L96: 0 | M96: 0 | N96: 0 | O96: 0 | P96: 0 | Q96: 0 | R96: 0 | S96: 0 | T96: 0 | U96: 0 | V96: 0 | W96: 0 | X96: 0 | Y96: 0 | Z96: 0 | AA96: 0 | AB96: 0 | AC96: 0 | AD96: 0 | AE96: =IF(A96<>"",SUM($E$50:E96),0) -> 0 | AF96: =IF(A96<>"",SUM($D$50:D96),0) -> 0
A97: 4 | B97: 12 | D97: =IF(E97=0,0,MAX($D$50:D96))*IF(B97=1,IF($H$2=1,105%,102%),1) -> 0 | E97: 0 | F97: 0 | G97: 1.103321437 | H97: =IF(A97<>"",G97*(1+INDEX('Hozamsorok-eszközalapok'!$B$11:$F$55,A97,IF($D$20=1,1,$D$19-2))+$F$23)^(1/12),0) -> 1.105952999 | I97: 0 | J97: 0 | K97: 0 | L97: 0 | M97: 0 | N97: 0 | O97: 0 | P97: 0 | Q97: 0 | R97: 0 | S97: 0 | T97: 0 | U97: 0 | V97: 0 | W97: 0 | X97: 0 | Y97: 0 | Z97: 0 | AA97: 0 | AB97: 0 | AC97: 0 | AD97: 0 | AE97: =IF(A97<>"",SUM($E$50:E97),0) -> 0 | AF97: =IF(A97<>"",SUM($D$50:D97),0) -> 0
A98: 5 | B98: 1 | D98: =IF(E98=0,0,MAX($D$50:D97))*IF(B98=1,IF($H$2=1,105%,102%),1) -> 0 | E98: 0 | F98: 0 | G98: 1.105952999 | H98: =IF(A98<>"",G98*(1+INDEX('Hozamsorok-eszközalapok'!$B$11:$F$55,A98,IF($D$20=1,1,$D$19-2))+$F$23)^(1/12),0) -> 1.108680578 | I98: 0 | J98: 0 | K98: 0 | L98: 0 | M98: 0 | N98: 0 | O98: 0 | P98: 0 | Q98: 0 | R98: 0 | S98: 0 | T98: 0 | U98: 0 | V98: 0 | W98: 0 | X98: 0 | Y98: 0 | Z98: 0 | AA98: 0 | AB98: 0 | AC98: 0 | AD98: 0 | AE98: =IF(A98<>"",SUM($E$50:E98),0) -> 0 | AF98: =IF(A98<>"",SUM($D$50:D98),0) -> 0
A99: 5 | B99: 2 | D99: =IF(E99=0,0,MAX($D$50:D98))*IF(B99=1,IF($H$2=1,105%,102%),1) -> 0 | E99: 0 | F99: 0 | G99: 1.108680578 | H99: =IF(A99<>"",G99*(1+INDEX('Hozamsorok-eszközalapok'!$B$11:$F$55,A99,IF($D$20=1,1,$D$19-2))+$F$23)^(1/12),0) -> 1.111414883 | I99: 0 | J99: 0 | K99: 0 | L99: 0 | M99: 0 | N99: 0 | O99: 0 | P99: 0 | Q99: 0 | R99: 0 | S99: 0 | T99: 0 | U99: 0 | V99: 0 | W99: 0 | X99: 0 | Y99: 0 | Z99: 0 | AA99: 0 | AB99: 0 | AC99: 0 | AD99: 0 | AE99: =IF(A99<>"",SUM($E$50:E99),0) -> 0 | AF99: =IF(A99<>"",SUM($D$50:D99),0) -> 0
A100: 5 | B100: 3 | D100: =IF(E100=0,0,MAX($D$50:D99))*IF(B100=1,IF($H$2=1,105%,102%),1) -> 0 | E100: 0 | F100: 0 | G100: 1.111414883 | H100: =IF(A100<>"",G100*(1+INDEX('Hozamsorok-eszközalapok'!$B$11:$F$55,A100,IF($D$20=1,1,$D$19-2))+$F$23)^(1/12),0) -> 1.114155932 | I100: 0 | J100: 0 | K100: 0 | L100: 0 | M100: 0 | N100: 0 | O100: 0 | P100: 0 | Q100: 0 | R100: 0 | S100: 0 | T100: 0 | U100: 0 | V100: 0 | W100: 0 | X100: 0 | Y100: 0 | Z100: 0 | AA100: 0 | AB100: 0 | AC100: 0 | AD100: 0 | AE100: =IF(A100<>"",SUM($E$50:E100),0) -> 0 | AF100: =IF(A100<>"",SUM($D$50:D100),0) -> 0
A101: 5 | B101: 4 | D101: =IF(E101=0,0,MAX($D$50:D100))*IF(B101=1,IF($H$2=1,105%,102%),1) -> 0 | E101: 0 | F101: 0 | G101: 1.114155932 | H101: =IF(A101<>"",G101*(1+INDEX('Hozamsorok-eszközalapok'!$B$11:$F$55,A101,IF($D$20=1,1,$D$19-2))+$F$23)^(1/12),0) -> 1.116903741 | I101: 0 | J101: 0 | K101: 0 | L101: 0 | M101: 0 | N101: 0 | O101: 0 | P101: 0 | Q101: 0 | R101: 0 | S101: 0 | T101: 0 | U101: 0 | V101: 0 | W101: 0 | X101: 0 | Y101: 0 | Z101: 0 | AA101: 0 | AB101: 0 | AC101: 0 | AD101: 0 | AE101: =IF(A101<>"",SUM($E$50:E101),0) -> 0 | AF101: =IF(A101<>"",SUM($D$50:D101),0) -> 0
A102: 5 | B102: 5 | D102: =IF(E102=0,0,MAX($D$50:D101))*IF(B102=1,IF($H$2=1,105%,102%),1) -> 0 | E102: 0 | F102: 0 | G102: 1.116903741 | H102: =IF(A102<>"",G102*(1+INDEX('Hozamsorok-eszközalapok'!$B$11:$F$55,A102,IF($D$20=1,1,$D$19-2))+$F$23)^(1/12),0) -> 1.119658327 | I102: 0 | J102: 0 | K102: 0 | L102: 0 | M102: 0 | N102: 0 | O102: 0 | P102: 0 | Q102: 0 | R102: 0 | S102: 0 | T102: 0 | U102: 0 | V102: 0 | W102: 0 | X102: 0 | Y102: 0 | Z102: 0 | AA102: 0 | AB102: 0 | AC102: 0 | AD102: 0 | AE102: =IF(A102<>"",SUM($E$50:E102),0) -> 0 | AF102: =IF(A102<>"",SUM($D$50:D102),0) -> 0
A103: 5 | B103: 6 | D103: =IF(E103=0,0,MAX($D$50:D102))*IF(B103=1,IF($H$2=1,105%,102%),1) -> 0 | E103: 0 | F103: 0 | G103: 1.119658327 | H103: =IF(A103<>"",G103*(1+INDEX('Hozamsorok-eszközalapok'!$B$11:$F$55,A103,IF($D$20=1,1,$D$19-2))+$F$23)^(1/12),0) -> 1.122419707 | I103: 0 | J103: 0 | K103: 0 | L103: 0 | M103: 0 | N103: 0 | O103: 0 | P103: 0 | Q103: 0 | R103: 0 | S103: 0 | T103: 0 | U103: 0 | V103: 0 | W103: 0 | X103: 0 | Y103: 0 | Z103: 0 | AA103: 0 | AB103: 0 | AC103: 0 | AD103: 0 | AE103: =IF(A103<>"",SUM($E$50:E103),0) -> 0 | AF103: =IF(A103<>"",SUM($D$50:D103),0) -> 0
A104: 5 | B104: 7 | D104: =IF(E104=0,0,MAX($D$50:D103))*IF(B104=1,IF($H$2=1,105%,102%),1) -> 0 | E104: 0 | F104: 0 | G104: 1.122419707 | H104: =IF(A104<>"",G104*(1+INDEX('Hozamsorok-eszközalapok'!$B$11:$F$55,A104,IF($D$20=1,1,$D$19-2))+$F$23)^(1/12),0) -> 1.125187897 | I104: 0 | J104: 0 | K104: 0 | L104: 0 | M104: 0 | N104: 0 | O104: 0 | P104: 0 | Q104: 0 | R104: 0 | S104: 0 | T104: 0 | U104: 0 | V104: 0 | W104: 0 | X104: 0 | Y104: 0 | Z104: 0 | AA104: 0 | AB104: 0 | AC104: 0 | AD104: 0 | AE104: =IF(A104<>"",SUM($E$50:E104),0) -> 0 | AF104: =IF(A104<>"",SUM($D$50:D104),0) -> 0
A105: 5 | B105: 8 | D105: =IF(E105=0,0,MAX($D$50:D104))*IF(B105=1,IF($H$2=1,105%,102%),1) -> 0 | E105: 0 | F105: 0 | G105: 1.125187897 | H105: =IF(A105<>"",G105*(1+INDEX('Hozamsorok-eszközalapok'!$B$11:$F$55,A105,IF($D$20=1,1,$D$19-2))+$F$23)^(1/12),0) -> 1.127962913 | I105: 0 | J105: 0 | K105: 0 | L105: 0 | M105: 0 | N105: 0 | O105: 0 | P105: 0 | Q105: 0 | R105: 0 | S105: 0 | T105: 0 | U105: 0 | V105: 0 | W105: 0 | X105: 0 | Y105: 0 | Z105: 0 | AA105: 0 | AB105: 0 | AC105: 0 | AD105: 0 | AE105: =IF(A105<>"",SUM($E$50:E105),0) -> 0 | AF105: =IF(A105<>"",SUM($D$50:D105),0) -> 0
A106: 5 | B106: 9 | D106: =IF(E106=0,0,MAX($D$50:D105))*IF(B106=1,IF($H$2=1,105%,102%),1) -> 0 | E106: 0 | F106: 0 | G106: 1.127962913 | H106: =IF(A106<>"",G106*(1+INDEX('Hozamsorok-eszközalapok'!$B$11:$F$55,A106,IF($D$20=1,1,$D$19-2))+$F$23)^(1/12),0) -> 1.130744774 | I106: 0 | J106: 0 | K106: 0 | L106: 0 | M106: 0 | N106: 0 | O106: 0 | P106: 0 | Q106: 0 | R106: 0 | S106: 0 | T106: 0 | U106: 0 | V106: 0 | W106: 0 | X106: 0 | Y106: 0 | Z106: 0 | AA106: 0 | AB106: 0 | AC106: 0 | AD106: 0 | AE106: =IF(A106<>"",SUM($E$50:E106),0) -> 0 | AF106: =IF(A106<>"",SUM($D$50:D106),0) -> 0
A107: 5 | B107: 10 | D107: =IF(E107=0,0,MAX($D$50:D106))*IF(B107=1,IF($H$2=1,105%,102%),1) -> 0 | E107: 0 | F107: 0 | G107: 1.130744774 | H107: =IF(A107<>"",G107*(1+INDEX('Hozamsorok-eszközalapok'!$B$11:$F$55,A107,IF($D$20=1,1,$D$19-2))+$F$23)^(1/12),0) -> 1.133533496 | I107: 0 | J107: 0 | K107: 0 | L107: 0 | M107: 0 | N107: 0 | O107: 0 | P107: 0 | Q107: 0 | R107: 0 | S107: 0 | T107: 0 | U107: 0 | V107: 0 | W107: 0 | X107: 0 | Y107: 0 | Z107: 0 | AA107: 0 | AB107: 0 | AC107: 0 | AD107: 0 | AE107: =IF(A107<>"",SUM($E$50:E107),0) -> 0 | AF107: =IF(A107<>"",SUM($D$50:D107),0) -> 0
A108: 5 | B108: 11 | D108: =IF(E108=0,0,MAX($D$50:D107))*IF(B108=1,IF($H$2=1,105%,102%),1) -> 0 | E108: 0 | F108: 0 | G108: 1.133533496 | H108: =IF(A108<>"",G108*(1+INDEX('Hozamsorok-eszközalapok'!$B$11:$F$55,A108,IF($D$20=1,1,$D$19-2))+$F$23)^(1/12),0) -> 1.136329095 | I108: 0 | J108: 0 | K108: 0 | L108: 0 | M108: 0 | N108: 0 | O108: 0 | P108: 0 | Q108: 0 | R108: 0 | S108: 0 | T108: 0 | U108: 0 | V108: 0 | W108: 0 | X108: 0 | Y108: 0 | Z108: 0 | AA108: 0 | AB108: 0 | AC108: 0 | AD108: 0 | AE108: =IF(A108<>"",SUM($E$50:E108),0) -> 0 | AF108: =IF(A108<>"",SUM($D$50:D108),0) -> 0
A109: 5 | B109: 12 | D109: =IF(E109=0,0,MAX($D$50:D108))*IF(B109=1,IF($H$2=1,105%,102%),1) -> 0 | E109: 0 | F109: 0 | G109: 1.136329095 | H109: =IF(A109<>"",G109*(1+INDEX('Hozamsorok-eszközalapok'!$B$11:$F$55,A109,IF($D$20=1,1,$D$19-2))+$F$23)^(1/12),0) -> 1.139131589 | I109: 0 | J109: 0 | K109: 0 | L109: 0 | M109: 0 | N109: 0 | O109: 0 | P109: 0 | Q109: 0 | R109: 0 | S109: 0 | T109: 0 | U109: 0 | V109: 0 | W109: 0 | X109: 0 | Y109: 0 | Z109: 0 | AA109: 0 | AB109: 0 | AC109: 0 | AD109: 0 | AE109: =IF(A109<>"",SUM($E$50:E109),0) -> 0 | AF109: =IF(A109<>"",SUM($D$50:D109),0) -> 0
A110: 6 | B110: 1 | D110: =IF(E110=0,0,MAX($D$50:D109))*IF(B110=1,IF($H$2=1,105%,102%),1) -> 0 | E110: 0 | F110: 0 | G110: 1.139131589 | H110: =IF(A110<>"",G110*(1+INDEX('Hozamsorok-eszközalapok'!$B$11:$F$55,A110,IF($D$20=1,1,$D$19-2))+$F$23)^(1/12),0) -> 1.142125611 | I110: 0 | J110: 0 | K110: 0 | L110: 0 | M110: 0 | N110: 0 | O110: 0 | P110: 0 | Q110: 0 | R110: 0 | S110: 0 | T110: 0 | U110: 0 | V110: 0 | W110: 0 | X110: 0 | Y110: 0 | Z110: 0 | AA110: 0 | AB110: 0 | AC110: 0 | AD110: 0 | AE110: =IF(A110<>"",SUM($E$50:E110),0) -> 0 | AF110: =IF(A110<>"",SUM($D$50:D110),0) -> 0
A111: 6 | B111: 2 | D111: =IF(E111=0,0,MAX($D$50:D110))*IF(B111=1,IF($H$2=1,105%,102%),1) -> 0 | E111: 0 | F111: 0 | G111: 1.142125611 | H111: =IF(A111<>"",G111*(1+INDEX('Hozamsorok-eszközalapok'!$B$11:$F$55,A111,IF($D$20=1,1,$D$19-2))+$F$23)^(1/12),0) -> 1.145127502 | I111: 0 | J111: 0 | K111: 0 | L111: 0 | M111: 0 | N111: 0 | O111: 0 | P111: 0 | Q111: 0 | R111: 0 | S111: 0 | T111: 0 | U111: 0 | V111: 0 | W111: 0 | X111: 0 | Y111: 0 | Z111: 0 | AA111: 0 | AB111: 0 | AC111: 0 | AD111: 0 | AE111: =IF(A111<>"",SUM($E$50:E111),0) -> 0 | AF111: =IF(A111<>"",SUM($D$50:D111),0) -> 0
A112: 6 | B112: 3 | D112: =IF(E112=0,0,MAX($D$50:D111))*IF(B112=1,IF($H$2=1,105%,102%),1) -> 0 | E112: 0 | F112: 0 | G112: 1.145127502 | H112: =IF(A112<>"",G112*(1+INDEX('Hozamsorok-eszközalapok'!$B$11:$F$55,A112,IF($D$20=1,1,$D$19-2))+$F$23)^(1/12),0) -> 1.148137283 | I112: 0 | J112: 0 | K112: 0 | L112: 0 | M112: 0 | N112: 0 | O112: 0 | P112: 0 | Q112: 0 | R112: 0 | S112: 0 | T112: 0 | U112: 0 | V112: 0 | W112: 0 | X112: 0 | Y112: 0 | Z112: 0 | AA112: 0 | AB112: 0 | AC112: 0 | AD112: 0 | AE112: =IF(A112<>"",SUM($E$50:E112),0) -> 0 | AF112: =IF(A112<>"",SUM($D$50:D112),0) -> 0
A113: 6 | B113: 4 | D113: =IF(E113=0,0,MAX($D$50:D112))*IF(B113=1,IF($H$2=1,105%,102%),1) -> 0 | E113: 0 | F113: 0 | G113: 1.148137283 | H113: =IF(A113<>"",G113*(1+INDEX('Hozamsorok-eszközalapok'!$B$11:$F$55,A113,IF($D$20=1,1,$D$19-2))+$F$23)^(1/12),0) -> 1.151154975 | I113: 0 | J113: 0 | K113: 0 | L113: 0 | M113: 0 | N113: 0 | O113: 0 | P113: 0 | Q113: 0 | R113: 0 | S113: 0 | T113: 0 | U113: 0 | V113: 0 | W113: 0 | X113: 0 | Y113: 0 | Z113: 0 | AA113: 0 | AB113: 0 | AC113: 0 | AD113: 0 | AE113: =IF(A113<>"",SUM($E$50:E113),0) -> 0 | AF113: =IF(A113<>"",SUM($D$50:D113),0) -> 0
A114: 6 | B114: 5 | D114: =IF(E114=0,0,MAX($D$50:D113))*IF(B114=1,IF($H$2=1,105%,102%),1) -> 0 | E114: 0 | F114: =E114*$D$13 -> 0 | G114: 1.151154975 | H114: =IF(A114<>"",G114*(1+INDEX('Hozamsorok-eszközalapok'!$B$11:$F$55,A114,IF($D$20=1,1,$D$19-2))+$F$23)^(1/12),0) -> 1.154180598 | I114: 0 | J114: 0 | K114: 0 | L114: 0 | M114: =K114*(1-$G$8) -> 0 | N114: 0 | O114: 0 | P114: 0 | Q114: 0 | R114: 0 | S114: 0 | T114: 0 | U114: 0 | V114: 0 | W114: 0 | X114: 0 | Y114: 0 | Z114: 0 | AA114: 0 | AB114: 0 | AC114: =H114*(T114+U114) -> 0 | AD114: 0 | AE114: =IF(A114<>"",SUM($E$50:E114),0) -> 0 | AF114: =IF(A114<>"",SUM($D$50:D114),0) -> 0
A115: =IF(B114<12,A114,IF(A114<$D$9,A114+1,"")) -> 6 | B115: 6 | D115: =IF(E115=0,0,MAX($D$50:D114))*IF(B115=1,IF($H$2=1,105%,102%),1) -> 0 | E115: =IF(AND($D$8=1,SUM(A115:B115)=2),$D$12,IF(A115>$D$10,0,IF(OR(AND($D$8=2,B115=1),AND($D$8=4,OR(B115=1,B115=7)),AND($D$8=5,OR(B115=1,B115=4,B115=7,B115=10)),AND($D$8=3,B115>=1)),$D$12*(1+$D$25)^(A115-1),0))) -> 0 | F115: 0 | G115: 1.154180598 | H115: =IF(A115<>"",G115*(1+INDEX('Hozamsorok-eszközalapok'!$B$11:$F$55,A115,IF($D$20=1,1,$D$19-2))+$F$23)^(1/12),0) -> 1.157214173 | I115: =IF(E115<>"",IF(A115<=2,(E115-F115)/G115,0),0) -> 0 | J115: =IF(A115<>"",IF(A115>2,(E115-F115)/G115,0),0) -> 0 | K115: =IF(A115<>"",U114+I115,0) -> 0 | L115: =IF(A115<>"",T114+J115,0) -> 0 | M115: 0 | N115: 0 | O115: =IF($E$4=TRUE,IF($D$19=4,0,(M115+N115)*($G$10+$G$11)*G115),0) -> 0 | P115: =IF($D$8<>1,M115,IF(A115<>"",M115-O115/G115,0)) -> 0 | Q115: =IF(A115<>"",N115-X115/G115,0) -> 0 | R115: =IF(OR(AND($D$8=1,A115<=$D$9),AND($D$8<>1,A115<=$D$10)),$D$15*($G$13+G115*((P115+Q115)-P115*$G$14^(IF($D$8=1,$D$9,$D$10)*12-((A115-1)*12+B115-1))-Q115*$G$15)),0) -> 0 | S115: =IF($D$8<>1,P115,IF(A115<>"",P115-R115/G115,0)) -> 0 | T115: =IF(A115<>"",Q115-AA115/G115,0) -> 0 | U115: =IF(AND($D$8<>1,A115>$D$10),S115,S115*(1-$D$14)) -> 0 | V115: 0 | W115: 0 | X115: 0 | Y115: 0 | Z115: 0 | AA115: 0 | AB115: 0 | AC115: 0 | AD115: =MAX(0,IF(A115<>"",IF(AND($D$8<>1,A115<=2,(A115+B115)<>14),0,H115*(U115*$G$14^(IF(AND($D$8<>1,A115>$D$10),0,IF($D$8=1,$D$9,$D$10)*12-((A115-1)*12+B115)))+T115*$G$15)-AB115),0)) -> 0 | AE115: =IF(A115<>"",SUM($E$50:E115),0) -> 0 | AF115: =IF(A115<>"",SUM($D$50:D115),0) -> 0
A116: 6 | B116: =IF(A116="","",IF(B115=12,1,B115+1)) -> 7 | D116: =IF(E116=0,0,MAX($D$50:D115))*IF(B116=1,IF($H$2=1,105%,102%),1) -> 0 | E116: 0 | F116: 0 | G116: =IF(A116<>"",H115,0) -> 1.157214173 | H116: =IF(A116<>"",G116*(1+INDEX('Hozamsorok-eszközalapok'!$B$11:$F$55,A116,IF($D$20=1,1,$D$19-2))+$F$23)^(1/12),0) -> 1.160255722 | I116: 0 | J116: 0 | K116: 0 | L116: 0 | M116: 0 | N116: 0 | O116: 0 | P116: 0 | Q116: 0 | R116: 0 | S116: 0 | T116: 0 | U116: 0 | V116: =IF(AND(A116<>"",$D$8<>1),O116+AB115,0) -> 0 | W116: =N116*G116 -> 0 | X116: =MIN(V116,W116) -> 0 | Y116: =IF(AND(A116<>"",$D$8<>1),V116-X116+R116,0) -> 0 | Z116: =Q116*G116 -> 0 | AA116: =MIN(Y116,Z116) -> 0 | AB116: =IF(A116<>"",Y116-AA116,0) -> 0 | AC116: 0 | AD116: 0 | AE116: =IF(A116<>"",SUM($E$50:E116),0) -> 0 | AF116: =IF(A116<>"",SUM($D$50:D116),0) -> 0
A117: 6 | B117: 8 | D117: =IF(E117=0,0,MAX($D$50:D116))*IF(B117=1,IF($H$2=1,105%,102%),1) -> 0 | E117: 0 | F117: 0 | G117: 1.160255722 | H117: =IF(A117<>"",G117*(1+INDEX('Hozamsorok-eszközalapok'!$B$11:$F$55,A117,IF($D$20=1,1,$D$19-2))+$F$23)^(1/12),0) -> 1.163305265 | I117: 0 | J117: 0 | K117: 0 | L117: 0 | M117: 0 | N117: 0 | O117: 0 | P117: 0 | Q117: 0 | R117: 0 | S117: 0 | T117: 0 | U117: 0 | V117: 0 | W117: 0 | X117: 0 | Y117: 0 | Z117: 0 | AA117: 0 | AB117: 0 | AC117: 0 | AD117: 0 | AE117: =IF(A117<>"",SUM($E$50:E117),0) -> 0 | AF117: =IF(A117<>"",SUM($D$50:D117),0) -> 0
A118: 6 | B118: 9 | D118: =IF(E118=0,0,MAX($D$50:D117))*IF(B118=1,IF($H$2=1,105%,102%),1) -> 0 | E118: 0 | F118: 0 | G118: 1.163305265 | H118: =IF(A118<>"",G118*(1+INDEX('Hozamsorok-eszközalapok'!$B$11:$F$55,A118,IF($D$20=1,1,$D$19-2))+$F$23)^(1/12),0) -> 1.166362823 | I118: 0 | J118: 0 | K118: 0 | L118: 0 | M118: 0 | N118: 0 | O118: 0 | P118: 0 | Q118: 0 | R118: 0 | S118: 0 | T118: 0 | U118: 0 | V118: 0 | W118: 0 | X118: 0 | Y118: 0 | Z118: 0 | AA118: 0 | AB118: 0 | AC118: 0 | AD118: 0 | AE118: =IF(A118<>"",SUM($E$50:E118),0) -> 0 | AF118: =IF(A118<>"",SUM($D$50:D118),0) -> 0
A119: 6 | B119: 10 | D119: =IF(E119=0,0,MAX($D$50:D118))*IF(B119=1,IF($H$2=1,105%,102%),1) -> 0 | E119: 0 | F119: 0 | G119: 1.166362823 | H119: =IF(A119<>"",G119*(1+INDEX('Hozamsorok-eszközalapok'!$B$11:$F$55,A119,IF($D$20=1,1,$D$19-2))+$F$23)^(1/12),0) -> 1.169428418 | I119: 0 | J119: 0 | K119: 0 | L119: 0 | M119: 0 | N119: 0 | O119: 0 | P119: 0 | Q119: 0 | R119: 0 | S119: 0 | T119: 0 | U119: 0 | V119: 0 | W119: 0 | X119: 0 | Y119: 0 | Z119: 0 | AA119: 0 | AB119: 0 | AC119: 0 | AD119: 0 | AE119: =IF(A119<>"",SUM($E$50:E119),0) -> 0 | AF119: =IF(A119<>"",SUM($D$50:D119),0) -> 0
A120: 6 | B120: 11 | D120: =IF(E120=0,0,MAX($D$50:D119))*IF(B120=1,IF($H$2=1,105%,102%),1) -> 0 | E120: 0 | F120: 0 | G120: 1.169428418 | H120: =IF(A120<>"",G120*(1+INDEX('Hozamsorok-eszközalapok'!$B$11:$F$55,A120,IF($D$20=1,1,$D$19-2))+$F$23)^(1/12),0) -> 1.17250207 | I120: 0 | J120: 0 | K120: 0 | L120: 0 | M120: 0 | N120: 0 | O120: 0 | P120: 0 | Q120: 0 | R120: 0 | S120: 0 | T120: 0 | U120: 0 | V120: 0 | W120: 0 | X120: 0 | Y120: 0 | Z120: 0 | AA120: 0 | AB120: 0 | AC120: 0 | AD120: 0 | AE120: =IF(A120<>"",SUM($E$50:E120),0) -> 0 | AF120: =IF(A120<>"",SUM($D$50:D120),0) -> 0
A121: 6 | B121: 12 | D121: =IF(E121=0,0,MAX($D$50:D120))*IF(B121=1,IF($H$2=1,105%,102%),1) -> 0 | E121: 0 | F121: 0 | G121: 1.17250207 | H121: =IF(A121<>"",G121*(1+INDEX('Hozamsorok-eszközalapok'!$B$11:$F$55,A121,IF($D$20=1,1,$D$19-2))+$F$23)^(1/12),0) -> 1.1755838 | I121: 0 | J121: 0 | K121: 0 | L121: 0 | M121: 0 | N121: 0 | O121: 0 | P121: 0 | Q121: 0 | R121: 0 | S121: 0 | T121: 0 | U121: 0 | V121: 0 | W121: 0 | X121: 0 | Y121: 0 | Z121: 0 | AA121: 0 | AB121: 0 | AC121: 0 | AD121: 0 | AE121: =IF(A121<>"",SUM($E$50:E121),0) -> 0 | AF121: =IF(A121<>"",SUM($D$50:D121),0) -> 0
A122: 7 | B122: 1 | D122: =IF(E122=0,0,MAX($D$50:D121))*IF(B122=1,IF($H$2=1,105%,102%),1) -> 0 | E122: 0 | F122: 0 | G122: 1.1755838 | H122: =IF(A122<>"",G122*(1+INDEX('Hozamsorok-eszközalapok'!$B$11:$F$55,A122,IF($D$20=1,1,$D$19-2))+$F$23)^(1/12),0) -> 1.178768766 | I122: 0 | J122: 0 | K122: 0 | L122: 0 | M122: 0 | N122: 0 | O122: 0 | P122: 0 | Q122: 0 | R122: 0 | S122: 0 | T122: 0 | U122: 0 | V122: 0 | W122: 0 | X122: 0 | Y122: 0 | Z122: 0 | AA122: 0 | AB122: 0 | AC122: 0 | AD122: 0 | AE122: =IF(A122<>"",SUM($E$50:E122),0) -> 0 | AF122: =IF(A122<>"",SUM($D$50:D122),0) -> 0
A123: 7 | B123: 2 | D123: =IF(E123=0,0,MAX($D$50:D122))*IF(B123=1,IF($H$2=1,105%,102%),1) -> 0 | E123: 0 | F123: 0 | G123: 1.178768766 | H123: =IF(A123<>"",G123*(1+INDEX('Hozamsorok-eszközalapok'!$B$11:$F$55,A123,IF($D$20=1,1,$D$19-2))+$F$23)^(1/12),0) -> 1.18196236 | I123: 0 | J123: 0 | K123: 0 | L123: 0 | M123: 0 | N123: 0 | O123: 0 | P123: 0 | Q123: 0 | R123: 0 | S123: 0 | T123: 0 | U123: 0 | V123: 0 | W123: 0 | X123: 0 | Y123: 0 | Z123: 0 | AA123: 0 | AB123: 0 | AC123: 0 | AD123: 0 | AE123: =IF(A123<>"",SUM($E$50:E123),0) -> 0 | AF123: =IF(A123<>"",SUM($D$50:D123),0) -> 0
A124: 7 | B124: 3 | D124: =IF(E124=0,0,MAX($D$50:D123))*IF(B124=1,IF($H$2=1,105%,102%),1) -> 0 | E124: 0 | F124: 0 | G124: 1.18196236 | H124: =IF(A124<>"",G124*(1+INDEX('Hozamsorok-eszközalapok'!$B$11:$F$55,A124,IF($D$20=1,1,$D$19-2))+$F$23)^(1/12),0) -> 1.185164606 | I124: 0 | J124: 0 | K124: 0 | L124: 0 | M124: 0 | N124: 0 | O124: 0 | P124: 0 | Q124: 0 | R124: 0 | S124: 0 | T124: 0 | U124: 0 | V124: 0 | W124: 0 | X124: 0 | Y124: 0 | Z124: 0 | AA124: 0 | AB124: 0 | AC124: 0 | AD124: 0 | AE124: =IF(A124<>"",SUM($E$50:E124),0) -> 0 | AF124: =IF(A124<>"",SUM($D$50:D124),0) -> 0
A125: 7 | B125: 4 | D125: =IF(E125=0,0,MAX($D$50:D124))*IF(B125=1,IF($H$2=1,105%,102%),1) -> 0 | E125: 0 | F125: 0 | G125: 1.185164606 | H125: =IF(A125<>"",G125*(1+INDEX('Hozamsorok-eszközalapok'!$B$11:$F$55,A125,IF($D$20=1,1,$D$19-2))+$F$23)^(1/12),0) -> 1.188375528 | I125: 0 | J125: 0 | K125: 0 | L125: 0 | M125: 0 | N125: 0 | O125: 0 | P125: 0 | Q125: 0 | R125: 0 | S125: 0 | T125: 0 | U125: 0 | V125: 0 | W125: 0 | X125: 0 | Y125: 0 | Z125: 0 | AA125: 0 | AB125: 0 | AC125: 0 | AD125: 0 | AE125: =IF(A125<>"",SUM($E$50:E125),0) -> 0 | AF125: =IF(A125<>"",SUM($D$50:D125),0) -> 0
A126: 7 | B126: 5 | D126: =IF(E126=0,0,MAX($D$50:D125))*IF(B126=1,IF($H$2=1,105%,102%),1) -> 0 | E126: 0 | F126: 0 | G126: 1.188375528 | H126: =IF(A126<>"",G126*(1+INDEX('Hozamsorok-eszközalapok'!$B$11:$F$55,A126,IF($D$20=1,1,$D$19-2))+$F$23)^(1/12),0) -> 1.19159515 | I126: 0 | J126: 0 | K126: 0 | L126: 0 | M126: 0 | N126: 0 | O126: 0 | P126: 0 | Q126: 0 | R126: 0 | S126: 0 | T126: 0 | U126: 0 | V126: 0 | W126: 0 | X126: 0 | Y126: 0 | Z126: 0 | AA126: 0 | AB126: 0 | AC126: 0 | AD126: 0 | AE126: =IF(A126<>"",SUM($E$50:E126),0) -> 0 | AF126: =IF(A126<>"",SUM($D$50:D126),0) -> 0
A127: 7 | B127: 6 | D127: =IF(E127=0,0,MAX($D$50:D126))*IF(B127=1,IF($H$2=1,105%,102%),1) -> 0 | E127: 0 | F127: 0 | G127: 1.19159515 | H127: =IF(A127<>"",G127*(1+INDEX('Hozamsorok-eszközalapok'!$B$11:$F$55,A127,IF($D$20=1,1,$D$19-2))+$F$23)^(1/12),0) -> 1.194823494 | I127: 0 | J127: 0 | K127: 0 | L127: 0 | M127: 0 | N127: 0 | O127: 0 | P127: 0 | Q127: 0 | R127: 0 | S127: 0 | T127: 0 | U127: 0 | V127: 0 | W127: 0 | X127: 0 | Y127: 0 | Z127: 0 | AA127: 0 | AB127: 0 | AC127: 0 | AD127: 0 | AE127: =IF(A127<>"",SUM($E$50:E127),0) -> 0 | AF127: =IF(A127<>"",SUM($D$50:D127),0) -> 0
A128: 7 | B128: 7 | D128: =IF(E128=0,0,MAX($D$50:D127))*IF(B128=1,IF($H$2=1,105%,102%),1) -> 0 | E128: 0 | F128: 0 | G128: 1.194823494 | H128: =IF(A128<>"",G128*(1+INDEX('Hozamsorok-eszközalapok'!$B$11:$F$55,A128,IF($D$20=1,1,$D$19-2))+$F$23)^(1/12),0) -> 1.198060584 | I128: 0 | J128: 0 | K128: 0 | L128: 0 | M128: 0 | N128: 0 | O128: 0 | P128: 0 | Q128: 0 | R128: 0 | S128: 0 | T128: 0 | U128: 0 | V128: 0 | W128: 0 | X128: 0 | Y128: 0 | Z128: 0 | AA128: 0 | AB128: 0 | AC128: 0 | AD128: 0 | AE128: =IF(A128<>"",SUM($E$50:E128),0) -> 0 | AF128: =IF(A128<>"",SUM($D$50:D128),0) -> 0
A129: 7 | B129: 8 | D129: =IF(E129=0,0,MAX($D$50:D128))*IF(B129=1,IF($H$2=1,105%,102%),1) -> 0 | E129: 0 | F129: 0 | G129: 1.198060584 | H129: =IF(A129<>"",G129*(1+INDEX('Hozamsorok-eszközalapok'!$B$11:$F$55,A129,IF($D$20=1,1,$D$19-2))+$F$23)^(1/12),0) -> 1.201306445 | I129: 0 | J129: 0 | K129: 0 | L129: 0 | M129: 0 | N129: 0 | O129: 0 | P129: 0 | Q129: 0 | R129: 0 | S129: 0 | T129: 0 | U129: 0 | V129: 0 | W129: 0 | X129: 0 | Y129: 0 | Z129: 0 | AA129: 0 | AB129: 0 | AC129: 0 | AD129: 0 | AE129: =IF(A129<>"",SUM($E$50:E129),0) -> 0 | AF129: =IF(A129<>"",SUM($D$50:D129),0) -> 0
A130: 7 | B130: 9 | D130: =IF(E130=0,0,MAX($D$50:D129))*IF(B130=1,IF($H$2=1,105%,102%),1) -> 0 | E130: 0 | F130: 0 | G130: 1.201306445 | H130: =IF(A130<>"",G130*(1+INDEX('Hozamsorok-eszközalapok'!$B$11:$F$55,A130,IF($D$20=1,1,$D$19-2))+$F$23)^(1/12),0) -> 1.2045611 | I130: 0 | J130: 0 | K130: 0 | L130: 0 | M130: 0 | N130: 0 | O130: 0 | P130: 0 | Q130: 0 | R130: 0 | S130: 0 | T130: 0 | U130: 0 | V130: 0 | W130: 0 | X130: 0 | Y130: 0 | Z130: 0 | AA130: 0 | AB130: 0 | AC130: 0 | AD130: 0 | AE130: =IF(A130<>"",SUM($E$50:E130),0) -> 0 | AF130: =IF(A130<>"",SUM($D$50:D130),0) -> 0
A131: 7 | B131: 10 | D131: =IF(E131=0,0,MAX($D$50:D130))*IF(B131=1,IF($H$2=1,105%,102%),1) -> 0 | E131: 0 | F131: 0 | G131: 1.2045611 | H131: =IF(A131<>"",G131*(1+INDEX('Hozamsorok-eszközalapok'!$B$11:$F$55,A131,IF($D$20=1,1,$D$19-2))+$F$23)^(1/12),0) -> 1.207824572 | I131: 0 | J131: 0 | K131: 0 | L131: 0 | M131: 0 | N131: 0 | O131: 0 | P131: 0 | Q131: 0 | R131: 0 | S131: 0 | T131: 0 | U131: 0 | V131: 0 | W131: 0 | X131: 0 | Y131: 0 | Z131: 0 | AA131: 0 | AB131: 0 | AC131: 0 | AD131: 0 | AE131: =IF(A131<>"",SUM($E$50:E131),0) -> 0 | AF131: =IF(A131<>"",SUM($D$50:D131),0) -> 0
A132: 7 | B132: 11 | D132: =IF(E132=0,0,MAX($D$50:D131))*IF(B132=1,IF($H$2=1,105%,102%),1) -> 0 | E132: 0 | F132: 0 | G132: 1.207824572 | H132: =IF(A132<>"",G132*(1+INDEX('Hozamsorok-eszközalapok'!$B$11:$F$55,A132,IF($D$20=1,1,$D$19-2))+$F$23)^(1/12),0) -> 1.211096886 | I132: 0 | J132: 0 | K132: 0 | L132: 0 | M132: 0 | N132: 0 | O132: 0 | P132: 0 | Q132: 0 | R132: 0 | S132: 0 | T132: 0 | U132: 0 | V132: 0 | W132: 0 | X132: 0 | Y132: 0 | Z132: 0 | AA132: 0 | AB132: 0 | AC132: 0 | AD132: 0 | AE132: =IF(A132<>"",SUM($E$50:E132),0) -> 0 | AF132: =IF(A132<>"",SUM($D$50:D132),0) -> 0
A133: 7 | B133: 12 | D133: =IF(E133=0,0,MAX($D$50:D132))*IF(B133=1,IF($H$2=1,105%,102%),1) -> 0 | E133: 0 | F133: 0 | G133: 1.211096886 | H133: =IF(A133<>"",G133*(1+INDEX('Hozamsorok-eszközalapok'!$B$11:$F$55,A133,IF($D$20=1,1,$D$19-2))+$F$23)^(1/12),0) -> 1.214378066 | I133: 0 | J133: 0 | K133: 0 | L133: 0 | M133: 0 | N133: 0 | O133: 0 | P133: 0 | Q133: 0 | R133: 0 | S133: 0 | T133: 0 | U133: 0 | V133: 0 | W133: 0 | X133: 0 | Y133: 0 | Z133: 0 | AA133: 0 | AB133: 0 | AC133: 0 | AD133: 0 | AE133: =IF(A133<>"",SUM($E$50:E133),0) -> 0 | AF133: =IF(A133<>"",SUM($D$50:D133),0) -> 0
A134: 8 | B134: 1 | D134: =IF(E134=0,0,MAX($D$50:D133))*IF(B134=1,IF($H$2=1,105%,102%),1) -> 0 | E134: 0 | F134: 0 | G134: 1.214378066 | H134: =IF(A134<>"",G134*(1+INDEX('Hozamsorok-eszközalapok'!$B$11:$F$55,A134,IF($D$20=1,1,$D$19-2))+$F$23)^(1/12),0) -> 1.217766322 | I134: 0 | J134: 0 | K134: 0 | L134: 0 | M134: 0 | N134: 0 | O134: 0 | P134: 0 | Q134: 0 | R134: 0 | S134: 0 | T134: 0 | U134: 0 | V134: 0 | W134: 0 | X134: 0 | Y134: 0 | Z134: 0 | AA134: 0 | AB134: 0 | AC134: 0 | AD134: 0 | AE134: =IF(A134<>"",SUM($E$50:E134),0) -> 0 | AF134: =IF(A134<>"",SUM($D$50:D134),0) -> 0
A135: 8 | B135: 2 | D135: =IF(E135=0,0,MAX($D$50:D134))*IF(B135=1,IF($H$2=1,105%,102%),1) -> 0 | E135: 0 | F135: 0 | G135: 1.217766322 | H135: =IF(A135<>"",G135*(1+INDEX('Hozamsorok-eszközalapok'!$B$11:$F$55,A135,IF($D$20=1,1,$D$19-2))+$F$23)^(1/12),0) -> 1.221164032 | I135: 0 | J135: 0 | K135: 0 | L135: 0 | M135: 0 | N135: 0 | O135: 0 | P135: 0 | Q135: 0 | R135: 0 | S135: 0 | T135: 0 | U135: 0 | V135: 0 | W135: 0 | X135: 0 | Y135: 0 | Z135: 0 | AA135: 0 | AB135: 0 | AC135: 0 | AD135: 0 | AE135: =IF(A135<>"",SUM($E$50:E135),0) -> 0 | AF135: =IF(A135<>"",SUM($D$50:D135),0) -> 0
A136: 8 | B136: 3 | D136: =IF(E136=0,0,MAX($D$50:D135))*IF(B136=1,IF($H$2=1,105%,102%),1) -> 0 | E136: 0 | F136: 0 | G136: 1.221164032 | H136: =IF(A136<>"",G136*(1+INDEX('Hozamsorok-eszközalapok'!$B$11:$F$55,A136,IF($D$20=1,1,$D$19-2))+$F$23)^(1/12),0) -> 1.224571222 | I136: 0 | J136: 0 | K136: 0 | L136: 0 | M136: 0 | N136: 0 | O136: 0 | P136: 0 | Q136: 0 | R136: 0 | S136: 0 | T136: 0 | U136: 0 | V136: 0 | W136: 0 | X136: 0 | Y136: 0 | Z136: 0 | AA136: 0 | AB136: 0 | AC136: 0 | AD136: 0 | AE136: =IF(A136<>"",SUM($E$50:E136),0) -> 0 | AF136: =IF(A136<>"",SUM($D$50:D136),0) -> 0
A137: 8 | B137: 4 | D137: =IF(E137=0,0,MAX($D$50:D136))*IF(B137=1,IF($H$2=1,105%,102%),1) -> 0 | E137: 0 | F137: 0 | G137: 1.224571222 | H137: =IF(A137<>"",G137*(1+INDEX('Hozamsorok-eszközalapok'!$B$11:$F$55,A137,IF($D$20=1,1,$D$19-2))+$F$23)^(1/12),0) -> 1.227987918 | I137: 0 | J137: 0 | K137: 0 | L137: 0 | M137: 0 | N137: 0 | O137: 0 | P137: 0 | Q137: 0 | R137: 0 | S137: 0 | T137: 0 | U137: 0 | V137: 0 | W137: 0 | X137: 0 | Y137: 0 | Z137: 0 | AA137: 0 | AB137: 0 | AC137: 0 | AD137: 0 | AE137: =IF(A137<>"",SUM($E$50:E137),0) -> 0 | AF137: =IF(A137<>"",SUM($D$50:D137),0) -> 0
A138: 8 | B138: 5 | D138: =IF(E138=0,0,MAX($D$50:D137))*IF(B138=1,IF($H$2=1,105%,102%),1) -> 0 | E138: 0 | F138: 0 | G138: 1.227987918 | H138: =IF(A138<>"",G138*(1+INDEX('Hozamsorok-eszközalapok'!$B$11:$F$55,A138,IF($D$20=1,1,$D$19-2))+$F$23)^(1/12),0) -> 1.231414147 | I138: 0 | J138: 0 | K138: 0 | L138: 0 | M138: 0 | N138: 0 | O138: 0 | P138: 0 | Q138: 0 | R138: 0 | S138: 0 | T138: 0 | U138: 0 | V138: 0 | W138: 0 | X138: 0 | Y138: 0 | Z138: 0 | AA138: 0 | AB138: 0 | AC138: 0 | AD138: 0 | AE138: =IF(A138<>"",SUM($E$50:E138),0) -> 0 | AF138: =IF(A138<>"",SUM($D$50:D138),0) -> 0
A139: 8 | B139: 6 | D139: =IF(E139=0,0,MAX($D$50:D138))*IF(B139=1,IF($H$2=1,105%,102%),1) -> 0 | E139: 0 | F139: 0 | G139: 1.231414147 | H139: =IF(A139<>"",G139*(1+INDEX('Hozamsorok-eszközalapok'!$B$11:$F$55,A139,IF($D$20=1,1,$D$19-2))+$F$23)^(1/12),0) -> 1.234849936 | I139: 0 | J139: 0 | K139: 0 | L139: 0 | M139: 0 | N139: 0 | O139: 0 | P139: 0 | Q139: 0 | R139: 0 | S139: 0 | T139: 0 | U139: 0 | V139: 0 | W139: 0 | X139: 0 | Y139: 0 | Z139: 0 | AA139: 0 | AB139: 0 | AC139: 0 | AD139: 0 | AE139: =IF(A139<>"",SUM($E$50:E139),0) -> 0 | AF139: =IF(A139<>"",SUM($D$50:D139),0) -> 0
A140: 8 | B140: 7 | D140: =IF(E140=0,0,MAX($D$50:D139))*IF(B140=1,IF($H$2=1,105%,102%),1) -> 0 | E140: 0 | F140: 0 | G140: 1.234849936 | H140: =IF(A140<>"",G140*(1+INDEX('Hozamsorok-eszközalapok'!$B$11:$F$55,A140,IF($D$20=1,1,$D$19-2))+$F$23)^(1/12),0) -> 1.238295312 | I140: 0 | J140: 0 | K140: 0 | L140: 0 | M140: 0 | N140: 0 | O140: 0 | P140: 0 | Q140: 0 | R140: 0 | S140: 0 | T140: 0 | U140: 0 | V140: 0 | W140: 0 | X140: 0 | Y140: 0 | Z140: 0 | AA140: 0 | AB140: 0 | AC140: 0 | AD140: 0 | AE140: =IF(A140<>"",SUM($E$50:E140),0) -> 0 | AF140: =IF(A140<>"",SUM($D$50:D140),0) -> 0
A141: 8 | B141: 8 | D141: =IF(E141=0,0,MAX($D$50:D140))*IF(B141=1,IF($H$2=1,105%,102%),1) -> 0 | E141: 0 | F141: 0 | G141: 1.238295312 | H141: =IF(A141<>"",G141*(1+INDEX('Hozamsorok-eszközalapok'!$B$11:$F$55,A141,IF($D$20=1,1,$D$19-2))+$F$23)^(1/12),0) -> 1.2417503 | I141: 0 | J141: 0 | K141: 0 | L141: 0 | M141: 0 | N141: 0 | O141: 0 | P141: 0 | Q141: 0 | R141: 0 | S141: 0 | T141: 0 | U141: 0 | V141: 0 | W141: 0 | X141: 0 | Y141: 0 | Z141: 0 | AA141: 0 | AB141: 0 | AC141: 0 | AD141: 0 | AE141: =IF(A141<>"",SUM($E$50:E141),0) -> 0 | AF141: =IF(A141<>"",SUM($D$50:D141),0) -> 0
A142: 8 | B142: 9 | D142: =IF(E142=0,0,MAX($D$50:D141))*IF(B142=1,IF($H$2=1,105%,102%),1) -> 0 | E142: 0 | F142: 0 | G142: 1.2417503 | H142: =IF(A142<>"",G142*(1+INDEX('Hozamsorok-eszközalapok'!$B$11:$F$55,A142,IF($D$20=1,1,$D$19-2))+$F$23)^(1/12),0) -> 1.245214928 | I142: 0 | J142: 0 | K142: 0 | L142: 0 | M142: 0 | N142: 0 | O142: 0 | P142: 0 | Q142: 0 | R142: 0 | S142: 0 | T142: 0 | U142: 0 | V142: 0 | W142: 0 | X142: 0 | Y142: 0 | Z142: 0 | AA142: 0 | AB142: 0 | AC142: 0 | AD142: 0 | AE142: =IF(A142<>"",SUM($E$50:E142),0) -> 0 | AF142: =IF(A142<>"",SUM($D$50:D142),0) -> 0
A143: 8 | B143: 10 | D143: =IF(E143=0,0,MAX($D$50:D142))*IF(B143=1,IF($H$2=1,105%,102%),1) -> 0 | E143: 0 | F143: 0 | G143: 1.245214928 | H143: =IF(A143<>"",G143*(1+INDEX('Hozamsorok-eszközalapok'!$B$11:$F$55,A143,IF($D$20=1,1,$D$19-2))+$F$23)^(1/12),0) -> 1.248689222 | I143: 0 | J143: 0 | K143: 0 | L143: 0 | M143: 0 | N143: 0 | O143: 0 | P143: 0 | Q143: 0 | R143: 0 | S143: 0 | T143: 0 | U143: 0 | V143: 0 | W143: 0 | X143: 0 | Y143: 0 | Z143: 0 | AA143: 0 | AB143: 0 | AC143: 0 | AD143: 0 | AE143: =IF(A143<>"",SUM($E$50:E143),0) -> 0 | AF143: =IF(A143<>"",SUM($D$50:D143),0) -> 0
A144: 8 | B144: 11 | D144: =IF(E144=0,0,MAX($D$50:D143))*IF(B144=1,IF($H$2=1,105%,102%),1) -> 0 | E144: 0 | F144: 0 | G144: 1.248689222 | H144: =IF(A144<>"",G144*(1+INDEX('Hozamsorok-eszközalapok'!$B$11:$F$55,A144,IF($D$20=1,1,$D$19-2))+$F$23)^(1/12),0) -> 1.252173211 | I144: 0 | J144: 0 | K144: 0 | L144: 0 | M144: 0 | N144: 0 | O144: 0 | P144: 0 | Q144: 0 | R144: 0 | S144: 0 | T144: 0 | U144: 0 | V144: 0 | W144: 0 | X144: 0 | Y144: 0 | Z144: 0 | AA144: 0 | AB144: 0 | AC144: 0 | AD144: 0 | AE144: =IF(A144<>"",SUM($E$50:E144),0) -> 0 | AF144: =IF(A144<>"",SUM($D$50:D144),0) -> 0
A145: 8 | B145: 12 | D145: =IF(E145=0,0,MAX($D$50:D144))*IF(B145=1,IF($H$2=1,105%,102%),1) -> 0 | E145: 0 | F145: 0 | G145: 1.252173211 | H145: =IF(A145<>"",G145*(1+INDEX('Hozamsorok-eszközalapok'!$B$11:$F$55,A145,IF($D$20=1,1,$D$19-2))+$F$23)^(1/12),0) -> 1.25566692 | I145: 0 | J145: 0 | K145: 0 | L145: 0 | M145: 0 | N145: 0 | O145: 0 | P145: 0 | Q145: 0 | R145: 0 | S145: 0 | T145: 0 | U145: 0 | V145: 0 | W145: 0 | X145: 0 | Y145: 0 | Z145: 0 | AA145: 0 | AB145: 0 | AC145: 0 | AD145: 0 | AE145: =IF(A145<>"",SUM($E$50:E145),0) -> 0 | AF145: =IF(A145<>"",SUM($D$50:D145),0) -> 0
A146: 9 | B146: 1 | D146: =IF(E146=0,0,MAX($D$50:D145))*IF(B146=1,IF($H$2=1,105%,102%),1) -> 0 | E146: 0 | F146: 0 | G146: 1.25566692 | H146: =IF(A146<>"",G146*(1+INDEX('Hozamsorok-eszközalapok'!$B$11:$F$55,A146,IF($D$20=1,1,$D$19-2))+$F$23)^(1/12),0) -> 1.259271812 | I146: 0 | J146: 0 | K146: 0 | L146: 0 | M146: 0 | N146: 0 | O146: 0 | P146: 0 | Q146: 0 | R146: 0 | S146: 0 | T146: 0 | U146: 0 | V146: 0 | W146: 0 | X146: 0 | Y146: 0 | Z146: 0 | AA146: 0 | AB146: 0 | AC146: 0 | AD146: 0 | AE146: =IF(A146<>"",SUM($E$50:E146),0) -> 0 | AF146: =IF(A146<>"",SUM($D$50:D146),0) -> 0
A147: 9 | B147: 2 | D147: =IF(E147=0,0,MAX($D$50:D146))*IF(B147=1,IF($H$2=1,105%,102%),1) -> 0 | E147: 0 | F147: 0 | G147: 1.259271812 | H147: =IF(A147<>"",G147*(1+INDEX('Hozamsorok-eszközalapok'!$B$11:$F$55,A147,IF($D$20=1,1,$D$19-2))+$F$23)^(1/12),0) -> 1.262887054 | I147: 0 | J147: 0 | K147: 0 | L147: 0 | M147: 0 | N147: 0 | O147: 0 | P147: 0 | Q147: 0 | R147: 0 | S147: 0 | T147: 0 | U147: 0 | V147: 0 | W147: 0 | X147: 0 | Y147: 0 | Z147: 0 | AA147: 0 | AB147: 0 | AC147: 0 | AD147: 0 | AE147: =IF(A147<>"",SUM($E$50:E147),0) -> 0 | AF147: =IF(A147<>"",SUM($D$50:D147),0) -> 0
A148: 9 | B148: 3 | D148: =IF(E148=0,0,MAX($D$50:D147))*IF(B148=1,IF($H$2=1,105%,102%),1) -> 0 | E148: 0 | F148: 0 | G148: 1.262887054 | H148: =IF(A148<>"",G148*(1+INDEX('Hozamsorok-eszközalapok'!$B$11:$F$55,A148,IF($D$20=1,1,$D$19-2))+$F$23)^(1/12),0) -> 1.266512675 | I148: 0 | J148: 0 | K148: 0 | L148: 0 | M148: 0 | N148: 0 | O148: 0 | P148: 0 | Q148: 0 | R148: 0 | S148: 0 | T148: 0 | U148: 0 | V148: 0 | W148: 0 | X148: 0 | Y148: 0 | Z148: 0 | AA148: 0 | AB148: 0 | AC148: 0 | AD148: 0 | AE148: =IF(A148<>"",SUM($E$50:E148),0) -> 0 | AF148: =IF(A148<>"",SUM($D$50:D148),0) -> 0
A149: 9 | B149: 4 | D149: =IF(E149=0,0,MAX($D$50:D148))*IF(B149=1,IF($H$2=1,105%,102%),1) -> 0 | E149: 0 | F149: 0 | G149: 1.266512675 | H149: =IF(A149<>"",G149*(1+INDEX('Hozamsorok-eszközalapok'!$B$11:$F$55,A149,IF($D$20=1,1,$D$19-2))+$F$23)^(1/12),0) -> 1.270148705 | I149: 0 | J149: 0 | K149: 0 | L149: 0 | M149: 0 | N149: 0 | O149: 0 | P149: 0 | Q149: 0 | R149: 0 | S149: 0 | T149: 0 | U149: 0 | V149: 0 | W149: 0 | X149: 0 | Y149: 0 | Z149: 0 | AA149: 0 | AB149: 0 | AC149: 0 | AD149: 0 | AE149: =IF(A149<>"",SUM($E$50:E149),0) -> 0 | AF149: =IF(A149<>"",SUM($D$50:D149),0) -> 0
A150: 9 | B150: 5 | D150: =IF(E150=0,0,MAX($D$50:D149))*IF(B150=1,IF($H$2=1,105%,102%),1) -> 0 | E150: 0 | F150: 0 | G150: 1.270148705 | H150: =IF(A150<>"",G150*(1+INDEX('Hozamsorok-eszközalapok'!$B$11:$F$55,A150,IF($D$20=1,1,$D$19-2))+$F$23)^(1/12),0) -> 1.273795173 | I150: 0 | J150: 0 | K150: 0 | L150: 0 | M150: 0 | N150: 0 | O150: 0 | P150: 0 | Q150: 0 | R150: 0 | S150: 0 | T150: 0 | U150: 0 | V150: 0 | W150: 0 | X150: 0 | Y150: 0 | Z150: 0 | AA150: 0 | AB150: 0 | AC150: 0 | AD150: 0 | AE150: =IF(A150<>"",SUM($E$50:E150),0) -> 0 | AF150: =IF(A150<>"",SUM($D$50:D150),0) -> 0
A151: 9 | B151: 6 | D151: =IF(E151=0,0,MAX($D$50:D150))*IF(B151=1,IF($H$2=1,105%,102%),1) -> 0 | E151: 0 | F151: 0 | G151: 1.273795173 | H151: =IF(A151<>"",G151*(1+INDEX('Hozamsorok-eszközalapok'!$B$11:$F$55,A151,IF($D$20=1,1,$D$19-2))+$F$23)^(1/12),0) -> 1.27745211 | I151: 0 | J151: 0 | K151: 0 | L151: 0 | M151: 0 | N151: 0 | O151: 0 | P151: 0 | Q151: 0 | R151: 0 | S151: 0 | T151: 0 | U151: 0 | V151: 0 | W151: 0 | X151: 0 | Y151: 0 | Z151: 0 | AA151: 0 | AB151: 0 | AC151: 0 | AD151: 0 | AE151: =IF(A151<>"",SUM($E$50:E151),0) -> 0 | AF151: =IF(A151<>"",SUM($D$50:D151),0) -> 0
A152: 9 | B152: 7 | D152: =IF(E152=0,0,MAX($D$50:D151))*IF(B152=1,IF($H$2=1,105%,102%),1) -> 0 | E152: 0 | F152: 0 | G152: 1.27745211 | H152: =IF(A152<>"",G152*(1+INDEX('Hozamsorok-eszközalapok'!$B$11:$F$55,A152,IF($D$20=1,1,$D$19-2))+$F$23)^(1/12),0) -> 1.281119546 | I152: 0 | J152: 0 | K152: 0 | L152: 0 | M152: 0 | N152: 0 | O152: 0 | P152: 0 | Q152: 0 | R152: 0 | S152: 0 | T152: 0 | U152: 0 | V152: 0 | W152: 0 | X152: 0 | Y152: 0 | Z152: 0 | AA152: 0 | AB152: 0 | AC152: 0 | AD152: 0 | AE152: =IF(A152<>"",SUM($E$50:E152),0) -> 0 | AF152: =IF(A152<>"",SUM($D$50:D152),0) -> 0
A153: 9 | B153: 8 | D153: =IF(E153=0,0,MAX($D$50:D152))*IF(B153=1,IF($H$2=1,105%,102%),1) -> 0 | E153: 0 | F153: 0 | G153: 1.281119546 | H153: =IF(A153<>"",G153*(1+INDEX('Hozamsorok-eszközalapok'!$B$11:$F$55,A153,IF($D$20=1,1,$D$19-2))+$F$23)^(1/12),0) -> 1.28479751 | I153: 0 | J153: 0 | K153: 0 | L153: 0 | M153: 0 | N153: 0 | O153: 0 | P153: 0 | Q153: 0 | R153: 0 | S153: 0 | T153: 0 | U153: 0 | V153: 0 | W153: 0 | X153: 0 | Y153: 0 | Z153: 0 | AA153: 0 | AB153: 0 | AC153: 0 | AD153: 0 | AE153: =IF(A153<>"",SUM($E$50:E153),0) -> 0 | AF153: =IF(A153<>"",SUM($D$50:D153),0) -> 0
A154: 9 | B154: 9 | D154: =IF(E154=0,0,MAX($D$50:D153))*IF(B154=1,IF($H$2=1,105%,102%),1) -> 0 | E154: 0 | F154: 0 | G154: 1.28479751 | H154: =IF(A154<>"",G154*(1+INDEX('Hozamsorok-eszközalapok'!$B$11:$F$55,A154,IF($D$20=1,1,$D$19-2))+$F$23)^(1/12),0) -> 1.288486034 | I154: 0 | J154: 0 | K154: 0 | L154: 0 | M154: 0 | N154: 0 | O154: 0 | P154: 0 | Q154: 0 | R154: 0 | S154: 0 | T154: 0 | U154: 0 | V154: 0 | W154: 0 | X154: 0 | Y154: 0 | Z154: 0 | AA154: 0 | AB154: 0 | AC154: 0 | AD154: 0 | AE154: =IF(A154<>"",SUM($E$50:E154),0) -> 0 | AF154: =IF(A154<>"",SUM($D$50:D154),0) -> 0
A155: 9 | B155: 10 | D155: =IF(E155=0,0,MAX($D$50:D154))*IF(B155=1,IF($H$2=1,105%,102%),1) -> 0 | E155: 0 | F155: 0 | G155: 1.288486034 | H155: =IF(A155<>"",G155*(1+INDEX('Hozamsorok-eszközalapok'!$B$11:$F$55,A155,IF($D$20=1,1,$D$19-2))+$F$23)^(1/12),0) -> 1.292185146 | I155: 0 | J155: 0 | K155: 0 | L155: 0 | M155: 0 | N155: 0 | O155: 0 | P155: 0 | Q155: 0 | R155: 0 | S155: 0 | T155: 0 | U155: 0 | V155: 0 | W155: 0 | X155: 0 | Y155: 0 | Z155: 0 | AA155: 0 | AB155: 0 | AC155: 0 | AD155: 0 | AE155: =IF(A155<>"",SUM($E$50:E155),0) -> 0 | AF155: =IF(A155<>"",SUM($D$50:D155),0) -> 0
A156: 9 | B156: 11 | D156: =IF(E156=0,0,MAX($D$50:D155))*IF(B156=1,IF($H$2=1,105%,102%),1) -> 0 | E156: 0 | F156: 0 | G156: 1.292185146 | H156: =IF(A156<>"",G156*(1+INDEX('Hozamsorok-eszközalapok'!$B$11:$F$55,A156,IF($D$20=1,1,$D$19-2))+$F$23)^(1/12),0) -> 1.295894879 | I156: 0 | J156: 0 | K156: 0 | L156: 0 | M156: 0 | N156: 0 | O156: 0 | P156: 0 | Q156: 0 | R156: 0 | S156: 0 | T156: 0 | U156: 0 | V156: 0 | W156: 0 | X156: 0 | Y156: 0 | Z156: 0 | AA156: 0 | AB156: 0 | AC156: 0 | AD156: 0 | AE156: =IF(A156<>"",SUM($E$50:E156),0) -> 0 | AF156: =IF(A156<>"",SUM($D$50:D156),0) -> 0
A157: 9 | B157: 12 | D157: =IF(E157=0,0,MAX($D$50:D156))*IF(B157=1,IF($H$2=1,105%,102%),1) -> 0 | E157: 0 | F157: 0 | G157: 1.295894879 | H157: =IF(A157<>"",G157*(1+INDEX('Hozamsorok-eszközalapok'!$B$11:$F$55,A157,IF($D$20=1,1,$D$19-2))+$F$23)^(1/12),0) -> 1.299615262 | I157: 0 | J157: 0 | K157: 0 | L157: 0 | M157: 0 | N157: 0 | O157: 0 | P157: 0 | Q157: 0 | R157: 0 | S157: 0 | T157: 0 | U157: 0 | V157: 0 | W157: 0 | X157: 0 | Y157: 0 | Z157: 0 | AA157: 0 | AB157: 0 | AC157: 0 | AD157: 0 | AE157: =IF(A157<>"",SUM($E$50:E157),0) -> 0 | AF157: =IF(A157<>"",SUM($D$50:D157),0) -> 0
A158: 10 | B158: 1 | D158: =IF(E158=0,0,MAX($D$50:D157))*IF(B158=1,IF($H$2=1,105%,102%),1) -> 0 | E158: 0 | F158: 0 | G158: 1.299615262 | H158: =IF(A158<>"",G158*(1+INDEX('Hozamsorok-eszközalapok'!$B$11:$F$55,A158,IF($D$20=1,1,$D$19-2))+$F$23)^(1/12),0) -> 1.303451219 | I158: 0 | J158: 0 | K158: 0 | L158: 0 | M158: 0 | N158: 0 | O158: 0 | P158: 0 | Q158: 0 | R158: 0 | S158: 0 | T158: 0 | U158: 0 | V158: 0 | W158: 0 | X158: 0 | Y158: 0 | Z158: 0 | AA158: 0 | AB158: 0 | AC158: 0 | AD158: 0 | AE158: =IF(A158<>"",SUM($E$50:E158),0) -> 0 | AF158: =IF(A158<>"",SUM($D$50:D158),0) -> 0
A159: 10 | B159: 2 | D159: =IF(E159=0,0,MAX($D$50:D158))*IF(B159=1,IF($H$2=1,105%,102%),1) -> 0 | E159: 0 | F159: 0 | G159: 1.303451219 | H159: =IF(A159<>"",G159*(1+INDEX('Hozamsorok-eszközalapok'!$B$11:$F$55,A159,IF($D$20=1,1,$D$19-2))+$F$23)^(1/12),0) -> 1.307298498 | I159: 0 | J159: 0 | K159: 0 | L159: 0 | M159: 0 | N159: 0 | O159: 0 | P159: 0 | Q159: 0 | R159: 0 | S159: 0 | T159: 0 | U159: 0 | V159: 0 | W159: 0 | X159: 0 | Y159: 0 | Z159: 0 | AA159: 0 | AB159: 0 | AC159: 0 | AD159: 0 | AE159: =IF(A159<>"",SUM($E$50:E159),0) -> 0 | AF159: =IF(A159<>"",SUM($D$50:D159),0) -> 0
A160: 10 | B160: 3 | D160: =IF(E160=0,0,MAX($D$50:D159))*IF(B160=1,IF($H$2=1,105%,102%),1) -> 0 | E160: 0 | F160: 0 | G160: 1.307298498 | H160: =IF(A160<>"",G160*(1+INDEX('Hozamsorok-eszközalapok'!$B$11:$F$55,A160,IF($D$20=1,1,$D$19-2))+$F$23)^(1/12),0) -> 1.311157132 | I160: 0 | J160: 0 | K160: 0 | L160: 0 | M160: 0 | N160: 0 | O160: 0 | P160: 0 | Q160: 0 | R160: 0 | S160: 0 | T160: 0 | U160: 0 | V160: 0 | W160: 0 | X160: 0 | Y160: 0 | Z160: 0 | AA160: 0 | AB160: 0 | AC160: 0 | AD160: 0 | AE160: =IF(A160<>"",SUM($E$50:E160),0) -> 0 | AF160: =IF(A160<>"",SUM($D$50:D160),0) -> 0
A161: 10 | B161: 4 | D161: =IF(E161=0,0,MAX($D$50:D160))*IF(B161=1,IF($H$2=1,105%,102%),1) -> 0 | E161: 0 | F161: 0 | G161: 1.311157132 | H161: =IF(A161<>"",G161*(1+INDEX('Hozamsorok-eszközalapok'!$B$11:$F$55,A161,IF($D$20=1,1,$D$19-2))+$F$23)^(1/12),0) -> 1.315027156 | I161: 0 | J161: 0 | K161: 0 | L161: 0 | M161: 0 | N161: 0 | O161: 0 | P161: 0 | Q161: 0 | R161: 0 | S161: 0 | T161: 0 | U161: 0 | V161: 0 | W161: 0 | X161: 0 | Y161: 0 | Z161: 0 | AA161: 0 | AB161: 0 | AC161: 0 | AD161: 0 | AE161: =IF(A161<>"",SUM($E$50:E161),0) -> 0 | AF161: =IF(A161<>"",SUM($D$50:D161),0) -> 0
A162: 10 | B162: 5 | D162: =IF(E162=0,0,MAX($D$50:D161))*IF(B162=1,IF($H$2=1,105%,102%),1) -> 0 | E162: 0 | F162: 0 | G162: 1.315027156 | H162: =IF(A162<>"",G162*(1+INDEX('Hozamsorok-eszközalapok'!$B$11:$F$55,A162,IF($D$20=1,1,$D$19-2))+$F$23)^(1/12),0) -> 1.318908603 | I162: 0 | J162: 0 | K162: 0 | L162: 0 | M162: 0 | N162: 0 | O162: 0 | P162: 0 | Q162: 0 | R162: 0 | S162: 0 | T162: 0 | U162: 0 | V162: 0 | W162: 0 | X162: 0 | Y162: 0 | Z162: 0 | AA162: 0 | AB162: 0 | AC162: 0 | AD162: 0 | AE162: =IF(A162<>"",SUM($E$50:E162),0) -> 0 | AF162: =IF(A162<>"",SUM($D$50:D162),0) -> 0
A163: 10 | B163: 6 | D163: =IF(E163=0,0,MAX($D$50:D162))*IF(B163=1,IF($H$2=1,105%,102%),1) -> 0 | E163: 0 | F163: 0 | G163: 1.318908603 | H163: =IF(A163<>"",G163*(1+INDEX('Hozamsorok-eszközalapok'!$B$11:$F$55,A163,IF($D$20=1,1,$D$19-2))+$F$23)^(1/12),0) -> 1.322801506 | I163: 0 | J163: 0 | K163: 0 | L163: 0 | M163: 0 | N163: 0 | O163: 0 | P163: 0 | Q163: 0 | R163: 0 | S163: 0 | T163: 0 | U163: 0 | V163: 0 | W163: 0 | X163: 0 | Y163: 0 | Z163: 0 | AA163: 0 | AB163: 0 | AC163: 0 | AD163: 0 | AE163: =IF(A163<>"",SUM($E$50:E163),0) -> 0 | AF163: =IF(A163<>"",SUM($D$50:D163),0) -> 0
A164: 10 | B164: 7 | D164: =IF(E164=0,0,MAX($D$50:D163))*IF(B164=1,IF($H$2=1,105%,102%),1) -> 0 | E164: 0 | F164: 0 | G164: 1.322801506 | H164: =IF(A164<>"",G164*(1+INDEX('Hozamsorok-eszközalapok'!$B$11:$F$55,A164,IF($D$20=1,1,$D$19-2))+$F$23)^(1/12),0) -> 1.326705899 | I164: 0 | J164: 0 | K164: 0 | L164: 0 | M164: 0 | N164: 0 | O164: 0 | P164: 0 | Q164: 0 | R164: 0 | S164: 0 | T164: 0 | U164: 0 | V164: 0 | W164: 0 | X164: 0 | Y164: 0 | Z164: 0 | AA164: 0 | AB164: 0 | AC164: 0 | AD164: 0 | AE164: =IF(A164<>"",SUM($E$50:E164),0) -> 0 | AF164: =IF(A164<>"",SUM($D$50:D164),0) -> 0
A165: 10 | B165: 8 | D165: =IF(E165=0,0,MAX($D$50:D164))*IF(B165=1,IF($H$2=1,105%,102%),1) -> 0 | E165: 0 | F165: 0 | G165: 1.326705899 | H165: =IF(A165<>"",G165*(1+INDEX('Hozamsorok-eszközalapok'!$B$11:$F$55,A165,IF($D$20=1,1,$D$19-2))+$F$23)^(1/12),0) -> 1.330621817 | I165: 0 | J165: 0 | K165: 0 | L165: 0 | M165: 0 | N165: 0 | O165: 0 | P165: 0 | Q165: 0 | R165: 0 | S165: 0 | T165: 0 | U165: 0 | V165: 0 | W165: 0 | X165: 0 | Y165: 0 | Z165: 0 | AA165: 0 | AB165: 0 | AC165: 0 | AD165: 0 | AE165: =IF(A165<>"",SUM($E$50:E165),0) -> 0 | AF165: =IF(A165<>"",SUM($D$50:D165),0) -> 0
A166: 10 | B166: 9 | D166: =IF(E166=0,0,MAX($D$50:D165))*IF(B166=1,IF($H$2=1,105%,102%),1) -> 0 | E166: 0 | F166: 0 | G166: 1.330621817 | H166: =IF(A166<>"",G166*(1+INDEX('Hozamsorok-eszközalapok'!$B$11:$F$55,A166,IF($D$20=1,1,$D$19-2))+$F$23)^(1/12),0) -> 1.334549293 | I166: 0 | J166: 0 | K166: 0 | L166: 0 | M166: 0 | N166: 0 | O166: 0 | P166: 0 | Q166: 0 | R166: 0 | S166: 0 | T166: 0 | U166: 0 | V166: 0 | W166: 0 | X166: 0 | Y166: 0 | Z166: 0 | AA166: 0 | AB166: 0 | AC166: 0 | AD166: 0 | AE166: =IF(A166<>"",SUM($E$50:E166),0) -> 0 | AF166: =IF(A166<>"",SUM($D$50:D166),0) -> 0
A167: 10 | B167: 10 | D167: =IF(E167=0,0,MAX($D$50:D166))*IF(B167=1,IF($H$2=1,105%,102%),1) -> 0 | E167: 0 | F167: 0 | G167: 1.334549293 | H167: =IF(A167<>"",G167*(1+INDEX('Hozamsorok-eszközalapok'!$B$11:$F$55,A167,IF($D$20=1,1,$D$19-2))+$F$23)^(1/12),0) -> 1.338488361 | I167: 0 | J167: 0 | K167: 0 | L167: 0 | M167: 0 | N167: 0 | O167: 0 | P167: 0 | Q167: 0 | R167: 0 | S167: 0 | T167: 0 | U167: 0 | V167: 0 | W167: 0 | X167: 0 | Y167: 0 | Z167: 0 | AA167: 0 | AB167: 0 | AC167: 0 | AD167: 0 | AE167: =IF(A167<>"",SUM($E$50:E167),0) -> 0 | AF167: =IF(A167<>"",SUM($D$50:D167),0) -> 0
A168: 10 | B168: 11 | D168: =IF(E168=0,0,MAX($D$50:D167))*IF(B168=1,IF($H$2=1,105%,102%),1) -> 0 | E168: 0 | F168: 0 | G168: 1.338488361 | H168: =IF(A168<>"",G168*(1+INDEX('Hozamsorok-eszközalapok'!$B$11:$F$55,A168,IF($D$20=1,1,$D$19-2))+$F$23)^(1/12),0) -> 1.342439056 | I168: 0 | J168: 0 | K168: 0 | L168: 0 | M168: 0 | N168: 0 | O168: 0 | P168: 0 | Q168: 0 | R168: 0 | S168: 0 | T168: 0 | U168: 0 | V168: 0 | W168: 0 | X168: 0 | Y168: 0 | Z168: 0 | AA168: 0 | AB168: 0 | AC168: 0 | AD168: 0 | AE168: =IF(A168<>"",SUM($E$50:E168),0) -> 0 | AF168: =IF(A168<>"",SUM($D$50:D168),0) -> 0
A169: 10 | B169: 12 | D169: =IF(E169=0,0,MAX($D$50:D168))*IF(B169=1,IF($H$2=1,105%,102%),1) -> 0 | E169: 0 | F169: 0 | G169: 1.342439056 | H169: =IF(A169<>"",G169*(1+INDEX('Hozamsorok-eszközalapok'!$B$11:$F$55,A169,IF($D$20=1,1,$D$19-2))+$F$23)^(1/12),0) -> 1.346401412 | I169: 0 | J169: 0 | K169: 0 | L169: 0 | M169: 0 | N169: 0 | O169: 0 | P169: 0 | Q169: 0 | R169: 0 | S169: 0 | T169: 0 | U169: 0 | V169: 0 | W169: 0 | X169: 0 | Y169: 0 | Z169: 0 | AA169: 0 | AB169: 0 | AC169: 0 | AD169: 0 | AE169: =IF(A169<>"",SUM($E$50:E169),0) -> 0 | AF169: =IF(A169<>"",SUM($D$50:D169),0) -> 0
A170: 11 | B170: 1 | D170: =IF(E170=0,0,MAX($D$50:D169))*IF(B170=1,IF($H$2=1,105%,102%),1) -> 0 | E170: 0 | F170: 0 | G170: 1.346401412 | H170: =IF(A170<>"",G170*(1+INDEX('Hozamsorok-eszközalapok'!$B$11:$F$55,A170,IF($D$20=1,1,$D$19-2))+$F$23)^(1/12),0) -> 1.350375463 | I170: 0 | J170: 0 | K170: 0 | L170: 0 | M170: 0 | N170: 0 | O170: 0 | P170: 0 | Q170: 0 | R170: 0 | S170: 0 | T170: 0 | U170: 0 | V170: 0 | W170: 0 | X170: 0 | Y170: 0 | Z170: 0 | AA170: 0 | AB170: 0 | AC170: 0 | AD170: 0 | AE170: =IF(A170<>"",SUM($E$50:E170),0) -> 0 | AF170: =IF(A170<>"",SUM($D$50:D170),0) -> 0
A171: 11 | B171: 2 | D171: =IF(E171=0,0,MAX($D$50:D170))*IF(B171=1,IF($H$2=1,105%,102%),1) -> 0 | E171: 0 | F171: 0 | G171: 1.350375463 | H171: =IF(A171<>"",G171*(1+INDEX('Hozamsorok-eszközalapok'!$B$11:$F$55,A171,IF($D$20=1,1,$D$19-2))+$F$23)^(1/12),0) -> 1.354361244 | I171: 0 | J171: 0 | K171: 0 | L171: 0 | M171: 0 | N171: 0 | O171: 0 | P171: 0 | Q171: 0 | R171: 0 | S171: 0 | T171: 0 | U171: 0 | V171: 0 | W171: 0 | X171: 0 | Y171: 0 | Z171: 0 | AA171: 0 | AB171: 0 | AC171: 0 | AD171: 0 | AE171: =IF(A171<>"",SUM($E$50:E171),0) -> 0 | AF171: =IF(A171<>"",SUM($D$50:D171),0) -> 0
A172: 11 | B172: 3 | D172: =IF(E172=0,0,MAX($D$50:D171))*IF(B172=1,IF($H$2=1,105%,102%),1) -> 0 | E172: 0 | F172: 0 | G172: 1.354361244 | H172: =IF(A172<>"",G172*(1+INDEX('Hozamsorok-eszközalapok'!$B$11:$F$55,A172,IF($D$20=1,1,$D$19-2))+$F$23)^(1/12),0) -> 1.358358789 | I172: 0 | J172: 0 | K172: 0 | L172: 0 | M172: 0 | N172: 0 | O172: 0 | P172: 0 | Q172: 0 | R172: 0 | S172: 0 | T172: 0 | U172: 0 | V172: 0 | W172: 0 | X172: 0 | Y172: 0 | Z172: 0 | AA172: 0 | AB172: 0 | AC172: 0 | AD172: 0 | AE172: =IF(A172<>"",SUM($E$50:E172),0) -> 0 | AF172: =IF(A172<>"",SUM($D$50:D172),0) -> 0
A173: 11 | B173: 4 | D173: =IF(E173=0,0,MAX($D$50:D172))*IF(B173=1,IF($H$2=1,105%,102%),1) -> 0 | E173: 0 | F173: 0 | G173: 1.358358789 | H173: =IF(A173<>"",G173*(1+INDEX('Hozamsorok-eszközalapok'!$B$11:$F$55,A173,IF($D$20=1,1,$D$19-2))+$F$23)^(1/12),0) -> 1.362368134 | I173: 0 | J173: 0 | K173: 0 | L173: 0 | M173: 0 | N173: 0 | O173: 0 | P173: 0 | Q173: 0 | R173: 0 | S173: 0 | T173: 0 | U173: 0 | V173: 0 | W173: 0 | X173: 0 | Y173: 0 | Z173: 0 | AA173: 0 | AB173: 0 | AC173: 0 | AD173: 0 | AE173: =IF(A173<>"",SUM($E$50:E173),0) -> 0 | AF173: =IF(A173<>"",SUM($D$50:D173),0) -> 0
A174: 11 | B174: 5 | D174: =IF(E174=0,0,MAX($D$50:D173))*IF(B174=1,IF($H$2=1,105%,102%),1) -> 0 | E174: 0 | F174: 0 | G174: 1.362368134 | H174: =IF(A174<>"",G174*(1+INDEX('Hozamsorok-eszközalapok'!$B$11:$F$55,A174,IF($D$20=1,1,$D$19-2))+$F$23)^(1/12),0) -> 1.366389312 | I174: 0 | J174: 0 | K174: 0 | L174: 0 | M174: 0 | N174: 0 | O174: 0 | P174: 0 | Q174: 0 | R174: 0 | S174: 0 | T174: 0 | U174: 0 | V174: 0 | W174: 0 | X174: 0 | Y174: 0 | Z174: 0 | AA174: 0 | AB174: 0 | AC174: 0 | AD174: 0 | AE174: =IF(A174<>"",SUM($E$50:E174),0) -> 0 | AF174: =IF(A174<>"",SUM($D$50:D174),0) -> 0
A175: 11 | B175: 6 | D175: =IF(E175=0,0,MAX($D$50:D174))*IF(B175=1,IF($H$2=1,105%,102%),1) -> 0 | E175: 0 | F175: 0 | G175: 1.366389312 | H175: =IF(A175<>"",G175*(1+INDEX('Hozamsorok-eszközalapok'!$B$11:$F$55,A175,IF($D$20=1,1,$D$19-2))+$F$23)^(1/12),0) -> 1.37042236 | I175: 0 | J175: 0 | K175: 0 | L175: 0 | M175: 0 | N175: 0 | O175: 0 | P175: 0 | Q175: 0 | R175: 0 | S175: 0 | T175: 0 | U175: 0 | V175: 0 | W175: 0 | X175: 0 | Y175: 0 | Z175: 0 | AA175: 0 | AB175: 0 | AC175: 0 | AD175: 0 | AE175: =IF(A175<>"",SUM($E$50:E175),0) -> 0 | AF175: =IF(A175<>"",SUM($D$50:D175),0) -> 0
A176: 11 | B176: 7 | D176: =IF(E176=0,0,MAX($D$50:D175))*IF(B176=1,IF($H$2=1,105%,102%),1) -> 0 | E176: 0 | F176: 0 | G176: 1.37042236 | H176: =IF(A176<>"",G176*(1+INDEX('Hozamsorok-eszközalapok'!$B$11:$F$55,A176,IF($D$20=1,1,$D$19-2))+$F$23)^(1/12),0) -> 1.374467311 | I176: 0 | J176: 0 | K176: 0 | L176: 0 | M176: 0 | N176: 0 | O176: 0 | P176: 0 | Q176: 0 | R176: 0 | S176: 0 | T176: 0 | U176: 0 | V176: 0 | W176: 0 | X176: 0 | Y176: 0 | Z176: 0 | AA176: 0 | AB176: 0 | AC176: 0 | AD176: 0 | AE176: =IF(A176<>"",SUM($E$50:E176),0) -> 0 | AF176: =IF(A176<>"",SUM($D$50:D176),0) -> 0
A177: 11 | B177: 8 | D177: =IF(E177=0,0,MAX($D$50:D176))*IF(B177=1,IF($H$2=1,105%,102%),1) -> 0 | E177: 0 | F177: 0 | G177: 1.374467311 | H177: =IF(A177<>"",G177*(1+INDEX('Hozamsorok-eszközalapok'!$B$11:$F$55,A177,IF($D$20=1,1,$D$19-2))+$F$23)^(1/12),0) -> 1.378524202 | I177: 0 | J177: 0 | K177: 0 | L177: 0 | M177: 0 | N177: 0 | O177: 0 | P177: 0 | Q177: 0 | R177: 0 | S177: 0 | T177: 0 | U177: 0 | V177: 0 | W177: 0 | X177: 0 | Y177: 0 | Z177: 0 | AA177: 0 | AB177: 0 | AC177: 0 | AD177: 0 | AE177: =IF(A177<>"",SUM($E$50:E177),0) -> 0 | AF177: =IF(A177<>"",SUM($D$50:D177),0) -> 0
A178: 11 | B178: 9 | D178: =IF(E178=0,0,MAX($D$50:D177))*IF(B178=1,IF($H$2=1,105%,102%),1) -> 0 | E178: 0 | F178: =E178*$D$13 -> 0 | G178: 1.378524202 | H178: =IF(A178<>"",G178*(1+INDEX('Hozamsorok-eszközalapok'!$B$11:$F$55,A178,IF($D$20=1,1,$D$19-2))+$F$23)^(1/12),0) -> 1.382593067 | I178: 0 | J178: 0 | K178: 0 | L178: 0 | M178: =K178*(1-$G$8) -> 0 | N178: 0 | O178: 0 | P178: 0 | Q178: 0 | R178: 0 | S178: 0 | T178: 0 | U178: 0 | V178: 0 | W178: 0 | X178: 0 | Y178: 0 | Z178: 0 | AA178: 0 | AB178: 0 | AC178: =H178*(T178+U178) -> 0 | AD178: 0 | AE178: =IF(A178<>"",SUM($E$50:E178),0) -> 0 | AF178: =IF(A178<>"",SUM($D$50:D178),0) -> 0
A179: =IF(B178<12,A178,IF(A178<$D$9,A178+1,"")) -> 11 | B179: 10 | D179: =IF(E179=0,0,MAX($D$50:D178))*IF(B179=1,IF($H$2=1,105%,102%),1) -> 0 | E179: =IF(AND($D$8=1,SUM(A179:B179)=2),$D$12,IF(A179>$D$10,0,IF(OR(AND($D$8=2,B179=1),AND($D$8=4,OR(B179=1,B179=7)),AND($D$8=5,OR(B179=1,B179=4,B179=7,B179=10)),AND($D$8=3,B179>=1)),$D$12*(1+$D$25)^(A179-1),0))) -> 0 | F179: 0 | G179: 1.382593067 | H179: =IF(A179<>"",G179*(1+INDEX('Hozamsorok-eszközalapok'!$B$11:$F$55,A179,IF($D$20=1,1,$D$19-2))+$F$23)^(1/12),0) -> 1.386673942 | I179: =IF(E179<>"",IF(A179<=2,(E179-F179)/G179,0),0) -> 0 | J179: =IF(A179<>"",IF(A179>2,(E179-F179)/G179,0),0) -> 0 | K179: =IF(A179<>"",U178+I179,0) -> 0 | L179: =IF(A179<>"",T178+J179,0) -> 0 | M179: 0 | N179: 0 | O179: =IF($E$4=TRUE,IF($D$19=4,0,(M179+N179)*($G$10+$G$11)*G179),0) -> 0 | P179: =IF($D$8<>1,M179,IF(A179<>"",M179-O179/G179,0)) -> 0 | Q179: =IF(A179<>"",N179-X179/G179,0) -> 0 | R179: =IF(OR(AND($D$8=1,A179<=$D$9),AND($D$8<>1,A179<=$D$10)),$D$15*($G$13+G179*((P179+Q179)-P179*$G$14^(IF($D$8=1,$D$9,$D$10)*12-((A179-1)*12+B179-1))-Q179*$G$15)),0) -> 0 | S179: =IF($D$8<>1,P179,IF(A179<>"",P179-R179/G179,0)) -> 0 | T179: =IF(A179<>"",Q179-AA179/G179,0) -> 0 | U179: =IF(AND($D$8<>1,A179>$D$10),S179,S179*(1-$D$14)) -> 0 | V179: 0 | W179: 0 | X179: 0 | Y179: 0 | Z179: 0 | AA179: 0 | AB179: 0 | AC179: 0 | AD179: =MAX(0,IF(A179<>"",IF(AND($D$8<>1,A179<=2,(A179+B179)<>14),0,H179*(U179*$G$14^(IF(AND($D$8<>1,A179>$D$10),0,IF($D$8=1,$D$9,$D$10)*12-((A179-1)*12+B179)))+T179*$G$15)-AB179),0)) -> 0 | AE179: =IF(A179<>"",SUM($E$50:E179),0) -> 0 | AF179: =IF(A179<>"",SUM($D$50:D179),0) -> 0
A180: 11 | B180: =IF(A180="","",IF(B179=12,1,B179+1)) -> 11 | D180: =IF(E180=0,0,MAX($D$50:D179))*IF(B180=1,IF($H$2=1,105%,102%),1) -> 0 | E180: 0 | F180: 0 | G180: =IF(A180<>"",H179,0) -> 1.386673942 | H180: =IF(A180<>"",G180*(1+INDEX('Hozamsorok-eszközalapok'!$B$11:$F$55,A180,IF($D$20=1,1,$D$19-2))+$F$23)^(1/12),0) -> 1.390766862 | I180: 0 | J180: 0 | K180: 0 | L180: 0 | M180: 0 | N180: 0 | O180: 0 | P180: 0 | Q180: 0 | R180: 0 | S180: 0 | T180: 0 | U180: 0 | V180: =IF(AND(A180<>"",$D$8<>1),O180+AB179,0) -> 0 | W180: =N180*G180 -> 0 | X180: =MIN(V180,W180) -> 0 | Y180: =IF(AND(A180<>"",$D$8<>1),V180-X180+R180,0) -> 0 | Z180: =Q180*G180 -> 0 | AA180: =MIN(Y180,Z180) -> 0 | AB180: =IF(A180<>"",Y180-AA180,0) -> 0 | AC180: 0 | AD180: 0 | AE180: =IF(A180<>"",SUM($E$50:E180),0) -> 0 | AF180: =IF(A180<>"",SUM($D$50:D180),0) -> 0
A181: 11 | B181: =IF(A181="","",IF(B180=12,1,B180+1)) -> 12 | D181: =IF(E181=0,0,MAX($D$50:D180))*IF(B181=1,IF($H$2=1,105%,102%),1) -> 0 | E181: 0 | F181: 0 | G181: 1.390766862 | H181: =IF(A181<>"",G181*(1+INDEX('Hozamsorok-eszközalapok'!$B$11:$F$55,A181,IF($D$20=1,1,$D$19-2))+$F$23)^(1/12),0) -> 1.394871862 | I181: 0 | J181: 0 | K181: 0 | L181: 0 | M181: 0 | N181: 0 | O181: 0 | P181: 0 | Q181: 0 | R181: 0 | S181: 0 | T181: 0 | U181: 0 | V181: 0 | W181: 0 | X181: 0 | Y181: 0 | Z181: 0 | AA181: 0 | AB181: 0 | AC181: 0 | AD181: 0 | AE181: =IF(A181<>"",SUM($E$50:E181),0) -> 0 | AF181: =IF(A181<>"",SUM($D$50:D181),0) -> 0
A182: 12 | B182: 1 | D182: =IF(E182=0,0,MAX($D$50:D181))*IF(B182=1,IF($H$2=1,105%,102%),1) -> 0 | E182: 0 | F182: 0 | G182: 1.394871862 | H182: =IF(A182<>"",G182*(1+INDEX('Hozamsorok-eszközalapok'!$B$11:$F$55,A182,IF($D$20=1,1,$D$19-2))+$F$23)^(1/12),0) -> 1.398988979 | I182: 0 | J182: 0 | K182: 0 | L182: 0 | M182: 0 | N182: 0 | O182: 0 | P182: 0 | Q182: 0 | R182: 0 | S182: 0 | T182: 0 | U182: 0 | V182: 0 | W182: 0 | X182: 0 | Y182: 0 | Z182: 0 | AA182: 0 | AB182: 0 | AC182: 0 | AD182: 0 | AE182: =IF(A182<>"",SUM($E$50:E182),0) -> 0 | AF182: =IF(A182<>"",SUM($D$50:D182),0) -> 0
A183: 12 | B183: 2 | D183: =IF(E183=0,0,MAX($D$50:D182))*IF(B183=1,IF($H$2=1,105%,102%),1) -> 0 | E183: 0 | F183: 0 | G183: 1.398988979 | H183: =IF(A183<>"",G183*(1+INDEX('Hozamsorok-eszközalapok'!$B$11:$F$55,A183,IF($D$20=1,1,$D$19-2))+$F$23)^(1/12),0) -> 1.403118248 | I183: 0 | J183: 0 | K183: 0 | L183: 0 | M183: 0 | N183: 0 | O183: 0 | P183: 0 | Q183: 0 | R183: 0 | S183: 0 | T183: 0 | U183: 0 | V183: 0 | W183: 0 | X183: 0 | Y183: 0 | Z183: 0 | AA183: 0 | AB183: 0 | AC183: 0 | AD183: 0 | AE183: =IF(A183<>"",SUM($E$50:E183),0) -> 0 | AF183: =IF(A183<>"",SUM($D$50:D183),0) -> 0
A184: 12 | B184: 3 | D184: =IF(E184=0,0,MAX($D$50:D183))*IF(B184=1,IF($H$2=1,105%,102%),1) -> 0 | E184: 0 | F184: 0 | G184: 1.403118248 | H184: =IF(A184<>"",G184*(1+INDEX('Hozamsorok-eszközalapok'!$B$11:$F$55,A184,IF($D$20=1,1,$D$19-2))+$F$23)^(1/12),0) -> 1.407259705 | I184: 0 | J184: 0 | K184: 0 | L184: 0 | M184: 0 | N184: 0 | O184: 0 | P184: 0 | Q184: 0 | R184: 0 | S184: 0 | T184: 0 | U184: 0 | V184: 0 | W184: 0 | X184: 0 | Y184: 0 | Z184: 0 | AA184: 0 | AB184: 0 | AC184: 0 | AD184: 0 | AE184: =IF(A184<>"",SUM($E$50:E184),0) -> 0 | AF184: =IF(A184<>"",SUM($D$50:D184),0) -> 0
A185: 12 | B185: 4 | D185: =IF(E185=0,0,MAX($D$50:D184))*IF(B185=1,IF($H$2=1,105%,102%),1) -> 0 | E185: 0 | F185: 0 | G185: 1.407259705 | H185: =IF(A185<>"",G185*(1+INDEX('Hozamsorok-eszközalapok'!$B$11:$F$55,A185,IF($D$20=1,1,$D$19-2))+$F$23)^(1/12),0) -> 1.411413386 | I185: 0 | J185: 0 | K185: 0 | L185: 0 | M185: 0 | N185: 0 | O185: 0 | P185: 0 | Q185: 0 | R185: 0 | S185: 0 | T185: 0 | U185: 0 | V185: 0 | W185: 0 | X185: 0 | Y185: 0 | Z185: 0 | AA185: 0 | AB185: 0 | AC185: 0 | AD185: 0 | AE185: =IF(A185<>"",SUM($E$50:E185),0) -> 0 | AF185: =IF(A185<>"",SUM($D$50:D185),0) -> 0
A186: 12 | B186: 5 | D186: =IF(E186=0,0,MAX($D$50:D185))*IF(B186=1,IF($H$2=1,105%,102%),1) -> 0 | E186: 0 | F186: 0 | G186: 1.411413386 | H186: =IF(A186<>"",G186*(1+INDEX('Hozamsorok-eszközalapok'!$B$11:$F$55,A186,IF($D$20=1,1,$D$19-2))+$F$23)^(1/12),0) -> 1.415579328 | I186: 0 | J186: 0 | K186: 0 | L186: 0 | M186: 0 | N186: 0 | O186: 0 | P186: 0 | Q186: 0 | R186: 0 | S186: 0 | T186: 0 | U186: 0 | V186: 0 | W186: 0 | X186: 0 | Y186: 0 | Z186: 0 | AA186: 0 | AB186: 0 | AC186: 0 | AD186: 0 | AE186: =IF(A186<>"",SUM($E$50:E186),0) -> 0 | AF186: =IF(A186<>"",SUM($D$50:D186),0) -> 0
A187: 12 | B187: 6 | D187: =IF(E187=0,0,MAX($D$50:D186))*IF(B187=1,IF($H$2=1,105%,102%),1) -> 0 | E187: 0 | F187: 0 | G187: 1.415579328 | H187: =IF(A187<>"",G187*(1+INDEX('Hozamsorok-eszközalapok'!$B$11:$F$55,A187,IF($D$20=1,1,$D$19-2))+$F$23)^(1/12),0) -> 1.419757565 | I187: 0 | J187: 0 | K187: 0 | L187: 0 | M187: 0 | N187: 0 | O187: 0 | P187: 0 | Q187: 0 | R187: 0 | S187: 0 | T187: 0 | U187: 0 | V187: 0 | W187: 0 | X187: 0 | Y187: 0 | Z187: 0 | AA187: 0 | AB187: 0 | AC187: 0 | AD187: 0 | AE187: =IF(A187<>"",SUM($E$50:E187),0) -> 0 | AF187: =IF(A187<>"",SUM($D$50:D187),0) -> 0
A188: 12 | B188: 7 | D188: =IF(E188=0,0,MAX($D$50:D187))*IF(B188=1,IF($H$2=1,105%,102%),1) -> 0 | E188: 0 | F188: 0 | G188: 1.419757565 | H188: =IF(A188<>"",G188*(1+INDEX('Hozamsorok-eszközalapok'!$B$11:$F$55,A188,IF($D$20=1,1,$D$19-2))+$F$23)^(1/12),0) -> 1.423948135 | I188: 0 | J188: 0 | K188: 0 | L188: 0 | M188: 0 | N188: 0 | O188: 0 | P188: 0 | Q188: 0 | R188: 0 | S188: 0 | T188: 0 | U188: 0 | V188: 0 | W188: 0 | X188: 0 | Y188: 0 | Z188: 0 | AA188: 0 | AB188: 0 | AC188: 0 | AD188: 0 | AE188: =IF(A188<>"",SUM($E$50:E188),0) -> 0 | AF188: =IF(A188<>"",SUM($D$50:D188),0) -> 0
A189: 12 | B189: 8 | D189: =IF(E189=0,0,MAX($D$50:D188))*IF(B189=1,IF($H$2=1,105%,102%),1) -> 0 | E189: 0 | F189: 0 | G189: 1.423948135 | H189: =IF(A189<>"",G189*(1+INDEX('Hozamsorok-eszközalapok'!$B$11:$F$55,A189,IF($D$20=1,1,$D$19-2))+$F$23)^(1/12),0) -> 1.428151073 | I189: 0 | J189: 0 | K189: 0 | L189: 0 | M189: 0 | N189: 0 | O189: 0 | P189: 0 | Q189: 0 | R189: 0 | S189: 0 | T189: 0 | U189: 0 | V189: 0 | W189: 0 | X189: 0 | Y189: 0 | Z189: 0 | AA189: 0 | AB189: 0 | AC189: 0 | AD189: 0 | AE189: =IF(A189<>"",SUM($E$50:E189),0) -> 0 | AF189: =IF(A189<>"",SUM($D$50:D189),0) -> 0
A190: 12 | B190: 9 | D190: =IF(E190=0,0,MAX($D$50:D189))*IF(B190=1,IF($H$2=1,105%,102%),1) -> 0 | E190: 0 | F190: 0 | G190: 1.428151073 | H190: =IF(A190<>"",G190*(1+INDEX('Hozamsorok-eszközalapok'!$B$11:$F$55,A190,IF($D$20=1,1,$D$19-2))+$F$23)^(1/12),0) -> 1.432366418 | I190: 0 | J190: 0 | K190: 0 | L190: 0 | M190: 0 | N190: 0 | O190: 0 | P190: 0 | Q190: 0 | R190: 0 | S190: 0 | T190: 0 | U190: 0 | V190: 0 | W190: 0 | X190: 0 | Y190: 0 | Z190: 0 | AA190: 0 | AB190: 0 | AC190: 0 | AD190: 0 | AE190: =IF(A190<>"",SUM($E$50:E190),0) -> 0 | AF190: =IF(A190<>"",SUM($D$50:D190),0) -> 0
A191: 12 | B191: 10 | D191: =IF(E191=0,0,MAX($D$50:D190))*IF(B191=1,IF($H$2=1,105%,102%),1) -> 0 | E191: 0 | F191: 0 | G191: 1.432366418 | H191: =IF(A191<>"",G191*(1+INDEX('Hozamsorok-eszközalapok'!$B$11:$F$55,A191,IF($D$20=1,1,$D$19-2))+$F$23)^(1/12),0) -> 1.436594204 | I191: 0 | J191: 0 | K191: 0 | L191: 0 | M191: 0 | N191: 0 | O191: 0 | P191: 0 | Q191: 0 | R191: 0 | S191: 0 | T191: 0 | U191: 0 | V191: 0 | W191: 0 | X191: 0 | Y191: 0 | Z191: 0 | AA191: 0 | AB191: 0 | AC191: 0 | AD191: 0 | AE191: =IF(A191<>"",SUM($E$50:E191),0) -> 0 | AF191: =IF(A191<>"",SUM($D$50:D191),0) -> 0
A192: 12 | B192: 11 | D192: =IF(E192=0,0,MAX($D$50:D191))*IF(B192=1,IF($H$2=1,105%,102%),1) -> 0 | E192: 0 | F192: 0 | G192: 1.436594204 | H192: =IF(A192<>"",G192*(1+INDEX('Hozamsorok-eszközalapok'!$B$11:$F$55,A192,IF($D$20=1,1,$D$19-2))+$F$23)^(1/12),0) -> 1.440834469 | I192: 0 | J192: 0 | K192: 0 | L192: 0 | M192: 0 | N192: 0 | O192: 0 | P192: 0 | Q192: 0 | R192: 0 | S192: 0 | T192: 0 | U192: 0 | V192: 0 | W192: 0 | X192: 0 | Y192: 0 | Z192: 0 | AA192: 0 | AB192: 0 | AC192: 0 | AD192: 0 | AE192: =IF(A192<>"",SUM($E$50:E192),0) -> 0 | AF192: =IF(A192<>"",SUM($D$50:D192),0) -> 0
A193: 12 | B193: 12 | D193: =IF(E193=0,0,MAX($D$50:D192))*IF(B193=1,IF($H$2=1,105%,102%),1) -> 0 | E193: 0 | F193: 0 | G193: 1.440834469 | H193: =IF(A193<>"",G193*(1+INDEX('Hozamsorok-eszközalapok'!$B$11:$F$55,A193,IF($D$20=1,1,$D$19-2))+$F$23)^(1/12),0) -> 1.445087249 | I193: 0 | J193: 0 | K193: 0 | L193: 0 | M193: 0 | N193: 0 | O193: 0 | P193: 0 | Q193: 0 | R193: 0 | S193: 0 | T193: 0 | U193: 0 | V193: 0 | W193: 0 | X193: 0 | Y193: 0 | Z193: 0 | AA193: 0 | AB193: 0 | AC193: 0 | AD193: 0 | AE193: =IF(A193<>"",SUM($E$50:E193),0) -> 0 | AF193: =IF(A193<>"",SUM($D$50:D193),0) -> 0
A194: 13 | B194: 1 | D194: =IF(E194=0,0,MAX($D$50:D193))*IF(B194=1,IF($H$2=1,105%,102%),1) -> 0 | E194: 0 | F194: 0 | G194: 1.445087249 | H194: =IF(A194<>"",G194*(1+INDEX('Hozamsorok-eszközalapok'!$B$11:$F$55,A194,IF($D$20=1,1,$D$19-2))+$F$23)^(1/12),0) -> 1.449352583 | I194: 0 | J194: 0 | K194: 0 | L194: 0 | M194: 0 | N194: 0 | O194: 0 | P194: 0 | Q194: 0 | R194: 0 | S194: 0 | T194: 0 | U194: 0 | V194: 0 | W194: 0 | X194: 0 | Y194: 0 | Z194: 0 | AA194: 0 | AB194: 0 | AC194: 0 | AD194: 0 | AE194: =IF(A194<>"",SUM($E$50:E194),0) -> 0 | AF194: =IF(A194<>"",SUM($D$50:D194),0) -> 0
A195: 13 | B195: 2 | D195: =IF(E195=0,0,MAX($D$50:D194))*IF(B195=1,IF($H$2=1,105%,102%),1) -> 0 | E195: 0 | F195: 0 | G195: 1.449352583 | H195: =IF(A195<>"",G195*(1+INDEX('Hozamsorok-eszközalapok'!$B$11:$F$55,A195,IF($D$20=1,1,$D$19-2))+$F$23)^(1/12),0) -> 1.453630505 | I195: 0 | J195: 0 | K195: 0 | L195: 0 | M195: 0 | N195: 0 | O195: 0 | P195: 0 | Q195: 0 | R195: 0 | S195: 0 | T195: 0 | U195: 0 | V195: 0 | W195: 0 | X195: 0 | Y195: 0 | Z195: 0 | AA195: 0 | AB195: 0 | AC195: 0 | AD195: 0 | AE195: =IF(A195<>"",SUM($E$50:E195),0) -> 0 | AF195: =IF(A195<>"",SUM($D$50:D195),0) -> 0
A196: 13 | B196: 3 | D196: =IF(E196=0,0,MAX($D$50:D195))*IF(B196=1,IF($H$2=1,105%,102%),1) -> 0 | E196: 0 | F196: 0 | G196: 1.453630505 | H196: =IF(A196<>"",G196*(1+INDEX('Hozamsorok-eszközalapok'!$B$11:$F$55,A196,IF($D$20=1,1,$D$19-2))+$F$23)^(1/12),0) -> 1.457921055 | I196: 0 | J196: 0 | K196: 0 | L196: 0 | M196: 0 | N196: 0 | O196: 0 | P196: 0 | Q196: 0 | R196: 0 | S196: 0 | T196: 0 | U196: 0 | V196: 0 | W196: 0 | X196: 0 | Y196: 0 | Z196: 0 | AA196: 0 | AB196: 0 | AC196: 0 | AD196: 0 | AE196: =IF(A196<>"",SUM($E$50:E196),0) -> 0 | AF196: =IF(A196<>"",SUM($D$50:D196),0) -> 0
A197: 13 | B197: 4 | D197: =IF(E197=0,0,MAX($D$50:D196))*IF(B197=1,IF($H$2=1,105%,102%),1) -> 0 | E197: 0 | F197: 0 | G197: 1.457921055 | H197: =IF(A197<>"",G197*(1+INDEX('Hozamsorok-eszközalapok'!$B$11:$F$55,A197,IF($D$20=1,1,$D$19-2))+$F$23)^(1/12),0) -> 1.462224268 | I197: 0 | J197: 0 | K197: 0 | L197: 0 | M197: 0 | N197: 0 | O197: 0 | P197: 0 | Q197: 0 | R197: 0 | S197: 0 | T197: 0 | U197: 0 | V197: 0 | W197: 0 | X197: 0 | Y197: 0 | Z197: 0 | AA197: 0 | AB197: 0 | AC197: 0 | AD197: 0 | AE197: =IF(A197<>"",SUM($E$50:E197),0) -> 0 | AF197: =IF(A197<>"",SUM($D$50:D197),0) -> 0
A198: 13 | B198: 5 | D198: =IF(E198=0,0,MAX($D$50:D197))*IF(B198=1,IF($H$2=1,105%,102%),1) -> 0 | E198: 0 | F198: 0 | G198: 1.462224268 | H198: =IF(A198<>"",G198*(1+INDEX('Hozamsorok-eszközalapok'!$B$11:$F$55,A198,IF($D$20=1,1,$D$19-2))+$F$23)^(1/12),0) -> 1.466540183 | I198: 0 | J198: 0 | K198: 0 | L198: 0 | M198: 0 | N198: 0 | O198: 0 | P198: 0 | Q198: 0 | R198: 0 | S198: 0 | T198: 0 | U198: 0 | V198: 0 | W198: 0 | X198: 0 | Y198: 0 | Z198: 0 | AA198: 0 | AB198: 0 | AC198: 0 | AD198: 0 | AE198: =IF(A198<>"",SUM($E$50:E198),0) -> 0 | AF198: =IF(A198<>"",SUM($D$50:D198),0) -> 0
A199: 13 | B199: 6 | D199: =IF(E199=0,0,MAX($D$50:D198))*IF(B199=1,IF($H$2=1,105%,102%),1) -> 0 | E199: 0 | F199: 0 | G199: 1.466540183 | H199: =IF(A199<>"",G199*(1+INDEX('Hozamsorok-eszközalapok'!$B$11:$F$55,A199,IF($D$20=1,1,$D$19-2))+$F$23)^(1/12),0) -> 1.470868837 | I199: 0 | J199: 0 | K199: 0 | L199: 0 | M199: 0 | N199: 0 | O199: 0 | P199: 0 | Q199: 0 | R199: 0 | S199: 0 | T199: 0 | U199: 0 | V199: 0 | W199: 0 | X199: 0 | Y199: 0 | Z199: 0 | AA199: 0 | AB199: 0 | AC199: 0 | AD199: 0 | AE199: =IF(A199<>"",SUM($E$50:E199),0) -> 0 | AF199: =IF(A199<>"",SUM($D$50:D199),0) -> 0
A200: 13 | B200: 7 | D200: =IF(E200=0,0,MAX($D$50:D199))*IF(B200=1,IF($H$2=1,105%,102%),1) -> 0 | E200: 0 | F200: 0 | G200: 1.470868837 | H200: =IF(A200<>"",G200*(1+INDEX('Hozamsorok-eszközalapok'!$B$11:$F$55,A200,IF($D$20=1,1,$D$19-2))+$F$23)^(1/12),0) -> 1.475210267 | I200: 0 | J200: 0 | K200: 0 | L200: 0 | M200: 0 | N200: 0 | O200: 0 | P200: 0 | Q200: 0 | R200: 0 | S200: 0 | T200: 0 | U200: 0 | V200: 0 | W200: 0 | X200: 0 | Y200: 0 | Z200: 0 | AA200: 0 | AB200: 0 | AC200: 0 | AD200: 0 | AE200: =IF(A200<>"",SUM($E$50:E200),0) -> 0 | AF200: =IF(A200<>"",SUM($D$50:D200),0) -> 0
A201: 13 | B201: 8 | D201: =IF(E201=0,0,MAX($D$50:D200))*IF(B201=1,IF($H$2=1,105%,102%),1) -> 0 | E201: 0 | F201: 0 | G201: 1.475210267 | H201: =IF(A201<>"",G201*(1+INDEX('Hozamsorok-eszközalapok'!$B$11:$F$55,A201,IF($D$20=1,1,$D$19-2))+$F$23)^(1/12),0) -> 1.479564512 | I201: 0 | J201: 0 | K201: 0 | L201: 0 | M201: 0 | N201: 0 | O201: 0 | P201: 0 | Q201: 0 | R201: 0 | S201: 0 | T201: 0 | U201: 0 | V201: 0 | W201: 0 | X201: 0 | Y201: 0 | Z201: 0 | AA201: 0 | AB201: 0 | AC201: 0 | AD201: 0 | AE201: =IF(A201<>"",SUM($E$50:E201),0) -> 0 | AF201: =IF(A201<>"",SUM($D$50:D201),0) -> 0
... 388 more rows

Sheet Folyamatos modell (3) (hidden)
B1: Folyamatos díjak kalkulátora | J1: Aktuális | K1: AMÖ | L1: Vv összeg | M1: Befizetett megtak | N1: Befizetett admin
G2: GÉP = 1, NYÉP = 2 | H2: =IF(Főmenü!AJ4=TRUE,1,2) -> 2 | J2: 1 | K2: =INDEX($AC$50:$AE$589,J2*12,1) -> 0 | L2: =INDEX($AC$50:$AE$589,J2*12,2) -> 0 | M2: =INDEX($AC$50:$AE$589,J2*12,3) -> 0 | N2: =INDEX($AC$50:$AF$589,J2*12,4) -> 0
B3: Üzemmód választás | J3: 2 | K3: 0 | L3: 0 | M3: 0 | N3: 0
E4: TRUE | J4: 3 | K4: 0 | L4: 0 | M4: 0 | N4: 0
J5: 4 | K5: 0 | L5: 0 | M5: 0 | N5: 0
B6: Általános paraméterek | J6: 5 | K6: 0 | L6: 0 | M6: 0 | N6: 0
J7: 6 | K7: 0 | L7: 0 | M7: 0 | N7: 0
C8: Díjfizetés gyakoriság | D8: =+'Folyamatos modell'!D8 -> 3 | F8: Eszközalap-kezelési költség | G8: =IF(ISERROR(VLOOKUP(D24,'Hozamsorok-eszközalapok'!M1:P14,2,FALSE))=TRUE,0,VLOOKUP(D24,'Hozamsorok-eszközalapok'!M1:P14,IF(H2=1,3,4),FALSE)) -> 0 | J8: 7 | K8: 0 | L8: 0 | M8: 0 | N8: 0
C9: Tartam | D9: =+'Folyamatos modell'!D9 -> 20 | J9: 8 | K9: 0 | L9: 0 | M9: 0 | N9: 0
C10: =IF(D8=1,"---","Megtakarítási időszak") -> Megtakarítási időszak | D10: =+'Folyamatos modell'!D10 -> 20 | F10: =IF(E4=TRUE,"Stop-loss költség","---") -> Stop-loss költség | G10: =IF(E4=TRUE,IF(D22=1,0.02%,0),"---") -> 0 | J10: 9 | K10: 0 | L10: 0 | M10: 0 | N10: 0
F11: =IF(E4=TRUE,"Profitvédelem költség","---") -> Profitvédelem költség | G11: =IF(E4=TRUE,IF(D23=1,0.02%,0),"---") -> 0 | J11: 10 | K11: 0 | L11: 0 | M11: 0 | N11: 0
C12: Befektetendő összeg | D12: =+G19 -> 0 | J12: 11 | K12: 0 | L12: 0 | M12: 0 | N12: 0
C13: Allokációs költség | D13: =+'Folyamatos modell'!D13 -> 0 | F13: Kockázati biztosítási összeg | G13: =IF(H2=1,300000,'Folyamatos Nyugdíjcélú Életív'!T8)*D26 -> 0 | J13: 12 | K13: 0 | L13: 0 | M13: 0 | N13: 0
C14: Kezdeti költség | D14: 0.005 | F14: Kezdeti egység vv tényező | G14: 0.995 | J14: 13 | K14: 0 | L14: 0 | M14: 0 | N14: 0
C15: Kockázati költség | D15: =+'Folyamatos modell'!D15 -> 0.00167 | F15: Felhalm. egység vv tényező | G15: 1 | J15: 14 | K15: 0 | L15: 0 | M15: 0 | N15: 0
J16: 15 | K16: 0 | L16: 0 | M16: 0 | N16: 0
B17: T érték specifikus adatok | J17: 16 | K17: 0 | L17: 0 | M17: 0 | N17: 0
J18: 17 | K18: 0 | L18: 0 | M18: 0 | N18: 0
C19: Eszközalap-kategória | D19: =IF(ISERROR(VLOOKUP(D24,'Hozamsorok-eszközalapok'!M1:N14,2,FALSE))=TRUE,4,VLOOKUP(D24,'Hozamsorok-eszközalapok'!M1:N14,2,FALSE)) -> 4 | F19: Egyszeri/megtak díj | G19: =IF(H2=1,'Folyamatos Életív'!K8,'Folyamatos Nyugdíjcélú Életív'!I8)*D26 -> 0 | J19: 18 | K19: 0 | L19: 0 | M19: 0 | N19: 0
C20: Hozamsor | D20: 2 | J20: 19 | K20: 0 | L20: 0 | M20: 0 | N20: 0
J21: 20 | K21: 0 | L21: 0 | M21: 0 | N21: 0
C22: Stop-loss | D22: =+IF('Folyamatos Életív'!R29="Igen",1,0) -> 0 | E22: HV | F22: =IF('Folyamatos Életív'!R30="Igen",1,0) -> 0 | J22: 21 | K22: 0 | L22: 0 | M22: 0 | N22: 0
C23: Profitvédelem | D23: 0 | E23: Extra hozam | F23: =IF(D22=0,0,INDEX('Hozamsorok-eszközalapok'!N19:O22,D19-3,IF(F22=0,1,2))) -> 0 | J23: 22 | K23: 0 | L23: 0 | M23: 0 | N23: 0
C24: Alap | D24: =IF(H2=1,'Folyamatos Életív'!D24,'Folyamatos Nyugdíjcélú Életív'!D24) -> 0 | J24: 23 | K24: 0 | L24: 0 | M24: 0 | N24: 0
C25: Index | D25: =+'Folyamatos modell'!D25 -> 0.05 | J25: 24 | K25: 0 | L25: 0 | M25: 0 | N25: 0
C26: Alaparány | D26: =IF(H2=1,'Folyamatos Életív'!Q24,'Folyamatos Nyugdíjcélú Életív'!Q24) -> 0 | J26: 25 | K26: 0 | L26: 0 | M26: 0 | N26: 0
J27: 26 | K27: 0 | L27: 0 | M27: 0 | N27: 0
J28: 27 | K28: 0 | L28: 0 | M28: 0 | N28: 0
J29: 28 | K29: 0 | L29: 0 | M29: 0 | N29: 0
J30: 29 | K30: 0 | L30: 0 | M30: 0 | N30: 0
J31: 30 | K31: 0 | L31: 0 | M31: 0 | N31: 0
J32: 31 | K32: 0 | L32: 0 | M32: 0 | N32: 0
J33: 32 | K33: 0 | L33: 0 | M33: 0 | N33: 0
J34: 33 | K34: 0 | L34: 0 | M34: 0 | N34: 0
J35: 34 | K35: 0 | L35: 0 | M35: 0 | N35: 0
J36: 35 | K36: =INDEX($AC$50:$AE$589,J36*12,1) -> 0 | L36: =INDEX($AC$50:$AE$589,J36*12,2) -> 0 | M36: =INDEX($AC$50:$AE$589,J36*12,3) -> 0 | N36: =INDEX($AC$50:$AF$589,J36*12,4) -> 0
J37: 36 | K37: 0 | L37: 0 | M37: 0 | N37: 0
J38: 37 | K38: 0 | L38: 0 | M38: 0 | N38: 0
J39: 38 | K39: 0 | L39: 0 | M39: 0 | N39: 0
J40: 39 | K40: 0 | L40: 0 | M40: 0 | N40: 0
J41: 40 | K41: 0 | L41: 0 | M41: 0 | N41: 0
J42: 41 | K42: 0 | L42: 0 | M42: 0 | N42: 0
J43: 42 | K43: 0 | L43: 0 | M43: 0 | N43: 0
J44: 43 | K44: 0 | L44: 0 | M44: 0 | N44: 0
J45: 44 | K45: 0 | L45: 0 | M45: 0 | N45: 0
J46: 45 | K46: 0 | L46: 0 | M46: 0 | N46: 0
E48: Eszközalapot érintő tranzakciók | V48: Elhatárolások folyamatos díjas esetben | AC48: Hónap végén
A49: Év | B49: Hónap | D49: Admin. díjrész | E49: Befektetett díj | F49: Allokációs ktg. | G49: Nyitó árfolyam | H49: Záró árfolyam | I49: Vásárolt kezdeti egységek | J49: Vásárolt felhalm. egységek | K49: Kezdeti egységek nyitó | L49: Felhalm. egységek nyitó | M49: K. egységek e.alap-kezelési ktg. után | N49: F. egységek e.alap-kezelési ktg. után | O49: Számított Hozam-Monitor ktg. | P49: K. egységek HM ktg. után | Q49: F. egységek HM ktg. után | R49: Számított kockázati ktg. | S49: K. egységek kockázati ktg. után | T49: F. egységek kockázati ktg. után (záró) | U49: K. egységek kezdeti ktg. után (záró) | V49: Összes esedékes költség: aktuális HM ktg. előtt | W49: Összes f. egység fedezet HM ktg. előtt | X49: Érvényesíthető ktg. HM ktg. előtt | Y49: Összes esedékes költség: aktuális kock. ktg. előtt | Z49: Összes f. egység fedezet kock. ktg. előtt | AA49: Érvényesíthető ktg. kock. ktg. előtt | AB49: Megmaradó elhatárolt ktg. | AC49: Egyéni számlaérték | AD49: VV összeg | AE49: Kumulált megtak díj | AF49: Kumulált admin
A50: 1 | B50: 1 | D50: =IF(H2=1,'Folyamatos Életív'!N35+'Folyamatos Életív'!N36,'Folyamatos Nyugdíjcélú Életív'!N35+'Folyamatos Nyugdíjcélú Életív'!N36)*D26 -> 0 | E50: =IF(AND($D$8=1,SUM(A50:B50)=2),$D$12,IF(A50>$D$10,0,IF(OR(AND($D$8=2,B50=1),AND($D$8=4,OR(B50=1,B50=7)),AND($D$8=5,OR(B50=1,B50=4,B50=7,B50=10)),AND($D$8=3,B50>=1)),$D$12*(1+$D$25)^(A50-1),0))) -> 0 | F50: =E50*$D$13 -> 0 | G50: 1 | H50: =IF(A50<>"",G50*(1+INDEX('Hozamsorok-eszközalapok'!$B$11:$F$55,A50,IF($D$20=1,1,$D$19-2))+$F$23)^(1/12),0) -> 1.001815103 | I50: =IF(E50<>"",IF(A50<=2,(E50-F50)/G50,0),0) -> 0 | J50: =IF(A50<>"",IF(A50>2,(E50-F50)/G50,0),0) -> 0 | K50: =I50 -> 0 | L50: =J50 -> 0 | M50: =K50*(1-$G$8) -> 0 | N50: 0 | O50: =IF($E$4=TRUE,IF($D$19=4,0,(M50+N50)*($G$10+$G$11)*G50),0) -> 0 | P50: =IF($D$8<>1,M50,IF(A50<>"",M50-O50/G50,0)) -> 0 | Q50: =IF(A50<>"",N50-X50/G50,0) -> 0 | R50: =IF(OR(AND($D$8=1,A50<=$D$9),AND($D$8<>1,A50<=$D$10)),$D$15*($G$13+G50*((P50+Q50)-P50*$G$14^(IF($D$8=1,$D$9,$D$10)*12-((A50-1)*12+B50-1))-Q50*$G$15)),0) -> 0 | S50: =IF($D$8<>1,P50,IF(A50<>"",P50-R50/G50,0)) -> 0 | T50: =IF(A50<>"",Q50-AA50/G50,0) -> 0 | U50: =IF(AND($D$8<>1,A50>$D$10),S50,S50*(1-$D$14)) -> 0 | V50: =IF(AND(A50<>"",$D$8<>1),O50,0) -> 0 | W50: =N50*G50 -> 0 | X50: =MIN(V50,W50) -> 0 | Y50: =IF(AND(A50<>"",$D$8<>1),V50-X50+R50,0) -> 0 | Z50: =Q50*G50 -> 0 | AA50: =MIN(Y50,Z50) -> 0 | AB50: =IF(A50<>"",Y50-AA50,0) -> 0 | AC50: =H50*(T50+U50) -> 0 | AD50: =MAX(0,IF(A50<>"",IF(AND($D$8<>1,A50<=2,(A50+B50)<>14),0,H50*(U50*$G$14^(IF(AND($D$8<>1,A50>$D$10),0,IF($D$8=1,$D$9,$D$10)*12-((A50-1)*12+B50)))+T50*$G$15)-AB50),0)) -> 0 | AE50: =IF(A50<>"",SUM($E$50:E50),0) -> 0 | AF50: =IF(A50<>"",SUM($D$50:D50),0) -> 0
A51: =IF(B50<12,A50,IF(A50<$D$9,A50+1,"")) -> 1 | B51: =IF(A51="","",IF(B50=12,1,B50+1)) -> 2 | D51: =IF(E51=0,0,MAX($D$50:D50))*IF(B51=1,IF($H$2=1,105%,102%),1) -> 0 | E51: =IF(AND($D$8=1,SUM(A51:B51)=2),$D$12,IF(A51>$D$10,0,IF(OR(AND($D$8=2,B51=1),AND($D$8=4,OR(B51=1,B51=7)),AND($D$8=5,OR(B51=1,B51=4,B51=7,B51=10)),AND($D$8=3,B51>=1)),$D$12*(1+$D$25)^(A51-1),0))) -> 0 | F51: 0 | G51: =IF(A51<>"",H50,0) -> 1.001815103 | H51: =IF(A51<>"",G51*(1+INDEX('Hozamsorok-eszközalapok'!$B$11:$F$55,A51,IF($D$20=1,1,$D$19-2))+$F$23)^(1/12),0) -> 1.003633501 | I51: =IF(E51<>"",IF(A51<=2,(E51-F51)/G51,0),0) -> 0 | J51: =IF(A51<>"",IF(A51>2,(E51-F51)/G51,0),0) -> 0 | K51: =IF(A51<>"",U50+I51,0) -> 0 | L51: =IF(A51<>"",T50+J51,0) -> 0 | M51: 0 | N51: 0 | O51: =IF($E$4=TRUE,IF($D$19=4,0,(M51+N51)*($G$10+$G$11)*G51),0) -> 0 | P51: =IF($D$8<>1,M51,IF(A51<>"",M51-O51/G51,0)) -> 0 | Q51: =IF(A51<>"",N51-X51/G51,0) -> 0 | R51: =IF(OR(AND($D$8=1,A51<=$D$9),AND($D$8<>1,A51<=$D$10)),$D$15*($G$13+G51*((P51+Q51)-P51*$G$14^(IF($D$8=1,$D$9,$D$10)*12-((A51-1)*12+B51-1))-Q51*$G$15)),0) -> 0 | S51: =IF($D$8<>1,P51,IF(A51<>"",P51-R51/G51,0)) -> 0 | T51: =IF(A51<>"",Q51-AA51/G51,0) -> 0 | U51: =IF(AND($D$8<>1,A51>$D$10),S51,S51*(1-$D$14)) -> 0 | V51: =IF(AND(A51<>"",$D$8<>1),O51+AB50,0) -> 0 | W51: =N51*G51 -> 0 | X51: =MIN(V51,W51) -> 0 | Y51: =IF(AND(A51<>"",$D$8<>1),V51-X51+R51,0) -> 0 | Z51: =Q51*G51 -> 0 | AA51: =MIN(Y51,Z51) -> 0 | AB51: =IF(A51<>"",Y51-AA51,0) -> 0 | AC51: 0 | AD51: =MAX(0,IF(A51<>"",IF(AND($D$8<>1,A51<=2,(A51+B51)<>14),0,H51*(U51*$G$14^(IF(AND($D$8<>1,A51>$D$10),0,IF($D$8=1,$D$9,$D$10)*12-((A51-1)*12+B51)))+T51*$G$15)-AB51),0)) -> 0 | AE51: =IF(A51<>"",SUM($E$50:E51),0) -> 0 | AF51: =IF(A51<>"",SUM($D$50:D51),0) -> 0
A52: 1 | B52: =IF(A52="","",IF(B51=12,1,B51+1)) -> 3 | D52: =IF(E52=0,0,MAX($D$50:D51))*IF(B52=1,IF($H$2=1,105%,102%),1) -> 0 | E52: 0 | F52: 0 | G52: =IF(A52<>"",H51,0) -> 1.003633501 | H52: =IF(A52<>"",G52*(1+INDEX('Hozamsorok-eszközalapok'!$B$11:$F$55,A52,IF($D$20=1,1,$D$19-2))+$F$23)^(1/12),0) -> 1.005455199 | I52: 0 | J52: 0 | K52: 0 | L52: 0 | M52: 0 | N52: 0 | O52: 0 | P52: 0 | Q52: 0 | R52: 0 | S52: 0 | T52: 0 | U52: 0 | V52: =IF(AND(A52<>"",$D$8<>1),O52+AB51,0) -> 0 | W52: =N52*G52 -> 0 | X52: =MIN(V52,W52) -> 0 | Y52: =IF(AND(A52<>"",$D$8<>1),V52-X52+R52,0) -> 0 | Z52: =Q52*G52 -> 0 | AA52: =MIN(Y52,Z52) -> 0 | AB52: =IF(A52<>"",Y52-AA52,0) -> 0 | AC52: 0 | AD52: 0 | AE52: =IF(A52<>"",SUM($E$50:E52),0) -> 0 | AF52: =IF(A52<>"",SUM($D$50:D52),0) -> 0
A53: 1 | B53: 4 | D53: =IF(E53=0,0,MAX($D$50:D52))*IF(B53=1,IF($H$2=1,105%,102%),1) -> 0 | E53: 0 | F53: 0 | G53: 1.005455199 | H53: =IF(A53<>"",G53*(1+INDEX('Hozamsorok-eszközalapok'!$B$11:$F$55,A53,IF($D$20=1,1,$D$19-2))+$F$23)^(1/12),0) -> 1.007280203 | I53: 0 | J53: 0 | K53: 0 | L53: 0 | M53: 0 | N53: 0 | O53: 0 | P53: 0 | Q53: 0 | R53: 0 | S53: 0 | T53: 0 | U53: 0 | V53: 0 | W53: 0 | X53: 0 | Y53: 0 | Z53: 0 | AA53: 0 | AB53: 0 | AC53: 0 | AD53: 0 | AE53: =IF(A53<>"",SUM($E$50:E53),0) -> 0 | AF53: =IF(A53<>"",SUM($D$50:D53),0) -> 0
A54: 1 | B54: 5 | D54: =IF(E54=0,0,MAX($D$50:D53))*IF(B54=1,IF($H$2=1,105%,102%),1) -> 0 | E54: 0 | F54: 0 | G54: 1.007280203 | H54: =IF(A54<>"",G54*(1+INDEX('Hozamsorok-eszközalapok'!$B$11:$F$55,A54,IF($D$20=1,1,$D$19-2))+$F$23)^(1/12),0) -> 1.009108521 | I54: 0 | J54: 0 | K54: 0 | L54: 0 | M54: 0 | N54: 0 | O54: 0 | P54: 0 | Q54: 0 | R54: 0 | S54: 0 | T54: 0 | U54: 0 | V54: 0 | W54: 0 | X54: 0 | Y54: 0 | Z54: 0 | AA54: 0 | AB54: 0 | AC54: 0 | AD54: 0 | AE54: =IF(A54<>"",SUM($E$50:E54),0) -> 0 | AF54: =IF(A54<>"",SUM($D$50:D54),0) -> 0
A55: 1 | B55: 6 | D55: =IF(E55=0,0,MAX($D$50:D54))*IF(B55=1,IF($H$2=1,105%,102%),1) -> 0 | E55: 0 | F55: 0 | G55: 1.009108521 | H55: =IF(A55<>"",G55*(1+INDEX('Hozamsorok-eszközalapok'!$B$11:$F$55,A55,IF($D$20=1,1,$D$19-2))+$F$23)^(1/12),0) -> 1.010940156 | I55: 0 | J55: 0 | K55: 0 | L55: 0 | M55: 0 | N55: 0 | O55: 0 | P55: 0 | Q55: 0 | R55: 0 | S55: 0 | T55: 0 | U55: 0 | V55: 0 | W55: 0 | X55: 0 | Y55: 0 | Z55: 0 | AA55: 0 | AB55: 0 | AC55: 0 | AD55: 0 | AE55: =IF(A55<>"",SUM($E$50:E55),0) -> 0 | AF55: =IF(A55<>"",SUM($D$50:D55),0) -> 0
A56: 1 | B56: 7 | D56: =IF(E56=0,0,MAX($D$50:D55))*IF(B56=1,IF($H$2=1,105%,102%),1) -> 0 | E56: 0 | F56: 0 | G56: 1.010940156 | H56: =IF(A56<>"",G56*(1+INDEX('Hozamsorok-eszközalapok'!$B$11:$F$55,A56,IF($D$20=1,1,$D$19-2))+$F$23)^(1/12),0) -> 1.012775117 | I56: 0 | J56: 0 | K56: 0 | L56: 0 | M56: 0 | N56: 0 | O56: 0 | P56: 0 | Q56: 0 | R56: 0 | S56: 0 | T56: 0 | U56: 0 | V56: 0 | W56: 0 | X56: 0 | Y56: 0 | Z56: 0 | AA56: 0 | AB56: 0 | AC56: 0 | AD56: 0 | AE56: =IF(A56<>"",SUM($E$50:E56),0) -> 0 | AF56: =IF(A56<>"",SUM($D$50:D56),0) -> 0
A57: 1 | B57: 8 | D57: =IF(E57=0,0,MAX($D$50:D56))*IF(B57=1,IF($H$2=1,105%,102%),1) -> 0 | E57: 0 | F57: 0 | G57: 1.012775117 | H57: =IF(A57<>"",G57*(1+INDEX('Hozamsorok-eszközalapok'!$B$11:$F$55,A57,IF($D$20=1,1,$D$19-2))+$F$23)^(1/12),0) -> 1.014613408 | I57: 0 | J57: 0 | K57: 0 | L57: 0 | M57: 0 | N57: 0 | O57: 0 | P57: 0 | Q57: 0 | R57: 0 | S57: 0 | T57: 0 | U57: 0 | V57: 0 | W57: 0 | X57: 0 | Y57: 0 | Z57: 0 | AA57: 0 | AB57: 0 | AC57: 0 | AD57: 0 | AE57: =IF(A57<>"",SUM($E$50:E57),0) -> 0 | AF57: =IF(A57<>"",SUM($D$50:D57),0) -> 0
A58: 1 | B58: 9 | D58: =IF(E58=0,0,MAX($D$50:D57))*IF(B58=1,IF($H$2=1,105%,102%),1) -> 0 | E58: 0 | F58: 0 | G58: 1.014613408 | H58: =IF(A58<>"",G58*(1+INDEX('Hozamsorok-eszközalapok'!$B$11:$F$55,A58,IF($D$20=1,1,$D$19-2))+$F$23)^(1/12),0) -> 1.016455036 | I58: 0 | J58: 0 | K58: 0 | L58: 0 | M58: 0 | N58: 0 | O58: 0 | P58: 0 | Q58: 0 | R58: 0 | S58: 0 | T58: 0 | U58: 0 | V58: 0 | W58: 0 | X58: 0 | Y58: 0 | Z58: 0 | AA58: 0 | AB58: 0 | AC58: 0 | AD58: 0 | AE58: =IF(A58<>"",SUM($E$50:E58),0) -> 0 | AF58: =IF(A58<>"",SUM($D$50:D58),0) -> 0
A59: 1 | B59: 10 | D59: =IF(E59=0,0,MAX($D$50:D58))*IF(B59=1,IF($H$2=1,105%,102%),1) -> 0 | E59: 0 | F59: 0 | G59: 1.016455036 | H59: =IF(A59<>"",G59*(1+INDEX('Hozamsorok-eszközalapok'!$B$11:$F$55,A59,IF($D$20=1,1,$D$19-2))+$F$23)^(1/12),0) -> 1.018300006 | I59: 0 | J59: 0 | K59: 0 | L59: 0 | M59: 0 | N59: 0 | O59: 0 | P59: 0 | Q59: 0 | R59: 0 | S59: 0 | T59: 0 | U59: 0 | V59: 0 | W59: 0 | X59: 0 | Y59: 0 | Z59: 0 | AA59: 0 | AB59: 0 | AC59: 0 | AD59: 0 | AE59: =IF(A59<>"",SUM($E$50:E59),0) -> 0 | AF59: =IF(A59<>"",SUM($D$50:D59),0) -> 0
A60: 1 | B60: 11 | D60: =IF(E60=0,0,MAX($D$50:D59))*IF(B60=1,IF($H$2=1,105%,102%),1) -> 0 | E60: 0 | F60: 0 | G60: 1.018300006 | H60: =IF(A60<>"",G60*(1+INDEX('Hozamsorok-eszközalapok'!$B$11:$F$55,A60,IF($D$20=1,1,$D$19-2))+$F$23)^(1/12),0) -> 1.020148326 | I60: 0 | J60: 0 | K60: 0 | L60: 0 | M60: 0 | N60: 0 | O60: 0 | P60: 0 | Q60: 0 | R60: 0 | S60: 0 | T60: 0 | U60: 0 | V60: 0 | W60: 0 | X60: 0 | Y60: 0 | Z60: 0 | AA60: 0 | AB60: 0 | AC60: 0 | AD60: 0 | AE60: =IF(A60<>"",SUM($E$50:E60),0) -> 0 | AF60: =IF(A60<>"",SUM($D$50:D60),0) -> 0
A61: 1 | B61: 12 | D61: =IF(E61=0,0,MAX($D$50:D60))*IF(B61=1,IF($H$2=1,105%,102%),1) -> 0 | E61: 0 | F61: 0 | G61: 1.020148326 | H61: =IF(A61<>"",G61*(1+INDEX('Hozamsorok-eszközalapok'!$B$11:$F$55,A61,IF($D$20=1,1,$D$19-2))+$F$23)^(1/12),0) -> 1.022 | I61: 0 | J61: 0 | K61: 0 | L61: 0 | M61: 0 | N61: 0 | O61: 0 | P61: 0 | Q61: 0 | R61: 0 | S61: 0 | T61: 0 | U61: 0 | V61: 0 | W61: 0 | X61: 0 | Y61: 0 | Z61: 0 | AA61: 0 | AB61: 0 | AC61: 0 | AD61: 0 | AE61: =IF(A61<>"",SUM($E$50:E61),0) -> 0 | AF61: =IF(A61<>"",SUM($D$50:D61),0) -> 0
A62: 2 | B62: 1 | D62: =IF(E62=0,0,MAX($D$50:D61))*IF(B62=1,IF($H$2=1,105%,102%),1) -> 0 | E62: 0 | F62: 0 | G62: 1.022 | H62: =IF(A62<>"",G62*(1+INDEX('Hozamsorok-eszközalapok'!$B$11:$F$55,A62,IF($D$20=1,1,$D$19-2))+$F$23)^(1/12),0) -> 1.024021855 | I62: 0 | J62: 0 | K62: 0 | L62: 0 | M62: 0 | N62: 0 | O62: 0 | P62: 0 | Q62: 0 | R62: 0 | S62: 0 | T62: 0 | U62: 0 | V62: 0 | W62: 0 | X62: 0 | Y62: 0 | Z62: 0 | AA62: 0 | AB62: 0 | AC62: 0 | AD62: 0 | AE62: =IF(A62<>"",SUM($E$50:E62),0) -> 0 | AF62: =IF(A62<>"",SUM($D$50:D62),0) -> 0
A63: 2 | B63: 2 | D63: =IF(E63=0,0,MAX($D$50:D62))*IF(B63=1,IF($H$2=1,105%,102%),1) -> 0 | E63: 0 | F63: 0 | G63: 1.024021855 | H63: =IF(A63<>"",G63*(1+INDEX('Hozamsorok-eszközalapok'!$B$11:$F$55,A63,IF($D$20=1,1,$D$19-2))+$F$23)^(1/12),0) -> 1.02604771 | I63: 0 | J63: 0 | K63: 0 | L63: 0 | M63: 0 | N63: 0 | O63: 0 | P63: 0 | Q63: 0 | R63: 0 | S63: 0 | T63: 0 | U63: 0 | V63: 0 | W63: 0 | X63: 0 | Y63: 0 | Z63: 0 | AA63: 0 | AB63: 0 | AC63: 0 | AD63: 0 | AE63: =IF(A63<>"",SUM($E$50:E63),0) -> 0 | AF63: =IF(A63<>"",SUM($D$50:D63),0) -> 0
A64: 2 | B64: 3 | D64: =IF(E64=0,0,MAX($D$50:D63))*IF(B64=1,IF($H$2=1,105%,102%),1) -> 0 | E64: 0 | F64: 0 | G64: 1.02604771 | H64: =IF(A64<>"",G64*(1+INDEX('Hozamsorok-eszközalapok'!$B$11:$F$55,A64,IF($D$20=1,1,$D$19-2))+$F$23)^(1/12),0) -> 1.028077572 | I64: 0 | J64: 0 | K64: 0 | L64: 0 | M64: 0 | N64: 0 | O64: 0 | P64: 0 | Q64: 0 | R64: 0 | S64: 0 | T64: 0 | U64: 0 | V64: 0 | W64: 0 | X64: 0 | Y64: 0 | Z64: 0 | AA64: 0 | AB64: 0 | AC64: 0 | AD64: 0 | AE64: =IF(A64<>"",SUM($E$50:E64),0) -> 0 | AF64: =IF(A64<>"",SUM($D$50:D64),0) -> 0
A65: 2 | B65: 4 | D65: =IF(E65=0,0,MAX($D$50:D64))*IF(B65=1,IF($H$2=1,105%,102%),1) -> 0 | E65: 0 | F65: 0 | G65: 1.028077572 | H65: =IF(A65<>"",G65*(1+INDEX('Hozamsorok-eszközalapok'!$B$11:$F$55,A65,IF($D$20=1,1,$D$19-2))+$F$23)^(1/12),0) -> 1.03011145 | I65: 0 | J65: 0 | K65: 0 | L65: 0 | M65: 0 | N65: 0 | O65: 0 | P65: 0 | Q65: 0 | R65: 0 | S65: 0 | T65: 0 | U65: 0 | V65: 0 | W65: 0 | X65: 0 | Y65: 0 | Z65: 0 | AA65: 0 | AB65: 0 | AC65: 0 | AD65: 0 | AE65: =IF(A65<>"",SUM($E$50:E65),0) -> 0 | AF65: =IF(A65<>"",SUM($D$50:D65),0) -> 0
A66: 2 | B66: 5 | D66: =IF(E66=0,0,MAX($D$50:D65))*IF(B66=1,IF($H$2=1,105%,102%),1) -> 0 | E66: 0 | F66: 0 | G66: 1.03011145 | H66: =IF(A66<>"",G66*(1+INDEX('Hozamsorok-eszközalapok'!$B$11:$F$55,A66,IF($D$20=1,1,$D$19-2))+$F$23)^(1/12),0) -> 1.032149352 | I66: 0 | J66: 0 | K66: 0 | L66: 0 | M66: 0 | N66: 0 | O66: 0 | P66: 0 | Q66: 0 | R66: 0 | S66: 0 | T66: 0 | U66: 0 | V66: 0 | W66: 0 | X66: 0 | Y66: 0 | Z66: 0 | AA66: 0 | AB66: 0 | AC66: 0 | AD66: 0 | AE66: =IF(A66<>"",SUM($E$50:E66),0) -> 0 | AF66: =IF(A66<>"",SUM($D$50:D66),0) -> 0
A67: 2 | B67: 6 | D67: =IF(E67=0,0,MAX($D$50:D66))*IF(B67=1,IF($H$2=1,105%,102%),1) -> 0 | E67: 0 | F67: 0 | G67: 1.032149352 | H67: =IF(A67<>"",G67*(1+INDEX('Hozamsorok-eszközalapok'!$B$11:$F$55,A67,IF($D$20=1,1,$D$19-2))+$F$23)^(1/12),0) -> 1.034191286 | I67: 0 | J67: 0 | K67: 0 | L67: 0 | M67: 0 | N67: 0 | O67: 0 | P67: 0 | Q67: 0 | R67: 0 | S67: 0 | T67: 0 | U67: 0 | V67: 0 | W67: 0 | X67: 0 | Y67: 0 | Z67: 0 | AA67: 0 | AB67: 0 | AC67: 0 | AD67: 0 | AE67: =IF(A67<>"",SUM($E$50:E67),0) -> 0 | AF67: =IF(A67<>"",SUM($D$50:D67),0) -> 0
A68: 2 | B68: 7 | D68: =IF(E68=0,0,MAX($D$50:D67))*IF(B68=1,IF($H$2=1,105%,102%),1) -> 0 | E68: 0 | F68: 0 | G68: 1.034191286 | H68: =IF(A68<>"",G68*(1+INDEX('Hozamsorok-eszközalapok'!$B$11:$F$55,A68,IF($D$20=1,1,$D$19-2))+$F$23)^(1/12),0) -> 1.036237259 | I68: 0 | J68: 0 | K68: 0 | L68: 0 | M68: 0 | N68: 0 | O68: 0 | P68: 0 | Q68: 0 | R68: 0 | S68: 0 | T68: 0 | U68: 0 | V68: 0 | W68: 0 | X68: 0 | Y68: 0 | Z68: 0 | AA68: 0 | AB68: 0 | AC68: 0 | AD68: 0 | AE68: =IF(A68<>"",SUM($E$50:E68),0) -> 0 | AF68: =IF(A68<>"",SUM($D$50:D68),0) -> 0
A69: 2 | B69: 8 | D69: =IF(E69=0,0,MAX($D$50:D68))*IF(B69=1,IF($H$2=1,105%,102%),1) -> 0 | E69: 0 | F69: 0 | G69: 1.036237259 | H69: =IF(A69<>"",G69*(1+INDEX('Hozamsorok-eszközalapok'!$B$11:$F$55,A69,IF($D$20=1,1,$D$19-2))+$F$23)^(1/12),0) -> 1.03828728 | I69: 0 | J69: 0 | K69: 0 | L69: 0 | M69: 0 | N69: 0 | O69: 0 | P69: 0 | Q69: 0 | R69: 0 | S69: 0 | T69: 0 | U69: 0 | V69: 0 | W69: 0 | X69: 0 | Y69: 0 | Z69: 0 | AA69: 0 | AB69: 0 | AC69: 0 | AD69: 0 | AE69: =IF(A69<>"",SUM($E$50:E69),0) -> 0 | AF69: =IF(A69<>"",SUM($D$50:D69),0) -> 0
A70: 2 | B70: 9 | D70: =IF(E70=0,0,MAX($D$50:D69))*IF(B70=1,IF($H$2=1,105%,102%),1) -> 0 | E70: 0 | F70: 0 | G70: 1.03828728 | H70: =IF(A70<>"",G70*(1+INDEX('Hozamsorok-eszközalapok'!$B$11:$F$55,A70,IF($D$20=1,1,$D$19-2))+$F$23)^(1/12),0) -> 1.040341357 | I70: 0 | J70: 0 | K70: 0 | L70: 0 | M70: 0 | N70: 0 | O70: 0 | P70: 0 | Q70: 0 | R70: 0 | S70: 0 | T70: 0 | U70: 0 | V70: 0 | W70: 0 | X70: 0 | Y70: 0 | Z70: 0 | AA70: 0 | AB70: 0 | AC70: 0 | AD70: 0 | AE70: =IF(A70<>"",SUM($E$50:E70),0) -> 0 | AF70: =IF(A70<>"",SUM($D$50:D70),0) -> 0
A71: 2 | B71: 10 | D71: =IF(E71=0,0,MAX($D$50:D70))*IF(B71=1,IF($H$2=1,105%,102%),1) -> 0 | E71: 0 | F71: 0 | G71: 1.040341357 | H71: =IF(A71<>"",G71*(1+INDEX('Hozamsorok-eszközalapok'!$B$11:$F$55,A71,IF($D$20=1,1,$D$19-2))+$F$23)^(1/12),0) -> 1.042399497 | I71: 0 | J71: 0 | K71: 0 | L71: 0 | M71: 0 | N71: 0 | O71: 0 | P71: 0 | Q71: 0 | R71: 0 | S71: 0 | T71: 0 | U71: 0 | V71: 0 | W71: 0 | X71: 0 | Y71: 0 | Z71: 0 | AA71: 0 | AB71: 0 | AC71: 0 | AD71: 0 | AE71: =IF(A71<>"",SUM($E$50:E71),0) -> 0 | AF71: =IF(A71<>"",SUM($D$50:D71),0) -> 0
A72: 2 | B72: 11 | D72: =IF(E72=0,0,MAX($D$50:D71))*IF(B72=1,IF($H$2=1,105%,102%),1) -> 0 | E72: 0 | F72: 0 | G72: 1.042399497 | H72: =IF(A72<>"",G72*(1+INDEX('Hozamsorok-eszközalapok'!$B$11:$F$55,A72,IF($D$20=1,1,$D$19-2))+$F$23)^(1/12),0) -> 1.044461708 | I72: 0 | J72: 0 | K72: 0 | L72: 0 | M72: 0 | N72: 0 | O72: 0 | P72: 0 | Q72: 0 | R72: 0 | S72: 0 | T72: 0 | U72: 0 | V72: 0 | W72: 0 | X72: 0 | Y72: 0 | Z72: 0 | AA72: 0 | AB72: 0 | AC72: 0 | AD72: 0 | AE72: =IF(A72<>"",SUM($E$50:E72),0) -> 0 | AF72: =IF(A72<>"",SUM($D$50:D72),0) -> 0
A73: 2 | B73: 12 | D73: =IF(E73=0,0,MAX($D$50:D72))*IF(B73=1,IF($H$2=1,105%,102%),1) -> 0 | E73: 0 | F73: 0 | G73: 1.044461708 | H73: =IF(A73<>"",G73*(1+INDEX('Hozamsorok-eszközalapok'!$B$11:$F$55,A73,IF($D$20=1,1,$D$19-2))+$F$23)^(1/12),0) -> 1.046528 | I73: 0 | J73: 0 | K73: 0 | L73: 0 | M73: 0 | N73: 0 | O73: 0 | P73: 0 | Q73: 0 | R73: 0 | S73: 0 | T73: 0 | U73: 0 | V73: 0 | W73: 0 | X73: 0 | Y73: 0 | Z73: 0 | AA73: 0 | AB73: 0 | AC73: 0 | AD73: 0 | AE73: =IF(A73<>"",SUM($E$50:E73),0) -> 0 | AF73: =IF(A73<>"",SUM($D$50:D73),0) -> 0
A74: 3 | B74: 1 | D74: =IF(E74=0,0,MAX($D$50:D73))*IF(B74=1,IF($H$2=1,105%,102%),1) -> 0 | E74: 0 | F74: 0 | G74: 1.046528 | H74: =IF(A74<>"",G74*(1+INDEX('Hozamsorok-eszközalapok'!$B$11:$F$55,A74,IF($D$20=1,1,$D$19-2))+$F$23)^(1/12),0) -> 1.048854042 | I74: 0 | J74: 0 | K74: 0 | L74: 0 | M74: 0 | N74: 0 | O74: 0 | P74: 0 | Q74: 0 | R74: 0 | S74: 0 | T74: 0 | U74: 0 | V74: 0 | W74: 0 | X74: 0 | Y74: 0 | Z74: 0 | AA74: 0 | AB74: 0 | AC74: 0 | AD74: 0 | AE74: =IF(A74<>"",SUM($E$50:E74),0) -> 0 | AF74: =IF(A74<>"",SUM($D$50:D74),0) -> 0
A75: 3 | B75: 2 | D75: =IF(E75=0,0,MAX($D$50:D74))*IF(B75=1,IF($H$2=1,105%,102%),1) -> 0 | E75: 0 | F75: 0 | G75: 1.048854042 | H75: =IF(A75<>"",G75*(1+INDEX('Hozamsorok-eszközalapok'!$B$11:$F$55,A75,IF($D$20=1,1,$D$19-2))+$F$23)^(1/12),0) -> 1.051185253 | I75: 0 | J75: 0 | K75: 0 | L75: 0 | M75: 0 | N75: 0 | O75: 0 | P75: 0 | Q75: 0 | R75: 0 | S75: 0 | T75: 0 | U75: 0 | V75: 0 | W75: 0 | X75: 0 | Y75: 0 | Z75: 0 | AA75: 0 | AB75: 0 | AC75: 0 | AD75: 0 | AE75: =IF(A75<>"",SUM($E$50:E75),0) -> 0 | AF75: =IF(A75<>"",SUM($D$50:D75),0) -> 0
A76: 3 | B76: 3 | D76: =IF(E76=0,0,MAX($D$50:D75))*IF(B76=1,IF($H$2=1,105%,102%),1) -> 0 | E76: 0 | F76: 0 | G76: 1.051185253 | H76: =IF(A76<>"",G76*(1+INDEX('Hozamsorok-eszközalapok'!$B$11:$F$55,A76,IF($D$20=1,1,$D$19-2))+$F$23)^(1/12),0) -> 1.053521646 | I76: 0 | J76: 0 | K76: 0 | L76: 0 | M76: 0 | N76: 0 | O76: 0 | P76: 0 | Q76: 0 | R76: 0 | S76: 0 | T76: 0 | U76: 0 | V76: 0 | W76: 0 | X76: 0 | Y76: 0 | Z76: 0 | AA76: 0 | AB76: 0 | AC76: 0 | AD76: 0 | AE76: =IF(A76<>"",SUM($E$50:E76),0) -> 0 | AF76: =IF(A76<>"",SUM($D$50:D76),0) -> 0
A77: 3 | B77: 4 | D77: =IF(E77=0,0,MAX($D$50:D76))*IF(B77=1,IF($H$2=1,105%,102%),1) -> 0 | E77: 0 | F77: 0 | G77: 1.053521646 | H77: =IF(A77<>"",G77*(1+INDEX('Hozamsorok-eszközalapok'!$B$11:$F$55,A77,IF($D$20=1,1,$D$19-2))+$F$23)^(1/12),0) -> 1.055863232 | I77: 0 | J77: 0 | K77: 0 | L77: 0 | M77: 0 | N77: 0 | O77: 0 | P77: 0 | Q77: 0 | R77: 0 | S77: 0 | T77: 0 | U77: 0 | V77: 0 | W77: 0 | X77: 0 | Y77: 0 | Z77: 0 | AA77: 0 | AB77: 0 | AC77: 0 | AD77: 0 | AE77: =IF(A77<>"",SUM($E$50:E77),0) -> 0 | AF77: =IF(A77<>"",SUM($D$50:D77),0) -> 0
A78: 3 | B78: 5 | D78: =IF(E78=0,0,MAX($D$50:D77))*IF(B78=1,IF($H$2=1,105%,102%),1) -> 0 | E78: 0 | F78: 0 | G78: 1.055863232 | H78: =IF(A78<>"",G78*(1+INDEX('Hozamsorok-eszközalapok'!$B$11:$F$55,A78,IF($D$20=1,1,$D$19-2))+$F$23)^(1/12),0) -> 1.058210023 | I78: 0 | J78: 0 | K78: 0 | L78: 0 | M78: 0 | N78: 0 | O78: 0 | P78: 0 | Q78: 0 | R78: 0 | S78: 0 | T78: 0 | U78: 0 | V78: 0 | W78: 0 | X78: 0 | Y78: 0 | Z78: 0 | AA78: 0 | AB78: 0 | AC78: 0 | AD78: 0 | AE78: =IF(A78<>"",SUM($E$50:E78),0) -> 0 | AF78: =IF(A78<>"",SUM($D$50:D78),0) -> 0
A79: 3 | B79: 6 | D79: =IF(E79=0,0,MAX($D$50:D78))*IF(B79=1,IF($H$2=1,105%,102%),1) -> 0 | E79: 0 | F79: 0 | G79: 1.058210023 | H79: =IF(A79<>"",G79*(1+INDEX('Hozamsorok-eszközalapok'!$B$11:$F$55,A79,IF($D$20=1,1,$D$19-2))+$F$23)^(1/12),0) -> 1.060562029 | I79: 0 | J79: 0 | K79: 0 | L79: 0 | M79: 0 | N79: 0 | O79: 0 | P79: 0 | Q79: 0 | R79: 0 | S79: 0 | T79: 0 | U79: 0 | V79: 0 | W79: 0 | X79: 0 | Y79: 0 | Z79: 0 | AA79: 0 | AB79: 0 | AC79: 0 | AD79: 0 | AE79: =IF(A79<>"",SUM($E$50:E79),0) -> 0 | AF79: =IF(A79<>"",SUM($D$50:D79),0) -> 0
A80: 3 | B80: 7 | D80: =IF(E80=0,0,MAX($D$50:D79))*IF(B80=1,IF($H$2=1,105%,102%),1) -> 0 | E80: 0 | F80: 0 | G80: 1.060562029 | H80: =IF(A80<>"",G80*(1+INDEX('Hozamsorok-eszközalapok'!$B$11:$F$55,A80,IF($D$20=1,1,$D$19-2))+$F$23)^(1/12),0) -> 1.062919263 | I80: 0 | J80: 0 | K80: 0 | L80: 0 | M80: 0 | N80: 0 | O80: 0 | P80: 0 | Q80: 0 | R80: 0 | S80: 0 | T80: 0 | U80: 0 | V80: 0 | W80: 0 | X80: 0 | Y80: 0 | Z80: 0 | AA80: 0 | AB80: 0 | AC80: 0 | AD80: 0 | AE80: =IF(A80<>"",SUM($E$50:E80),0) -> 0 | AF80: =IF(A80<>"",SUM($D$50:D80),0) -> 0
A81: 3 | B81: 8 | D81: =IF(E81=0,0,MAX($D$50:D80))*IF(B81=1,IF($H$2=1,105%,102%),1) -> 0 | E81: 0 | F81: 0 | G81: 1.062919263 | H81: =IF(A81<>"",G81*(1+INDEX('Hozamsorok-eszközalapok'!$B$11:$F$55,A81,IF($D$20=1,1,$D$19-2))+$F$23)^(1/12),0) -> 1.065281737 | I81: 0 | J81: 0 | K81: 0 | L81: 0 | M81: 0 | N81: 0 | O81: 0 | P81: 0 | Q81: 0 | R81: 0 | S81: 0 | T81: 0 | U81: 0 | V81: 0 | W81: 0 | X81: 0 | Y81: 0 | Z81: 0 | AA81: 0 | AB81: 0 | AC81: 0 | AD81: 0 | AE81: =IF(A81<>"",SUM($E$50:E81),0) -> 0 | AF81: =IF(A81<>"",SUM($D$50:D81),0) -> 0
A82: 3 | B82: 9 | D82: =IF(E82=0,0,MAX($D$50:D81))*IF(B82=1,IF($H$2=1,105%,102%),1) -> 0 | E82: 0 | F82: 0 | G82: 1.065281737 | H82: =IF(A82<>"",G82*(1+INDEX('Hozamsorok-eszközalapok'!$B$11:$F$55,A82,IF($D$20=1,1,$D$19-2))+$F$23)^(1/12),0) -> 1.067649461 | I82: 0 | J82: 0 | K82: 0 | L82: 0 | M82: 0 | N82: 0 | O82: 0 | P82: 0 | Q82: 0 | R82: 0 | S82: 0 | T82: 0 | U82: 0 | V82: 0 | W82: 0 | X82: 0 | Y82: 0 | Z82: 0 | AA82: 0 | AB82: 0 | AC82: 0 | AD82: 0 | AE82: =IF(A82<>"",SUM($E$50:E82),0) -> 0 | AF82: =IF(A82<>"",SUM($D$50:D82),0) -> 0
A83: 3 | B83: 10 | D83: =IF(E83=0,0,MAX($D$50:D82))*IF(B83=1,IF($H$2=1,105%,102%),1) -> 0 | E83: 0 | F83: 0 | G83: 1.067649461 | H83: =IF(A83<>"",G83*(1+INDEX('Hozamsorok-eszközalapok'!$B$11:$F$55,A83,IF($D$20=1,1,$D$19-2))+$F$23)^(1/12),0) -> 1.070022448 | I83: 0 | J83: 0 | K83: 0 | L83: 0 | M83: 0 | N83: 0 | O83: 0 | P83: 0 | Q83: 0 | R83: 0 | S83: 0 | T83: 0 | U83: 0 | V83: 0 | W83: 0 | X83: 0 | Y83: 0 | Z83: 0 | AA83: 0 | AB83: 0 | AC83: 0 | AD83: 0 | AE83: =IF(A83<>"",SUM($E$50:E83),0) -> 0 | AF83: =IF(A83<>"",SUM($D$50:D83),0) -> 0
A84: 3 | B84: 11 | D84: =IF(E84=0,0,MAX($D$50:D83))*IF(B84=1,IF($H$2=1,105%,102%),1) -> 0 | E84: 0 | F84: 0 | G84: 1.070022448 | H84: =IF(A84<>"",G84*(1+INDEX('Hozamsorok-eszközalapok'!$B$11:$F$55,A84,IF($D$20=1,1,$D$19-2))+$F$23)^(1/12),0) -> 1.072400709 | I84: 0 | J84: 0 | K84: 0 | L84: 0 | M84: 0 | N84: 0 | O84: 0 | P84: 0 | Q84: 0 | R84: 0 | S84: 0 | T84: 0 | U84: 0 | V84: 0 | W84: 0 | X84: 0 | Y84: 0 | Z84: 0 | AA84: 0 | AB84: 0 | AC84: 0 | AD84: 0 | AE84: =IF(A84<>"",SUM($E$50:E84),0) -> 0 | AF84: =IF(A84<>"",SUM($D$50:D84),0) -> 0
A85: 3 | B85: 12 | D85: =IF(E85=0,0,MAX($D$50:D84))*IF(B85=1,IF($H$2=1,105%,102%),1) -> 0 | E85: 0 | F85: 0 | G85: 1.072400709 | H85: =IF(A85<>"",G85*(1+INDEX('Hozamsorok-eszközalapok'!$B$11:$F$55,A85,IF($D$20=1,1,$D$19-2))+$F$23)^(1/12),0) -> 1.074784256 | I85: 0 | J85: 0 | K85: 0 | L85: 0 | M85: 0 | N85: 0 | O85: 0 | P85: 0 | Q85: 0 | R85: 0 | S85: 0 | T85: 0 | U85: 0 | V85: 0 | W85: 0 | X85: 0 | Y85: 0 | Z85: 0 | AA85: 0 | AB85: 0 | AC85: 0 | AD85: 0 | AE85: =IF(A85<>"",SUM($E$50:E85),0) -> 0 | AF85: =IF(A85<>"",SUM($D$50:D85),0) -> 0
A86: 4 | B86: 1 | D86: =IF(E86=0,0,MAX($D$50:D85))*IF(B86=1,IF($H$2=1,105%,102%),1) -> 0 | E86: 0 | F86: 0 | G86: 1.074784256 | H86: =IF(A86<>"",G86*(1+INDEX('Hozamsorok-eszközalapok'!$B$11:$F$55,A86,IF($D$20=1,1,$D$19-2))+$F$23)^(1/12),0) -> 1.077347754 | I86: 0 | J86: 0 | K86: 0 | L86: 0 | M86: 0 | N86: 0 | O86: 0 | P86: 0 | Q86: 0 | R86: 0 | S86: 0 | T86: 0 | U86: 0 | V86: 0 | W86: 0 | X86: 0 | Y86: 0 | Z86: 0 | AA86: 0 | AB86: 0 | AC86: 0 | AD86: 0 | AE86: =IF(A86<>"",SUM($E$50:E86),0) -> 0 | AF86: =IF(A86<>"",SUM($D$50:D86),0) -> 0
A87: 4 | B87: 2 | D87: =IF(E87=0,0,MAX($D$50:D86))*IF(B87=1,IF($H$2=1,105%,102%),1) -> 0 | E87: 0 | F87: 0 | G87: 1.077347754 | H87: =IF(A87<>"",G87*(1+INDEX('Hozamsorok-eszközalapok'!$B$11:$F$55,A87,IF($D$20=1,1,$D$19-2))+$F$23)^(1/12),0) -> 1.079917366 | I87: 0 | J87: 0 | K87: 0 | L87: 0 | M87: 0 | N87: 0 | O87: 0 | P87: 0 | Q87: 0 | R87: 0 | S87: 0 | T87: 0 | U87: 0 | V87: 0 | W87: 0 | X87: 0 | Y87: 0 | Z87: 0 | AA87: 0 | AB87: 0 | AC87: 0 | AD87: 0 | AE87: =IF(A87<>"",SUM($E$50:E87),0) -> 0 | AF87: =IF(A87<>"",SUM($D$50:D87),0) -> 0
A88: 4 | B88: 3 | D88: =IF(E88=0,0,MAX($D$50:D87))*IF(B88=1,IF($H$2=1,105%,102%),1) -> 0 | E88: 0 | F88: 0 | G88: 1.079917366 | H88: =IF(A88<>"",G88*(1+INDEX('Hozamsorok-eszközalapok'!$B$11:$F$55,A88,IF($D$20=1,1,$D$19-2))+$F$23)^(1/12),0) -> 1.082493107 | I88: 0 | J88: 0 | K88: 0 | L88: 0 | M88: 0 | N88: 0 | O88: 0 | P88: 0 | Q88: 0 | R88: 0 | S88: 0 | T88: 0 | U88: 0 | V88: 0 | W88: 0 | X88: 0 | Y88: 0 | Z88: 0 | AA88: 0 | AB88: 0 | AC88: 0 | AD88: 0 | AE88: =IF(A88<>"",SUM($E$50:E88),0) -> 0 | AF88: =IF(A88<>"",SUM($D$50:D88),0) -> 0
A89: 4 | B89: 4 | D89: =IF(E89=0,0,MAX($D$50:D88))*IF(B89=1,IF($H$2=1,105%,102%),1) -> 0 | E89: 0 | F89: 0 | G89: 1.082493107 | H89: =IF(A89<>"",G89*(1+INDEX('Hozamsorok-eszközalapok'!$B$11:$F$55,A89,IF($D$20=1,1,$D$19-2))+$F$23)^(1/12),0) -> 1.085074992 | I89: 0 | J89: 0 | K89: 0 | L89: 0 | M89: 0 | N89: 0 | O89: 0 | P89: 0 | Q89: 0 | R89: 0 | S89: 0 | T89: 0 | U89: 0 | V89: 0 | W89: 0 | X89: 0 | Y89: 0 | Z89: 0 | AA89: 0 | AB89: 0 | AC89: 0 | AD89: 0 | AE89: =IF(A89<>"",SUM($E$50:E89),0) -> 0 | AF89: =IF(A89<>"",SUM($D$50:D89),0) -> 0
A90: 4 | B90: 5 | D90: =IF(E90=0,0,MAX($D$50:D89))*IF(B90=1,IF($H$2=1,105%,102%),1) -> 0 | E90: 0 | F90: 0 | G90: 1.085074992 | H90: =IF(A90<>"",G90*(1+INDEX('Hozamsorok-eszközalapok'!$B$11:$F$55,A90,IF($D$20=1,1,$D$19-2))+$F$23)^(1/12),0) -> 1.087663035 | I90: 0 | J90: 0 | K90: 0 | L90: 0 | M90: 0 | N90: 0 | O90: 0 | P90: 0 | Q90: 0 | R90: 0 | S90: 0 | T90: 0 | U90: 0 | V90: 0 | W90: 0 | X90: 0 | Y90: 0 | Z90: 0 | AA90: 0 | AB90: 0 | AC90: 0 | AD90: 0 | AE90: =IF(A90<>"",SUM($E$50:E90),0) -> 0 | AF90: =IF(A90<>"",SUM($D$50:D90),0) -> 0
A91: 4 | B91: 6 | D91: =IF(E91=0,0,MAX($D$50:D90))*IF(B91=1,IF($H$2=1,105%,102%),1) -> 0 | E91: 0 | F91: 0 | G91: 1.087663035 | H91: =IF(A91<>"",G91*(1+INDEX('Hozamsorok-eszközalapok'!$B$11:$F$55,A91,IF($D$20=1,1,$D$19-2))+$F$23)^(1/12),0) -> 1.09025725 | I91: 0 | J91: 0 | K91: 0 | L91: 0 | M91: 0 | N91: 0 | O91: 0 | P91: 0 | Q91: 0 | R91: 0 | S91: 0 | T91: 0 | U91: 0 | V91: 0 | W91: 0 | X91: 0 | Y91: 0 | Z91: 0 | AA91: 0 | AB91: 0 | AC91: 0 | AD91: 0 | AE91: =IF(A91<>"",SUM($E$50:E91),0) -> 0 | AF91: =IF(A91<>"",SUM($D$50:D91),0) -> 0
A92: 4 | B92: 7 | D92: =IF(E92=0,0,MAX($D$50:D91))*IF(B92=1,IF($H$2=1,105%,102%),1) -> 0 | E92: 0 | F92: 0 | G92: 1.09025725 | H92: =IF(A92<>"",G92*(1+INDEX('Hozamsorok-eszközalapok'!$B$11:$F$55,A92,IF($D$20=1,1,$D$19-2))+$F$23)^(1/12),0) -> 1.092857653 | I92: 0 | J92: 0 | K92: 0 | L92: 0 | M92: 0 | N92: 0 | O92: 0 | P92: 0 | Q92: 0 | R92: 0 | S92: 0 | T92: 0 | U92: 0 | V92: 0 | W92: 0 | X92: 0 | Y92: 0 | Z92: 0 | AA92: 0 | AB92: 0 | AC92: 0 | AD92: 0 | AE92: =IF(A92<>"",SUM($E$50:E92),0) -> 0 | AF92: =IF(A92<>"",SUM($D$50:D92),0) -> 0
A93: 4 | B93: 8 | D93: =IF(E93=0,0,MAX($D$50:D92))*IF(B93=1,IF($H$2=1,105%,102%),1) -> 0 | E93: 0 | F93: 0 | G93: 1.092857653 | H93: =IF(A93<>"",G93*(1+INDEX('Hozamsorok-eszközalapok'!$B$11:$F$55,A93,IF($D$20=1,1,$D$19-2))+$F$23)^(1/12),0) -> 1.095464259 | I93: 0 | J93: 0 | K93: 0 | L93: 0 | M93: 0 | N93: 0 | O93: 0 | P93: 0 | Q93: 0 | R93: 0 | S93: 0 | T93: 0 | U93: 0 | V93: 0 | W93: 0 | X93: 0 | Y93: 0 | Z93: 0 | AA93: 0 | AB93: 0 | AC93: 0 | AD93: 0 | AE93: =IF(A93<>"",SUM($E$50:E93),0) -> 0 | AF93: =IF(A93<>"",SUM($D$50:D93),0) -> 0
A94: 4 | B94: 9 | D94: =IF(E94=0,0,MAX($D$50:D93))*IF(B94=1,IF($H$2=1,105%,102%),1) -> 0 | E94: 0 | F94: 0 | G94: 1.095464259 | H94: =IF(A94<>"",G94*(1+INDEX('Hozamsorok-eszközalapok'!$B$11:$F$55,A94,IF($D$20=1,1,$D$19-2))+$F$23)^(1/12),0) -> 1.098077081 | I94: 0 | J94: 0 | K94: 0 | L94: 0 | M94: 0 | N94: 0 | O94: 0 | P94: 0 | Q94: 0 | R94: 0 | S94: 0 | T94: 0 | U94: 0 | V94: 0 | W94: 0 | X94: 0 | Y94: 0 | Z94: 0 | AA94: 0 | AB94: 0 | AC94: 0 | AD94: 0 | AE94: =IF(A94<>"",SUM($E$50:E94),0) -> 0 | AF94: =IF(A94<>"",SUM($D$50:D94),0) -> 0
A95: 4 | B95: 10 | D95: =IF(E95=0,0,MAX($D$50:D94))*IF(B95=1,IF($H$2=1,105%,102%),1) -> 0 | E95: 0 | F95: 0 | G95: 1.098077081 | H95: =IF(A95<>"",G95*(1+INDEX('Hozamsorok-eszközalapok'!$B$11:$F$55,A95,IF($D$20=1,1,$D$19-2))+$F$23)^(1/12),0) -> 1.100696135 | I95: 0 | J95: 0 | K95: 0 | L95: 0 | M95: 0 | N95: 0 | O95: 0 | P95: 0 | Q95: 0 | R95: 0 | S95: 0 | T95: 0 | U95: 0 | V95: 0 | W95: 0 | X95: 0 | Y95: 0 | Z95: 0 | AA95: 0 | AB95: 0 | AC95: 0 | AD95: 0 | AE95: =IF(A95<>"",SUM($E$50:E95),0) -> 0 | AF95: =IF(A95<>"",SUM($D$50:D95),0) -> 0
A96: 4 | B96: 11 | D96: =IF(E96=0,0,MAX($D$50:D95))*IF(B96=1,IF($H$2=1,105%,102%),1) -> 0 | E96: 0 | F96: 0 | G96: 1.100696135 | H96: =IF(A96<>"",G96*(1+INDEX('Hozamsorok-eszközalapok'!$B$11:$F$55,A96,IF($D$20=1,1,$D$19-2))+$F$23)^(1/12),0) -> 1.103321437 | I96: 0 | J96: 0 | K96: 0 | L96: 0 | M96: 0 | N96: 0 | O96: 0 | P96: 0 | Q96: 0 | R96: 0 | S96: 0 | T96: 0 | U96: 0 | V96: 0 | W96: 0 | X96: 0 | Y96: 0 | Z96: 0 | AA96: 0 | AB96: 0 | AC96: 0 | AD96: 0 | AE96: =IF(A96<>"",SUM($E$50:E96),0) -> 0 | AF96: =IF(A96<>"",SUM($D$50:D96),0) -> 0
A97: 4 | B97: 12 | D97: =IF(E97=0,0,MAX($D$50:D96))*IF(B97=1,IF($H$2=1,105%,102%),1) -> 0 | E97: 0 | F97: 0 | G97: 1.103321437 | H97: =IF(A97<>"",G97*(1+INDEX('Hozamsorok-eszközalapok'!$B$11:$F$55,A97,IF($D$20=1,1,$D$19-2))+$F$23)^(1/12),0) -> 1.105952999 | I97: 0 | J97: 0 | K97: 0 | L97: 0 | M97: 0 | N97: 0 | O97: 0 | P97: 0 | Q97: 0 | R97: 0 | S97: 0 | T97: 0 | U97: 0 | V97: 0 | W97: 0 | X97: 0 | Y97: 0 | Z97: 0 | AA97: 0 | AB97: 0 | AC97: 0 | AD97: 0 | AE97: =IF(A97<>"",SUM($E$50:E97),0) -> 0 | AF97: =IF(A97<>"",SUM($D$50:D97),0) -> 0
A98: 5 | B98: 1 | D98: =IF(E98=0,0,MAX($D$50:D97))*IF(B98=1,IF($H$2=1,105%,102%),1) -> 0 | E98: 0 | F98: 0 | G98: 1.105952999 | H98: =IF(A98<>"",G98*(1+INDEX('Hozamsorok-eszközalapok'!$B$11:$F$55,A98,IF($D$20=1,1,$D$19-2))+$F$23)^(1/12),0) -> 1.108680578 | I98: 0 | J98: 0 | K98: 0 | L98: 0 | M98: 0 | N98: 0 | O98: 0 | P98: 0 | Q98: 0 | R98: 0 | S98: 0 | T98: 0 | U98: 0 | V98: 0 | W98: 0 | X98: 0 | Y98: 0 | Z98: 0 | AA98: 0 | AB98: 0 | AC98: 0 | AD98: 0 | AE98: =IF(A98<>"",SUM($E$50:E98),0) -> 0 | AF98: =IF(A98<>"",SUM($D$50:D98),0) -> 0
A99: 5 | B99: 2 | D99: =IF(E99=0,0,MAX($D$50:D98))*IF(B99=1,IF($H$2=1,105%,102%),1) -> 0 | E99: 0 | F99: 0 | G99: 1.108680578 | H99: =IF(A99<>"",G99*(1+INDEX('Hozamsorok-eszközalapok'!$B$11:$F$55,A99,IF($D$20=1,1,$D$19-2))+$F$23)^(1/12),0) -> 1.111414883 | I99: 0 | J99: 0 | K99: 0 | L99: 0 | M99: 0 | N99: 0 | O99: 0 | P99: 0 | Q99: 0 | R99: 0 | S99: 0 | T99: 0 | U99: 0 | V99: 0 | W99: 0 | X99: 0 | Y99: 0 | Z99: 0 | AA99: 0 | AB99: 0 | AC99: 0 | AD99: 0 | AE99: =IF(A99<>"",SUM($E$50:E99),0) -> 0 | AF99: =IF(A99<>"",SUM($D$50:D99),0) -> 0
A100: 5 | B100: 3 | D100: =IF(E100=0,0,MAX($D$50:D99))*IF(B100=1,IF($H$2=1,105%,102%),1) -> 0 | E100: 0 | F100: 0 | G100: 1.111414883 | H100: =IF(A100<>"",G100*(1+INDEX('Hozamsorok-eszközalapok'!$B$11:$F$55,A100,IF($D$20=1,1,$D$19-2))+$F$23)^(1/12),0) -> 1.114155932 | I100: 0 | J100: 0 | K100: 0 | L100: 0 | M100: 0 | N100: 0 | O100: 0 | P100: 0 | Q100: 0 | R100: 0 | S100: 0 | T100: 0 | U100: 0 | V100: 0 | W100: 0 | X100: 0 | Y100: 0 | Z100: 0 | AA100: 0 | AB100: 0 | AC100: 0 | AD100: 0 | AE100: =IF(A100<>"",SUM($E$50:E100),0) -> 0 | AF100: =IF(A100<>"",SUM($D$50:D100),0) -> 0
A101: 5 | B101: 4 | D101: =IF(E101=0,0,MAX($D$50:D100))*IF(B101=1,IF($H$2=1,105%,102%),1) -> 0 | E101: 0 | F101: 0 | G101: 1.114155932 | H101: =IF(A101<>"",G101*(1+INDEX('Hozamsorok-eszközalapok'!$B$11:$F$55,A101,IF($D$20=1,1,$D$19-2))+$F$23)^(1/12),0) -> 1.116903741 | I101: 0 | J101: 0 | K101: 0 | L101: 0 | M101: 0 | N101: 0 | O101: 0 | P101: 0 | Q101: 0 | R101: 0 | S101: 0 | T101: 0 | U101: 0 | V101: 0 | W101: 0 | X101: 0 | Y101: 0 | Z101: 0 | AA101: 0 | AB101: 0 | AC101: 0 | AD101: 0 | AE101: =IF(A101<>"",SUM($E$50:E101),0) -> 0 | AF101: =IF(A101<>"",SUM($D$50:D101),0) -> 0
A102: 5 | B102: 5 | D102: =IF(E102=0,0,MAX($D$50:D101))*IF(B102=1,IF($H$2=1,105%,102%),1) -> 0 | E102: 0 | F102: 0 | G102: 1.116903741 | H102: =IF(A102<>"",G102*(1+INDEX('Hozamsorok-eszközalapok'!$B$11:$F$55,A102,IF($D$20=1,1,$D$19-2))+$F$23)^(1/12),0) -> 1.119658327 | I102: 0 | J102: 0 | K102: 0 | L102: 0 | M102: 0 | N102: 0 | O102: 0 | P102: 0 | Q102: 0 | R102: 0 | S102: 0 | T102: 0 | U102: 0 | V102: 0 | W102: 0 | X102: 0 | Y102: 0 | Z102: 0 | AA102: 0 | AB102: 0 | AC102: 0 | AD102: 0 | AE102: =IF(A102<>"",SUM($E$50:E102),0) -> 0 | AF102: =IF(A102<>"",SUM($D$50:D102),0) -> 0
A103: 5 | B103: 6 | D103: =IF(E103=0,0,MAX($D$50:D102))*IF(B103=1,IF($H$2=1,105%,102%),1) -> 0 | E103: 0 | F103: 0 | G103: 1.119658327 | H103: =IF(A103<>"",G103*(1+INDEX('Hozamsorok-eszközalapok'!$B$11:$F$55,A103,IF($D$20=1,1,$D$19-2))+$F$23)^(1/12),0) -> 1.122419707 | I103: 0 | J103: 0 | K103: 0 | L103: 0 | M103: 0 | N103: 0 | O103: 0 | P103: 0 | Q103: 0 | R103: 0 | S103: 0 | T103: 0 | U103: 0 | V103: 0 | W103: 0 | X103: 0 | Y103: 0 | Z103: 0 | AA103: 0 | AB103: 0 | AC103: 0 | AD103: 0 | AE103: =IF(A103<>"",SUM($E$50:E103),0) -> 0 | AF103: =IF(A103<>"",SUM($D$50:D103),0) -> 0
A104: 5 | B104: 7 | D104: =IF(E104=0,0,MAX($D$50:D103))*IF(B104=1,IF($H$2=1,105%,102%),1) -> 0 | E104: 0 | F104: 0 | G104: 1.122419707 | H104: =IF(A104<>"",G104*(1+INDEX('Hozamsorok-eszközalapok'!$B$11:$F$55,A104,IF($D$20=1,1,$D$19-2))+$F$23)^(1/12),0) -> 1.125187897 | I104: 0 | J104: 0 | K104: 0 | L104: 0 | M104: 0 | N104: 0 | O104: 0 | P104: 0 | Q104: 0 | R104: 0 | S104: 0 | T104: 0 | U104: 0 | V104: 0 | W104: 0 | X104: 0 | Y104: 0 | Z104: 0 | AA104: 0 | AB104: 0 | AC104: 0 | AD104: 0 | AE104: =IF(A104<>"",SUM($E$50:E104),0) -> 0 | AF104: =IF(A104<>"",SUM($D$50:D104),0) -> 0
A105: 5 | B105: 8 | D105: =IF(E105=0,0,MAX($D$50:D104))*IF(B105=1,IF($H$2=1,105%,102%),1) -> 0 | E105: 0 | F105: 0 | G105: 1.125187897 | H105: =IF(A105<>"",G105*(1+INDEX('Hozamsorok-eszközalapok'!$B$11:$F$55,A105,IF($D$20=1,1,$D$19-2))+$F$23)^(1/12),0) -> 1.127962913 | I105: 0 | J105: 0 | K105: 0 | L105: 0 | M105: 0 | N105: 0 | O105: 0 | P105: 0 | Q105: 0 | R105: 0 | S105: 0 | T105: 0 | U105: 0 | V105: 0 | W105: 0 | X105: 0 | Y105: 0 | Z105: 0 | AA105: 0 | AB105: 0 | AC105: 0 | AD105: 0 | AE105: =IF(A105<>"",SUM($E$50:E105),0) -> 0 | AF105: =IF(A105<>"",SUM($D$50:D105),0) -> 0
A106: 5 | B106: 9 | D106: =IF(E106=0,0,MAX($D$50:D105))*IF(B106=1,IF($H$2=1,105%,102%),1) -> 0 | E106: 0 | F106: 0 | G106: 1.127962913 | H106: =IF(A106<>"",G106*(1+INDEX('Hozamsorok-eszközalapok'!$B$11:$F$55,A106,IF($D$20=1,1,$D$19-2))+$F$23)^(1/12),0) -> 1.130744774 | I106: 0 | J106: 0 | K106: 0 | L106: 0 | M106: 0 | N106: 0 | O106: 0 | P106: 0 | Q106: 0 | R106: 0 | S106: 0 | T106: 0 | U106: 0 | V106: 0 | W106: 0 | X106: 0 | Y106: 0 | Z106: 0 | AA106: 0 | AB106: 0 | AC106: 0 | AD106: 0 | AE106: =IF(A106<>"",SUM($E$50:E106),0) -> 0 | AF106: =IF(A106<>"",SUM($D$50:D106),0) -> 0
A107: 5 | B107: 10 | D107: =IF(E107=0,0,MAX($D$50:D106))*IF(B107=1,IF($H$2=1,105%,102%),1) -> 0 | E107: 0 | F107: 0 | G107: 1.130744774 | H107: =IF(A107<>"",G107*(1+INDEX('Hozamsorok-eszközalapok'!$B$11:$F$55,A107,IF($D$20=1,1,$D$19-2))+$F$23)^(1/12),0) -> 1.133533496 | I107: 0 | J107: 0 | K107: 0 | L107: 0 | M107: 0 | N107: 0 | O107: 0 | P107: 0 | Q107: 0 | R107: 0 | S107: 0 | T107: 0 | U107: 0 | V107: 0 | W107: 0 | X107: 0 | Y107: 0 | Z107: 0 | AA107: 0 | AB107: 0 | AC107: 0 | AD107: 0 | AE107: =IF(A107<>"",SUM($E$50:E107),0) -> 0 | AF107: =IF(A107<>"",SUM($D$50:D107),0) -> 0
A108: 5 | B108: 11 | D108: =IF(E108=0,0,MAX($D$50:D107))*IF(B108=1,IF($H$2=1,105%,102%),1) -> 0 | E108: 0 | F108: 0 | G108: 1.133533496 | H108: =IF(A108<>"",G108*(1+INDEX('Hozamsorok-eszközalapok'!$B$11:$F$55,A108,IF($D$20=1,1,$D$19-2))+$F$23)^(1/12),0) -> 1.136329095 | I108: 0 | J108: 0 | K108: 0 | L108: 0 | M108: 0 | N108: 0 | O108: 0 | P108: 0 | Q108: 0 | R108: 0 | S108: 0 | T108: 0 | U108: 0 | V108: 0 | W108: 0 | X108: 0 | Y108: 0 | Z108: 0 | AA108: 0 | AB108: 0 | AC108: 0 | AD108: 0 | AE108: =IF(A108<>"",SUM($E$50:E108),0) -> 0 | AF108: =IF(A108<>"",SUM($D$50:D108),0) -> 0
A109: 5 | B109: 12 | D109: =IF(E109=0,0,MAX($D$50:D108))*IF(B109=1,IF($H$2=1,105%,102%),1) -> 0 | E109: 0 | F109: 0 | G109: 1.136329095 | H109: =IF(A109<>"",G109*(1+INDEX('Hozamsorok-eszközalapok'!$B$11:$F$55,A109,IF($D$20=1,1,$D$19-2))+$F$23)^(1/12),0) -> 1.139131589 | I109: 0 | J109: 0 | K109: 0 | L109: 0 | M109: 0 | N109: 0 | O109: 0 | P109: 0 | Q109: 0 | R109: 0 | S109: 0 | T109: 0 | U109: 0 | V109: 0 | W109: 0 | X109: 0 | Y109: 0 | Z109: 0 | AA109: 0 | AB109: 0 | AC109: 0 | AD109: 0 | AE109: =IF(A109<>"",SUM($E$50:E109),0) -> 0 | AF109: =IF(A109<>"",SUM($D$50:D109),0) -> 0
A110: 6 | B110: 1 | D110: =IF(E110=0,0,MAX($D$50:D109))*IF(B110=1,IF($H$2=1,105%,102%),1) -> 0 | E110: 0 | F110: 0 | G110: 1.139131589 | H110: =IF(A110<>"",G110*(1+INDEX('Hozamsorok-eszközalapok'!$B$11:$F$55,A110,IF($D$20=1,1,$D$19-2))+$F$23)^(1/12),0) -> 1.142125611 | I110: 0 | J110: 0 | K110: 0 | L110: 0 | M110: 0 | N110: 0 | O110: 0 | P110: 0 | Q110: 0 | R110: 0 | S110: 0 | T110: 0 | U110: 0 | V110: 0 | W110: 0 | X110: 0 | Y110: 0 | Z110: 0 | AA110: 0 | AB110: 0 | AC110: 0 | AD110: 0 | AE110: =IF(A110<>"",SUM($E$50:E110),0) -> 0 | AF110: =IF(A110<>"",SUM($D$50:D110),0) -> 0
A111: 6 | B111: 2 | D111: =IF(E111=0,0,MAX($D$50:D110))*IF(B111=1,IF($H$2=1,105%,102%),1) -> 0 | E111: 0 | F111: 0 | G111: 1.142125611 | H111: =IF(A111<>"",G111*(1+INDEX('Hozamsorok-eszközalapok'!$B$11:$F$55,A111,IF($D$20=1,1,$D$19-2))+$F$23)^(1/12),0) -> 1.145127502 | I111: 0 | J111: 0 | K111: 0 | L111: 0 | M111: 0 | N111: 0 | O111: 0 | P111: 0 | Q111: 0 | R111: 0 | S111: 0 | T111: 0 | U111: 0 | V111: 0 | W111: 0 | X111: 0 | Y111: 0 | Z111: 0 | AA111: 0 | AB111: 0 | AC111: 0 | AD111: 0 | AE111: =IF(A111<>"",SUM($E$50:E111),0) -> 0 | AF111: =IF(A111<>"",SUM($D$50:D111),0) -> 0
A112: 6 | B112: 3 | D112: =IF(E112=0,0,MAX($D$50:D111))*IF(B112=1,IF($H$2=1,105%,102%),1) -> 0 | E112: 0 | F112: 0 | G112: 1.145127502 | H112: =IF(A112<>"",G112*(1+INDEX('Hozamsorok-eszközalapok'!$B$11:$F$55,A112,IF($D$20=1,1,$D$19-2))+$F$23)^(1/12),0) -> 1.148137283 | I112: 0 | J112: 0 | K112: 0 | L112: 0 | M112: 0 | N112: 0 | O112: 0 | P112: 0 | Q112: 0 | R112: 0 | S112: 0 | T112: 0 | U112: 0 | V112: 0 | W112: 0 | X112: 0 | Y112: 0 | Z112: 0 | AA112: 0 | AB112: 0 | AC112: 0 | AD112: 0 | AE112: =IF(A112<>"",SUM($E$50:E112),0) -> 0 | AF112: =IF(A112<>"",SUM($D$50:D112),0) -> 0
A113: 6 | B113: 4 | D113: =IF(E113=0,0,MAX($D$50:D112))*IF(B113=1,IF($H$2=1,105%,102%),1) -> 0 | E113: 0 | F113: 0 | G113: 1.148137283 | H113: =IF(A113<>"",G113*(1+INDEX('Hozamsorok-eszközalapok'!$B$11:$F$55,A113,IF($D$20=1,1,$D$19-2))+$F$23)^(1/12),0) -> 1.151154975 | I113: 0 | J113: 0 | K113: 0 | L113: 0 | M113: 0 | N113: 0 | O113: 0 | P113: 0 | Q113: 0 | R113: 0 | S113: 0 | T113: 0 | U113: 0 | V113: 0 | W113: 0 | X113: 0 | Y113: 0 | Z113: 0 | AA113: 0 | AB113: 0 | AC113: 0 | AD113: 0 | AE113: =IF(A113<>"",SUM($E$50:E113),0) -> 0 | AF113: =IF(A113<>"",SUM($D$50:D113),0) -> 0
A114: 6 | B114: 5 | D114: =IF(E114=0,0,MAX($D$50:D113))*IF(B114=1,IF($H$2=1,105%,102%),1) -> 0 | E114: 0 | F114: =E114*$D$13 -> 0 | G114: 1.151154975 | H114: =IF(A114<>"",G114*(1+INDEX('Hozamsorok-eszközalapok'!$B$11:$F$55,A114,IF($D$20=1,1,$D$19-2))+$F$23)^(1/12),0) -> 1.154180598 | I114: 0 | J114: 0 | K114: 0 | L114: 0 | M114: =K114*(1-$G$8) -> 0 | N114: 0 | O114: 0 | P114: 0 | Q114: 0 | R114: 0 | S114: 0 | T114: 0 | U114: 0 | V114: 0 | W114: 0 | X114: 0 | Y114: 0 | Z114: 0 | AA114: 0 | AB114: 0 | AC114: =H114*(T114+U114) -> 0 | AD114: 0 | AE114: =IF(A114<>"",SUM($E$50:E114),0) -> 0 | AF114: =IF(A114<>"",SUM($D$50:D114),0) -> 0
A115: =IF(B114<12,A114,IF(A114<$D$9,A114+1,"")) -> 6 | B115: 6 | D115: =IF(E115=0,0,MAX($D$50:D114))*IF(B115=1,IF($H$2=1,105%,102%),1) -> 0 | E115: =IF(AND($D$8=1,SUM(A115:B115)=2),$D$12,IF(A115>$D$10,0,IF(OR(AND($D$8=2,B115=1),AND($D$8=4,OR(B115=1,B115=7)),AND($D$8=5,OR(B115=1,B115=4,B115=7,B115=10)),AND($D$8=3,B115>=1)),$D$12*(1+$D$25)^(A115-1),0))) -> 0 | F115: 0 | G115: 1.154180598 | H115: =IF(A115<>"",G115*(1+INDEX('Hozamsorok-eszközalapok'!$B$11:$F$55,A115,IF($D$20=1,1,$D$19-2))+$F$23)^(1/12),0) -> 1.157214173 | I115: =IF(E115<>"",IF(A115<=2,(E115-F115)/G115,0),0) -> 0 | J115: =IF(A115<>"",IF(A115>2,(E115-F115)/G115,0),0) -> 0 | K115: =IF(A115<>"",U114+I115,0) -> 0 | L115: =IF(A115<>"",T114+J115,0) -> 0 | M115: 0 | N115: 0 | O115: =IF($E$4=TRUE,IF($D$19=4,0,(M115+N115)*($G$10+$G$11)*G115),0) -> 0 | P115: =IF($D$8<>1,M115,IF(A115<>"",M115-O115/G115,0)) -> 0 | Q115: =IF(A115<>"",N115-X115/G115,0) -> 0 | R115: =IF(OR(AND($D$8=1,A115<=$D$9),AND($D$8<>1,A115<=$D$10)),$D$15*($G$13+G115*((P115+Q115)-P115*$G$14^(IF($D$8=1,$D$9,$D$10)*12-((A115-1)*12+B115-1))-Q115*$G$15)),0) -> 0 | S115: =IF($D$8<>1,P115,IF(A115<>"",P115-R115/G115,0)) -> 0 | T115: =IF(A115<>"",Q115-AA115/G115,0) -> 0 | U115: =IF(AND($D$8<>1,A115>$D$10),S115,S115*(1-$D$14)) -> 0 | V115: 0 | W115: 0 | X115: 0 | Y115: 0 | Z115: 0 | AA115: 0 | AB115: 0 | AC115: 0 | AD115: =MAX(0,IF(A115<>"",IF(AND($D$8<>1,A115<=2,(A115+B115)<>14),0,H115*(U115*$G$14^(IF(AND($D$8<>1,A115>$D$10),0,IF($D$8=1,$D$9,$D$10)*12-((A115-1)*12+B115)))+T115*$G$15)-AB115),0)) -> 0 | AE115: =IF(A115<>"",SUM($E$50:E115),0) -> 0 | AF115: =IF(A115<>"",SUM($D$50:D115),0) -> 0
A116: 6 | B116: =IF(A116="","",IF(B115=12,1,B115+1)) -> 7 | D116: =IF(E116=0,0,MAX($D$50:D115))*IF(B116=1,IF($H$2=1,105%,102%),1) -> 0 | E116: 0 | F116: 0 | G116: =IF(A116<>"",H115,0) -> 1.157214173 | H116: =IF(A116<>"",G116*(1+INDEX('Hozamsorok-eszközalapok'!$B$11:$F$55,A116,IF($D$20=1,1,$D$19-2))+$F$23)^(1/12),0) -> 1.160255722 | I116: 0 | J116: 0 | K116: 0 | L116: 0 | M116: 0 | N116: 0 | O116: 0 | P116: 0 | Q116: 0 | R116: 0 | S116: 0 | T116: 0 | U116: 0 | V116: =IF(AND(A116<>"",$D$8<>1),O116+AB115,0) -> 0 | W116: =N116*G116 -> 0 | X116: =MIN(V116,W116) -> 0 | Y116: =IF(AND(A116<>"",$D$8<>1),V116-X116+R116,0) -> 0 | Z116: =Q116*G116 -> 0 | AA116: =MIN(Y116,Z116) -> 0 | AB116: =IF(A116<>"",Y116-AA116,0) -> 0 | AC116: 0 | AD116: 0 | AE116: =IF(A116<>"",SUM($E$50:E116),0) -> 0 | AF116: =IF(A116<>"",SUM($D$50:D116),0) -> 0
A117: 6 | B117: 8 | D117: =IF(E117=0,0,MAX($D$50:D116))*IF(B117=1,IF($H$2=1,105%,102%),1) -> 0 | E117: 0 | F117: 0 | G117: 1.160255722 | H117: =IF(A117<>"",G117*(1+INDEX('Hozamsorok-eszközalapok'!$B$11:$F$55,A117,IF($D$20=1,1,$D$19-2))+$F$23)^(1/12),0) -> 1.163305265 | I117: 0 | J117: 0 | K117: 0 | L117: 0 | M117: 0 | N117: 0 | O117: 0 | P117: 0 | Q117: 0 | R117: 0 | S117: 0 | T117: 0 | U117: 0 | V117: 0 | W117: 0 | X117: 0 | Y117: 0 | Z117: 0 | AA117: 0 | AB117: 0 | AC117: 0 | AD117: 0 | AE117: =IF(A117<>"",SUM($E$50:E117),0) -> 0 | AF117: =IF(A117<>"",SUM($D$50:D117),0) -> 0
A118: 6 | B118: 9 | D118: =IF(E118=0,0,MAX($D$50:D117))*IF(B118=1,IF($H$2=1,105%,102%),1) -> 0 | E118: 0 | F118: 0 | G118: 1.163305265 | H118: =IF(A118<>"",G118*(1+INDEX('Hozamsorok-eszközalapok'!$B$11:$F$55,A118,IF($D$20=1,1,$D$19-2))+$F$23)^(1/12),0) -> 1.166362823 | I118: 0 | J118: 0 | K118: 0 | L118: 0 | M118: 0 | N118: 0 | O118: 0 | P118: 0 | Q118: 0 | R118: 0 | S118: 0 | T118: 0 | U118: 0 | V118: 0 | W118: 0 | X118: 0 | Y118: 0 | Z118: 0 | AA118: 0 | AB118: 0 | AC118: 0 | AD118: 0 | AE118: =IF(A118<>"",SUM($E$50:E118),0) -> 0 | AF118: =IF(A118<>"",SUM($D$50:D118),0) -> 0
A119: 6 | B119: 10 | D119: =IF(E119=0,0,MAX($D$50:D118))*IF(B119=1,IF($H$2=1,105%,102%),1) -> 0 | E119: 0 | F119: 0 | G119: 1.166362823 | H119: =IF(A119<>"",G119*(1+INDEX('Hozamsorok-eszközalapok'!$B$11:$F$55,A119,IF($D$20=1,1,$D$19-2))+$F$23)^(1/12),0) -> 1.169428418 | I119: 0 | J119: 0 | K119: 0 | L119: 0 | M119: 0 | N119: 0 | O119: 0 | P119: 0 | Q119: 0 | R119: 0 | S119: 0 | T119: 0 | U119: 0 | V119: 0 | W119: 0 | X119: 0 | Y119: 0 | Z119: 0 | AA119: 0 | AB119: 0 | AC119: 0 | AD119: 0 | AE119: =IF(A119<>"",SUM($E$50:E119),0) -> 0 | AF119: =IF(A119<>"",SUM($D$50:D119),0) -> 0
A120: 6 | B120: 11 | D120: =IF(E120=0,0,MAX($D$50:D119))*IF(B120=1,IF($H$2=1,105%,102%),1) -> 0 | E120: 0 | F120: 0 | G120: 1.169428418 | H120: =IF(A120<>"",G120*(1+INDEX('Hozamsorok-eszközalapok'!$B$11:$F$55,A120,IF($D$20=1,1,$D$19-2))+$F$23)^(1/12),0) -> 1.17250207 | I120: 0 | J120: 0 | K120: 0 | L120: 0 | M120: 0 | N120: 0 | O120: 0 | P120: 0 | Q120: 0 | R120: 0 | S120: 0 | T120: 0 | U120: 0 | V120: 0 | W120: 0 | X120: 0 | Y120: 0 | Z120: 0 | AA120: 0 | AB120: 0 | AC120: 0 | AD120: 0 | AE120: =IF(A120<>"",SUM($E$50:E120),0) -> 0 | AF120: =IF(A120<>"",SUM($D$50:D120),0) -> 0
A121: 6 | B121: 12 | D121: =IF(E121=0,0,MAX($D$50:D120))*IF(B121=1,IF($H$2=1,105%,102%),1) -> 0 | E121: 0 | F121: 0 | G121: 1.17250207 | H121: =IF(A121<>"",G121*(1+INDEX('Hozamsorok-eszközalapok'!$B$11:$F$55,A121,IF($D$20=1,1,$D$19-2))+$F$23)^(1/12),0) -> 1.1755838 | I121: 0 | J121: 0 | K121: 0 | L121: 0 | M121: 0 | N121: 0 | O121: 0 | P121: 0 | Q121: 0 | R121: 0 | S121: 0 | T121: 0 | U121: 0 | V121: 0 | W121: 0 | X121: 0 | Y121: 0 | Z121: 0 | AA121: 0 | AB121: 0 | AC121: 0 | AD121: 0 | AE121: =IF(A121<>"",SUM($E$50:E121),0) -> 0 | AF121: =IF(A121<>"",SUM($D$50:D121),0) -> 0
A122: 7 | B122: 1 | D122: =IF(E122=0,0,MAX($D$50:D121))*IF(B122=1,IF($H$2=1,105%,102%),1) -> 0 | E122: 0 | F122: 0 | G122: 1.1755838 | H122: =IF(A122<>"",G122*(1+INDEX('Hozamsorok-eszközalapok'!$B$11:$F$55,A122,IF($D$20=1,1,$D$19-2))+$F$23)^(1/12),0) -> 1.178768766 | I122: 0 | J122: 0 | K122: 0 | L122: 0 | M122: 0 | N122: 0 | O122: 0 | P122: 0 | Q122: 0 | R122: 0 | S122: 0 | T122: 0 | U122: 0 | V122: 0 | W122: 0 | X122: 0 | Y122: 0 | Z122: 0 | AA122: 0 | AB122: 0 | AC122: 0 | AD122: 0 | AE122: =IF(A122<>"",SUM($E$50:E122),0) -> 0 | AF122: =IF(A122<>"",SUM($D$50:D122),0) -> 0
A123: 7 | B123: 2 | D123: =IF(E123=0,0,MAX($D$50:D122))*IF(B123=1,IF($H$2=1,105%,102%),1) -> 0 | E123: 0 | F123: 0 | G123: 1.178768766 | H123: =IF(A123<>"",G123*(1+INDEX('Hozamsorok-eszközalapok'!$B$11:$F$55,A123,IF($D$20=1,1,$D$19-2))+$F$23)^(1/12),0) -> 1.18196236 | I123: 0 | J123: 0 | K123: 0 | L123: 0 | M123: 0 | N123: 0 | O123: 0 | P123: 0 | Q123: 0 | R123: 0 | S123: 0 | T123: 0 | U123: 0 | V123: 0 | W123: 0 | X123: 0 | Y123: 0 | Z123: 0 | AA123: 0 | AB123: 0 | AC123: 0 | AD123: 0 | AE123: =IF(A123<>"",SUM($E$50:E123),0) -> 0 | AF123: =IF(A123<>"",SUM($D$50:D123),0) -> 0
A124: 7 | B124: 3 | D124: =IF(E124=0,0,MAX($D$50:D123))*IF(B124=1,IF($H$2=1,105%,102%),1) -> 0 | E124: 0 | F124: 0 | G124: 1.18196236 | H124: =IF(A124<>"",G124*(1+INDEX('Hozamsorok-eszközalapok'!$B$11:$F$55,A124,IF($D$20=1,1,$D$19-2))+$F$23)^(1/12),0) -> 1.185164606 | I124: 0 | J124: 0 | K124: 0 | L124: 0 | M124: 0 | N124: 0 | O124: 0 | P124: 0 | Q124: 0 | R124: 0 | S124: 0 | T124: 0 | U124: 0 | V124: 0 | W124: 0 | X124: 0 | Y124: 0 | Z124: 0 | AA124: 0 | AB124: 0 | AC124: 0 | AD124: 0 | AE124: =IF(A124<>"",SUM($E$50:E124),0) -> 0 | AF124: =IF(A124<>"",SUM($D$50:D124),0) -> 0
A125: 7 | B125: 4 | D125: =IF(E125=0,0,MAX($D$50:D124))*IF(B125=1,IF($H$2=1,105%,102%),1) -> 0 | E125: 0 | F125: 0 | G125: 1.185164606 | H125: =IF(A125<>"",G125*(1+INDEX('Hozamsorok-eszközalapok'!$B$11:$F$55,A125,IF($D$20=1,1,$D$19-2))+$F$23)^(1/12),0) -> 1.188375528 | I125: 0 | J125: 0 | K125: 0 | L125: 0 | M125: 0 | N125: 0 | O125: 0 | P125: 0 | Q125: 0 | R125: 0 | S125: 0 | T125: 0 | U125: 0 | V125: 0 | W125: 0 | X125: 0 | Y125: 0 | Z125: 0 | AA125: 0 | AB125: 0 | AC125: 0 | AD125: 0 | AE125: =IF(A125<>"",SUM($E$50:E125),0) -> 0 | AF125: =IF(A125<>"",SUM($D$50:D125),0) -> 0
A126: 7 | B126: 5 | D126: =IF(E126=0,0,MAX($D$50:D125))*IF(B126=1,IF($H$2=1,105%,102%),1) -> 0 | E126: 0 | F126: 0 | G126: 1.188375528 | H126: =IF(A126<>"",G126*(1+INDEX('Hozamsorok-eszközalapok'!$B$11:$F$55,A126,IF($D$20=1,1,$D$19-2))+$F$23)^(1/12),0) -> 1.19159515 | I126: 0 | J126: 0 | K126: 0 | L126: 0 | M126: 0 | N126: 0 | O126: 0 | P126: 0 | Q126: 0 | R126: 0 | S126: 0 | T126: 0 | U126: 0 | V126: 0 | W126: 0 | X126: 0 | Y126: 0 | Z126: 0 | AA126: 0 | AB126: 0 | AC126: 0 | AD126: 0 | AE126: =IF(A126<>"",SUM($E$50:E126),0) -> 0 | AF126: =IF(A126<>"",SUM($D$50:D126),0) -> 0
A127: 7 | B127: 6 | D127: =IF(E127=0,0,MAX($D$50:D126))*IF(B127=1,IF($H$2=1,105%,102%),1) -> 0 | E127: 0 | F127: 0 | G127: 1.19159515 | H127: =IF(A127<>"",G127*(1+INDEX('Hozamsorok-eszközalapok'!$B$11:$F$55,A127,IF($D$20=1,1,$D$19-2))+$F$23)^(1/12),0) -> 1.194823494 | I127: 0 | J127: 0 | K127: 0 | L127: 0 | M127: 0 | N127: 0 | O127: 0 | P127: 0 | Q127: 0 | R127: 0 | S127: 0 | T127: 0 | U127: 0 | V127: 0 | W127: 0 | X127: 0 | Y127: 0 | Z127: 0 | AA127: 0 | AB127: 0 | AC127: 0 | AD127: 0 | AE127: =IF(A127<>"",SUM($E$50:E127),0) -> 0 | AF127: =IF(A127<>"",SUM($D$50:D127),0) -> 0
A128: 7 | B128: 7 | D128: =IF(E128=0,0,MAX($D$50:D127))*IF(B128=1,IF($H$2=1,105%,102%),1) -> 0 | E128: 0 | F128: 0 | G128: 1.194823494 | H128: =IF(A128<>"",G128*(1+INDEX('Hozamsorok-eszközalapok'!$B$11:$F$55,A128,IF($D$20=1,1,$D$19-2))+$F$23)^(1/12),0) -> 1.198060584 | I128: 0 | J128: 0 | K128: 0 | L128: 0 | M128: 0 | N128: 0 | O128: 0 | P128: 0 | Q128: 0 | R128: 0 | S128: 0 | T128: 0 | U128: 0 | V128: 0 | W128: 0 | X128: 0 | Y128: 0 | Z128: 0 | AA128: 0 | AB128: 0 | AC128: 0 | AD128: 0 | AE128: =IF(A128<>"",SUM($E$50:E128),0) -> 0 | AF128: =IF(A128<>"",SUM($D$50:D128),0) -> 0
A129: 7 | B129: 8 | D129: =IF(E129=0,0,MAX($D$50:D128))*IF(B129=1,IF($H$2=1,105%,102%),1) -> 0 | E129: 0 | F129: 0 | G129: 1.198060584 | H129: =IF(A129<>"",G129*(1+INDEX('Hozamsorok-eszközalapok'!$B$11:$F$55,A129,IF($D$20=1,1,$D$19-2))+$F$23)^(1/12),0) -> 1.201306445 | I129: 0 | J129: 0 | K129: 0 | L129: 0 | M129: 0 | N129: 0 | O129: 0 | P129: 0 | Q129: 0 | R129: 0 | S129: 0 | T129: 0 | U129: 0 | V129: 0 | W129: 0 | X129: 0 | Y129: 0 | Z129: 0 | AA129: 0 | AB129: 0 | AC129: 0 | AD129: 0 | AE129: =IF(A129<>"",SUM($E$50:E129),0) -> 0 | AF129: =IF(A129<>"",SUM($D$50:D129),0) -> 0
A130: 7 | B130: 9 | D130: =IF(E130=0,0,MAX($D$50:D129))*IF(B130=1,IF($H$2=1,105%,102%),1) -> 0 | E130: 0 | F130: 0 | G130: 1.201306445 | H130: =IF(A130<>"",G130*(1+INDEX('Hozamsorok-eszközalapok'!$B$11:$F$55,A130,IF($D$20=1,1,$D$19-2))+$F$23)^(1/12),0) -> 1.2045611 | I130: 0 | J130: 0 | K130: 0 | L130: 0 | M130: 0 | N130: 0 | O130: 0 | P130: 0 | Q130: 0 | R130: 0 | S130: 0 | T130: 0 | U130: 0 | V130: 0 | W130: 0 | X130: 0 | Y130: 0 | Z130: 0 | AA130: 0 | AB130: 0 | AC130: 0 | AD130: 0 | AE130: =IF(A130<>"",SUM($E$50:E130),0) -> 0 | AF130: =IF(A130<>"",SUM($D$50:D130),0) -> 0
A131: 7 | B131: 10 | D131: =IF(E131=0,0,MAX($D$50:D130))*IF(B131=1,IF($H$2=1,105%,102%),1) -> 0 | E131: 0 | F131: 0 | G131: 1.2045611 | H131: =IF(A131<>"",G131*(1+INDEX('Hozamsorok-eszközalapok'!$B$11:$F$55,A131,IF($D$20=1,1,$D$19-2))+$F$23)^(1/12),0) -> 1.207824572 | I131: 0 | J131: 0 | K131: 0 | L131: 0 | M131: 0 | N131: 0 | O131: 0 | P131: 0 | Q131: 0 | R131: 0 | S131: 0 | T131: 0 | U131: 0 | V131: 0 | W131: 0 | X131: 0 | Y131: 0 | Z131: 0 | AA131: 0 | AB131: 0 | AC131: 0 | AD131: 0 | AE131: =IF(A131<>"",SUM($E$50:E131),0) -> 0 | AF131: =IF(A131<>"",SUM($D$50:D131),0) -> 0
A132: 7 | B132: 11 | D132: =IF(E132=0,0,MAX($D$50:D131))*IF(B132=1,IF($H$2=1,105%,102%),1) -> 0 | E132: 0 | F132: 0 | G132: 1.207824572 | H132: =IF(A132<>"",G132*(1+INDEX('Hozamsorok-eszközalapok'!$B$11:$F$55,A132,IF($D$20=1,1,$D$19-2))+$F$23)^(1/12),0) -> 1.211096886 | I132: 0 | J132: 0 | K132: 0 | L132: 0 | M132: 0 | N132: 0 | O132: 0 | P132: 0 | Q132: 0 | R132: 0 | S132: 0 | T132: 0 | U132: 0 | V132: 0 | W132: 0 | X132: 0 | Y132: 0 | Z132: 0 | AA132: 0 | AB132: 0 | AC132: 0 | AD132: 0 | AE132: =IF(A132<>"",SUM($E$50:E132),0) -> 0 | AF132: =IF(A132<>"",SUM($D$50:D132),0) -> 0
A133: 7 | B133: 12 | D133: =IF(E133=0,0,MAX($D$50:D132))*IF(B133=1,IF($H$2=1,105%,102%),1) -> 0 | E133: 0 | F133: 0 | G133: 1.211096886 | H133: =IF(A133<>"",G133*(1+INDEX('Hozamsorok-eszközalapok'!$B$11:$F$55,A133,IF($D$20=1,1,$D$19-2))+$F$23)^(1/12),0) -> 1.214378066 | I133: 0 | J133: 0 | K133: 0 | L133: 0 | M133: 0 | N133: 0 | O133: 0 | P133: 0 | Q133: 0 | R133: 0 | S133: 0 | T133: 0 | U133: 0 | V133: 0 | W133: 0 | X133: 0 | Y133: 0 | Z133: 0 | AA133: 0 | AB133: 0 | AC133: 0 | AD133: 0 | AE133: =IF(A133<>"",SUM($E$50:E133),0) -> 0 | AF133: =IF(A133<>"",SUM($D$50:D133),0) -> 0
A134: 8 | B134: 1 | D134: =IF(E134=0,0,MAX($D$50:D133))*IF(B134=1,IF($H$2=1,105%,102%),1) -> 0 | E134: 0 | F134: 0 | G134: 1.214378066 | H134: =IF(A134<>"",G134*(1+INDEX('Hozamsorok-eszközalapok'!$B$11:$F$55,A134,IF($D$20=1,1,$D$19-2))+$F$23)^(1/12),0) -> 1.217766322 | I134: 0 | J134: 0 | K134: 0 | L134: 0 | M134: 0 | N134: 0 | O134: 0 | P134: 0 | Q134: 0 | R134: 0 | S134: 0 | T134: 0 | U134: 0 | V134: 0 | W134: 0 | X134: 0 | Y134: 0 | Z134: 0 | AA134: 0 | AB134: 0 | AC134: 0 | AD134: 0 | AE134: =IF(A134<>"",SUM($E$50:E134),0) -> 0 | AF134: =IF(A134<>"",SUM($D$50:D134),0) -> 0
A135: 8 | B135: 2 | D135: =IF(E135=0,0,MAX($D$50:D134))*IF(B135=1,IF($H$2=1,105%,102%),1) -> 0 | E135: 0 | F135: 0 | G135: 1.217766322 | H135: =IF(A135<>"",G135*(1+INDEX('Hozamsorok-eszközalapok'!$B$11:$F$55,A135,IF($D$20=1,1,$D$19-2))+$F$23)^(1/12),0) -> 1.221164032 | I135: 0 | J135: 0 | K135: 0 | L135: 0 | M135: 0 | N135: 0 | O135: 0 | P135: 0 | Q135: 0 | R135: 0 | S135: 0 | T135: 0 | U135: 0 | V135: 0 | W135: 0 | X135: 0 | Y135: 0 | Z135: 0 | AA135: 0 | AB135: 0 | AC135: 0 | AD135: 0 | AE135: =IF(A135<>"",SUM($E$50:E135),0) -> 0 | AF135: =IF(A135<>"",SUM($D$50:D135),0) -> 0
A136: 8 | B136: 3 | D136: =IF(E136=0,0,MAX($D$50:D135))*IF(B136=1,IF($H$2=1,105%,102%),1) -> 0 | E136: 0 | F136: 0 | G136: 1.221164032 | H136: =IF(A136<>"",G136*(1+INDEX('Hozamsorok-eszközalapok'!$B$11:$F$55,A136,IF($D$20=1,1,$D$19-2))+$F$23)^(1/12),0) -> 1.224571222 | I136: 0 | J136: 0 | K136: 0 | L136: 0 | M136: 0 | N136: 0 | O136: 0 | P136: 0 | Q136: 0 | R136: 0 | S136: 0 | T136: 0 | U136: 0 | V136: 0 | W136: 0 | X136: 0 | Y136: 0 | Z136: 0 | AA136: 0 | AB136: 0 | AC136: 0 | AD136: 0 | AE136: =IF(A136<>"",SUM($E$50:E136),0) -> 0 | AF136: =IF(A136<>"",SUM($D$50:D136),0) -> 0
A137: 8 | B137: 4 | D137: =IF(E137=0,0,MAX($D$50:D136))*IF(B137=1,IF($H$2=1,105%,102%),1) -> 0 | E137: 0 | F137: 0 | G137: 1.224571222 | H137: =IF(A137<>"",G137*(1+INDEX('Hozamsorok-eszközalapok'!$B$11:$F$55,A137,IF($D$20=1,1,$D$19-2))+$F$23)^(1/12),0) -> 1.227987918 | I137: 0 | J137: 0 | K137: 0 | L137: 0 | M137: 0 | N137: 0 | O137: 0 | P137: 0 | Q137: 0 | R137: 0 | S137: 0 | T137: 0 | U137: 0 | V137: 0 | W137: 0 | X137: 0 | Y137: 0 | Z137: 0 | AA137: 0 | AB137: 0 | AC137: 0 | AD137: 0 | AE137: =IF(A137<>"",SUM($E$50:E137),0) -> 0 | AF137: =IF(A137<>"",SUM($D$50:D137),0) -> 0
A138: 8 | B138: 5 | D138: =IF(E138=0,0,MAX($D$50:D137))*IF(B138=1,IF($H$2=1,105%,102%),1) -> 0 | E138: 0 | F138: 0 | G138: 1.227987918 | H138: =IF(A138<>"",G138*(1+INDEX('Hozamsorok-eszközalapok'!$B$11:$F$55,A138,IF($D$20=1,1,$D$19-2))+$F$23)^(1/12),0) -> 1.231414147 | I138: 0 | J138: 0 | K138: 0 | L138: 0 | M138: 0 | N138: 0 | O138: 0 | P138: 0 | Q138: 0 | R138: 0 | S138: 0 | T138: 0 | U138: 0 | V138: 0 | W138: 0 | X138: 0 | Y138: 0 | Z138: 0 | AA138: 0 | AB138: 0 | AC138: 0 | AD138: 0 | AE138: =IF(A138<>"",SUM($E$50:E138),0) -> 0 | AF138: =IF(A138<>"",SUM($D$50:D138),0) -> 0
A139: 8 | B139: 6 | D139: =IF(E139=0,0,MAX($D$50:D138))*IF(B139=1,IF($H$2=1,105%,102%),1) -> 0 | E139: 0 | F139: 0 | G139: 1.231414147 | H139: =IF(A139<>"",G139*(1+INDEX('Hozamsorok-eszközalapok'!$B$11:$F$55,A139,IF($D$20=1,1,$D$19-2))+$F$23)^(1/12),0) -> 1.234849936 | I139: 0 | J139: 0 | K139: 0 | L139: 0 | M139: 0 | N139: 0 | O139: 0 | P139: 0 | Q139: 0 | R139: 0 | S139: 0 | T139: 0 | U139: 0 | V139: 0 | W139: 0 | X139: 0 | Y139: 0 | Z139: 0 | AA139: 0 | AB139: 0 | AC139: 0 | AD139: 0 | AE139: =IF(A139<>"",SUM($E$50:E139),0) -> 0 | AF139: =IF(A139<>"",SUM($D$50:D139),0) -> 0
A140: 8 | B140: 7 | D140: =IF(E140=0,0,MAX($D$50:D139))*IF(B140=1,IF($H$2=1,105%,102%),1) -> 0 | E140: 0 | F140: 0 | G140: 1.234849936 | H140: =IF(A140<>"",G140*(1+INDEX('Hozamsorok-eszközalapok'!$B$11:$F$55,A140,IF($D$20=1,1,$D$19-2))+$F$23)^(1/12),0) -> 1.238295312 | I140: 0 | J140: 0 | K140: 0 | L140: 0 | M140: 0 | N140: 0 | O140: 0 | P140: 0 | Q140: 0 | R140: 0 | S140: 0 | T140: 0 | U140: 0 | V140: 0 | W140: 0 | X140: 0 | Y140: 0 | Z140: 0 | AA140: 0 | AB140: 0 | AC140: 0 | AD140: 0 | AE140: =IF(A140<>"",SUM($E$50:E140),0) -> 0 | AF140: =IF(A140<>"",SUM($D$50:D140),0) -> 0
A141: 8 | B141: 8 | D141: =IF(E141=0,0,MAX($D$50:D140))*IF(B141=1,IF($H$2=1,105%,102%),1) -> 0 | E141: 0 | F141: 0 | G141: 1.238295312 | H141: =IF(A141<>"",G141*(1+INDEX('Hozamsorok-eszközalapok'!$B$11:$F$55,A141,IF($D$20=1,1,$D$19-2))+$F$23)^(1/12),0) -> 1.2417503 | I141: 0 | J141: 0 | K141: 0 | L141: 0 | M141: 0 | N141: 0 | O141: 0 | P141: 0 | Q141: 0 | R141: 0 | S141: 0 | T141: 0 | U141: 0 | V141: 0 | W141: 0 | X141: 0 | Y141: 0 | Z141: 0 | AA141: 0 | AB141: 0 | AC141: 0 | AD141: 0 | AE141: =IF(A141<>"",SUM($E$50:E141),0) -> 0 | AF141: =IF(A141<>"",SUM($D$50:D141),0) -> 0
A142: 8 | B142: 9 | D142: =IF(E142=0,0,MAX($D$50:D141))*IF(B142=1,IF($H$2=1,105%,102%),1) -> 0 | E142: 0 | F142: 0 | G142: 1.2417503 | H142: =IF(A142<>"",G142*(1+INDEX('Hozamsorok-eszközalapok'!$B$11:$F$55,A142,IF($D$20=1,1,$D$19-2))+$F$23)^(1/12),0) -> 1.245214928 | I142: 0 | J142: 0 | K142: 0 | L142: 0 | M142: 0 | N142: 0 | O142: 0 | P142: 0 | Q142: 0 | R142: 0 | S142: 0 | T142: 0 | U142: 0 | V142: 0 | W142: 0 | X142: 0 | Y142: 0 | Z142: 0 | AA142: 0 | AB142: 0 | AC142: 0 | AD142: 0 | AE142: =IF(A142<>"",SUM($E$50:E142),0) -> 0 | AF142: =IF(A142<>"",SUM($D$50:D142),0) -> 0
A143: 8 | B143: 10 | D143: =IF(E143=0,0,MAX($D$50:D142))*IF(B143=1,IF($H$2=1,105%,102%),1) -> 0 | E143: 0 | F143: 0 | G143: 1.245214928 | H143: =IF(A143<>"",G143*(1+INDEX('Hozamsorok-eszközalapok'!$B$11:$F$55,A143,IF($D$20=1,1,$D$19-2))+$F$23)^(1/12),0) -> 1.248689222 | I143: 0 | J143: 0 | K143: 0 | L143: 0 | M143: 0 | N143: 0 | O143: 0 | P143: 0 | Q143: 0 | R143: 0 | S143: 0 | T143: 0 | U143: 0 | V143: 0 | W143: 0 | X143: 0 | Y143: 0 | Z143: 0 | AA143: 0 | AB143: 0 | AC143: 0 | AD143: 0 | AE143: =IF(A143<>"",SUM($E$50:E143),0) -> 0 | AF143: =IF(A143<>"",SUM($D$50:D143),0) -> 0
A144: 8 | B144: 11 | D144: =IF(E144=0,0,MAX($D$50:D143))*IF(B144=1,IF($H$2=1,105%,102%),1) -> 0 | E144: 0 | F144: 0 | G144: 1.248689222 | H144: =IF(A144<>"",G144*(1+INDEX('Hozamsorok-eszközalapok'!$B$11:$F$55,A144,IF($D$20=1,1,$D$19-2))+$F$23)^(1/12),0) -> 1.252173211 | I144: 0 | J144: 0 | K144: 0 | L144: 0 | M144: 0 | N144: 0 | O144: 0 | P144: 0 | Q144: 0 | R144: 0 | S144: 0 | T144: 0 | U144: 0 | V144: 0 | W144: 0 | X144: 0 | Y144: 0 | Z144: 0 | AA144: 0 | AB144: 0 | AC144: 0 | AD144: 0 | AE144: =IF(A144<>"",SUM($E$50:E144),0) -> 0 | AF144: =IF(A144<>"",SUM($D$50:D144),0) -> 0
A145: 8 | B145: 12 | D145: =IF(E145=0,0,MAX($D$50:D144))*IF(B145=1,IF($H$2=1,105%,102%),1) -> 0 | E145: 0 | F145: 0 | G145: 1.252173211 | H145: =IF(A145<>"",G145*(1+INDEX('Hozamsorok-eszközalapok'!$B$11:$F$55,A145,IF($D$20=1,1,$D$19-2))+$F$23)^(1/12),0) -> 1.25566692 | I145: 0 | J145: 0 | K145: 0 | L145: 0 | M145: 0 | N145: 0 | O145: 0 | P145: 0 | Q145: 0 | R145: 0 | S145: 0 | T145: 0 | U145: 0 | V145: 0 | W145: 0 | X145: 0 | Y145: 0 | Z145: 0 | AA145: 0 | AB145: 0 | AC145: 0 | AD145: 0 | AE145: =IF(A145<>"",SUM($E$50:E145),0) -> 0 | AF145: =IF(A145<>"",SUM($D$50:D145),0) -> 0
A146: 9 | B146: 1 | D146: =IF(E146=0,0,MAX($D$50:D145))*IF(B146=1,IF($H$2=1,105%,102%),1) -> 0 | E146: 0 | F146: 0 | G146: 1.25566692 | H146: =IF(A146<>"",G146*(1+INDEX('Hozamsorok-eszközalapok'!$B$11:$F$55,A146,IF($D$20=1,1,$D$19-2))+$F$23)^(1/12),0) -> 1.259271812 | I146: 0 | J146: 0 | K146: 0 | L146: 0 | M146: 0 | N146: 0 | O146: 0 | P146: 0 | Q146: 0 | R146: 0 | S146: 0 | T146: 0 | U146: 0 | V146: 0 | W146: 0 | X146: 0 | Y146: 0 | Z146: 0 | AA146: 0 | AB146: 0 | AC146: 0 | AD146: 0 | AE146: =IF(A146<>"",SUM($E$50:E146),0) -> 0 | AF146: =IF(A146<>"",SUM($D$50:D146),0) -> 0
A147: 9 | B147: 2 | D147: =IF(E147=0,0,MAX($D$50:D146))*IF(B147=1,IF($H$2=1,105%,102%),1) -> 0 | E147: 0 | F147: 0 | G147: 1.259271812 | H147: =IF(A147<>"",G147*(1+INDEX('Hozamsorok-eszközalapok'!$B$11:$F$55,A147,IF($D$20=1,1,$D$19-2))+$F$23)^(1/12),0) -> 1.262887054 | I147: 0 | J147: 0 | K147: 0 | L147: 0 | M147: 0 | N147: 0 | O147: 0 | P147: 0 | Q147: 0 | R147: 0 | S147: 0 | T147: 0 | U147: 0 | V147: 0 | W147: 0 | X147: 0 | Y147: 0 | Z147: 0 | AA147: 0 | AB147: 0 | AC147: 0 | AD147: 0 | AE147: =IF(A147<>"",SUM($E$50:E147),0) -> 0 | AF147: =IF(A147<>"",SUM($D$50:D147),0) -> 0
A148: 9 | B148: 3 | D148: =IF(E148=0,0,MAX($D$50:D147))*IF(B148=1,IF($H$2=1,105%,102%),1) -> 0 | E148: 0 | F148: 0 | G148: 1.262887054 | H148: =IF(A148<>"",G148*(1+INDEX('Hozamsorok-eszközalapok'!$B$11:$F$55,A148,IF($D$20=1,1,$D$19-2))+$F$23)^(1/12),0) -> 1.266512675 | I148: 0 | J148: 0 | K148: 0 | L148: 0 | M148: 0 | N148: 0 | O148: 0 | P148: 0 | Q148: 0 | R148: 0 | S148: 0 | T148: 0 | U148: 0 | V148: 0 | W148: 0 | X148: 0 | Y148: 0 | Z148: 0 | AA148: 0 | AB148: 0 | AC148: 0 | AD148: 0 | AE148: =IF(A148<>"",SUM($E$50:E148),0) -> 0 | AF148: =IF(A148<>"",SUM($D$50:D148),0) -> 0
A149: 9 | B149: 4 | D149: =IF(E149=0,0,MAX($D$50:D148))*IF(B149=1,IF($H$2=1,105%,102%),1) -> 0 | E149: 0 | F149: 0 | G149: 1.266512675 | H149: =IF(A149<>"",G149*(1+INDEX('Hozamsorok-eszközalapok'!$B$11:$F$55,A149,IF($D$20=1,1,$D$19-2))+$F$23)^(1/12),0) -> 1.270148705 | I149: 0 | J149: 0 | K149: 0 | L149: 0 | M149: 0 | N149: 0 | O149: 0 | P149: 0 | Q149: 0 | R149: 0 | S149: 0 | T149: 0 | U149: 0 | V149: 0 | W149: 0 | X149: 0 | Y149: 0 | Z149: 0 | AA149: 0 | AB149: 0 | AC149: 0 | AD149: 0 | AE149: =IF(A149<>"",SUM($E$50:E149),0) -> 0 | AF149: =IF(A149<>"",SUM($D$50:D149),0) -> 0
A150: 9 | B150: 5 | D150: =IF(E150=0,0,MAX($D$50:D149))*IF(B150=1,IF($H$2=1,105%,102%),1) -> 0 | E150: 0 | F150: 0 | G150: 1.270148705 | H150: =IF(A150<>"",G150*(1+INDEX('Hozamsorok-eszközalapok'!$B$11:$F$55,A150,IF($D$20=1,1,$D$19-2))+$F$23)^(1/12),0) -> 1.273795173 | I150: 0 | J150: 0 | K150: 0 | L150: 0 | M150: 0 | N150: 0 | O150: 0 | P150: 0 | Q150: 0 | R150: 0 | S150: 0 | T150: 0 | U150: 0 | V150: 0 | W150: 0 | X150: 0 | Y150: 0 | Z150: 0 | AA150: 0 | AB150: 0 | AC150: 0 | AD150: 0 | AE150: =IF(A150<>"",SUM($E$50:E150),0) -> 0 | AF150: =IF(A150<>"",SUM($D$50:D150),0) -> 0
A151: 9 | B151: 6 | D151: =IF(E151=0,0,MAX($D$50:D150))*IF(B151=1,IF($H$2=1,105%,102%),1) -> 0 | E151: 0 | F151: 0 | G151: 1.273795173 | H151: =IF(A151<>"",G151*(1+INDEX('Hozamsorok-eszközalapok'!$B$11:$F$55,A151,IF($D$20=1,1,$D$19-2))+$F$23)^(1/12),0) -> 1.27745211 | I151: 0 | J151: 0 | K151: 0 | L151: 0 | M151: 0 | N151: 0 | O151: 0 | P151: 0 | Q151: 0 | R151: 0 | S151: 0 | T151: 0 | U151: 0 | V151: 0 | W151: 0 | X151: 0 | Y151: 0 | Z151: 0 | AA151: 0 | AB151: 0 | AC151: 0 | AD151: 0 | AE151: =IF(A151<>"",SUM($E$50:E151),0) -> 0 | AF151: =IF(A151<>"",SUM($D$50:D151),0) -> 0
A152: 9 | B152: 7 | D152: =IF(E152=0,0,MAX($D$50:D151))*IF(B152=1,IF($H$2=1,105%,102%),1) -> 0 | E152: 0 | F152: 0 | G152: 1.27745211 | H152: =IF(A152<>"",G152*(1+INDEX('Hozamsorok-eszközalapok'!$B$11:$F$55,A152,IF($D$20=1,1,$D$19-2))+$F$23)^(1/12),0) -> 1.281119546 | I152: 0 | J152: 0 | K152: 0 | L152: 0 | M152: 0 | N152: 0 | O152: 0 | P152: 0 | Q152: 0 | R152: 0 | S152: 0 | T152: 0 | U152: 0 | V152: 0 | W152: 0 | X152: 0 | Y152: 0 | Z152: 0 | AA152: 0 | AB152: 0 | AC152: 0 | AD152: 0 | AE152: =IF(A152<>"",SUM($E$50:E152),0) -> 0 | AF152: =IF(A152<>"",SUM($D$50:D152),0) -> 0
A153: 9 | B153: 8 | D153: =IF(E153=0,0,MAX($D$50:D152))*IF(B153=1,IF($H$2=1,105%,102%),1) -> 0 | E153: 0 | F153: 0 | G153: 1.281119546 | H153: =IF(A153<>"",G153*(1+INDEX('Hozamsorok-eszközalapok'!$B$11:$F$55,A153,IF($D$20=1,1,$D$19-2))+$F$23)^(1/12),0) -> 1.28479751 | I153: 0 | J153: 0 | K153: 0 | L153: 0 | M153: 0 | N153: 0 | O153: 0 | P153: 0 | Q153: 0 | R153: 0 | S153: 0 | T153: 0 | U153: 0 | V153: 0 | W153: 0 | X153: 0 | Y153: 0 | Z153: 0 | AA153: 0 | AB153: 0 | AC153: 0 | AD153: 0 | AE153: =IF(A153<>"",SUM($E$50:E153),0) -> 0 | AF153: =IF(A153<>"",SUM($D$50:D153),0) -> 0
A154: 9 | B154: 9 | D154: =IF(E154=0,0,MAX($D$50:D153))*IF(B154=1,IF($H$2=1,105%,102%),1) -> 0 | E154: 0 | F154: 0 | G154: 1.28479751 | H154: =IF(A154<>"",G154*(1+INDEX('Hozamsorok-eszközalapok'!$B$11:$F$55,A154,IF($D$20=1,1,$D$19-2))+$F$23)^(1/12),0) -> 1.288486034 | I154: 0 | J154: 0 | K154: 0 | L154: 0 | M154: 0 | N154: 0 | O154: 0 | P154: 0 | Q154: 0 | R154: 0 | S154: 0 | T154: 0 | U154: 0 | V154: 0 | W154: 0 | X154: 0 | Y154: 0 | Z154: 0 | AA154: 0 | AB154: 0 | AC154: 0 | AD154: 0 | AE154: =IF(A154<>"",SUM($E$50:E154),0) -> 0 | AF154: =IF(A154<>"",SUM($D$50:D154),0) -> 0
A155: 9 | B155: 10 | D155: =IF(E155=0,0,MAX($D$50:D154))*IF(B155=1,IF($H$2=1,105%,102%),1) -> 0 | E155: 0 | F155: 0 | G155: 1.288486034 | H155: =IF(A155<>"",G155*(1+INDEX('Hozamsorok-eszközalapok'!$B$11:$F$55,A155,IF($D$20=1,1,$D$19-2))+$F$23)^(1/12),0) -> 1.292185146 | I155: 0 | J155: 0 | K155: 0 | L155: 0 | M155: 0 | N155: 0 | O155: 0 | P155: 0 | Q155: 0 | R155: 0 | S155: 0 | T155: 0 | U155: 0 | V155: 0 | W155: 0 | X155: 0 | Y155: 0 | Z155: 0 | AA155: 0 | AB155: 0 | AC155: 0 | AD155: 0 | AE155: =IF(A155<>"",SUM($E$50:E155),0) -> 0 | AF155: =IF(A155<>"",SUM($D$50:D155),0) -> 0
A156: 9 | B156: 11 | D156: =IF(E156=0,0,MAX($D$50:D155))*IF(B156=1,IF($H$2=1,105%,102%),1) -> 0 | E156: 0 | F156: 0 | G156: 1.292185146 | H156: =IF(A156<>"",G156*(1+INDEX('Hozamsorok-eszközalapok'!$B$11:$F$55,A156,IF($D$20=1,1,$D$19-2))+$F$23)^(1/12),0) -> 1.295894879 | I156: 0 | J156: 0 | K156: 0 | L156: 0 | M156: 0 | N156: 0 | O156: 0 | P156: 0 | Q156: 0 | R156: 0 | S156: 0 | T156: 0 | U156: 0 | V156: 0 | W156: 0 | X156: 0 | Y156: 0 | Z156: 0 | AA156: 0 | AB156: 0 | AC156: 0 | AD156: 0 | AE156: =IF(A156<>"",SUM($E$50:E156),0) -> 0 | AF156: =IF(A156<>"",SUM($D$50:D156),0) -> 0
A157: 9 | B157: 12 | D157: =IF(E157=0,0,MAX($D$50:D156))*IF(B157=1,IF($H$2=1,105%,102%),1) -> 0 | E157: 0 | F157: 0 | G157: 1.295894879 | H157: =IF(A157<>"",G157*(1+INDEX('Hozamsorok-eszközalapok'!$B$11:$F$55,A157,IF($D$20=1,1,$D$19-2))+$F$23)^(1/12),0) -> 1.299615262 | I157: 0 | J157: 0 | K157: 0 | L157: 0 | M157: 0 | N157: 0 | O157: 0 | P157: 0 | Q157: 0 | R157: 0 | S157: 0 | T157: 0 | U157: 0 | V157: 0 | W157: 0 | X157: 0 | Y157: 0 | Z157: 0 | AA157: 0 | AB157: 0 | AC157: 0 | AD157: 0 | AE157: =IF(A157<>"",SUM($E$50:E157),0) -> 0 | AF157: =IF(A157<>"",SUM($D$50:D157),0) -> 0
A158: 10 | B158: 1 | D158: =IF(E158=0,0,MAX($D$50:D157))*IF(B158=1,IF($H$2=1,105%,102%),1) -> 0 | E158: 0 | F158: 0 | G158: 1.299615262 | H158: =IF(A158<>"",G158*(1+INDEX('Hozamsorok-eszközalapok'!$B$11:$F$55,A158,IF($D$20=1,1,$D$19-2))+$F$23)^(1/12),0) -> 1.303451219 | I158: 0 | J158: 0 | K158: 0 | L158: 0 | M158: 0 | N158: 0 | O158: 0 | P158: 0 | Q158: 0 | R158: 0 | S158: 0 | T158: 0 | U158: 0 | V158: 0 | W158: 0 | X158: 0 | Y158: 0 | Z158: 0 | AA158: 0 | AB158: 0 | AC158: 0 | AD158: 0 | AE158: =IF(A158<>"",SUM($E$50:E158),0) -> 0 | AF158: =IF(A158<>"",SUM($D$50:D158),0) -> 0
A159: 10 | B159: 2 | D159: =IF(E159=0,0,MAX($D$50:D158))*IF(B159=1,IF($H$2=1,105%,102%),1) -> 0 | E159: 0 | F159: 0 | G159: 1.303451219 | H159: =IF(A159<>"",G159*(1+INDEX('Hozamsorok-eszközalapok'!$B$11:$F$55,A159,IF($D$20=1,1,$D$19-2))+$F$23)^(1/12),0) -> 1.307298498 | I159: 0 | J159: 0 | K159: 0 | L159: 0 | M159: 0 | N159: 0 | O159: 0 | P159: 0 | Q159: 0 | R159: 0 | S159: 0 | T159: 0 | U159: 0 | V159: 0 | W159: 0 | X159: 0 | Y159: 0 | Z159: 0 | AA159: 0 | AB159: 0 | AC159: 0 | AD159: 0 | AE159: =IF(A159<>"",SUM($E$50:E159),0) -> 0 | AF159: =IF(A159<>"",SUM($D$50:D159),0) -> 0
A160: 10 | B160: 3 | D160: =IF(E160=0,0,MAX($D$50:D159))*IF(B160=1,IF($H$2=1,105%,102%),1) -> 0 | E160: 0 | F160: 0 | G160: 1.307298498 | H160: =IF(A160<>"",G160*(1+INDEX('Hozamsorok-eszközalapok'!$B$11:$F$55,A160,IF($D$20=1,1,$D$19-2))+$F$23)^(1/12),0) -> 1.311157132 | I160: 0 | J160: 0 | K160: 0 | L160: 0 | M160: 0 | N160: 0 | O160: 0 | P160: 0 | Q160: 0 | R160: 0 | S160: 0 | T160: 0 | U160: 0 | V160: 0 | W160: 0 | X160: 0 | Y160: 0 | Z160: 0 | AA160: 0 | AB160: 0 | AC160: 0 | AD160: 0 | AE160: =IF(A160<>"",SUM($E$50:E160),0) -> 0 | AF160: =IF(A160<>"",SUM($D$50:D160),0) -> 0
A161: 10 | B161: 4 | D161: =IF(E161=0,0,MAX($D$50:D160))*IF(B161=1,IF($H$2=1,105%,102%),1) -> 0 | E161: 0 | F161: 0 | G161: 1.311157132 | H161: =IF(A161<>"",G161*(1+INDEX('Hozamsorok-eszközalapok'!$B$11:$F$55,A161,IF($D$20=1,1,$D$19-2))+$F$23)^(1/12),0) -> 1.315027156 | I161: 0 | J161: 0 | K161: 0 | L161: 0 | M161: 0 | N161: 0 | O161: 0 | P161: 0 | Q161: 0 | R161: 0 | S161: 0 | T161: 0 | U161: 0 | V161: 0 | W161: 0 | X161: 0 | Y161: 0 | Z161: 0 | AA161: 0 | AB161: 0 | AC161: 0 | AD161: 0 | AE161: =IF(A161<>"",SUM($E$50:E161),0) -> 0 | AF161: =IF(A161<>"",SUM($D$50:D161),0) -> 0
A162: 10 | B162: 5 | D162: =IF(E162=0,0,MAX($D$50:D161))*IF(B162=1,IF($H$2=1,105%,102%),1) -> 0 | E162: 0 | F162: 0 | G162: 1.315027156 | H162: =IF(A162<>"",G162*(1+INDEX('Hozamsorok-eszközalapok'!$B$11:$F$55,A162,IF($D$20=1,1,$D$19-2))+$F$23)^(1/12),0) -> 1.318908603 | I162: 0 | J162: 0 | K162: 0 | L162: 0 | M162: 0 | N162: 0 | O162: 0 | P162: 0 | Q162: 0 | R162: 0 | S162: 0 | T162: 0 | U162: 0 | V162: 0 | W162: 0 | X162: 0 | Y162: 0 | Z162: 0 | AA162: 0 | AB162: 0 | AC162: 0 | AD162: 0 | AE162: =IF(A162<>"",SUM($E$50:E162),0) -> 0 | AF162: =IF(A162<>"",SUM($D$50:D162),0) -> 0
A163: 10 | B163: 6 | D163: =IF(E163=0,0,MAX($D$50:D162))*IF(B163=1,IF($H$2=1,105%,102%),1) -> 0 | E163: 0 | F163: 0 | G163: 1.318908603 | H163: =IF(A163<>"",G163*(1+INDEX('Hozamsorok-eszközalapok'!$B$11:$F$55,A163,IF($D$20=1,1,$D$19-2))+$F$23)^(1/12),0) -> 1.322801506 | I163: 0 | J163: 0 | K163: 0 | L163: 0 | M163: 0 | N163: 0 | O163: 0 | P163: 0 | Q163: 0 | R163: 0 | S163: 0 | T163: 0 | U163: 0 | V163: 0 | W163: 0 | X163: 0 | Y163: 0 | Z163: 0 | AA163: 0 | AB163: 0 | AC163: 0 | AD163: 0 | AE163: =IF(A163<>"",SUM($E$50:E163),0) -> 0 | AF163: =IF(A163<>"",SUM($D$50:D163),0) -> 0
A164: 10 | B164: 7 | D164: =IF(E164=0,0,MAX($D$50:D163))*IF(B164=1,IF($H$2=1,105%,102%),1) -> 0 | E164: 0 | F164: 0 | G164: 1.322801506 | H164: =IF(A164<>"",G164*(1+INDEX('Hozamsorok-eszközalapok'!$B$11:$F$55,A164,IF($D$20=1,1,$D$19-2))+$F$23)^(1/12),0) -> 1.326705899 | I164: 0 | J164: 0 | K164: 0 | L164: 0 | M164: 0 | N164: 0 | O164: 0 | P164: 0 | Q164: 0 | R164: 0 | S164: 0 | T164: 0 | U164: 0 | V164: 0 | W164: 0 | X164: 0 | Y164: 0 | Z164: 0 | AA164: 0 | AB164: 0 | AC164: 0 | AD164: 0 | AE164: =IF(A164<>"",SUM($E$50:E164),0) -> 0 | AF164: =IF(A164<>"",SUM($D$50:D164),0) -> 0
A165: 10 | B165: 8 | D165: =IF(E165=0,0,MAX($D$50:D164))*IF(B165=1,IF($H$2=1,105%,102%),1) -> 0 | E165: 0 | F165: 0 | G165: 1.326705899 | H165: =IF(A165<>"",G165*(1+INDEX('Hozamsorok-eszközalapok'!$B$11:$F$55,A165,IF($D$20=1,1,$D$19-2))+$F$23)^(1/12),0) -> 1.330621817 | I165: 0 | J165: 0 | K165: 0 | L165: 0 | M165: 0 | N165: 0 | O165: 0 | P165: 0 | Q165: 0 | R165: 0 | S165: 0 | T165: 0 | U165: 0 | V165: 0 | W165: 0 | X165: 0 | Y165: 0 | Z165: 0 | AA165: 0 | AB165: 0 | AC165: 0 | AD165: 0 | AE165: =IF(A165<>"",SUM($E$50:E165),0) -> 0 | AF165: =IF(A165<>"",SUM($D$50:D165),0) -> 0
A166: 10 | B166: 9 | D166: =IF(E166=0,0,MAX($D$50:D165))*IF(B166=1,IF($H$2=1,105%,102%),1) -> 0 | E166: 0 | F166: 0 | G166: 1.330621817 | H166: =IF(A166<>"",G166*(1+INDEX('Hozamsorok-eszközalapok'!$B$11:$F$55,A166,IF($D$20=1,1,$D$19-2))+$F$23)^(1/12),0) -> 1.334549293 | I166: 0 | J166: 0 | K166: 0 | L166: 0 | M166: 0 | N166: 0 | O166: 0 | P166: 0 | Q166: 0 | R166: 0 | S166: 0 | T166: 0 | U166: 0 | V166: 0 | W166: 0 | X166: 0 | Y166: 0 | Z166: 0 | AA166: 0 | AB166: 0 | AC166: 0 | AD166: 0 | AE166: =IF(A166<>"",SUM($E$50:E166),0) -> 0 | AF166: =IF(A166<>"",SUM($D$50:D166),0) -> 0
A167: 10 | B167: 10 | D167: =IF(E167=0,0,MAX($D$50:D166))*IF(B167=1,IF($H$2=1,105%,102%),1) -> 0 | E167: 0 | F167: 0 | G167: 1.334549293 | H167: =IF(A167<>"",G167*(1+INDEX('Hozamsorok-eszközalapok'!$B$11:$F$55,A167,IF($D$20=1,1,$D$19-2))+$F$23)^(1/12),0) -> 1.338488361 | I167: 0 | J167: 0 | K167: 0 | L167: 0 | M167: 0 | N167: 0 | O167: 0 | P167: 0 | Q167: 0 | R167: 0 | S167: 0 | T167: 0 | U167: 0 | V167: 0 | W167: 0 | X167: 0 | Y167: 0 | Z167: 0 | AA167: 0 | AB167: 0 | AC167: 0 | AD167: 0 | AE167: =IF(A167<>"",SUM($E$50:E167),0) -> 0 | AF167: =IF(A167<>"",SUM($D$50:D167),0) -> 0
A168: 10 | B168: 11 | D168: =IF(E168=0,0,MAX($D$50:D167))*IF(B168=1,IF($H$2=1,105%,102%),1) -> 0 | E168: 0 | F168: 0 | G168: 1.338488361 | H168: =IF(A168<>"",G168*(1+INDEX('Hozamsorok-eszközalapok'!$B$11:$F$55,A168,IF($D$20=1,1,$D$19-2))+$F$23)^(1/12),0) -> 1.342439056 | I168: 0 | J168: 0 | K168: 0 | L168: 0 | M168: 0 | N168: 0 | O168: 0 | P168: 0 | Q168: 0 | R168: 0 | S168: 0 | T168: 0 | U168: 0 | V168: 0 | W168: 0 | X168: 0 | Y168: 0 | Z168: 0 | AA168: 0 | AB168: 0 | AC168: 0 | AD168: 0 | AE168: =IF(A168<>"",SUM($E$50:E168),0) -> 0 | AF168: =IF(A168<>"",SUM($D$50:D168),0) -> 0
A169: 10 | B169: 12 | D169: =IF(E169=0,0,MAX($D$50:D168))*IF(B169=1,IF($H$2=1,105%,102%),1) -> 0 | E169: 0 | F169: 0 | G169: 1.342439056 | H169: =IF(A169<>"",G169*(1+INDEX('Hozamsorok-eszközalapok'!$B$11:$F$55,A169,IF($D$20=1,1,$D$19-2))+$F$23)^(1/12),0) -> 1.346401412 | I169: 0 | J169: 0 | K169: 0 | L169: 0 | M169: 0 | N169: 0 | O169: 0 | P169: 0 | Q169: 0 | R169: 0 | S169: 0 | T169: 0 | U169: 0 | V169: 0 | W169: 0 | X169: 0 | Y169: 0 | Z169: 0 | AA169: 0 | AB169: 0 | AC169: 0 | AD169: 0 | AE169: =IF(A169<>"",SUM($E$50:E169),0) -> 0 | AF169: =IF(A169<>"",SUM($D$50:D169),0) -> 0
A170: 11 | B170: 1 | D170: =IF(E170=0,0,MAX($D$50:D169))*IF(B170=1,IF($H$2=1,105%,102%),1) -> 0 | E170: 0 | F170: 0 | G170: 1.346401412 | H170: =IF(A170<>"",G170*(1+INDEX('Hozamsorok-eszközalapok'!$B$11:$F$55,A170,IF($D$20=1,1,$D$19-2))+$F$23)^(1/12),0) -> 1.350375463 | I170: 0 | J170: 0 | K170: 0 | L170: 0 | M170: 0 | N170: 0 | O170: 0 | P170: 0 | Q170: 0 | R170: 0 | S170: 0 | T170: 0 | U170: 0 | V170: 0 | W170: 0 | X170: 0 | Y170: 0 | Z170: 0 | AA170: 0 | AB170: 0 | AC170: 0 | AD170: 0 | AE170: =IF(A170<>"",SUM($E$50:E170),0) -> 0 | AF170: =IF(A170<>"",SUM($D$50:D170),0) -> 0
A171: 11 | B171: 2 | D171: =IF(E171=0,0,MAX($D$50:D170))*IF(B171=1,IF($H$2=1,105%,102%),1) -> 0 | E171: 0 | F171: 0 | G171: 1.350375463 | H171: =IF(A171<>"",G171*(1+INDEX('Hozamsorok-eszközalapok'!$B$11:$F$55,A171,IF($D$20=1,1,$D$19-2))+$F$23)^(1/12),0) -> 1.354361244 | I171: 0 | J171: 0 | K171: 0 | L171: 0 | M171: 0 | N171: 0 | O171: 0 | P171: 0 | Q171: 0 | R171: 0 | S171: 0 | T171: 0 | U171: 0 | V171: 0 | W171: 0 | X171: 0 | Y171: 0 | Z171: 0 | AA171: 0 | AB171: 0 | AC171: 0 | AD171: 0 | AE171: =IF(A171<>"",SUM($E$50:E171),0) -> 0 | AF171: =IF(A171<>"",SUM($D$50:D171),0) -> 0
A172: 11 | B172: 3 | D172: =IF(E172=0,0,MAX($D$50:D171))*IF(B172=1,IF($H$2=1,105%,102%),1) -> 0 | E172: 0 | F172: 0 | G172: 1.354361244 | H172: =IF(A172<>"",G172*(1+INDEX('Hozamsorok-eszközalapok'!$B$11:$F$55,A172,IF($D$20=1,1,$D$19-2))+$F$23)^(1/12),0) -> 1.358358789 | I172: 0 | J172: 0 | K172: 0 | L172: 0 | M172: 0 | N172: 0 | O172: 0 | P172: 0 | Q172: 0 | R172: 0 | S172: 0 | T172: 0 | U172: 0 | V172: 0 | W172: 0 | X172: 0 | Y172: 0 | Z172: 0 | AA172: 0 | AB172: 0 | AC172: 0 | AD172: 0 | AE172: =IF(A172<>"",SUM($E$50:E172),0) -> 0 | AF172: =IF(A172<>"",SUM($D$50:D172),0) -> 0
A173: 11 | B173: 4 | D173: =IF(E173=0,0,MAX($D$50:D172))*IF(B173=1,IF($H$2=1,105%,102%),1) -> 0 | E173: 0 | F173: 0 | G173: 1.358358789 | H173: =IF(A173<>"",G173*(1+INDEX('Hozamsorok-eszközalapok'!$B$11:$F$55,A173,IF($D$20=1,1,$D$19-2))+$F$23)^(1/12),0) -> 1.362368134 | I173: 0 | J173: 0 | K173: 0 | L173: 0 | M173: 0 | N173: 0 | O173: 0 | P173: 0 | Q173: 0 | R173: 0 | S173: 0 | T173: 0 | U173: 0 | V173: 0 | W173: 0 | X173: 0 | Y173: 0 | Z173: 0 | AA173: 0 | AB173: 0 | AC173: 0 | AD173: 0 | AE173: =IF(A173<>"",SUM($E$50:E173),0) -> 0 | AF173: =IF(A173<>"",SUM($D$50:D173),0) -> 0
A174: 11 | B174: 5 | D174: =IF(E174=0,0,MAX($D$50:D173))*IF(B174=1,IF($H$2=1,105%,102%),1) -> 0 | E174: 0 | F174: 0 | G174: 1.362368134 | H174: =IF(A174<>"",G174*(1+INDEX('Hozamsorok-eszközalapok'!$B$11:$F$55,A174,IF($D$20=1,1,$D$19-2))+$F$23)^(1/12),0) -> 1.366389312 | I174: 0 | J174: 0 | K174: 0 | L174: 0 | M174: 0 | N174: 0 | O174: 0 | P174: 0 | Q174: 0 | R174: 0 | S174: 0 | T174: 0 | U174: 0 | V174: 0 | W174: 0 | X174: 0 | Y174: 0 | Z174: 0 | AA174: 0 | AB174: 0 | AC174: 0 | AD174: 0 | AE174: =IF(A174<>"",SUM($E$50:E174),0) -> 0 | AF174: =IF(A174<>"",SUM($D$50:D174),0) -> 0
A175: 11 | B175: 6 | D175: =IF(E175=0,0,MAX($D$50:D174))*IF(B175=1,IF($H$2=1,105%,102%),1) -> 0 | E175: 0 | F175: 0 | G175: 1.366389312 | H175: =IF(A175<>"",G175*(1+INDEX('Hozamsorok-eszközalapok'!$B$11:$F$55,A175,IF($D$20=1,1,$D$19-2))+$F$23)^(1/12),0) -> 1.37042236 | I175: 0 | J175: 0 | K175: 0 | L175: 0 | M175: 0 | N175: 0 | O175: 0 | P175: 0 | Q175: 0 | R175: 0 | S175: 0 | T175: 0 | U175: 0 | V175: 0 | W175: 0 | X175: 0 | Y175: 0 | Z175: 0 | AA175: 0 | AB175: 0 | AC175: 0 | AD175: 0 | AE175: =IF(A175<>"",SUM($E$50:E175),0) -> 0 | AF175: =IF(A175<>"",SUM($D$50:D175),0) -> 0
A176: 11 | B176: 7 | D176: =IF(E176=0,0,MAX($D$50:D175))*IF(B176=1,IF($H$2=1,105%,102%),1) -> 0 | E176: 0 | F176: 0 | G176: 1.37042236 | H176: =IF(A176<>"",G176*(1+INDEX('Hozamsorok-eszközalapok'!$B$11:$F$55,A176,IF($D$20=1,1,$D$19-2))+$F$23)^(1/12),0) -> 1.374467311 | I176: 0 | J176: 0 | K176: 0 | L176: 0 | M176: 0 | N176: 0 | O176: 0 | P176: 0 | Q176: 0 | R176: 0 | S176: 0 | T176: 0 | U176: 0 | V176: 0 | W176: 0 | X176: 0 | Y176: 0 | Z176: 0 | AA176: 0 | AB176: 0 | AC176: 0 | AD176: 0 | AE176: =IF(A176<>"",SUM($E$50:E176),0) -> 0 | AF176: =IF(A176<>"",SUM($D$50:D176),0) -> 0
A177: 11 | B177: 8 | D177: =IF(E177=0,0,MAX($D$50:D176))*IF(B177=1,IF($H$2=1,105%,102%),1) -> 0 | E177: 0 | F177: 0 | G177: 1.374467311 | H177: =IF(A177<>"",G177*(1+INDEX('Hozamsorok-eszközalapok'!$B$11:$F$55,A177,IF($D$20=1,1,$D$19-2))+$F$23)^(1/12),0) -> 1.378524202 | I177: 0 | J177: 0 | K177: 0 | L177: 0 | M177: 0 | N177: 0 | O177: 0 | P177: 0 | Q177: 0 | R177: 0 | S177: 0 | T177: 0 | U177: 0 | V177: 0 | W177: 0 | X177: 0 | Y177: 0 | Z177: 0 | AA177: 0 | AB177: 0 | AC177: 0 | AD177: 0 | AE177: =IF(A177<>"",SUM($E$50:E177),0) -> 0 | AF177: =IF(A177<>"",SUM($D$50:D177),0) -> 0
A178: 11 | B178: 9 | D178: =IF(E178=0,0,MAX($D$50:D177))*IF(B178=1,IF($H$2=1,105%,102%),1) -> 0 | E178: 0 | F178: =E178*$D$13 -> 0 | G178: 1.378524202 | H178: =IF(A178<>"",G178*(1+INDEX('Hozamsorok-eszközalapok'!$B$11:$F$55,A178,IF($D$20=1,1,$D$19-2))+$F$23)^(1/12),0) -> 1.382593067 | I178: 0 | J178: 0 | K178: 0 | L178: 0 | M178: =K178*(1-$G$8) -> 0 | N178: 0 | O178: 0 | P178: 0 | Q178: 0 | R178: 0 | S178: 0 | T178: 0 | U178: 0 | V178: 0 | W178: 0 | X178: 0 | Y178: 0 | Z178: 0 | AA178: 0 | AB178: 0 | AC178: =H178*(T178+U178) -> 0 | AD178: 0 | AE178: =IF(A178<>"",SUM($E$50:E178),0) -> 0 | AF178: =IF(A178<>"",SUM($D$50:D178),0) -> 0
A179: =IF(B178<12,A178,IF(A178<$D$9,A178+1,"")) -> 11 | B179: 10 | D179: =IF(E179=0,0,MAX($D$50:D178))*IF(B179=1,IF($H$2=1,105%,102%),1) -> 0 | E179: =IF(AND($D$8=1,SUM(A179:B179)=2),$D$12,IF(A179>$D$10,0,IF(OR(AND($D$8=2,B179=1),AND($D$8=4,OR(B179=1,B179=7)),AND($D$8=5,OR(B179=1,B179=4,B179=7,B179=10)),AND($D$8=3,B179>=1)),$D$12*(1+$D$25)^(A179-1),0))) -> 0 | F179: 0 | G179: 1.382593067 | H179: =IF(A179<>"",G179*(1+INDEX('Hozamsorok-eszközalapok'!$B$11:$F$55,A179,IF($D$20=1,1,$D$19-2))+$F$23)^(1/12),0) -> 1.386673942 | I179: =IF(E179<>"",IF(A179<=2,(E179-F179)/G179,0),0) -> 0 | J179: =IF(A179<>"",IF(A179>2,(E179-F179)/G179,0),0) -> 0 | K179: =IF(A179<>"",U178+I179,0) -> 0 | L179: =IF(A179<>"",T178+J179,0) -> 0 | M179: 0 | N179: 0 | O179: =IF($E$4=TRUE,IF($D$19=4,0,(M179+N179)*($G$10+$G$11)*G179),0) -> 0 | P179: =IF($D$8<>1,M179,IF(A179<>"",M179-O179/G179,0)) -> 0 | Q179: =IF(A179<>"",N179-X179/G179,0) -> 0 | R179: =IF(OR(AND($D$8=1,A179<=$D$9),AND($D$8<>1,A179<=$D$10)),$D$15*($G$13+G179*((P179+Q179)-P179*$G$14^(IF($D$8=1,$D$9,$D$10)*12-((A179-1)*12+B179-1))-Q179*$G$15)),0) -> 0 | S179: =IF($D$8<>1,P179,IF(A179<>"",P179-R179/G179,0)) -> 0 | T179: =IF(A179<>"",Q179-AA179/G179,0) -> 0 | U179: =IF(AND($D$8<>1,A179>$D$10),S179,S179*(1-$D$14)) -> 0 | V179: 0 | W179: 0 | X179: 0 | Y179: 0 | Z179: 0 | AA179: 0 | AB179: 0 | AC179: 0 | AD179: =MAX(0,IF(A179<>"",IF(AND($D$8<>1,A179<=2,(A179+B179)<>14),0,H179*(U179*$G$14^(IF(AND($D$8<>1,A179>$D$10),0,IF($D$8=1,$D$9,$D$10)*12-((A179-1)*12+B179)))+T179*$G$15)-AB179),0)) -> 0 | AE179: =IF(A179<>"",SUM($E$50:E179),0) -> 0 | AF179: =IF(A179<>"",SUM($D$50:D179),0) -> 0
A180: 11 | B180: =IF(A180="","",IF(B179=12,1,B179+1)) -> 11 | D180: =IF(E180=0,0,MAX($D$50:D179))*IF(B180=1,IF($H$2=1,105%,102%),1) -> 0 | E180: 0 | F180: 0 | G180: =IF(A180<>"",H179,0) -> 1.386673942 | H180: =IF(A180<>"",G180*(1+INDEX('Hozamsorok-eszközalapok'!$B$11:$F$55,A180,IF($D$20=1,1,$D$19-2))+$F$23)^(1/12),0) -> 1.390766862 | I180: 0 | J180: 0 | K180: 0 | L180: 0 | M180: 0 | N180: 0 | O180: 0 | P180: 0 | Q180: 0 | R180: 0 | S180: 0 | T180: 0 | U180: 0 | V180: =IF(AND(A180<>"",$D$8<>1),O180+AB179,0) -> 0 | W180: =N180*G180 -> 0 | X180: =MIN(V180,W180) -> 0 | Y180: =IF(AND(A180<>"",$D$8<>1),V180-X180+R180,0) -> 0 | Z180: =Q180*G180 -> 0 | AA180: =MIN(Y180,Z180) -> 0 | AB180: =IF(A180<>"",Y180-AA180,0) -> 0 | AC180: 0 | AD180: 0 | AE180: =IF(A180<>"",SUM($E$50:E180),0) -> 0 | AF180: =IF(A180<>"",SUM($D$50:D180),0) -> 0
A181: 11 | B181: =IF(A181="","",IF(B180=12,1,B180+1)) -> 12 | D181: =IF(E181=0,0,MAX($D$50:D180))*IF(B181=1,IF($H$2=1,105%,102%),1) -> 0 | E181: 0 | F181: 0 | G181: 1.390766862 | H181: =IF(A181<>"",G181*(1+INDEX('Hozamsorok-eszközalapok'!$B$11:$F$55,A181,IF($D$20=1,1,$D$19-2))+$F$23)^(1/12),0) -> 1.394871862 | I181: 0 | J181: 0 | K181: 0 | L181: 0 | M181: 0 | N181: 0 | O181: 0 | P181: 0 | Q181: 0 | R181: 0 | S181: 0 | T181: 0 | U181: 0 | V181: 0 | W181: 0 | X181: 0 | Y181: 0 | Z181: 0 | AA181: 0 | AB181: 0 | AC181: 0 | AD181: 0 | AE181: =IF(A181<>"",SUM($E$50:E181),0) -> 0 | AF181: =IF(A181<>"",SUM($D$50:D181),0) -> 0
A182: 12 | B182: 1 | D182: =IF(E182=0,0,MAX($D$50:D181))*IF(B182=1,IF($H$2=1,105%,102%),1) -> 0 | E182: 0 | F182: 0 | G182: 1.394871862 | H182: =IF(A182<>"",G182*(1+INDEX('Hozamsorok-eszközalapok'!$B$11:$F$55,A182,IF($D$20=1,1,$D$19-2))+$F$23)^(1/12),0) -> 1.398988979 | I182: 0 | J182: 0 | K182: 0 | L182: 0 | M182: 0 | N182: 0 | O182: 0 | P182: 0 | Q182: 0 | R182: 0 | S182: 0 | T182: 0 | U182: 0 | V182: 0 | W182: 0 | X182: 0 | Y182: 0 | Z182: 0 | AA182: 0 | AB182: 0 | AC182: 0 | AD182: 0 | AE182: =IF(A182<>"",SUM($E$50:E182),0) -> 0 | AF182: =IF(A182<>"",SUM($D$50:D182),0) -> 0
A183: 12 | B183: 2 | D183: =IF(E183=0,0,MAX($D$50:D182))*IF(B183=1,IF($H$2=1,105%,102%),1) -> 0 | E183: 0 | F183: 0 | G183: 1.398988979 | H183: =IF(A183<>"",G183*(1+INDEX('Hozamsorok-eszközalapok'!$B$11:$F$55,A183,IF($D$20=1,1,$D$19-2))+$F$23)^(1/12),0) -> 1.403118248 | I183: 0 | J183: 0 | K183: 0 | L183: 0 | M183: 0 | N183: 0 | O183: 0 | P183: 0 | Q183: 0 | R183: 0 | S183: 0 | T183: 0 | U183: 0 | V183: 0 | W183: 0 | X183: 0 | Y183: 0 | Z183: 0 | AA183: 0 | AB183: 0 | AC183: 0 | AD183: 0 | AE183: =IF(A183<>"",SUM($E$50:E183),0) -> 0 | AF183: =IF(A183<>"",SUM($D$50:D183),0) -> 0
A184: 12 | B184: 3 | D184: =IF(E184=0,0,MAX($D$50:D183))*IF(B184=1,IF($H$2=1,105%,102%),1) -> 0 | E184: 0 | F184: 0 | G184: 1.403118248 | H184: =IF(A184<>"",G184*(1+INDEX('Hozamsorok-eszközalapok'!$B$11:$F$55,A184,IF($D$20=1,1,$D$19-2))+$F$23)^(1/12),0) -> 1.407259705 | I184: 0 | J184: 0 | K184: 0 | L184: 0 | M184: 0 | N184: 0 | O184: 0 | P184: 0 | Q184: 0 | R184: 0 | S184: 0 | T184: 0 | U184: 0 | V184: 0 | W184: 0 | X184: 0 | Y184: 0 | Z184: 0 | AA184: 0 | AB184: 0 | AC184: 0 | AD184: 0 | AE184: =IF(A184<>"",SUM($E$50:E184),0) -> 0 | AF184: =IF(A184<>"",SUM($D$50:D184),0) -> 0
A185: 12 | B185: 4 | D185: =IF(E185=0,0,MAX($D$50:D184))*IF(B185=1,IF($H$2=1,105%,102%),1) -> 0 | E185: 0 | F185: 0 | G185: 1.407259705 | H185: =IF(A185<>"",G185*(1+INDEX('Hozamsorok-eszközalapok'!$B$11:$F$55,A185,IF($D$20=1,1,$D$19-2))+$F$23)^(1/12),0) -> 1.411413386 | I185: 0 | J185: 0 | K185: 0 | L185: 0 | M185: 0 | N185: 0 | O185: 0 | P185: 0 | Q185: 0 | R185: 0 | S185: 0 | T185: 0 | U185: 0 | V185: 0 | W185: 0 | X185: 0 | Y185: 0 | Z185: 0 | AA185: 0 | AB185: 0 | AC185: 0 | AD185: 0 | AE185: =IF(A185<>"",SUM($E$50:E185),0) -> 0 | AF185: =IF(A185<>"",SUM($D$50:D185),0) -> 0
A186: 12 | B186: 5 | D186: =IF(E186=0,0,MAX($D$50:D185))*IF(B186=1,IF($H$2=1,105%,102%),1) -> 0 | E186: 0 | F186: 0 | G186: 1.411413386 | H186: =IF(A186<>"",G186*(1+INDEX('Hozamsorok-eszközalapok'!$B$11:$F$55,A186,IF($D$20=1,1,$D$19-2))+$F$23)^(1/12),0) -> 1.415579328 | I186: 0 | J186: 0 | K186: 0 | L186: 0 | M186: 0 | N186: 0 | O186: 0 | P186: 0 | Q186: 0 | R186: 0 | S186: 0 | T186: 0 | U186: 0 | V186: 0 | W186: 0 | X186: 0 | Y186: 0 | Z186: 0 | AA186: 0 | AB186: 0 | AC186: 0 | AD186: 0 | AE186: =IF(A186<>"",SUM($E$50:E186),0) -> 0 | AF186: =IF(A186<>"",SUM($D$50:D186),0) -> 0
A187: 12 | B187: 6 | D187: =IF(E187=0,0,MAX($D$50:D186))*IF(B187=1,IF($H$2=1,105%,102%),1) -> 0 | E187: 0 | F187: 0 | G187: 1.415579328 | H187: =IF(A187<>"",G187*(1+INDEX('Hozamsorok-eszközalapok'!$B$11:$F$55,A187,IF($D$20=1,1,$D$19-2))+$F$23)^(1/12),0) -> 1.419757565 | I187: 0 | J187: 0 | K187: 0 | L187: 0 | M187: 0 | N187: 0 | O187: 0 | P187: 0 | Q187: 0 | R187: 0 | S187: 0 | T187: 0 | U187: 0 | V187: 0 | W187: 0 | X187: 0 | Y187: 0 | Z187: 0 | AA187: 0 | AB187: 0 | AC187: 0 | AD187: 0 | AE187: =IF(A187<>"",SUM($E$50:E187),0) -> 0 | AF187: =IF(A187<>"",SUM($D$50:D187),0) -> 0
A188: 12 | B188: 7 | D188: =IF(E188=0,0,MAX($D$50:D187))*IF(B188=1,IF($H$2=1,105%,102%),1) -> 0 | E188: 0 | F188: 0 | G188: 1.419757565 | H188: =IF(A188<>"",G188*(1+INDEX('Hozamsorok-eszközalapok'!$B$11:$F$55,A188,IF($D$20=1,1,$D$19-2))+$F$23)^(1/12),0) -> 1.423948135 | I188: 0 | J188: 0 | K188: 0 | L188: 0 | M188: 0 | N188: 0 | O188: 0 | P188: 0 | Q188: 0 | R188: 0 | S188: 0 | T188: 0 | U188: 0 | V188: 0 | W188: 0 | X188: 0 | Y188: 0 | Z188: 0 | AA188: 0 | AB188: 0 | AC188: 0 | AD188: 0 | AE188: =IF(A188<>"",SUM($E$50:E188),0) -> 0 | AF188: =IF(A188<>"",SUM($D$50:D188),0) -> 0
A189: 12 | B189: 8 | D189: =IF(E189=0,0,MAX($D$50:D188))*IF(B189=1,IF($H$2=1,105%,102%),1) -> 0 | E189: 0 | F189: 0 | G189: 1.423948135 | H189: =IF(A189<>"",G189*(1+INDEX('Hozamsorok-eszközalapok'!$B$11:$F$55,A189,IF($D$20=1,1,$D$19-2))+$F$23)^(1/12),0) -> 1.428151073 | I189: 0 | J189: 0 | K189: 0 | L189: 0 | M189: 0 | N189: 0 | O189: 0 | P189: 0 | Q189: 0 | R189: 0 | S189: 0 | T189: 0 | U189: 0 | V189: 0 | W189: 0 | X189: 0 | Y189: 0 | Z189: 0 | AA189: 0 | AB189: 0 | AC189: 0 | AD189: 0 | AE189: =IF(A189<>"",SUM($E$50:E189),0) -> 0 | AF189: =IF(A189<>"",SUM($D$50:D189),0) -> 0
A190: 12 | B190: 9 | D190: =IF(E190=0,0,MAX($D$50:D189))*IF(B190=1,IF($H$2=1,105%,102%),1) -> 0 | E190: 0 | F190: 0 | G190: 1.428151073 | H190: =IF(A190<>"",G190*(1+INDEX('Hozamsorok-eszközalapok'!$B$11:$F$55,A190,IF($D$20=1,1,$D$19-2))+$F$23)^(1/12),0) -> 1.432366418 | I190: 0 | J190: 0 | K190: 0 | L190: 0 | M190: 0 | N190: 0 | O190: 0 | P190: 0 | Q190: 0 | R190: 0 | S190: 0 | T190: 0 | U190: 0 | V190: 0 | W190: 0 | X190: 0 | Y190: 0 | Z190: 0 | AA190: 0 | AB190: 0 | AC190: 0 | AD190: 0 | AE190: =IF(A190<>"",SUM($E$50:E190),0) -> 0 | AF190: =IF(A190<>"",SUM($D$50:D190),0) -> 0
A191: 12 | B191: 10 | D191: =IF(E191=0,0,MAX($D$50:D190))*IF(B191=1,IF($H$2=1,105%,102%),1) -> 0 | E191: 0 | F191: 0 | G191: 1.432366418 | H191: =IF(A191<>"",G191*(1+INDEX('Hozamsorok-eszközalapok'!$B$11:$F$55,A191,IF($D$20=1,1,$D$19-2))+$F$23)^(1/12),0) -> 1.436594204 | I191: 0 | J191: 0 | K191: 0 | L191: 0 | M191: 0 | N191: 0 | O191: 0 | P191: 0 | Q191: 0 | R191: 0 | S191: 0 | T191: 0 | U191: 0 | V191: 0 | W191: 0 | X191: 0 | Y191: 0 | Z191: 0 | AA191: 0 | AB191: 0 | AC191: 0 | AD191: 0 | AE191: =IF(A191<>"",SUM($E$50:E191),0) -> 0 | AF191: =IF(A191<>"",SUM($D$50:D191),0) -> 0
A192: 12 | B192: 11 | D192: =IF(E192=0,0,MAX($D$50:D191))*IF(B192=1,IF($H$2=1,105%,102%),1) -> 0 | E192: 0 | F192: 0 | G192: 1.436594204 | H192: =IF(A192<>"",G192*(1+INDEX('Hozamsorok-eszközalapok'!$B$11:$F$55,A192,IF($D$20=1,1,$D$19-2))+$F$23)^(1/12),0) -> 1.440834469 | I192: 0 | J192: 0 | K192: 0 | L192: 0 | M192: 0 | N192: 0 | O192: 0 | P192: 0 | Q192: 0 | R192: 0 | S192: 0 | T192: 0 | U192: 0 | V192: 0 | W192: 0 | X192: 0 | Y192: 0 | Z192: 0 | AA192: 0 | AB192: 0 | AC192: 0 | AD192: 0 | AE192: =IF(A192<>"",SUM($E$50:E192),0) -> 0 | AF192: =IF(A192<>"",SUM($D$50:D192),0) -> 0
A193: 12 | B193: 12 | D193: =IF(E193=0,0,MAX($D$50:D192))*IF(B193=1,IF($H$2=1,105%,102%),1) -> 0 | E193: 0 | F193: 0 | G193: 1.440834469 | H193: =IF(A193<>"",G193*(1+INDEX('Hozamsorok-eszközalapok'!$B$11:$F$55,A193,IF($D$20=1,1,$D$19-2))+$F$23)^(1/12),0) -> 1.445087249 | I193: 0 | J193: 0 | K193: 0 | L193: 0 | M193: 0 | N193: 0 | O193: 0 | P193: 0 | Q193: 0 | R193: 0 | S193: 0 | T193: 0 | U193: 0 | V193: 0 | W193: 0 | X193: 0 | Y193: 0 | Z193: 0 | AA193: 0 | AB193: 0 | AC193: 0 | AD193: 0 | AE193: =IF(A193<>"",SUM($E$50:E193),0) -> 0 | AF193: =IF(A193<>"",SUM($D$50:D193),0) -> 0
A194: 13 | B194: 1 | D194: =IF(E194=0,0,MAX($D$50:D193))*IF(B194=1,IF($H$2=1,105%,102%),1) -> 0 | E194: 0 | F194: 0 | G194: 1.445087249 | H194: =IF(A194<>"",G194*(1+INDEX('Hozamsorok-eszközalapok'!$B$11:$F$55,A194,IF($D$20=1,1,$D$19-2))+$F$23)^(1/12),0) -> 1.449352583 | I194: 0 | J194: 0 | K194: 0 | L194: 0 | M194: 0 | N194: 0 | O194: 0 | P194: 0 | Q194: 0 | R194: 0 | S194: 0 | T194: 0 | U194: 0 | V194: 0 | W194: 0 | X194: 0 | Y194: 0 | Z194: 0 | AA194: 0 | AB194: 0 | AC194: 0 | AD194: 0 | AE194: =IF(A194<>"",SUM($E$50:E194),0) -> 0 | AF194: =IF(A194<>"",SUM($D$50:D194),0) -> 0
A195: 13 | B195: 2 | D195: =IF(E195=0,0,MAX($D$50:D194))*IF(B195=1,IF($H$2=1,105%,102%),1) -> 0 | E195: 0 | F195: 0 | G195: 1.449352583 | H195: =IF(A195<>"",G195*(1+INDEX('Hozamsorok-eszközalapok'!$B$11:$F$55,A195,IF($D$20=1,1,$D$19-2))+$F$23)^(1/12),0) -> 1.453630505 | I195: 0 | J195: 0 | K195: 0 | L195: 0 | M195: 0 | N195: 0 | O195: 0 | P195: 0 | Q195: 0 | R195: 0 | S195: 0 | T195: 0 | U195: 0 | V195: 0 | W195: 0 | X195: 0 | Y195: 0 | Z195: 0 | AA195: 0 | AB195: 0 | AC195: 0 | AD195: 0 | AE195: =IF(A195<>"",SUM($E$50:E195),0) -> 0 | AF195: =IF(A195<>"",SUM($D$50:D195),0) -> 0
A196: 13 | B196: 3 | D196: =IF(E196=0,0,MAX($D$50:D195))*IF(B196=1,IF($H$2=1,105%,102%),1) -> 0 | E196: 0 | F196: 0 | G196: 1.453630505 | H196: =IF(A196<>"",G196*(1+INDEX('Hozamsorok-eszközalapok'!$B$11:$F$55,A196,IF($D$20=1,1,$D$19-2))+$F$23)^(1/12),0) -> 1.457921055 | I196: 0 | J196: 0 | K196: 0 | L196: 0 | M196: 0 | N196: 0 | O196: 0 | P196: 0 | Q196: 0 | R196: 0 | S196: 0 | T196: 0 | U196: 0 | V196: 0 | W196: 0 | X196: 0 | Y196: 0 | Z196: 0 | AA196: 0 | AB196: 0 | AC196: 0 | AD196: 0 | AE196: =IF(A196<>"",SUM($E$50:E196),0) -> 0 | AF196: =IF(A196<>"",SUM($D$50:D196),0) -> 0
A197: 13 | B197: 4 | D197: =IF(E197=0,0,MAX($D$50:D196))*IF(B197=1,IF($H$2=1,105%,102%),1) -> 0 | E197: 0 | F197: 0 | G197: 1.457921055 | H197: =IF(A197<>"",G197*(1+INDEX('Hozamsorok-eszközalapok'!$B$11:$F$55,A197,IF($D$20=1,1,$D$19-2))+$F$23)^(1/12),0) -> 1.462224268 | I197: 0 | J197: 0 | K197: 0 | L197: 0 | M197: 0 | N197: 0 | O197: 0 | P197: 0 | Q197: 0 | R197: 0 | S197: 0 | T197: 0 | U197: 0 | V197: 0 | W197: 0 | X197: 0 | Y197: 0 | Z197: 0 | AA197: 0 | AB197: 0 | AC197: 0 | AD197: 0 | AE197: =IF(A197<>"",SUM($E$50:E197),0) -> 0 | AF197: =IF(A197<>"",SUM($D$50:D197),0) -> 0
A198: 13 | B198: 5 | D198: =IF(E198=0,0,MAX($D$50:D197))*IF(B198=1,IF($H$2=1,105%,102%),1) -> 0 | E198: 0 | F198: 0 | G198: 1.462224268 | H198: =IF(A198<>"",G198*(1+INDEX('Hozamsorok-eszközalapok'!$B$11:$F$55,A198,IF($D$20=1,1,$D$19-2))+$F$23)^(1/12),0) -> 1.466540183 | I198: 0 | J198: 0 | K198: 0 | L198: 0 | M198: 0 | N198: 0 | O198: 0 | P198: 0 | Q198: 0 | R198: 0 | S198: 0 | T198: 0 | U198: 0 | V198: 0 | W198: 0 | X198: 0 | Y198: 0 | Z198: 0 | AA198: 0 | AB198: 0 | AC198: 0 | AD198: 0 | AE198: =IF(A198<>"",SUM($E$50:E198),0) -> 0 | AF198: =IF(A198<>"",SUM($D$50:D198),0) -> 0
A199: 13 | B199: 6 | D199: =IF(E199=0,0,MAX($D$50:D198))*IF(B199=1,IF($H$2=1,105%,102%),1) -> 0 | E199: 0 | F199: 0 | G199: 1.466540183 | H199: =IF(A199<>"",G199*(1+INDEX('Hozamsorok-eszközalapok'!$B$11:$F$55,A199,IF($D$20=1,1,$D$19-2))+$F$23)^(1/12),0) -> 1.470868837 | I199: 0 | J199: 0 | K199: 0 | L199: 0 | M199: 0 | N199: 0 | O199: 0 | P199: 0 | Q199: 0 | R199: 0 | S199: 0 | T199: 0 | U199: 0 | V199: 0 | W199: 0 | X199: 0 | Y199: 0 | Z199: 0 | AA199: 0 | AB199: 0 | AC199: 0 | AD199: 0 | AE199: =IF(A199<>"",SUM($E$50:E199),0) -> 0 | AF199: =IF(A199<>"",SUM($D$50:D199),0) -> 0
A200: 13 | B200: 7 | D200: =IF(E200=0,0,MAX($D$50:D199))*IF(B200=1,IF($H$2=1,105%,102%),1) -> 0 | E200: 0 | F200: 0 | G200: 1.470868837 | H200: =IF(A200<>"",G200*(1+INDEX('Hozamsorok-eszközalapok'!$B$11:$F$55,A200,IF($D$20=1,1,$D$19-2))+$F$23)^(1/12),0) -> 1.475210267 | I200: 0 | J200: 0 | K200: 0 | L200: 0 | M200: 0 | N200: 0 | O200: 0 | P200: 0 | Q200: 0 | R200: 0 | S200: 0 | T200: 0 | U200: 0 | V200: 0 | W200: 0 | X200: 0 | Y200: 0 | Z200: 0 | AA200: 0 | AB200: 0 | AC200: 0 | AD200: 0 | AE200: =IF(A200<>"",SUM($E$50:E200),0) -> 0 | AF200: =IF(A200<>"",SUM($D$50:D200),0) -> 0
A201: 13 | B201: 8 | D201: =IF(E201=0,0,MAX($D$50:D200))*IF(B201=1,IF($H$2=1,105%,102%),1) -> 0 | E201: 0 | F201: 0 | G201: 1.475210267 | H201: =IF(A201<>"",G201*(1+INDEX('Hozamsorok-eszközalapok'!$B$11:$F$55,A201,IF($D$20=1,1,$D$19-2))+$F$23)^(1/12),0) -> 1.479564512 | I201: 0 | J201: 0 | K201: 0 | L201: 0 | M201: 0 | N201: 0 | O201: 0 | P201: 0 | Q201: 0 | R201: 0 | S201: 0 | T201: 0 | U201: 0 | V201: 0 | W201: 0 | X201: 0 | Y201: 0 | Z201: 0 | AA201: 0 | AB201: 0 | AC201: 0 | AD201: 0 | AE201: =IF(A201<>"",SUM($E$50:E201),0) -> 0 | AF201: =IF(A201<>"",SUM($D$50:D201),0) -> 0
... 388 more rows

Sheet Folyamatos modell (4) (hidden)
B1: Folyamatos díjak kalkulátora | J1: Aktuális | K1: AMÖ | L1: Vv összeg | M1: Befizetett megtak | N1: Befizetett admin
G2: GÉP = 1, NYÉP = 2 | H2: =IF(Főmenü!AJ4=TRUE,1,2) -> 2 | J2: 1 | K2: =INDEX($AC$50:$AE$589,J2*12,1) -> 0 | L2: =INDEX($AC$50:$AE$589,J2*12,2) -> 0 | M2: =INDEX($AC$50:$AE$589,J2*12,3) -> 0 | N2: =INDEX($AC$50:$AF$589,J2*12,4) -> 0
B3: Üzemmód választás | J3: 2 | K3: 0 | L3: 0 | M3: 0 | N3: 0
E4: TRUE | J4: 3 | K4: 0 | L4: 0 | M4: 0 | N4: 0
J5: 4 | K5: 0 | L5: 0 | M5: 0 | N5: 0
B6: Általános paraméterek | J6: 5 | K6: 0 | L6: 0 | M6: 0 | N6: 0
J7: 6 | K7: 0 | L7: 0 | M7: 0 | N7: 0
C8: Díjfizetés gyakoriság | D8: =+'Folyamatos modell'!D8 -> 3 | F8: Eszközalap-kezelési költség | G8: =IF(ISERROR(VLOOKUP(D24,'Hozamsorok-eszközalapok'!M1:P14,2,FALSE))=TRUE,0,VLOOKUP(D24,'Hozamsorok-eszközalapok'!M1:P14,IF(H2=1,3,4),FALSE)) -> 0 | J8: 7 | K8: 0 | L8: 0 | M8: 0 | N8: 0
C9: Tartam | D9: =+'Folyamatos modell'!D9 -> 20 | J9: 8 | K9: 0 | L9: 0 | M9: 0 | N9: 0
C10: =IF(D8=1,"---","Megtakarítási időszak") -> Megtakarítási időszak | D10: =+'Folyamatos modell'!D10 -> 20 | F10: =IF(E4=TRUE,"Stop-loss költség","---") -> Stop-loss költség | G10: =IF(E4=TRUE,IF(D22=1,0.02%,0),"---") -> 0 | J10: 9 | K10: 0 | L10: 0 | M10: 0 | N10: 0
F11: =IF(E4=TRUE,"Profitvédelem költség","---") -> Profitvédelem költség | G11: =IF(E4=TRUE,IF(D23=1,0.02%,0),"---") -> 0 | J11: 10 | K11: 0 | L11: 0 | M11: 0 | N11: 0
C12: Befektetendő összeg | D12: =+G19 -> 0 | J12: 11 | K12: 0 | L12: 0 | M12: 0 | N12: 0
C13: Allokációs költség | D13: =+'Folyamatos modell'!D13 -> 0 | F13: Kockázati biztosítási összeg | G13: =IF(H2=1,300000,'Folyamatos Nyugdíjcélú Életív'!T8)*D26 -> 0 | J13: 12 | K13: 0 | L13: 0 | M13: 0 | N13: 0
C14: Kezdeti költség | D14: 0.005 | F14: Kezdeti egység vv tényező | G14: 0.995 | J14: 13 | K14: 0 | L14: 0 | M14: 0 | N14: 0
C15: Kockázati költség | D15: =+'Folyamatos modell'!D15 -> 0.00167 | F15: Felhalm. egység vv tényező | G15: 1 | J15: 14 | K15: 0 | L15: 0 | M15: 0 | N15: 0
J16: 15 | K16: 0 | L16: 0 | M16: 0 | N16: 0
B17: T érték specifikus adatok | J17: 16 | K17: 0 | L17: 0 | M17: 0 | N17: 0
J18: 17 | K18: 0 | L18: 0 | M18: 0 | N18: 0
C19: Eszközalap-kategória | D19: =IF(ISERROR(VLOOKUP(D24,'Hozamsorok-eszközalapok'!M1:N14,2,FALSE))=TRUE,4,VLOOKUP(D24,'Hozamsorok-eszközalapok'!M1:N14,2,FALSE)) -> 4 | F19: Egyszeri/megtak díj | G19: =IF(H2=1,'Folyamatos Életív'!K8,'Folyamatos Nyugdíjcélú Életív'!I8)*D26 -> 0 | J19: 18 | K19: 0 | L19: 0 | M19: 0 | N19: 0
C20: Hozamsor | D20: 2 | J20: 19 | K20: 0 | L20: 0 | M20: 0 | N20: 0
J21: 20 | K21: 0 | L21: 0 | M21: 0 | N21: 0
C22: Stop-loss | D22: =+IF('Folyamatos Életív'!R29="Igen",1,0) -> 0 | E22: HV | F22: =IF('Folyamatos Életív'!R30="Igen",1,0) -> 0 | J22: 21 | K22: 0 | L22: 0 | M22: 0 | N22: 0
C23: Profitvédelem | D23: 0 | E23: Extra hozam | F23: =IF(D22=0,0,INDEX('Hozamsorok-eszközalapok'!N19:O22,D19-3,IF(F22=0,1,2))) -> 0 | J23: 22 | K23: 0 | L23: 0 | M23: 0 | N23: 0
C24: Alap | D24: =IF(H2=1,'Folyamatos Életív'!D25,'Folyamatos Nyugdíjcélú Életív'!D25) -> 0 | J24: 23 | K24: 0 | L24: 0 | M24: 0 | N24: 0
C25: Index | D25: =+'Folyamatos modell'!D25 -> 0.05 | J25: 24 | K25: 0 | L25: 0 | M25: 0 | N25: 0
C26: Alaparány | D26: =IF(H2=1,'Folyamatos Életív'!Q25,'Folyamatos Nyugdíjcélú Életív'!Q25) -> 0 | J26: 25 | K26: =INDEX($AC$50:$AE$589,J26*12,1) -> 0 | L26: =INDEX($AC$50:$AE$589,J26*12,2) -> 0 | M26: =INDEX($AC$50:$AE$589,J26*12,3) -> 0 | N26: =INDEX($AC$50:$AF$589,J26*12,4) -> 0
J27: 26 | K27: 0 | L27: 0 | M27: 0 | N27: 0
J28: 27 | K28: 0 | L28: 0 | M28: 0 | N28: 0
J29: 28 | K29: 0 | L29: 0 | M29: 0 | N29: 0
J30: 29 | K30: 0 | L30: 0 | M30: 0 | N30: 0
J31: 30 | K31: 0 | L31: 0 | M31: 0 | N31: 0
J32: 31 | K32: 0 | L32: 0 | M32: 0 | N32: 0
J33: 32 | K33: 0 | L33: 0 | M33: 0 | N33: 0
J34: 33 | K34: 0 | L34: 0 | M34: 0 | N34: 0
J35: 34 | K35: 0 | L35: 0 | M35: 0 | N35: 0
J36: 35 | K36: 0 | L36: 0 | M36: 0 | N36: 0
J37: 36 | K37: 0 | L37: 0 | M37: 0 | N37: 0
J38: 37 | K38: 0 | L38: 0 | M38: 0 | N38: 0
J39: 38 | K39: 0 | L39: 0 | M39: 0 | N39: 0
J40: 39 | K40: 0 | L40: 0 | M40: 0 | N40: 0
J41: 40 | K41: 0 | L41: 0 | M41: 0 | N41: 0
J42: 41 | K42: 0 | L42: 0 | M42: 0 | N42: 0
J43: 42 | K43: 0 | L43: 0 | M43: 0 | N43: 0
J44: 43 | K44: 0 | L44: 0 | M44: 0 | N44: 0
J45: 44 | K45: 0 | L45: 0 | M45: 0 | N45: 0
J46: 45 | K46: =INDEX($AC$50:$AE$589,J46*12,1) -> 0 | L46: =INDEX($AC$50:$AE$589,J46*12,2) -> 0 | M46: =INDEX($AC$50:$AE$589,J46*12,3) -> 0 | N46: =INDEX($AC$50:$AF$589,J46*12,4) -> 0
E48: Eszközalapot érintő tranzakciók | V48: Elhatárolások folyamatos díjas esetben | AC48: Hónap végén
A49: Év | B49: Hónap | D49: Admin. díjrész | E49: Befektetett díj | F49: Allokációs ktg. | G49: Nyitó árfolyam | H49: Záró árfolyam | I49: Vásárolt kezdeti egységek | J49: Vásárolt felhalm. egységek | K49: Kezdeti egységek nyitó | L49: Felhalm. egységek nyitó | M49: K. egységek e.alap-kezelési ktg. után | N49: F. egységek e.alap-kezelési ktg. után | O49: Számított Hozam-Monitor ktg. | P49: K. egységek HM ktg. után | Q49: F. egységek HM ktg. után | R49: Számított kockázati ktg. | S49: K. egységek kockázati ktg. után | T49: F. egységek kockázati ktg. után (záró) | U49: K. egységek kezdeti ktg. után (záró) | V49: Összes esedékes költség: aktuális HM ktg. előtt | W49: Összes f. egység fedezet HM ktg. előtt | X49: Érvényesíthető ktg. HM ktg. előtt | Y49: Összes esedékes költség: aktuális kock. ktg. előtt | Z49: Összes f. egység fedezet kock. ktg. előtt | AA49: Érvényesíthető ktg. kock. ktg. előtt | AB49: Megmaradó elhatárolt ktg. | AC49: Egyéni számlaérték | AD49: VV összeg | AE49: Kumulált megtak díj | AF49: Kumulált admin
